Workbook

Sheet Produktionsanlæg
A1: Produktionsanlæg | B1: Enhed | C1: Standard-levetid | D1: Samlet mængde per 31/12-2023 | E1: Samlet mængde per 31/12-2024 | F1: Samlet mængde per 31/12-2025 | G1: Afvigelse 2023-2024 | H1: Afvigelse 2024-2025 | I1: Bemærkninger | J1: Enhedspris 2024 | K1: Enhedspris 2025 | L1: Netvolumenbidrag 2024 | M1: Netvolumenbidrag 2025 | N1: Ejerandel 2024 (%) | O1: Ejerandel 2025 (%) | Q1: Postnr. | R1: Selskabsnavn | S1: CAPEX Netvolumenmål 2024 | T1: CAPEX Netvolumenmål 2025 | U1: Gennemsnitligt CAPEX Netvolumenmål
A2: Boringer | Q2: 2300 | R2: Hofor Vand København | S2: =SUMIFS(L:L,L:L,">0") + SUMIFS(Distributionsanlæg!L:L,Distributionsanlæg!L:L,">0") + SUMIFS(Fællesfunktionsanlæg!L:L,Fællesfunktionsanlæg!L:L,">0") -> 144897742.5 | T2: =SUMIFS(M:M,M:M,">0") + SUMIFS(Distributionsanlæg!M:M,Distributionsanlæg!M:M,">0") + SUMIFS(Fællesfunktionsanlæg!M:M,Fællesfunktionsanlæg!M:M,">0") -> 146420188.9 | U2: =AVERAGE(S2:T2) -> 145658965.7
A3: Boring (inkl. etablering, forerør, filter og prøvepumpning) | B3: dybdemeter | C3: =Genanskaffelsespriser!E5 -> 30 | D3: 39119 | E3: 39291.11 | F3: 39507 | G3: =IF($D3="",IF($E3>0,"Ny data",IF($E3="","",0)),IF($D3=0,IF($E3=0,0,"Ny data"),($E3-$D3)/$D3)) -> 0.004399652343 | H3: =IF($E3="",IF($F3>0,"Ny data",IF($F3="","",0)),IF($E3=0,IF($F3=0,0,"Ny data"),($F3-$E3)/$E3)) -> 0.005494627156 | I3: ny optælling | J3: =Genanskaffelsespriser!$D5 -> 2538 | K3: =J3 -> 2538 | L3: =IF(ISNUMBER(E3),((J3*E3)/C3)*N3,"") -> 3324027.906 | M3: =IF(ISNUMBER(F3),((K3*F3)/C3)*O3,"") -> 3342292.2 | N3: 1 | O3: 1
A4: Råvandsstationer
A5: Råvandsstation komplet montering og boringshus/tørbrønd | B5: stk. | C5: =Genanskaffelsespriser!E7 -> 30 | D5: 409 | E5: 406 | F5: 406 | G5: =IF($D5="",IF($E5>0,"Ny data",IF($E5="","",0)),IF($D5=0,IF($E5=0,0,"Ny data"),($E5-$D5)/$D5)) -> -0.007334963325 | H5: =IF($E5="",IF($F5>0,"Ny data",IF($F5="","",0)),IF($E5=0,IF($F5=0,0,"Ny data"),($F5-$E5)/$E5)) -> 0 | I5: ny optælling | J5: =Genanskaffelsespriser!$D7 -> 59948.97 | K5: =J5 -> 59948.97 | L5: =IF(ISNUMBER(E5),((J5*E5)/C5)*N5,"") -> 811309.394 | M5: =IF(ISNUMBER(F5),((K5*F5)/C5)*O5,"") -> 811309.394 | N5: 1 | O5: 1
A6: Instrumenter (flowmåler+tryk transducer+alarmer) | B6: stk. | C6: =Genanskaffelsespriser!E8 -> 10 | D6: 510 | E6: 522 | F6: 521 | G6: 0.02352941176 | H6: -0.001915708812 | I6: ny optælling | J6: =Genanskaffelsespriser!$D8 -> 67654.917 | K6: =J6 -> 67654.917 | L6: 3531586.667 | M6: 3524821.176 | N6: 1 | O6: 1
A7: Pumpe inkl. stigrør og forerørsforsejlinger mv. 1 | B7: m³/h | C7: =Genanskaffelsespriser!E9 -> 15 | D7: 30 | E7: 30 | F7: 30 | G7: 0 | H7: 0 | J7: =IF(E7=0,"Variabel pris",IFERROR(((HLOOKUP(E7,'Variable priser'!$C$2:$H$4,2)+(E7-HLOOKUP(E7,'Variable priser'!$C$2:$H$4,1))*HLOOKUP(E7,'Variable priser'!$C$2:$H$4,3))/E7*(1+Genanskaffelsespriser!$D$203)),"Fejl")) -> 2666.751689 | K7: =IF(F7=0,"Variabel pris",IFERROR(((HLOOKUP(F7,'Variable priser'!$C$2:$H$4,2)+(F7-HLOOKUP(F7,'Variable priser'!$C$2:$H$4,1))*HLOOKUP(F7,'Variable priser'!$C$2:$H$4,3))/F7*(1+Genanskaffelsespriser!$D$203)),"Fejl")) -> 2666.751689 | L7: =IF(ISBLANK(E7),"",IF(E7=0,"",IF(ISNUMBER(E7),((J7*E7)/C7)*N7,""))) -> 5333.503378 | M7: =IF(ISBLANK(F7),"",IF(F7=0,"",IF(ISNUMBER(F7),((K7*F7)/C7)*N7,""))) -> 5333.503378 | N7: 1 | O7: 1
A8: Pumpe inkl. stigrør og forerørsforsejlinger mv. 2 | B8: m³/h | C8: =Genanskaffelsespriser!E9 -> 15 | D8: 30 | E8: 30 | F8: 30 | G8: 0 | H8: 0 | J8: =IF(E8=0,"Variabel pris",IFERROR(((HLOOKUP(E8,'Variable priser'!$C$2:$H$4,2)+(E8-HLOOKUP(E8,'Variable priser'!$C$2:$H$4,1))*HLOOKUP(E8,'Variable priser'!$C$2:$H$4,3))/E8*(1+Genanskaffelsespriser!$D$203)),"Fejl")) -> 2666.751689 | K8: =IF(F8=0,"Variabel pris",IFERROR(((HLOOKUP(F8,'Variable priser'!$C$2:$H$4,2)+(F8-HLOOKUP(F8,'Variable priser'!$C$2:$H$4,1))*HLOOKUP(F8,'Variable priser'!$C$2:$H$4,3))/F8*(1+Genanskaffelsespriser!$D$203)),"Fejl")) -> 2666.751689 | L8: =IF(ISBLANK(E8),"",IF(E8=0,"",IF(ISNUMBER(E8),((J8*E8)/C8)*N8,""))) -> 5333.503378 | M8: =IF(ISBLANK(F8),"",IF(F8=0,"",IF(ISNUMBER(F8),((K8*F8)/C8)*N8,""))) -> 5333.503378 | N8: 1 | O8: 1
A9: Pumpe inkl. stigrør og forerørsforsejlinger mv. 3 | B9: m³/h | C9: =Genanskaffelsespriser!E9 -> 15 | D9: 30 | E9: 30 | F9: 30 | G9: 0 | H9: 0 | J9: =IF(E9=0,"Variabel pris",IFERROR(((HLOOKUP(E9,'Variable priser'!$C$2:$H$4,2)+(E9-HLOOKUP(E9,'Variable priser'!$C$2:$H$4,1))*HLOOKUP(E9,'Variable priser'!$C$2:$H$4,3))/E9*(1+Genanskaffelsespriser!$D$203)),"Fejl")) -> 2666.751689 | K9: =IF(F9=0,"Variabel pris",IFERROR(((HLOOKUP(F9,'Variable priser'!$C$2:$H$4,2)+(F9-HLOOKUP(F9,'Variable priser'!$C$2:$H$4,1))*HLOOKUP(F9,'Variable priser'!$C$2:$H$4,3))/F9*(1+Genanskaffelsespriser!$D$203)),"Fejl")) -> 2666.751689 | L9: 5333.503378 | M9: 5333.503378 | N9: 1 | O9: 1
A10: Pumpe inkl. stigrør og forerørsforsejlinger mv. 4 | B10: m³/h | C10: =Genanskaffelsespriser!E9 -> 15 | D10: 30 | E10: 30 | F10: 30 | G10: 0 | H10: 0 | J10: =IF(E10=0,"Variabel pris",IFERROR(((HLOOKUP(E10,'Variable priser'!$C$2:$H$4,2)+(E10-HLOOKUP(E10,'Variable priser'!$C$2:$H$4,1))*HLOOKUP(E10,'Variable priser'!$C$2:$H$4,3))/E10*(1+Genanskaffelsespriser!$D$203)),"Fejl")) -> 2666.751689 | K10: =IF(F10=0,"Variabel pris",IFERROR(((HLOOKUP(F10,'Variable priser'!$C$2:$H$4,2)+(F10-HLOOKUP(F10,'Variable priser'!$C$2:$H$4,1))*HLOOKUP(F10,'Variable priser'!$C$2:$H$4,3))/F10*(1+Genanskaffelsespriser!$D$203)),"Fejl")) -> 2666.751689 | L10: 5333.503378 | M10: 5333.503378 | N10: 1 | O10: 1
A11: Pumpe inkl. stigrør og forerørsforsejlinger mv. 5 | B11: m³/h | C11: =Genanskaffelsespriser!E9 -> 15 | D11: 30 | E11: 30 | F11: 30 | G11: 0 | H11: 0 | J11: =IF(E11=0,"Variabel pris",IFERROR(((HLOOKUP(E11,'Variable priser'!$C$2:$H$4,2)+(E11-HLOOKUP(E11,'Variable priser'!$C$2:$H$4,1))*HLOOKUP(E11,'Variable priser'!$C$2:$H$4,3))/E11*(1+Genanskaffelsespriser!$D$203)),"Fejl")) -> 2666.751689 | K11: =IF(F11=0,"Variabel pris",IFERROR(((HLOOKUP(F11,'Variable priser'!$C$2:$H$4,2)+(F11-HLOOKUP(F11,'Variable priser'!$C$2:$H$4,1))*HLOOKUP(F11,'Variable priser'!$C$2:$H$4,3))/F11*(1+Genanskaffelsespriser!$D$203)),"Fejl")) -> 2666.751689 | L11: 5333.503378 | M11: 5333.503378 | N11: 1 | O11: 1
A12: Pumpe inkl. stigrør og forerørsforsejlinger mv. 6 | B12: m³/h | C12: =Genanskaffelsespriser!E9 -> 15 | D12: 30 | E12: 30 | F12: 30 | G12: 0 | H12: 0 | J12: =IF(E12=0,"Variabel pris",IFERROR(((HLOOKUP(E12,'Variable priser'!$C$2:$H$4,2)+(E12-HLOOKUP(E12,'Variable priser'!$C$2:$H$4,1))*HLOOKUP(E12,'Variable priser'!$C$2:$H$4,3))/E12*(1+Genanskaffelsespriser!$D$203)),"Fejl")) -> 2666.751689 | K12: =IF(F12=0,"Variabel pris",IFERROR(((HLOOKUP(F12,'Variable priser'!$C$2:$H$4,2)+(F12-HLOOKUP(F12,'Variable priser'!$C$2:$H$4,1))*HLOOKUP(F12,'Variable priser'!$C$2:$H$4,3))/F12*(1+Genanskaffelsespriser!$D$203)),"Fejl")) -> 2666.751689 | L12: 5333.503378 | M12: 5333.503378 | N12: 1 | O12: 1
A13: Pumpe inkl. stigrør og forerørsforsejlinger mv. 7 | B13: m³/h | C13: =Genanskaffelsespriser!E9 -> 15 | D13: 9 | E13: 9 | F13: 9 | G13: 0 | H13: 0 | J13: =IF(E13=0,"Variabel pris",IFERROR(((HLOOKUP(E13,'Variable priser'!$C$2:$H$4,2)+(E13-HLOOKUP(E13,'Variable priser'!$C$2:$H$4,1))*HLOOKUP(E13,'Variable priser'!$C$2:$H$4,3))/E13*(1+Genanskaffelsespriser!$D$203)),"Fejl")) -> 4578.075425 | K13: =IF(F13=0,"Variabel pris",IFERROR(((HLOOKUP(F13,'Variable priser'!$C$2:$H$4,2)+(F13-HLOOKUP(F13,'Variable priser'!$C$2:$H$4,1))*HLOOKUP(F13,'Variable priser'!$C$2:$H$4,3))/F13*(1+Genanskaffelsespriser!$D$203)),"Fejl")) -> 4578.075425 | L13: 2746.845255 | M13: 2746.845255 | N13: 1 | O13: 1
A14: Pumpe inkl. stigrør og forerørsforsejlinger mv. 8 | B14: m³/h | C14: =Genanskaffelsespriser!E9 -> 15 | D14: 9 | E14: 9 | F14: 9 | G14: 0 | H14: 0 | J14: =IF(E14=0,"Variabel pris",IFERROR(((HLOOKUP(E14,'Variable priser'!$C$2:$H$4,2)+(E14-HLOOKUP(E14,'Variable priser'!$C$2:$H$4,1))*HLOOKUP(E14,'Variable priser'!$C$2:$H$4,3))/E14*(1+Genanskaffelsespriser!$D$203)),"Fejl")) -> 4578.075425 | K14: =IF(F14=0,"Variabel pris",IFERROR(((HLOOKUP(F14,'Variable priser'!$C$2:$H$4,2)+(F14-HLOOKUP(F14,'Variable priser'!$C$2:$H$4,1))*HLOOKUP(F14,'Variable priser'!$C$2:$H$4,3))/F14*(1+Genanskaffelsespriser!$D$203)),"Fejl")) -> 4578.075425 | L14: 2746.845255 | M14: 2746.845255 | N14: 1 | O14: 1
A15: Pumpe inkl. stigrør og forerørsforsejlinger mv. 9 | B15: m³/h | C15: =Genanskaffelsespriser!E9 -> 15 | D15: 11 | E15: 11 | F15: 11 | G15: 0 | H15: 0 | J15: =IF(E15=0,"Variabel pris",IFERROR(((HLOOKUP(E15,'Variable priser'!$C$2:$H$4,2)+(E15-HLOOKUP(E15,'Variable priser'!$C$2:$H$4,1))*HLOOKUP(E15,'Variable priser'!$C$2:$H$4,3))/E15*(1+Genanskaffelsespriser!$D$203)),"Fejl")) -> 4339.228909 | K15: =IF(F15=0,"Variabel pris",IFERROR(((HLOOKUP(F15,'Variable priser'!$C$2:$H$4,2)+(F15-HLOOKUP(F15,'Variable priser'!$C$2:$H$4,1))*HLOOKUP(F15,'Variable priser'!$C$2:$H$4,3))/F15*(1+Genanskaffelsespriser!$D$203)),"Fejl")) -> 4339.228909 | L15: 3182.1012 | M15: 3182.1012 | N15: 1 | O15: 1
A16: Pumpe inkl. stigrør og forerørsforsejlinger mv. 10 | B16: m³/h | C16: 15 | D16: 11 | E16: 11 | F16: 11 | G16: 0 | H16: 0 | J16: =IF(E16=0,"Variabel pris",IFERROR(((HLOOKUP(E16,'Variable priser'!$C$2:$H$4,2)+(E16-HLOOKUP(E16,'Variable priser'!$C$2:$H$4,1))*HLOOKUP(E16,'Variable priser'!$C$2:$H$4,3))/E16*(1+Genanskaffelsespriser!$D$203)),"Fejl")) -> 4339.228909 | K16: =IF(F16=0,"Variabel pris",IFERROR(((HLOOKUP(F16,'Variable priser'!$C$2:$H$4,2)+(F16-HLOOKUP(F16,'Variable priser'!$C$2:$H$4,1))*HLOOKUP(F16,'Variable priser'!$C$2:$H$4,3))/F16*(1+Genanskaffelsespriser!$D$203)),"Fejl")) -> 4339.228909 | L16: 3182.1012 | M16: 3182.1012 | N16: 1 | O16: 1
A17: Pumpe inkl. stigrør og forerørsforsejlinger mv. 11 | B17: m³/h | C17: 15 | D17: 11 | E17: 11 | F17: 11 | G17: 0 | H17: 0 | J17: =IF(E17=0,"Variabel pris",IFERROR(((HLOOKUP(E17,'Variable priser'!$C$2:$H$4,2)+(E17-HLOOKUP(E17,'Variable priser'!$C$2:$H$4,1))*HLOOKUP(E17,'Variable priser'!$C$2:$H$4,3))/E17*(1+Genanskaffelsespriser!$D$203)),"Fejl")) -> 4339.228909 | K17: =IF(F17=0,"Variabel pris",IFERROR(((HLOOKUP(F17,'Variable priser'!$C$2:$H$4,2)+(F17-HLOOKUP(F17,'Variable priser'!$C$2:$H$4,1))*HLOOKUP(F17,'Variable priser'!$C$2:$H$4,3))/F17*(1+Genanskaffelsespriser!$D$203)),"Fejl")) -> 4339.228909 | L17: =IF(ISBLANK(E17),"",IF(E17=0,"",IF(ISNUMBER(E17),((J17*E17)/C17)*N17,""))) -> 3182.1012 | M17: =IF(ISBLANK(F17),"",IF(F17=0,"",IF(ISNUMBER(F17),((K17*F17)/C17)*N17,""))) -> 3182.1012 | N17: 1 | O17: 1
A18: Pumpe inkl. stigrør og forerørsforsejlinger mv. 12 | B18: m³/h | C18: 15 | D18: 14 | E18: 14 | F18: 14 | G18: 0 | H18: 0 | J18: =IF(E18=0,"Variabel pris",IFERROR(((HLOOKUP(E18,'Variable priser'!$C$2:$H$4,2)+(E18-HLOOKUP(E18,'Variable priser'!$C$2:$H$4,1))*HLOOKUP(E18,'Variable priser'!$C$2:$H$4,3))/E18*(1+Genanskaffelsespriser!$D$203)),"Fejl")) -> 3827.414946 | K18: =IF(F18=0,"Variabel pris",IFERROR(((HLOOKUP(F18,'Variable priser'!$C$2:$H$4,2)+(F18-HLOOKUP(F18,'Variable priser'!$C$2:$H$4,1))*HLOOKUP(F18,'Variable priser'!$C$2:$H$4,3))/F18*(1+Genanskaffelsespriser!$D$203)),"Fejl")) -> 3827.414946 | L18: 3572.25395 | M18: 3572.25395 | N18: 1 | O18: 1
A19: Pumpe inkl. stigrør og forerørsforsejlinger mv. 13 | B19: m³/h | C19: 15 | D19: 14 | E19: 14 | F19: 14 | G19: 0 | H19: 0 | J19: =IF(E19=0,"Variabel pris",IFERROR(((HLOOKUP(E19,'Variable priser'!$C$2:$H$4,2)+(E19-HLOOKUP(E19,'Variable priser'!$C$2:$H$4,1))*HLOOKUP(E19,'Variable priser'!$C$2:$H$4,3))/E19*(1+Genanskaffelsespriser!$D$203)),"Fejl")) -> 3827.414946 | K19: =IF(F19=0,"Variabel pris",IFERROR(((HLOOKUP(F19,'Variable priser'!$C$2:$H$4,2)+(F19-HLOOKUP(F19,'Variable priser'!$C$2:$H$4,1))*HLOOKUP(F19,'Variable priser'!$C$2:$H$4,3))/F19*(1+Genanskaffelsespriser!$D$203)),"Fejl")) -> 3827.414946 | L19: 3572.25395 | M19: 3572.25395 | N19: 1 | O19: 1
A20: Pumpe inkl. stigrør og forerørsforsejlinger mv. 14 | B20: m³/h | C20: 15 | D20: 14 | E20: 14 | F20: 14 | G20: 0 | H20: 0 | J20: =IF(E20=0,"Variabel pris",IFERROR(((HLOOKUP(E20,'Variable priser'!$C$2:$H$4,2)+(E20-HLOOKUP(E20,'Variable priser'!$C$2:$H$4,1))*HLOOKUP(E20,'Variable priser'!$C$2:$H$4,3))/E20*(1+Genanskaffelsespriser!$D$203)),"Fejl")) -> 3827.414946 | K20: =IF(F20=0,"Variabel pris",IFERROR(((HLOOKUP(F20,'Variable priser'!$C$2:$H$4,2)+(F20-HLOOKUP(F20,'Variable priser'!$C$2:$H$4,1))*HLOOKUP(F20,'Variable priser'!$C$2:$H$4,3))/F20*(1+Genanskaffelsespriser!$D$203)),"Fejl")) -> 3827.414946 | L20: 3572.25395 | M20: 3572.25395 | N20: 1 | O20: 1
A21: Pumpe inkl. stigrør og forerørsforsejlinger mv. 15 | B21: m³/h | C21: 15 | D21: 46 | E21: 46 | F21: 46 | G21: 0 | H21: 0 | J21: =IF(E21=0,"Variabel pris",IFERROR(((HLOOKUP(E21,'Variable priser'!$C$2:$H$4,2)+(E21-HLOOKUP(E21,'Variable priser'!$C$2:$H$4,1))*HLOOKUP(E21,'Variable priser'!$C$2:$H$4,3))/E21*(1+Genanskaffelsespriser!$D$203)),"Fejl")) -> 2052.541176 | K21: =IF(F21=0,"Variabel pris",IFERROR(((HLOOKUP(F21,'Variable priser'!$C$2:$H$4,2)+(F21-HLOOKUP(F21,'Variable priser'!$C$2:$H$4,1))*HLOOKUP(F21,'Variable priser'!$C$2:$H$4,3))/F21*(1+Genanskaffelsespriser!$D$203)),"Fejl")) -> 2052.541176 | L21: 6294.459606 | M21: 6294.459606 | N21: 1 | O21: 1
A22: Pumpe inkl. stigrør og forerørsforsejlinger mv. 16 | B22: m³/h | C22: 15 | D22: 30 | E22: 30 | F22: 30 | G22: 0 | H22: 0 | J22: =IF(E22=0,"Variabel pris",IFERROR(((HLOOKUP(E22,'Variable priser'!$C$2:$H$4,2)+(E22-HLOOKUP(E22,'Variable priser'!$C$2:$H$4,1))*HLOOKUP(E22,'Variable priser'!$C$2:$H$4,3))/E22*(1+Genanskaffelsespriser!$D$203)),"Fejl")) -> 2666.751689 | K22: =IF(F22=0,"Variabel pris",IFERROR(((HLOOKUP(F22,'Variable priser'!$C$2:$H$4,2)+(F22-HLOOKUP(F22,'Variable priser'!$C$2:$H$4,1))*HLOOKUP(F22,'Variable priser'!$C$2:$H$4,3))/F22*(1+Genanskaffelsespriser!$D$203)),"Fejl")) -> 2666.751689 | L22: 5333.503378 | M22: 5333.503378 | N22: 1 | O22: 1
A23: Pumpe inkl. stigrør og forerørsforsejlinger mv. 17 | B23: m³/h | C23: 15 | D23: 30 | E23: 30 | F23: 30 | G23: 0 | H23: 0 | J23: =IF(E23=0,"Variabel pris",IFERROR(((HLOOKUP(E23,'Variable priser'!$C$2:$H$4,2)+(E23-HLOOKUP(E23,'Variable priser'!$C$2:$H$4,1))*HLOOKUP(E23,'Variable priser'!$C$2:$H$4,3))/E23*(1+Genanskaffelsespriser!$D$203)),"Fejl")) -> 2666.751689 | K23: =IF(F23=0,"Variabel pris",IFERROR(((HLOOKUP(F23,'Variable priser'!$C$2:$H$4,2)+(F23-HLOOKUP(F23,'Variable priser'!$C$2:$H$4,1))*HLOOKUP(F23,'Variable priser'!$C$2:$H$4,3))/F23*(1+Genanskaffelsespriser!$D$203)),"Fejl")) -> 2666.751689 | L23: 5333.503378 | M23: 5333.503378 | N23: 1 | O23: 1
A24: Pumpe inkl. stigrør og forerørsforsejlinger mv. 18 | B24: m³/h | C24: 15 | D24: 17 | E24: 17 | F24: 17 | G24: 0 | H24: 0 | J24: =IF(E24=0,"Variabel pris",IFERROR(((HLOOKUP(E24,'Variable priser'!$C$2:$H$4,2)+(E24-HLOOKUP(E24,'Variable priser'!$C$2:$H$4,1))*HLOOKUP(E24,'Variable priser'!$C$2:$H$4,3))/E24*(1+Genanskaffelsespriser!$D$203)),"Fejl")) -> 3496.241206 | K24: =IF(F24=0,"Variabel pris",IFERROR(((HLOOKUP(F24,'Variable priser'!$C$2:$H$4,2)+(F24-HLOOKUP(F24,'Variable priser'!$C$2:$H$4,1))*HLOOKUP(F24,'Variable priser'!$C$2:$H$4,3))/F24*(1+Genanskaffelsespriser!$D$203)),"Fejl")) -> 3496.241206 | L24: 3962.4067 | M24: 3962.4067 | N24: 1 | O24: 1
A25: Pumpe inkl. stigrør og forerørsforsejlinger mv. 19 | B25: m³/h | C25: 15 | D25: 17 | E25: 17 | F25: 17 | G25: 0 | H25: 0 | J25: =IF(E25=0,"Variabel pris",IFERROR(((HLOOKUP(E25,'Variable priser'!$C$2:$H$4,2)+(E25-HLOOKUP(E25,'Variable priser'!$C$2:$H$4,1))*HLOOKUP(E25,'Variable priser'!$C$2:$H$4,3))/E25*(1+Genanskaffelsespriser!$D$203)),"Fejl")) -> 3496.241206 | K25: =IF(F25=0,"Variabel pris",IFERROR(((HLOOKUP(F25,'Variable priser'!$C$2:$H$4,2)+(F25-HLOOKUP(F25,'Variable priser'!$C$2:$H$4,1))*HLOOKUP(F25,'Variable priser'!$C$2:$H$4,3))/F25*(1+Genanskaffelsespriser!$D$203)),"Fejl")) -> 3496.241206 | L25: 3962.4067 | M25: 3962.4067 | N25: 1 | O25: 1
A26: Pumpe inkl. stigrør og forerørsforsejlinger mv. 20 | B26: m³/h | C26: 15 | D26: 17 | E26: 17 | F26: 17 | G26: 0 | H26: 0 | J26: =IF(E26=0,"Variabel pris",IFERROR(((HLOOKUP(E26,'Variable priser'!$C$2:$H$4,2)+(E26-HLOOKUP(E26,'Variable priser'!$C$2:$H$4,1))*HLOOKUP(E26,'Variable priser'!$C$2:$H$4,3))/E26*(1+Genanskaffelsespriser!$D$203)),"Fejl")) -> 3496.241206 | K26: =IF(F26=0,"Variabel pris",IFERROR(((HLOOKUP(F26,'Variable priser'!$C$2:$H$4,2)+(F26-HLOOKUP(F26,'Variable priser'!$C$2:$H$4,1))*HLOOKUP(F26,'Variable priser'!$C$2:$H$4,3))/F26*(1+Genanskaffelsespriser!$D$203)),"Fejl")) -> 3496.241206 | L26: 3962.4067 | M26: 3962.4067 | N26: 1 | O26: 1
A27: Pumpe inkl. stigrør og forerørsforsejlinger mv. 21 | B27: m³/h | C27: 15 | D27: 17 | E27: 17 | F27: 17 | G27: 0 | H27: 0 | J27: =IF(E27=0,"Variabel pris",IFERROR(((HLOOKUP(E27,'Variable priser'!$C$2:$H$4,2)+(E27-HLOOKUP(E27,'Variable priser'!$C$2:$H$4,1))*HLOOKUP(E27,'Variable priser'!$C$2:$H$4,3))/E27*(1+Genanskaffelsespriser!$D$203)),"Fejl")) -> 3496.241206 | K27: =IF(F27=0,"Variabel pris",IFERROR(((HLOOKUP(F27,'Variable priser'!$C$2:$H$4,2)+(F27-HLOOKUP(F27,'Variable priser'!$C$2:$H$4,1))*HLOOKUP(F27,'Variable priser'!$C$2:$H$4,3))/F27*(1+Genanskaffelsespriser!$D$203)),"Fejl")) -> 3496.241206 | L27: 3962.4067 | M27: 3962.4067 | N27: 1 | O27: 1
A28: Pumpe inkl. stigrør og forerørsforsejlinger mv. 22 | B28: m³/h | C28: 15 | D28: 17 | E28: 17 | F28: 17 | G28: 0 | H28: 0 | J28: =IF(E28=0,"Variabel pris",IFERROR(((HLOOKUP(E28,'Variable priser'!$C$2:$H$4,2)+(E28-HLOOKUP(E28,'Variable priser'!$C$2:$H$4,1))*HLOOKUP(E28,'Variable priser'!$C$2:$H$4,3))/E28*(1+Genanskaffelsespriser!$D$203)),"Fejl")) -> 3496.241206 | K28: =IF(F28=0,"Variabel pris",IFERROR(((HLOOKUP(F28,'Variable priser'!$C$2:$H$4,2)+(F28-HLOOKUP(F28,'Variable priser'!$C$2:$H$4,1))*HLOOKUP(F28,'Variable priser'!$C$2:$H$4,3))/F28*(1+Genanskaffelsespriser!$D$203)),"Fejl")) -> 3496.241206 | L28: 3962.4067 | M28: 3962.4067 | N28: 1 | O28: 1
A29: Pumpe inkl. stigrør og forerørsforsejlinger mv. 23 | B29: m³/h | C29: 15 | D29: 17 | E29: 17 | F29: 17 | G29: 0 | H29: 0 | J29: =IF(E29=0,"Variabel pris",IFERROR(((HLOOKUP(E29,'Variable priser'!$C$2:$H$4,2)+(E29-HLOOKUP(E29,'Variable priser'!$C$2:$H$4,1))*HLOOKUP(E29,'Variable priser'!$C$2:$H$4,3))/E29*(1+Genanskaffelsespriser!$D$203)),"Fejl")) -> 3496.241206 | K29: =IF(F29=0,"Variabel pris",IFERROR(((HLOOKUP(F29,'Variable priser'!$C$2:$H$4,2)+(F29-HLOOKUP(F29,'Variable priser'!$C$2:$H$4,1))*HLOOKUP(F29,'Variable priser'!$C$2:$H$4,3))/F29*(1+Genanskaffelsespriser!$D$203)),"Fejl")) -> 3496.241206 | L29: 3962.4067 | M29: 3962.4067 | N29: 1 | O29: 1
A30: Pumpe inkl. stigrør og forerørsforsejlinger mv. 24 | B30: m³/h | C30: 15 | D30: 17 | E30: 17 | F30: 17 | G30: 0 | H30: 0 | J30: =IF(E30=0,"Variabel pris",IFERROR(((HLOOKUP(E30,'Variable priser'!$C$2:$H$4,2)+(E30-HLOOKUP(E30,'Variable priser'!$C$2:$H$4,1))*HLOOKUP(E30,'Variable priser'!$C$2:$H$4,3))/E30*(1+Genanskaffelsespriser!$D$203)),"Fejl")) -> 3496.241206 | K30: =IF(F30=0,"Variabel pris",IFERROR(((HLOOKUP(F30,'Variable priser'!$C$2:$H$4,2)+(F30-HLOOKUP(F30,'Variable priser'!$C$2:$H$4,1))*HLOOKUP(F30,'Variable priser'!$C$2:$H$4,3))/F30*(1+Genanskaffelsespriser!$D$203)),"Fejl")) -> 3496.241206 | L30: 3962.4067 | M30: 3962.4067 | N30: 1 | O30: 1
A31: Pumpe inkl. stigrør og forerørsforsejlinger mv. 25 | B31: m³/h | C31: 15 | D31: 17 | E31: 17 | F31: 17 | G31: 0 | H31: 0 | J31: =IF(E31=0,"Variabel pris",IFERROR(((HLOOKUP(E31,'Variable priser'!$C$2:$H$4,2)+(E31-HLOOKUP(E31,'Variable priser'!$C$2:$H$4,1))*HLOOKUP(E31,'Variable priser'!$C$2:$H$4,3))/E31*(1+Genanskaffelsespriser!$D$203)),"Fejl")) -> 3496.241206 | K31: =IF(F31=0,"Variabel pris",IFERROR(((HLOOKUP(F31,'Variable priser'!$C$2:$H$4,2)+(F31-HLOOKUP(F31,'Variable priser'!$C$2:$H$4,1))*HLOOKUP(F31,'Variable priser'!$C$2:$H$4,3))/F31*(1+Genanskaffelsespriser!$D$203)),"Fejl")) -> 3496.241206 | L31: 3962.4067 | M31: 3962.4067 | N31: 1 | O31: 1
A32: Pumpe inkl. stigrør og forerørsforsejlinger mv. 26 | B32: m³/h | C32: 15 | D32: 17 | E32: 17 | F32: 17 | G32: 0 | H32: 0 | J32: =IF(E32=0,"Variabel pris",IFERROR(((HLOOKUP(E32,'Variable priser'!$C$2:$H$4,2)+(E32-HLOOKUP(E32,'Variable priser'!$C$2:$H$4,1))*HLOOKUP(E32,'Variable priser'!$C$2:$H$4,3))/E32*(1+Genanskaffelsespriser!$D$203)),"Fejl")) -> 3496.241206 | K32: =IF(F32=0,"Variabel pris",IFERROR(((HLOOKUP(F32,'Variable priser'!$C$2:$H$4,2)+(F32-HLOOKUP(F32,'Variable priser'!$C$2:$H$4,1))*HLOOKUP(F32,'Variable priser'!$C$2:$H$4,3))/F32*(1+Genanskaffelsespriser!$D$203)),"Fejl")) -> 3496.241206 | L32: 3962.4067 | M32: 3962.4067 | N32: 1 | O32: 1
A33: Pumpe inkl. stigrør og forerørsforsejlinger mv. 27 | B33: m³/h | C33: 15 | D33: 17 | E33: 17 | F33: 17 | G33: 0 | H33: 0 | J33: =IF(E33=0,"Variabel pris",IFERROR(((HLOOKUP(E33,'Variable priser'!$C$2:$H$4,2)+(E33-HLOOKUP(E33,'Variable priser'!$C$2:$H$4,1))*HLOOKUP(E33,'Variable priser'!$C$2:$H$4,3))/E33*(1+Genanskaffelsespriser!$D$203)),"Fejl")) -> 3496.241206 | K33: =IF(F33=0,"Variabel pris",IFERROR(((HLOOKUP(F33,'Variable priser'!$C$2:$H$4,2)+(F33-HLOOKUP(F33,'Variable priser'!$C$2:$H$4,1))*HLOOKUP(F33,'Variable priser'!$C$2:$H$4,3))/F33*(1+Genanskaffelsespriser!$D$203)),"Fejl")) -> 3496.241206 | L33: 3962.4067 | M33: 3962.4067 | N33: 1 | O33: 1
A34: Pumpe inkl. stigrør og forerørsforsejlinger mv. 28 | B34: m³/h | C34: 15 | D34: 17 | E34: 17 | F34: 17 | G34: 0 | H34: 0 | J34: =IF(E34=0,"Variabel pris",IFERROR(((HLOOKUP(E34,'Variable priser'!$C$2:$H$4,2)+(E34-HLOOKUP(E34,'Variable priser'!$C$2:$H$4,1))*HLOOKUP(E34,'Variable priser'!$C$2:$H$4,3))/E34*(1+Genanskaffelsespriser!$D$203)),"Fejl")) -> 3496.241206 | K34: =IF(F34=0,"Variabel pris",IFERROR(((HLOOKUP(F34,'Variable priser'!$C$2:$H$4,2)+(F34-HLOOKUP(F34,'Variable priser'!$C$2:$H$4,1))*HLOOKUP(F34,'Variable priser'!$C$2:$H$4,3))/F34*(1+Genanskaffelsespriser!$D$203)),"Fejl")) -> 3496.241206 | L34: 3962.4067 | M34: 3962.4067 | N34: 1 | O34: 1
A35: Pumpe inkl. stigrør og forerørsforsejlinger mv. 29 | B35: m³/h | C35: 15 | D35: 17 | E35: 17 | F35: 17 | G35: 0 | H35: 0 | J35: =IF(E35=0,"Variabel pris",IFERROR(((HLOOKUP(E35,'Variable priser'!$C$2:$H$4,2)+(E35-HLOOKUP(E35,'Variable priser'!$C$2:$H$4,1))*HLOOKUP(E35,'Variable priser'!$C$2:$H$4,3))/E35*(1+Genanskaffelsespriser!$D$203)),"Fejl")) -> 3496.241206 | K35: =IF(F35=0,"Variabel pris",IFERROR(((HLOOKUP(F35,'Variable priser'!$C$2:$H$4,2)+(F35-HLOOKUP(F35,'Variable priser'!$C$2:$H$4,1))*HLOOKUP(F35,'Variable priser'!$C$2:$H$4,3))/F35*(1+Genanskaffelsespriser!$D$203)),"Fejl")) -> 3496.241206 | L35: 3962.4067 | M35: 3962.4067 | N35: 1 | O35: 1
A36: Pumpe inkl. stigrør og forerørsforsejlinger mv. 30 | B36: m³/h | C36: 15 | D36: 17 | E36: 17 | F36: 17 | G36: 0 | H36: 0 | J36: =IF(E36=0,"Variabel pris",IFERROR(((HLOOKUP(E36,'Variable priser'!$C$2:$H$4,2)+(E36-HLOOKUP(E36,'Variable priser'!$C$2:$H$4,1))*HLOOKUP(E36,'Variable priser'!$C$2:$H$4,3))/E36*(1+Genanskaffelsespriser!$D$203)),"Fejl")) -> 3496.241206 | K36: =IF(F36=0,"Variabel pris",IFERROR(((HLOOKUP(F36,'Variable priser'!$C$2:$H$4,2)+(F36-HLOOKUP(F36,'Variable priser'!$C$2:$H$4,1))*HLOOKUP(F36,'Variable priser'!$C$2:$H$4,3))/F36*(1+Genanskaffelsespriser!$D$203)),"Fejl")) -> 3496.241206 | L36: 3962.4067 | M36: 3962.4067 | N36: 1 | O36: 1
A37: Pumpe inkl. stigrør og forerørsforsejlinger mv. 31 | B37: m³/h | C37: 15 | D37: 17 | E37: 17 | F37: 17 | G37: 0 | H37: 0 | J37: =IF(E37=0,"Variabel pris",IFERROR(((HLOOKUP(E37,'Variable priser'!$C$2:$H$4,2)+(E37-HLOOKUP(E37,'Variable priser'!$C$2:$H$4,1))*HLOOKUP(E37,'Variable priser'!$C$2:$H$4,3))/E37*(1+Genanskaffelsespriser!$D$203)),"Fejl")) -> 3496.241206 | K37: =IF(F37=0,"Variabel pris",IFERROR(((HLOOKUP(F37,'Variable priser'!$C$2:$H$4,2)+(F37-HLOOKUP(F37,'Variable priser'!$C$2:$H$4,1))*HLOOKUP(F37,'Variable priser'!$C$2:$H$4,3))/F37*(1+Genanskaffelsespriser!$D$203)),"Fejl")) -> 3496.241206 | L37: 3962.4067 | M37: 3962.4067 | N37: 1 | O37: 1
A38: Pumpe inkl. stigrør og forerørsforsejlinger mv. 32 | B38: m³/h | C38: 15 | D38: 17 | E38: 17 | F38: 17 | G38: 0 | H38: 0 | J38: =IF(E38=0,"Variabel pris",IFERROR(((HLOOKUP(E38,'Variable priser'!$C$2:$H$4,2)+(E38-HLOOKUP(E38,'Variable priser'!$C$2:$H$4,1))*HLOOKUP(E38,'Variable priser'!$C$2:$H$4,3))/E38*(1+Genanskaffelsespriser!$D$203)),"Fejl")) -> 3496.241206 | K38: =IF(F38=0,"Variabel pris",IFERROR(((HLOOKUP(F38,'Variable priser'!$C$2:$H$4,2)+(F38-HLOOKUP(F38,'Variable priser'!$C$2:$H$4,1))*HLOOKUP(F38,'Variable priser'!$C$2:$H$4,3))/F38*(1+Genanskaffelsespriser!$D$203)),"Fejl")) -> 3496.241206 | L38: 3962.4067 | M38: 3962.4067 | N38: 1 | O38: 1
A39: Pumpe inkl. stigrør og forerørsforsejlinger mv. 33 | B39: m³/h | C39: 15 | D39: 17 | E39: 17 | F39: 17 | G39: 0 | H39: 0 | J39: =IF(E39=0,"Variabel pris",IFERROR(((HLOOKUP(E39,'Variable priser'!$C$2:$H$4,2)+(E39-HLOOKUP(E39,'Variable priser'!$C$2:$H$4,1))*HLOOKUP(E39,'Variable priser'!$C$2:$H$4,3))/E39*(1+Genanskaffelsespriser!$D$203)),"Fejl")) -> 3496.241206 | K39: =IF(F39=0,"Variabel pris",IFERROR(((HLOOKUP(F39,'Variable priser'!$C$2:$H$4,2)+(F39-HLOOKUP(F39,'Variable priser'!$C$2:$H$4,1))*HLOOKUP(F39,'Variable priser'!$C$2:$H$4,3))/F39*(1+Genanskaffelsespriser!$D$203)),"Fejl")) -> 3496.241206 | L39: 3962.4067 | M39: 3962.4067 | N39: 1 | O39: 1
A40: Pumpe inkl. stigrør og forerørsforsejlinger mv. 34 | B40: m³/h | C40: 15 | D40: 14 | E40: 14 | F40: 14 | G40: 0 | H40: 0 | J40: =IF(E40=0,"Variabel pris",IFERROR(((HLOOKUP(E40,'Variable priser'!$C$2:$H$4,2)+(E40-HLOOKUP(E40,'Variable priser'!$C$2:$H$4,1))*HLOOKUP(E40,'Variable priser'!$C$2:$H$4,3))/E40*(1+Genanskaffelsespriser!$D$203)),"Fejl")) -> 3827.414946 | K40: =IF(F40=0,"Variabel pris",IFERROR(((HLOOKUP(F40,'Variable priser'!$C$2:$H$4,2)+(F40-HLOOKUP(F40,'Variable priser'!$C$2:$H$4,1))*HLOOKUP(F40,'Variable priser'!$C$2:$H$4,3))/F40*(1+Genanskaffelsespriser!$D$203)),"Fejl")) -> 3827.414946 | L40: 3572.25395 | M40: 3572.25395 | N40: 1 | O40: 1
A41: Pumpe inkl. stigrør og forerørsforsejlinger mv. 35 | B41: m³/h | C41: 15 | D41: 30 | E41: 30 | F41: 30 | G41: 0 | H41: 0 | J41: =IF(E41=0,"Variabel pris",IFERROR(((HLOOKUP(E41,'Variable priser'!$C$2:$H$4,2)+(E41-HLOOKUP(E41,'Variable priser'!$C$2:$H$4,1))*HLOOKUP(E41,'Variable priser'!$C$2:$H$4,3))/E41*(1+Genanskaffelsespriser!$D$203)),"Fejl")) -> 2666.751689 | K41: =IF(F41=0,"Variabel pris",IFERROR(((HLOOKUP(F41,'Variable priser'!$C$2:$H$4,2)+(F41-HLOOKUP(F41,'Variable priser'!$C$2:$H$4,1))*HLOOKUP(F41,'Variable priser'!$C$2:$H$4,3))/F41*(1+Genanskaffelsespriser!$D$203)),"Fejl")) -> 2666.751689 | L41: 5333.503378 | M41: 5333.503378 | N41: 1 | O41: 1
A42: Pumpe inkl. stigrør og forerørsforsejlinger mv. 36 | B42: m³/h | C42: 15 | D42: 30 | E42: 30 | F42: 30 | G42: 0 | H42: 0 | J42: =IF(E42=0,"Variabel pris",IFERROR(((HLOOKUP(E42,'Variable priser'!$C$2:$H$4,2)+(E42-HLOOKUP(E42,'Variable priser'!$C$2:$H$4,1))*HLOOKUP(E42,'Variable priser'!$C$2:$H$4,3))/E42*(1+Genanskaffelsespriser!$D$203)),"Fejl")) -> 2666.751689 | K42: =IF(F42=0,"Variabel pris",IFERROR(((HLOOKUP(F42,'Variable priser'!$C$2:$H$4,2)+(F42-HLOOKUP(F42,'Variable priser'!$C$2:$H$4,1))*HLOOKUP(F42,'Variable priser'!$C$2:$H$4,3))/F42*(1+Genanskaffelsespriser!$D$203)),"Fejl")) -> 2666.751689 | L42: 5333.503378 | M42: 5333.503378 | N42: 1 | O42: 1
A43: Pumpe inkl. stigrør og forerørsforsejlinger mv. 37 | B43: m³/h | C43: 15 | D43: 30 | E43: 30 | F43: 30 | G43: 0 | H43: 0 | J43: =IF(E43=0,"Variabel pris",IFERROR(((HLOOKUP(E43,'Variable priser'!$C$2:$H$4,2)+(E43-HLOOKUP(E43,'Variable priser'!$C$2:$H$4,1))*HLOOKUP(E43,'Variable priser'!$C$2:$H$4,3))/E43*(1+Genanskaffelsespriser!$D$203)),"Fejl")) -> 2666.751689 | K43: =IF(F43=0,"Variabel pris",IFERROR(((HLOOKUP(F43,'Variable priser'!$C$2:$H$4,2)+(F43-HLOOKUP(F43,'Variable priser'!$C$2:$H$4,1))*HLOOKUP(F43,'Variable priser'!$C$2:$H$4,3))/F43*(1+Genanskaffelsespriser!$D$203)),"Fejl")) -> 2666.751689 | L43: 5333.503378 | M43: 5333.503378 | N43: 1 | O43: 1
A44: Pumpe inkl. stigrør og forerørsforsejlinger mv. 38 | B44: m³/h | C44: 15 | D44: 30 | E44: 30 | F44: 30 | G44: 0 | H44: 0 | J44: =IF(E44=0,"Variabel pris",IFERROR(((HLOOKUP(E44,'Variable priser'!$C$2:$H$4,2)+(E44-HLOOKUP(E44,'Variable priser'!$C$2:$H$4,1))*HLOOKUP(E44,'Variable priser'!$C$2:$H$4,3))/E44*(1+Genanskaffelsespriser!$D$203)),"Fejl")) -> 2666.751689 | K44: =IF(F44=0,"Variabel pris",IFERROR(((HLOOKUP(F44,'Variable priser'!$C$2:$H$4,2)+(F44-HLOOKUP(F44,'Variable priser'!$C$2:$H$4,1))*HLOOKUP(F44,'Variable priser'!$C$2:$H$4,3))/F44*(1+Genanskaffelsespriser!$D$203)),"Fejl")) -> 2666.751689 | L44: 5333.503378 | M44: 5333.503378 | N44: 1 | O44: 1
A45: Pumpe inkl. stigrør og forerørsforsejlinger mv. 39 | B45: m³/h | C45: 15 | D45: 30 | E45: 30 | F45: 30 | G45: 0 | H45: 0 | J45: =IF(E45=0,"Variabel pris",IFERROR(((HLOOKUP(E45,'Variable priser'!$C$2:$H$4,2)+(E45-HLOOKUP(E45,'Variable priser'!$C$2:$H$4,1))*HLOOKUP(E45,'Variable priser'!$C$2:$H$4,3))/E45*(1+Genanskaffelsespriser!$D$203)),"Fejl")) -> 2666.751689 | K45: =IF(F45=0,"Variabel pris",IFERROR(((HLOOKUP(F45,'Variable priser'!$C$2:$H$4,2)+(F45-HLOOKUP(F45,'Variable priser'!$C$2:$H$4,1))*HLOOKUP(F45,'Variable priser'!$C$2:$H$4,3))/F45*(1+Genanskaffelsespriser!$D$203)),"Fejl")) -> 2666.751689 | L45: 5333.503378 | M45: 5333.503378 | N45: 1 | O45: 1
A46: Pumpe inkl. stigrør og forerørsforsejlinger mv. 40 | B46: m³/h | C46: 15 | D46: 30 | E46: 30 | F46: 30 | G46: 0 | H46: 0 | J46: =IF(E46=0,"Variabel pris",IFERROR(((HLOOKUP(E46,'Variable priser'!$C$2:$H$4,2)+(E46-HLOOKUP(E46,'Variable priser'!$C$2:$H$4,1))*HLOOKUP(E46,'Variable priser'!$C$2:$H$4,3))/E46*(1+Genanskaffelsespriser!$D$203)),"Fejl")) -> 2666.751689 | K46: =IF(F46=0,"Variabel pris",IFERROR(((HLOOKUP(F46,'Variable priser'!$C$2:$H$4,2)+(F46-HLOOKUP(F46,'Variable priser'!$C$2:$H$4,1))*HLOOKUP(F46,'Variable priser'!$C$2:$H$4,3))/F46*(1+Genanskaffelsespriser!$D$203)),"Fejl")) -> 2666.751689 | L46: 5333.503378 | M46: 5333.503378 | N46: 1 | O46: 1
A47: Pumpe inkl. stigrør og forerørsforsejlinger mv. 41 | B47: m³/h | C47: 15 | D47: 30 | E47: 30 | F47: 30 | G47: 0 | H47: 0 | J47: =IF(E47=0,"Variabel pris",IFERROR(((HLOOKUP(E47,'Variable priser'!$C$2:$H$4,2)+(E47-HLOOKUP(E47,'Variable priser'!$C$2:$H$4,1))*HLOOKUP(E47,'Variable priser'!$C$2:$H$4,3))/E47*(1+Genanskaffelsespriser!$D$203)),"Fejl")) -> 2666.751689 | K47: =IF(F47=0,"Variabel pris",IFERROR(((HLOOKUP(F47,'Variable priser'!$C$2:$H$4,2)+(F47-HLOOKUP(F47,'Variable priser'!$C$2:$H$4,1))*HLOOKUP(F47,'Variable priser'!$C$2:$H$4,3))/F47*(1+Genanskaffelsespriser!$D$203)),"Fejl")) -> 2666.751689 | L47: 5333.503378 | M47: 5333.503378 | N47: 1 | O47: 1
A48: Pumpe inkl. stigrør og forerørsforsejlinger mv. 42 | B48: m³/h | C48: 15 | D48: 30 | E48: 30 | F48: 30 | G48: 0 | H48: 0 | J48: =IF(E48=0,"Variabel pris",IFERROR(((HLOOKUP(E48,'Variable priser'!$C$2:$H$4,2)+(E48-HLOOKUP(E48,'Variable priser'!$C$2:$H$4,1))*HLOOKUP(E48,'Variable priser'!$C$2:$H$4,3))/E48*(1+Genanskaffelsespriser!$D$203)),"Fejl")) -> 2666.751689 | K48: =IF(F48=0,"Variabel pris",IFERROR(((HLOOKUP(F48,'Variable priser'!$C$2:$H$4,2)+(F48-HLOOKUP(F48,'Variable priser'!$C$2:$H$4,1))*HLOOKUP(F48,'Variable priser'!$C$2:$H$4,3))/F48*(1+Genanskaffelsespriser!$D$203)),"Fejl")) -> 2666.751689 | L48: 5333.503378 | M48: 5333.503378 | N48: 1 | O48: 1
A49: Pumpe inkl. stigrør og forerørsforsejlinger mv. 43 | B49: m³/h | C49: 15 | D49: 30 | E49: 30 | F49: 30 | G49: 0 | H49: 0 | J49: =IF(E49=0,"Variabel pris",IFERROR(((HLOOKUP(E49,'Variable priser'!$C$2:$H$4,2)+(E49-HLOOKUP(E49,'Variable priser'!$C$2:$H$4,1))*HLOOKUP(E49,'Variable priser'!$C$2:$H$4,3))/E49*(1+Genanskaffelsespriser!$D$203)),"Fejl")) -> 2666.751689 | K49: =IF(F49=0,"Variabel pris",IFERROR(((HLOOKUP(F49,'Variable priser'!$C$2:$H$4,2)+(F49-HLOOKUP(F49,'Variable priser'!$C$2:$H$4,1))*HLOOKUP(F49,'Variable priser'!$C$2:$H$4,3))/F49*(1+Genanskaffelsespriser!$D$203)),"Fejl")) -> 2666.751689 | L49: 5333.503378 | M49: 5333.503378 | N49: 1 | O49: 1
A50: Pumpe inkl. stigrør og forerørsforsejlinger mv. 44 | B50: m³/h | C50: 15 | D50: 30 | E50: 30 | F50: 30 | G50: 0 | H50: 0 | J50: =IF(E50=0,"Variabel pris",IFERROR(((HLOOKUP(E50,'Variable priser'!$C$2:$H$4,2)+(E50-HLOOKUP(E50,'Variable priser'!$C$2:$H$4,1))*HLOOKUP(E50,'Variable priser'!$C$2:$H$4,3))/E50*(1+Genanskaffelsespriser!$D$203)),"Fejl")) -> 2666.751689 | K50: =IF(F50=0,"Variabel pris",IFERROR(((HLOOKUP(F50,'Variable priser'!$C$2:$H$4,2)+(F50-HLOOKUP(F50,'Variable priser'!$C$2:$H$4,1))*HLOOKUP(F50,'Variable priser'!$C$2:$H$4,3))/F50*(1+Genanskaffelsespriser!$D$203)),"Fejl")) -> 2666.751689 | L50: 5333.503378 | M50: 5333.503378 | N50: 1 | O50: 1
A51: Pumpe inkl. stigrør og forerørsforsejlinger mv. 45 | B51: m³/h | C51: 15 | D51: 30 | E51: 30 | F51: 30 | G51: 0 | H51: 0 | J51: =IF(E51=0,"Variabel pris",IFERROR(((HLOOKUP(E51,'Variable priser'!$C$2:$H$4,2)+(E51-HLOOKUP(E51,'Variable priser'!$C$2:$H$4,1))*HLOOKUP(E51,'Variable priser'!$C$2:$H$4,3))/E51*(1+Genanskaffelsespriser!$D$203)),"Fejl")) -> 2666.751689 | K51: =IF(F51=0,"Variabel pris",IFERROR(((HLOOKUP(F51,'Variable priser'!$C$2:$H$4,2)+(F51-HLOOKUP(F51,'Variable priser'!$C$2:$H$4,1))*HLOOKUP(F51,'Variable priser'!$C$2:$H$4,3))/F51*(1+Genanskaffelsespriser!$D$203)),"Fejl")) -> 2666.751689 | L51: 5333.503378 | M51: 5333.503378 | N51: 1 | O51: 1
A52: Pumpe inkl. stigrør og forerørsforsejlinger mv. 46 | B52: m³/h | C52: 15 | D52: 30 | E52: 30 | F52: 30 | G52: 0 | H52: 0 | J52: =IF(E52=0,"Variabel pris",IFERROR(((HLOOKUP(E52,'Variable priser'!$C$2:$H$4,2)+(E52-HLOOKUP(E52,'Variable priser'!$C$2:$H$4,1))*HLOOKUP(E52,'Variable priser'!$C$2:$H$4,3))/E52*(1+Genanskaffelsespriser!$D$203)),"Fejl")) -> 2666.751689 | K52: =IF(F52=0,"Variabel pris",IFERROR(((HLOOKUP(F52,'Variable priser'!$C$2:$H$4,2)+(F52-HLOOKUP(F52,'Variable priser'!$C$2:$H$4,1))*HLOOKUP(F52,'Variable priser'!$C$2:$H$4,3))/F52*(1+Genanskaffelsespriser!$D$203)),"Fejl")) -> 2666.751689 | L52: 5333.503378 | M52: 5333.503378 | N52: 1 | O52: 1
A53: Pumpe inkl. stigrør og forerørsforsejlinger mv. 47 | B53: m³/h | C53: 15 | D53: 60 | E53: 60 | F53: 60 | G53: 0 | H53: 0 | J53: =IF(E53=0,"Variabel pris",IFERROR(((HLOOKUP(E53,'Variable priser'!$C$2:$H$4,2)+(E53-HLOOKUP(E53,'Variable priser'!$C$2:$H$4,1))*HLOOKUP(E53,'Variable priser'!$C$2:$H$4,3))/E53*(1+Genanskaffelsespriser!$D$203)),"Fejl")) -> 1765.580096 | K53: =IF(F53=0,"Variabel pris",IFERROR(((HLOOKUP(F53,'Variable priser'!$C$2:$H$4,2)+(F53-HLOOKUP(F53,'Variable priser'!$C$2:$H$4,1))*HLOOKUP(F53,'Variable priser'!$C$2:$H$4,3))/F53*(1+Genanskaffelsespriser!$D$203)),"Fejl")) -> 1765.580096 | L53: 7062.320384 | M53: 7062.320384 | N53: 1 | O53: 1
A54: Pumpe inkl. stigrør og forerørsforsejlinger mv. 48 | B54: m³/h | C54: 15 | D54: 30 | E54: 30 | F54: 30 | G54: 0 | H54: 0 | J54: =IF(E54=0,"Variabel pris",IFERROR(((HLOOKUP(E54,'Variable priser'!$C$2:$H$4,2)+(E54-HLOOKUP(E54,'Variable priser'!$C$2:$H$4,1))*HLOOKUP(E54,'Variable priser'!$C$2:$H$4,3))/E54*(1+Genanskaffelsespriser!$D$203)),"Fejl")) -> 2666.751689 | K54: =IF(F54=0,"Variabel pris",IFERROR(((HLOOKUP(F54,'Variable priser'!$C$2:$H$4,2)+(F54-HLOOKUP(F54,'Variable priser'!$C$2:$H$4,1))*HLOOKUP(F54,'Variable priser'!$C$2:$H$4,3))/F54*(1+Genanskaffelsespriser!$D$203)),"Fejl")) -> 2666.751689 | L54: 5333.503378 | M54: 5333.503378 | N54: 1 | O54: 1
A55: Pumpe inkl. stigrør og forerørsforsejlinger mv. 49 | B55: m³/h | C55: 15 | D55: 17 | E55: 17 | F55: 17 | G55: 0 | H55: 0 | J55: =IF(E55=0,"Variabel pris",IFERROR(((HLOOKUP(E55,'Variable priser'!$C$2:$H$4,2)+(E55-HLOOKUP(E55,'Variable priser'!$C$2:$H$4,1))*HLOOKUP(E55,'Variable priser'!$C$2:$H$4,3))/E55*(1+Genanskaffelsespriser!$D$203)),"Fejl")) -> 3496.241206 | K55: =IF(F55=0,"Variabel pris",IFERROR(((HLOOKUP(F55,'Variable priser'!$C$2:$H$4,2)+(F55-HLOOKUP(F55,'Variable priser'!$C$2:$H$4,1))*HLOOKUP(F55,'Variable priser'!$C$2:$H$4,3))/F55*(1+Genanskaffelsespriser!$D$203)),"Fejl")) -> 3496.241206 | L55: 3962.4067 | M55: 3962.4067 | N55: 1 | O55: 1
A56: Pumpe inkl. stigrør og forerørsforsejlinger mv. 50 | B56: m³/h | C56: 15 | D56: 30 | E56: 30 | F56: 30 | G56: 0 | H56: 0 | J56: =IF(E56=0,"Variabel pris",IFERROR(((HLOOKUP(E56,'Variable priser'!$C$2:$H$4,2)+(E56-HLOOKUP(E56,'Variable priser'!$C$2:$H$4,1))*HLOOKUP(E56,'Variable priser'!$C$2:$H$4,3))/E56*(1+Genanskaffelsespriser!$D$203)),"Fejl")) -> 2666.751689 | K56: =IF(F56=0,"Variabel pris",IFERROR(((HLOOKUP(F56,'Variable priser'!$C$2:$H$4,2)+(F56-HLOOKUP(F56,'Variable priser'!$C$2:$H$4,1))*HLOOKUP(F56,'Variable priser'!$C$2:$H$4,3))/F56*(1+Genanskaffelsespriser!$D$203)),"Fejl")) -> 2666.751689 | L56: 5333.503378 | M56: 5333.503378 | N56: 1 | O56: 1
A57: Pumpe inkl. stigrør og forerørsforsejlinger mv. 51 | B57: m³/h | C57: 15 | D57: 30 | E57: 30 | F57: 30 | G57: 0 | H57: 0 | J57: =IF(E57=0,"Variabel pris",IFERROR(((HLOOKUP(E57,'Variable priser'!$C$2:$H$4,2)+(E57-HLOOKUP(E57,'Variable priser'!$C$2:$H$4,1))*HLOOKUP(E57,'Variable priser'!$C$2:$H$4,3))/E57*(1+Genanskaffelsespriser!$D$203)),"Fejl")) -> 2666.751689 | K57: =IF(F57=0,"Variabel pris",IFERROR(((HLOOKUP(F57,'Variable priser'!$C$2:$H$4,2)+(F57-HLOOKUP(F57,'Variable priser'!$C$2:$H$4,1))*HLOOKUP(F57,'Variable priser'!$C$2:$H$4,3))/F57*(1+Genanskaffelsespriser!$D$203)),"Fejl")) -> 2666.751689 | L57: 5333.503378 | M57: 5333.503378 | N57: 1 | O57: 1
A58: Pumpe inkl. stigrør og forerørsforsejlinger mv. 52 | B58: m³/h | C58: 15 | D58: 46 | E58: 46 | F58: 46 | G58: 0 | H58: 0 | J58: =IF(E58=0,"Variabel pris",IFERROR(((HLOOKUP(E58,'Variable priser'!$C$2:$H$4,2)+(E58-HLOOKUP(E58,'Variable priser'!$C$2:$H$4,1))*HLOOKUP(E58,'Variable priser'!$C$2:$H$4,3))/E58*(1+Genanskaffelsespriser!$D$203)),"Fejl")) -> 2052.541176 | K58: =IF(F58=0,"Variabel pris",IFERROR(((HLOOKUP(F58,'Variable priser'!$C$2:$H$4,2)+(F58-HLOOKUP(F58,'Variable priser'!$C$2:$H$4,1))*HLOOKUP(F58,'Variable priser'!$C$2:$H$4,3))/F58*(1+Genanskaffelsespriser!$D$203)),"Fejl")) -> 2052.541176 | L58: 6294.459606 | M58: 6294.459606 | N58: 1 | O58: 1
A59: Pumpe inkl. stigrør og forerørsforsejlinger mv. 53 | B59: m³/h | C59: 15 | D59: 77 | E59: 77 | F59: 77 | G59: 0 | H59: 0 | J59: =IF(E59=0,"Variabel pris",IFERROR(((HLOOKUP(E59,'Variable priser'!$C$2:$H$4,2)+(E59-HLOOKUP(E59,'Variable priser'!$C$2:$H$4,1))*HLOOKUP(E59,'Variable priser'!$C$2:$H$4,3))/E59*(1+Genanskaffelsespriser!$D$203)),"Fejl")) -> 1557.413524 | K59: =IF(F59=0,"Variabel pris",IFERROR(((HLOOKUP(F59,'Variable priser'!$C$2:$H$4,2)+(F59-HLOOKUP(F59,'Variable priser'!$C$2:$H$4,1))*HLOOKUP(F59,'Variable priser'!$C$2:$H$4,3))/F59*(1+Genanskaffelsespriser!$D$203)),"Fejl")) -> 1557.413524 | L59: 7994.722757 | M59: 7994.722757 | N59: 1 | O59: 1
A60: Pumpe inkl. stigrør og forerørsforsejlinger mv. 54 | B60: m³/h | C60: 15 | D60: 77 | E60: 77 | F60: 77 | G60: 0 | H60: 0 | J60: =IF(E60=0,"Variabel pris",IFERROR(((HLOOKUP(E60,'Variable priser'!$C$2:$H$4,2)+(E60-HLOOKUP(E60,'Variable priser'!$C$2:$H$4,1))*HLOOKUP(E60,'Variable priser'!$C$2:$H$4,3))/E60*(1+Genanskaffelsespriser!$D$203)),"Fejl")) -> 1557.413524 | K60: =IF(F60=0,"Variabel pris",IFERROR(((HLOOKUP(F60,'Variable priser'!$C$2:$H$4,2)+(F60-HLOOKUP(F60,'Variable priser'!$C$2:$H$4,1))*HLOOKUP(F60,'Variable priser'!$C$2:$H$4,3))/F60*(1+Genanskaffelsespriser!$D$203)),"Fejl")) -> 1557.413524 | L60: 7994.722757 | M60: 7994.722757 | N60: 1 | O60: 1
A61: Pumpe inkl. stigrør og forerørsforsejlinger mv. 55 | B61: m³/h | C61: 15 | D61: 77 | E61: 77 | F61: 77 | G61: 0 | H61: 0 | J61: =IF(E61=0,"Variabel pris",IFERROR(((HLOOKUP(E61,'Variable priser'!$C$2:$H$4,2)+(E61-HLOOKUP(E61,'Variable priser'!$C$2:$H$4,1))*HLOOKUP(E61,'Variable priser'!$C$2:$H$4,3))/E61*(1+Genanskaffelsespriser!$D$203)),"Fejl")) -> 1557.413524 | K61: =IF(F61=0,"Variabel pris",IFERROR(((HLOOKUP(F61,'Variable priser'!$C$2:$H$4,2)+(F61-HLOOKUP(F61,'Variable priser'!$C$2:$H$4,1))*HLOOKUP(F61,'Variable priser'!$C$2:$H$4,3))/F61*(1+Genanskaffelsespriser!$D$203)),"Fejl")) -> 1557.413524 | L61: 7994.722757 | M61: 7994.722757 | N61: 1 | O61: 1
A62: Pumpe inkl. stigrør og forerørsforsejlinger mv. 56 | B62: m³/h | C62: 15 | D62: 30 | E62: 30 | F62: 30 | G62: 0 | H62: 0 | J62: =IF(E62=0,"Variabel pris",IFERROR(((HLOOKUP(E62,'Variable priser'!$C$2:$H$4,2)+(E62-HLOOKUP(E62,'Variable priser'!$C$2:$H$4,1))*HLOOKUP(E62,'Variable priser'!$C$2:$H$4,3))/E62*(1+Genanskaffelsespriser!$D$203)),"Fejl")) -> 2666.751689 | K62: =IF(F62=0,"Variabel pris",IFERROR(((HLOOKUP(F62,'Variable priser'!$C$2:$H$4,2)+(F62-HLOOKUP(F62,'Variable priser'!$C$2:$H$4,1))*HLOOKUP(F62,'Variable priser'!$C$2:$H$4,3))/F62*(1+Genanskaffelsespriser!$D$203)),"Fejl")) -> 2666.751689 | L62: 5333.503378 | M62: 5333.503378 | N62: 1 | O62: 1
A63: Pumpe inkl. stigrør og forerørsforsejlinger mv. 57 | B63: m³/h | C63: 15 | D63: 30 | E63: 30 | F63: 30 | G63: 0 | H63: 0 | J63: =IF(E63=0,"Variabel pris",IFERROR(((HLOOKUP(E63,'Variable priser'!$C$2:$H$4,2)+(E63-HLOOKUP(E63,'Variable priser'!$C$2:$H$4,1))*HLOOKUP(E63,'Variable priser'!$C$2:$H$4,3))/E63*(1+Genanskaffelsespriser!$D$203)),"Fejl")) -> 2666.751689 | K63: =IF(F63=0,"Variabel pris",IFERROR(((HLOOKUP(F63,'Variable priser'!$C$2:$H$4,2)+(F63-HLOOKUP(F63,'Variable priser'!$C$2:$H$4,1))*HLOOKUP(F63,'Variable priser'!$C$2:$H$4,3))/F63*(1+Genanskaffelsespriser!$D$203)),"Fejl")) -> 2666.751689 | L63: 5333.503378 | M63: 5333.503378 | N63: 1 | O63: 1
A64: Pumpe inkl. stigrør og forerørsforsejlinger mv. 58 | B64: m³/h | C64: 15 | D64: 17 | E64: 17 | F64: 17 | G64: 0 | H64: 0 | J64: =IF(E64=0,"Variabel pris",IFERROR(((HLOOKUP(E64,'Variable priser'!$C$2:$H$4,2)+(E64-HLOOKUP(E64,'Variable priser'!$C$2:$H$4,1))*HLOOKUP(E64,'Variable priser'!$C$2:$H$4,3))/E64*(1+Genanskaffelsespriser!$D$203)),"Fejl")) -> 3496.241206 | K64: =IF(F64=0,"Variabel pris",IFERROR(((HLOOKUP(F64,'Variable priser'!$C$2:$H$4,2)+(F64-HLOOKUP(F64,'Variable priser'!$C$2:$H$4,1))*HLOOKUP(F64,'Variable priser'!$C$2:$H$4,3))/F64*(1+Genanskaffelsespriser!$D$203)),"Fejl")) -> 3496.241206 | L64: 3962.4067 | M64: 3962.4067 | N64: 1 | O64: 1
A65: Pumpe inkl. stigrør og forerørsforsejlinger mv. 59 | B65: m³/h | C65: 15 | D65: 17 | E65: 17 | F65: 17 | G65: 0 | H65: 0 | J65: =IF(E65=0,"Variabel pris",IFERROR(((HLOOKUP(E65,'Variable priser'!$C$2:$H$4,2)+(E65-HLOOKUP(E65,'Variable priser'!$C$2:$H$4,1))*HLOOKUP(E65,'Variable priser'!$C$2:$H$4,3))/E65*(1+Genanskaffelsespriser!$D$203)),"Fejl")) -> 3496.241206 | K65: =IF(F65=0,"Variabel pris",IFERROR(((HLOOKUP(F65,'Variable priser'!$C$2:$H$4,2)+(F65-HLOOKUP(F65,'Variable priser'!$C$2:$H$4,1))*HLOOKUP(F65,'Variable priser'!$C$2:$H$4,3))/F65*(1+Genanskaffelsespriser!$D$203)),"Fejl")) -> 3496.241206 | L65: 3962.4067 | M65: 3962.4067 | N65: 1 | O65: 1
A66: Pumpe inkl. stigrør og forerørsforsejlinger mv. 60 | B66: m³/h | C66: 15 | D66: 17 | E66: 17 | F66: 17 | G66: 0 | H66: 0 | J66: =IF(E66=0,"Variabel pris",IFERROR(((HLOOKUP(E66,'Variable priser'!$C$2:$H$4,2)+(E66-HLOOKUP(E66,'Variable priser'!$C$2:$H$4,1))*HLOOKUP(E66,'Variable priser'!$C$2:$H$4,3))/E66*(1+Genanskaffelsespriser!$D$203)),"Fejl")) -> 3496.241206 | K66: =IF(F66=0,"Variabel pris",IFERROR(((HLOOKUP(F66,'Variable priser'!$C$2:$H$4,2)+(F66-HLOOKUP(F66,'Variable priser'!$C$2:$H$4,1))*HLOOKUP(F66,'Variable priser'!$C$2:$H$4,3))/F66*(1+Genanskaffelsespriser!$D$203)),"Fejl")) -> 3496.241206 | L66: 3962.4067 | M66: 3962.4067 | N66: 1 | O66: 1
A67: Pumpe inkl. stigrør og forerørsforsejlinger mv. 61 | B67: m³/h | C67: 15 | D67: 17 | E67: 17 | F67: 17 | G67: 0 | H67: 0 | J67: =IF(E67=0,"Variabel pris",IFERROR(((HLOOKUP(E67,'Variable priser'!$C$2:$H$4,2)+(E67-HLOOKUP(E67,'Variable priser'!$C$2:$H$4,1))*HLOOKUP(E67,'Variable priser'!$C$2:$H$4,3))/E67*(1+Genanskaffelsespriser!$D$203)),"Fejl")) -> 3496.241206 | K67: =IF(F67=0,"Variabel pris",IFERROR(((HLOOKUP(F67,'Variable priser'!$C$2:$H$4,2)+(F67-HLOOKUP(F67,'Variable priser'!$C$2:$H$4,1))*HLOOKUP(F67,'Variable priser'!$C$2:$H$4,3))/F67*(1+Genanskaffelsespriser!$D$203)),"Fejl")) -> 3496.241206 | L67: 3962.4067 | M67: 3962.4067 | N67: 1 | O67: 1
A68: Pumpe inkl. stigrør og forerørsforsejlinger mv. 62 | B68: m³/h | C68: 15 | D68: 17 | E68: 17 | F68: 17 | G68: 0 | H68: 0 | J68: =IF(E68=0,"Variabel pris",IFERROR(((HLOOKUP(E68,'Variable priser'!$C$2:$H$4,2)+(E68-HLOOKUP(E68,'Variable priser'!$C$2:$H$4,1))*HLOOKUP(E68,'Variable priser'!$C$2:$H$4,3))/E68*(1+Genanskaffelsespriser!$D$203)),"Fejl")) -> 3496.241206 | K68: =IF(F68=0,"Variabel pris",IFERROR(((HLOOKUP(F68,'Variable priser'!$C$2:$H$4,2)+(F68-HLOOKUP(F68,'Variable priser'!$C$2:$H$4,1))*HLOOKUP(F68,'Variable priser'!$C$2:$H$4,3))/F68*(1+Genanskaffelsespriser!$D$203)),"Fejl")) -> 3496.241206 | L68: 3962.4067 | M68: 3962.4067 | N68: 1 | O68: 1
A69: Pumpe inkl. stigrør og forerørsforsejlinger mv. 63 | B69: m³/h | C69: 15 | D69: 17 | E69: 17 | F69: 17 | G69: 0 | H69: 0 | J69: =IF(E69=0,"Variabel pris",IFERROR(((HLOOKUP(E69,'Variable priser'!$C$2:$H$4,2)+(E69-HLOOKUP(E69,'Variable priser'!$C$2:$H$4,1))*HLOOKUP(E69,'Variable priser'!$C$2:$H$4,3))/E69*(1+Genanskaffelsespriser!$D$203)),"Fejl")) -> 3496.241206 | K69: =IF(F69=0,"Variabel pris",IFERROR(((HLOOKUP(F69,'Variable priser'!$C$2:$H$4,2)+(F69-HLOOKUP(F69,'Variable priser'!$C$2:$H$4,1))*HLOOKUP(F69,'Variable priser'!$C$2:$H$4,3))/F69*(1+Genanskaffelsespriser!$D$203)),"Fejl")) -> 3496.241206 | L69: 3962.4067 | M69: 3962.4067 | N69: 1 | O69: 1
A70: Pumpe inkl. stigrør og forerørsforsejlinger mv. 64 | B70: m³/h | C70: 15 | D70: 17 | E70: 17 | F70: 17 | G70: 0 | H70: 0 | J70: =IF(E70=0,"Variabel pris",IFERROR(((HLOOKUP(E70,'Variable priser'!$C$2:$H$4,2)+(E70-HLOOKUP(E70,'Variable priser'!$C$2:$H$4,1))*HLOOKUP(E70,'Variable priser'!$C$2:$H$4,3))/E70*(1+Genanskaffelsespriser!$D$203)),"Fejl")) -> 3496.241206 | K70: =IF(F70=0,"Variabel pris",IFERROR(((HLOOKUP(F70,'Variable priser'!$C$2:$H$4,2)+(F70-HLOOKUP(F70,'Variable priser'!$C$2:$H$4,1))*HLOOKUP(F70,'Variable priser'!$C$2:$H$4,3))/F70*(1+Genanskaffelsespriser!$D$203)),"Fejl")) -> 3496.241206 | L70: 3962.4067 | M70: 3962.4067 | N70: 1 | O70: 1
A71: Pumpe inkl. stigrør og forerørsforsejlinger mv. 65 | B71: m³/h | C71: 15 | D71: 46 | E71: 46 | F71: 46 | G71: 0 | H71: 0 | J71: =IF(E71=0,"Variabel pris",IFERROR(((HLOOKUP(E71,'Variable priser'!$C$2:$H$4,2)+(E71-HLOOKUP(E71,'Variable priser'!$C$2:$H$4,1))*HLOOKUP(E71,'Variable priser'!$C$2:$H$4,3))/E71*(1+Genanskaffelsespriser!$D$203)),"Fejl")) -> 2052.541176 | K71: =IF(F71=0,"Variabel pris",IFERROR(((HLOOKUP(F71,'Variable priser'!$C$2:$H$4,2)+(F71-HLOOKUP(F71,'Variable priser'!$C$2:$H$4,1))*HLOOKUP(F71,'Variable priser'!$C$2:$H$4,3))/F71*(1+Genanskaffelsespriser!$D$203)),"Fejl")) -> 2052.541176 | L71: 6294.459606 | M71: 6294.459606 | N71: 1 | O71: 1
A72: Pumpe inkl. stigrør og forerørsforsejlinger mv. 66 | B72: m³/h | C72: 15 | D72: 17 | E72: 17 | F72: 17 | G72: 0 | H72: 0 | J72: =IF(E72=0,"Variabel pris",IFERROR(((HLOOKUP(E72,'Variable priser'!$C$2:$H$4,2)+(E72-HLOOKUP(E72,'Variable priser'!$C$2:$H$4,1))*HLOOKUP(E72,'Variable priser'!$C$2:$H$4,3))/E72*(1+Genanskaffelsespriser!$D$203)),"Fejl")) -> 3496.241206 | K72: =IF(F72=0,"Variabel pris",IFERROR(((HLOOKUP(F72,'Variable priser'!$C$2:$H$4,2)+(F72-HLOOKUP(F72,'Variable priser'!$C$2:$H$4,1))*HLOOKUP(F72,'Variable priser'!$C$2:$H$4,3))/F72*(1+Genanskaffelsespriser!$D$203)),"Fejl")) -> 3496.241206 | L72: 3962.4067 | M72: 3962.4067 | N72: 1 | O72: 1
A73: Pumpe inkl. stigrør og forerørsforsejlinger mv. 67 | B73: m³/h | C73: 15 | D73: 17 | E73: 17 | F73: 17 | G73: 0 | H73: 0 | J73: =IF(E73=0,"Variabel pris",IFERROR(((HLOOKUP(E73,'Variable priser'!$C$2:$H$4,2)+(E73-HLOOKUP(E73,'Variable priser'!$C$2:$H$4,1))*HLOOKUP(E73,'Variable priser'!$C$2:$H$4,3))/E73*(1+Genanskaffelsespriser!$D$203)),"Fejl")) -> 3496.241206 | K73: =IF(F73=0,"Variabel pris",IFERROR(((HLOOKUP(F73,'Variable priser'!$C$2:$H$4,2)+(F73-HLOOKUP(F73,'Variable priser'!$C$2:$H$4,1))*HLOOKUP(F73,'Variable priser'!$C$2:$H$4,3))/F73*(1+Genanskaffelsespriser!$D$203)),"Fejl")) -> 3496.241206 | L73: 3962.4067 | M73: 3962.4067 | N73: 1 | O73: 1
A74: Pumpe inkl. stigrør og forerørsforsejlinger mv. 68 | B74: m³/h | C74: 15 | D74: 5 | E74: 5 | F74: 5 | G74: 0 | H74: 0 | J74: =IF(E74=0,"Variabel pris",IFERROR(((HLOOKUP(E74,'Variable priser'!$C$2:$H$4,2)+(E74-HLOOKUP(E74,'Variable priser'!$C$2:$H$4,1))*HLOOKUP(E74,'Variable priser'!$C$2:$H$4,3))/E74*(1+Genanskaffelsespriser!$D$203)),"Fejl")) -> 4578.075425 | K74: =IF(F74=0,"Variabel pris",IFERROR(((HLOOKUP(F74,'Variable priser'!$C$2:$H$4,2)+(F74-HLOOKUP(F74,'Variable priser'!$C$2:$H$4,1))*HLOOKUP(F74,'Variable priser'!$C$2:$H$4,3))/F74*(1+Genanskaffelsespriser!$D$203)),"Fejl")) -> 4578.075425 | L74: 1526.025142 | M74: 1526.025142 | N74: 1 | O74: 1
A75: Pumpe inkl. stigrør og forerørsforsejlinger mv. 69 | B75: m³/h | C75: 15 | D75: 5 | E75: 5 | F75: 5 | G75: 0 | H75: 0 | J75: =IF(E75=0,"Variabel pris",IFERROR(((HLOOKUP(E75,'Variable priser'!$C$2:$H$4,2)+(E75-HLOOKUP(E75,'Variable priser'!$C$2:$H$4,1))*HLOOKUP(E75,'Variable priser'!$C$2:$H$4,3))/E75*(1+Genanskaffelsespriser!$D$203)),"Fejl")) -> 4578.075425 | K75: =IF(F75=0,"Variabel pris",IFERROR(((HLOOKUP(F75,'Variable priser'!$C$2:$H$4,2)+(F75-HLOOKUP(F75,'Variable priser'!$C$2:$H$4,1))*HLOOKUP(F75,'Variable priser'!$C$2:$H$4,3))/F75*(1+Genanskaffelsespriser!$D$203)),"Fejl")) -> 4578.075425 | L75: 1526.025142 | M75: 1526.025142 | N75: 1 | O75: 1
A76: Pumpe inkl. stigrør og forerørsforsejlinger mv. 70 | B76: m³/h | C76: 15 | D76: 30 | E76: 30 | F76: 30 | G76: 0 | H76: 0 | J76: =IF(E76=0,"Variabel pris",IFERROR(((HLOOKUP(E76,'Variable priser'!$C$2:$H$4,2)+(E76-HLOOKUP(E76,'Variable priser'!$C$2:$H$4,1))*HLOOKUP(E76,'Variable priser'!$C$2:$H$4,3))/E76*(1+Genanskaffelsespriser!$D$203)),"Fejl")) -> 2666.751689 | K76: =IF(F76=0,"Variabel pris",IFERROR(((HLOOKUP(F76,'Variable priser'!$C$2:$H$4,2)+(F76-HLOOKUP(F76,'Variable priser'!$C$2:$H$4,1))*HLOOKUP(F76,'Variable priser'!$C$2:$H$4,3))/F76*(1+Genanskaffelsespriser!$D$203)),"Fejl")) -> 2666.751689 | L76: 5333.503378 | M76: 5333.503378 | N76: 1 | O76: 1
A77: Pumpe inkl. stigrør og forerørsforsejlinger mv. 71 | B77: m³/h | C77: 15 | D77: 17 | E77: 17 | F77: 17 | G77: 0 | H77: 0 | J77: =IF(E77=0,"Variabel pris",IFERROR(((HLOOKUP(E77,'Variable priser'!$C$2:$H$4,2)+(E77-HLOOKUP(E77,'Variable priser'!$C$2:$H$4,1))*HLOOKUP(E77,'Variable priser'!$C$2:$H$4,3))/E77*(1+Genanskaffelsespriser!$D$203)),"Fejl")) -> 3496.241206 | K77: =IF(F77=0,"Variabel pris",IFERROR(((HLOOKUP(F77,'Variable priser'!$C$2:$H$4,2)+(F77-HLOOKUP(F77,'Variable priser'!$C$2:$H$4,1))*HLOOKUP(F77,'Variable priser'!$C$2:$H$4,3))/F77*(1+Genanskaffelsespriser!$D$203)),"Fejl")) -> 3496.241206 | L77: 3962.4067 | M77: 3962.4067 | N77: 1 | O77: 1
A78: Pumpe inkl. stigrør og forerørsforsejlinger mv. 72 | B78: m³/h | C78: 15 | D78: 30 | E78: 30 | F78: 30 | G78: 0 | H78: 0 | J78: =IF(E78=0,"Variabel pris",IFERROR(((HLOOKUP(E78,'Variable priser'!$C$2:$H$4,2)+(E78-HLOOKUP(E78,'Variable priser'!$C$2:$H$4,1))*HLOOKUP(E78,'Variable priser'!$C$2:$H$4,3))/E78*(1+Genanskaffelsespriser!$D$203)),"Fejl")) -> 2666.751689 | K78: =IF(F78=0,"Variabel pris",IFERROR(((HLOOKUP(F78,'Variable priser'!$C$2:$H$4,2)+(F78-HLOOKUP(F78,'Variable priser'!$C$2:$H$4,1))*HLOOKUP(F78,'Variable priser'!$C$2:$H$4,3))/F78*(1+Genanskaffelsespriser!$D$203)),"Fejl")) -> 2666.751689 | L78: 5333.503378 | M78: 5333.503378 | N78: 1 | O78: 1
A79: Pumpe inkl. stigrør og forerørsforsejlinger mv. 73 | B79: m³/h | C79: 15 | D79: 30 | E79: 30 | F79: 30 | G79: 0 | H79: 0 | J79: =IF(E79=0,"Variabel pris",IFERROR(((HLOOKUP(E79,'Variable priser'!$C$2:$H$4,2)+(E79-HLOOKUP(E79,'Variable priser'!$C$2:$H$4,1))*HLOOKUP(E79,'Variable priser'!$C$2:$H$4,3))/E79*(1+Genanskaffelsespriser!$D$203)),"Fejl")) -> 2666.751689 | K79: =IF(F79=0,"Variabel pris",IFERROR(((HLOOKUP(F79,'Variable priser'!$C$2:$H$4,2)+(F79-HLOOKUP(F79,'Variable priser'!$C$2:$H$4,1))*HLOOKUP(F79,'Variable priser'!$C$2:$H$4,3))/F79*(1+Genanskaffelsespriser!$D$203)),"Fejl")) -> 2666.751689 | L79: 5333.503378 | M79: 5333.503378 | N79: 1 | O79: 1
A80: Pumpe inkl. stigrør og forerørsforsejlinger mv. 74 | B80: m³/h | C80: 15 | D80: 30 | E80: 30 | F80: 30 | G80: 0 | H80: 0 | J80: =IF(E80=0,"Variabel pris",IFERROR(((HLOOKUP(E80,'Variable priser'!$C$2:$H$4,2)+(E80-HLOOKUP(E80,'Variable priser'!$C$2:$H$4,1))*HLOOKUP(E80,'Variable priser'!$C$2:$H$4,3))/E80*(1+Genanskaffelsespriser!$D$203)),"Fejl")) -> 2666.751689 | K80: =IF(F80=0,"Variabel pris",IFERROR(((HLOOKUP(F80,'Variable priser'!$C$2:$H$4,2)+(F80-HLOOKUP(F80,'Variable priser'!$C$2:$H$4,1))*HLOOKUP(F80,'Variable priser'!$C$2:$H$4,3))/F80*(1+Genanskaffelsespriser!$D$203)),"Fejl")) -> 2666.751689 | L80: 5333.503378 | M80: 5333.503378 | N80: 1 | O80: 1
A81: Pumpe inkl. stigrør og forerørsforsejlinger mv. 75 | B81: m³/h | C81: 15 | D81: 9 | E81: 9 | F81: 9 | G81: 0 | H81: 0 | J81: =IF(E81=0,"Variabel pris",IFERROR(((HLOOKUP(E81,'Variable priser'!$C$2:$H$4,2)+(E81-HLOOKUP(E81,'Variable priser'!$C$2:$H$4,1))*HLOOKUP(E81,'Variable priser'!$C$2:$H$4,3))/E81*(1+Genanskaffelsespriser!$D$203)),"Fejl")) -> 4578.075425 | K81: =IF(F81=0,"Variabel pris",IFERROR(((HLOOKUP(F81,'Variable priser'!$C$2:$H$4,2)+(F81-HLOOKUP(F81,'Variable priser'!$C$2:$H$4,1))*HLOOKUP(F81,'Variable priser'!$C$2:$H$4,3))/F81*(1+Genanskaffelsespriser!$D$203)),"Fejl")) -> 4578.075425 | L81: =IF(ISBLANK(E81),"",IF(E81=0,"",IF(ISNUMBER(E81),((J81*E81)/C81)*N81,""))) -> 2746.845255 | M81: =IF(ISBLANK(F81),"",IF(F81=0,"",IF(ISNUMBER(F81),((K81*F81)/C81)*N81,""))) -> 2746.845255 | N81: 1 | O81: 1
A82: Pumpe inkl. stigrør og forerørsforsejlinger mv. 76 | B82: m³/h | C82: 15 | D82: 9 | E82: 9 | F82: 9 | G82: 0 | H82: 0 | J82: =IF(E82=0,"Variabel pris",IFERROR(((HLOOKUP(E82,'Variable priser'!$C$2:$H$4,2)+(E82-HLOOKUP(E82,'Variable priser'!$C$2:$H$4,1))*HLOOKUP(E82,'Variable priser'!$C$2:$H$4,3))/E82*(1+Genanskaffelsespriser!$D$203)),"Fejl")) -> 4578.075425 | K82: =IF(F82=0,"Variabel pris",IFERROR(((HLOOKUP(F82,'Variable priser'!$C$2:$H$4,2)+(F82-HLOOKUP(F82,'Variable priser'!$C$2:$H$4,1))*HLOOKUP(F82,'Variable priser'!$C$2:$H$4,3))/F82*(1+Genanskaffelsespriser!$D$203)),"Fejl")) -> 4578.075425 | L82: 2746.845255 | M82: 2746.845255 | N82: 1 | O82: 1
A83: Pumpe inkl. stigrør og forerørsforsejlinger mv. 77 | B83: m³/h | C83: 15 | D83: 9 | E83: 9 | F83: 9 | G83: 0 | H83: 0 | J83: =IF(E83=0,"Variabel pris",IFERROR(((HLOOKUP(E83,'Variable priser'!$C$2:$H$4,2)+(E83-HLOOKUP(E83,'Variable priser'!$C$2:$H$4,1))*HLOOKUP(E83,'Variable priser'!$C$2:$H$4,3))/E83*(1+Genanskaffelsespriser!$D$203)),"Fejl")) -> 4578.075425 | K83: =IF(F83=0,"Variabel pris",IFERROR(((HLOOKUP(F83,'Variable priser'!$C$2:$H$4,2)+(F83-HLOOKUP(F83,'Variable priser'!$C$2:$H$4,1))*HLOOKUP(F83,'Variable priser'!$C$2:$H$4,3))/F83*(1+Genanskaffelsespriser!$D$203)),"Fejl")) -> 4578.075425 | L83: 2746.845255 | M83: 2746.845255 | N83: 1 | O83: 1
A84: Pumpe inkl. stigrør og forerørsforsejlinger mv. 78 | B84: m³/h | C84: 15 | D84: 9 | E84: 9 | F84: 9 | G84: 0 | H84: 0 | J84: =IF(E84=0,"Variabel pris",IFERROR(((HLOOKUP(E84,'Variable priser'!$C$2:$H$4,2)+(E84-HLOOKUP(E84,'Variable priser'!$C$2:$H$4,1))*HLOOKUP(E84,'Variable priser'!$C$2:$H$4,3))/E84*(1+Genanskaffelsespriser!$D$203)),"Fejl")) -> 4578.075425 | K84: =IF(F84=0,"Variabel pris",IFERROR(((HLOOKUP(F84,'Variable priser'!$C$2:$H$4,2)+(F84-HLOOKUP(F84,'Variable priser'!$C$2:$H$4,1))*HLOOKUP(F84,'Variable priser'!$C$2:$H$4,3))/F84*(1+Genanskaffelsespriser!$D$203)),"Fejl")) -> 4578.075425 | L84: 2746.845255 | M84: 2746.845255 | N84: 1 | O84: 1
A85: Pumpe inkl. stigrør og forerørsforsejlinger mv. 79 | B85: m³/h | C85: 15 | D85: 9 | E85: 9 | F85: 9 | G85: 0 | H85: 0 | J85: =IF(E85=0,"Variabel pris",IFERROR(((HLOOKUP(E85,'Variable priser'!$C$2:$H$4,2)+(E85-HLOOKUP(E85,'Variable priser'!$C$2:$H$4,1))*HLOOKUP(E85,'Variable priser'!$C$2:$H$4,3))/E85*(1+Genanskaffelsespriser!$D$203)),"Fejl")) -> 4578.075425 | K85: =IF(F85=0,"Variabel pris",IFERROR(((HLOOKUP(F85,'Variable priser'!$C$2:$H$4,2)+(F85-HLOOKUP(F85,'Variable priser'!$C$2:$H$4,1))*HLOOKUP(F85,'Variable priser'!$C$2:$H$4,3))/F85*(1+Genanskaffelsespriser!$D$203)),"Fejl")) -> 4578.075425 | L85: 2746.845255 | M85: 2746.845255 | N85: 1 | O85: 1
A86: Pumpe inkl. stigrør og forerørsforsejlinger mv. 80 | B86: m³/h | C86: 15 | D86: 30 | E86: 30 | F86: 30 | G86: 0 | H86: 0 | J86: =IF(E86=0,"Variabel pris",IFERROR(((HLOOKUP(E86,'Variable priser'!$C$2:$H$4,2)+(E86-HLOOKUP(E86,'Variable priser'!$C$2:$H$4,1))*HLOOKUP(E86,'Variable priser'!$C$2:$H$4,3))/E86*(1+Genanskaffelsespriser!$D$203)),"Fejl")) -> 2666.751689 | K86: =IF(F86=0,"Variabel pris",IFERROR(((HLOOKUP(F86,'Variable priser'!$C$2:$H$4,2)+(F86-HLOOKUP(F86,'Variable priser'!$C$2:$H$4,1))*HLOOKUP(F86,'Variable priser'!$C$2:$H$4,3))/F86*(1+Genanskaffelsespriser!$D$203)),"Fejl")) -> 2666.751689 | L86: 5333.503378 | M86: 5333.503378 | N86: 1 | O86: 1
A87: Pumpe inkl. stigrør og forerørsforsejlinger mv. 81 | B87: m³/h | C87: 15 | D87: 30 | E87: 30 | F87: 30 | G87: 0 | H87: 0 | J87: =IF(E87=0,"Variabel pris",IFERROR(((HLOOKUP(E87,'Variable priser'!$C$2:$H$4,2)+(E87-HLOOKUP(E87,'Variable priser'!$C$2:$H$4,1))*HLOOKUP(E87,'Variable priser'!$C$2:$H$4,3))/E87*(1+Genanskaffelsespriser!$D$203)),"Fejl")) -> 2666.751689 | K87: =IF(F87=0,"Variabel pris",IFERROR(((HLOOKUP(F87,'Variable priser'!$C$2:$H$4,2)+(F87-HLOOKUP(F87,'Variable priser'!$C$2:$H$4,1))*HLOOKUP(F87,'Variable priser'!$C$2:$H$4,3))/F87*(1+Genanskaffelsespriser!$D$203)),"Fejl")) -> 2666.751689 | L87: 5333.503378 | M87: 5333.503378 | N87: 1 | O87: 1
A88: Pumpe inkl. stigrør og forerørsforsejlinger mv. 82 | B88: m³/h | C88: 15 | D88: 30 | E88: 30 | F88: 30 | G88: 0 | H88: 0 | J88: =IF(E88=0,"Variabel pris",IFERROR(((HLOOKUP(E88,'Variable priser'!$C$2:$H$4,2)+(E88-HLOOKUP(E88,'Variable priser'!$C$2:$H$4,1))*HLOOKUP(E88,'Variable priser'!$C$2:$H$4,3))/E88*(1+Genanskaffelsespriser!$D$203)),"Fejl")) -> 2666.751689 | K88: =IF(F88=0,"Variabel pris",IFERROR(((HLOOKUP(F88,'Variable priser'!$C$2:$H$4,2)+(F88-HLOOKUP(F88,'Variable priser'!$C$2:$H$4,1))*HLOOKUP(F88,'Variable priser'!$C$2:$H$4,3))/F88*(1+Genanskaffelsespriser!$D$203)),"Fejl")) -> 2666.751689 | L88: 5333.503378 | M88: 5333.503378 | N88: 1 | O88: 1
A89: Pumpe inkl. stigrør og forerørsforsejlinger mv. 83 | B89: m³/h | C89: 15 | D89: 30 | E89: 30 | F89: 30 | G89: 0 | H89: 0 | J89: =IF(E89=0,"Variabel pris",IFERROR(((HLOOKUP(E89,'Variable priser'!$C$2:$H$4,2)+(E89-HLOOKUP(E89,'Variable priser'!$C$2:$H$4,1))*HLOOKUP(E89,'Variable priser'!$C$2:$H$4,3))/E89*(1+Genanskaffelsespriser!$D$203)),"Fejl")) -> 2666.751689 | K89: =IF(F89=0,"Variabel pris",IFERROR(((HLOOKUP(F89,'Variable priser'!$C$2:$H$4,2)+(F89-HLOOKUP(F89,'Variable priser'!$C$2:$H$4,1))*HLOOKUP(F89,'Variable priser'!$C$2:$H$4,3))/F89*(1+Genanskaffelsespriser!$D$203)),"Fejl")) -> 2666.751689 | L89: 5333.503378 | M89: 5333.503378 | N89: 1 | O89: 1
A90: Pumpe inkl. stigrør og forerørsforsejlinger mv. 84 | B90: m³/h | C90: 15 | D90: 17 | E90: 17 | F90: 17 | G90: 0 | H90: 0 | J90: =IF(E90=0,"Variabel pris",IFERROR(((HLOOKUP(E90,'Variable priser'!$C$2:$H$4,2)+(E90-HLOOKUP(E90,'Variable priser'!$C$2:$H$4,1))*HLOOKUP(E90,'Variable priser'!$C$2:$H$4,3))/E90*(1+Genanskaffelsespriser!$D$203)),"Fejl")) -> 3496.241206 | K90: =IF(F90=0,"Variabel pris",IFERROR(((HLOOKUP(F90,'Variable priser'!$C$2:$H$4,2)+(F90-HLOOKUP(F90,'Variable priser'!$C$2:$H$4,1))*HLOOKUP(F90,'Variable priser'!$C$2:$H$4,3))/F90*(1+Genanskaffelsespriser!$D$203)),"Fejl")) -> 3496.241206 | L90: 3962.4067 | M90: 3962.4067 | N90: 1 | O90: 1
A91: Pumpe inkl. stigrør og forerørsforsejlinger mv. 85 | B91: m³/h | C91: 15 | D91: 17 | E91: 17 | F91: 17 | G91: 0 | H91: 0 | J91: =IF(E91=0,"Variabel pris",IFERROR(((HLOOKUP(E91,'Variable priser'!$C$2:$H$4,2)+(E91-HLOOKUP(E91,'Variable priser'!$C$2:$H$4,1))*HLOOKUP(E91,'Variable priser'!$C$2:$H$4,3))/E91*(1+Genanskaffelsespriser!$D$203)),"Fejl")) -> 3496.241206 | K91: =IF(F91=0,"Variabel pris",IFERROR(((HLOOKUP(F91,'Variable priser'!$C$2:$H$4,2)+(F91-HLOOKUP(F91,'Variable priser'!$C$2:$H$4,1))*HLOOKUP(F91,'Variable priser'!$C$2:$H$4,3))/F91*(1+Genanskaffelsespriser!$D$203)),"Fejl")) -> 3496.241206 | L91: 3962.4067 | M91: 3962.4067 | N91: 1 | O91: 1
A92: Pumpe inkl. stigrør og forerørsforsejlinger mv. 86 | B92: m³/h | C92: 15 | D92: 17 | E92: 17 | F92: 17 | G92: 0 | H92: 0 | J92: =IF(E92=0,"Variabel pris",IFERROR(((HLOOKUP(E92,'Variable priser'!$C$2:$H$4,2)+(E92-HLOOKUP(E92,'Variable priser'!$C$2:$H$4,1))*HLOOKUP(E92,'Variable priser'!$C$2:$H$4,3))/E92*(1+Genanskaffelsespriser!$D$203)),"Fejl")) -> 3496.241206 | K92: =IF(F92=0,"Variabel pris",IFERROR(((HLOOKUP(F92,'Variable priser'!$C$2:$H$4,2)+(F92-HLOOKUP(F92,'Variable priser'!$C$2:$H$4,1))*HLOOKUP(F92,'Variable priser'!$C$2:$H$4,3))/F92*(1+Genanskaffelsespriser!$D$203)),"Fejl")) -> 3496.241206 | L92: 3962.4067 | M92: 3962.4067 | N92: 1 | O92: 1
A93: Pumpe inkl. stigrør og forerørsforsejlinger mv. 87 | B93: m³/h | C93: 15 | D93: 17 | E93: 17 | F93: 17 | G93: 0 | H93: 0 | J93: =IF(E93=0,"Variabel pris",IFERROR(((HLOOKUP(E93,'Variable priser'!$C$2:$H$4,2)+(E93-HLOOKUP(E93,'Variable priser'!$C$2:$H$4,1))*HLOOKUP(E93,'Variable priser'!$C$2:$H$4,3))/E93*(1+Genanskaffelsespriser!$D$203)),"Fejl")) -> 3496.241206 | K93: =IF(F93=0,"Variabel pris",IFERROR(((HLOOKUP(F93,'Variable priser'!$C$2:$H$4,2)+(F93-HLOOKUP(F93,'Variable priser'!$C$2:$H$4,1))*HLOOKUP(F93,'Variable priser'!$C$2:$H$4,3))/F93*(1+Genanskaffelsespriser!$D$203)),"Fejl")) -> 3496.241206 | L93: 3962.4067 | M93: 3962.4067 | N93: 1 | O93: 1
A94: Pumpe inkl. stigrør og forerørsforsejlinger mv. 88 | B94: m³/h | C94: 15 | D94: 14 | E94: 14 | F94: 14 | G94: 0 | H94: 0 | J94: =IF(E94=0,"Variabel pris",IFERROR(((HLOOKUP(E94,'Variable priser'!$C$2:$H$4,2)+(E94-HLOOKUP(E94,'Variable priser'!$C$2:$H$4,1))*HLOOKUP(E94,'Variable priser'!$C$2:$H$4,3))/E94*(1+Genanskaffelsespriser!$D$203)),"Fejl")) -> 3827.414946 | K94: =IF(F94=0,"Variabel pris",IFERROR(((HLOOKUP(F94,'Variable priser'!$C$2:$H$4,2)+(F94-HLOOKUP(F94,'Variable priser'!$C$2:$H$4,1))*HLOOKUP(F94,'Variable priser'!$C$2:$H$4,3))/F94*(1+Genanskaffelsespriser!$D$203)),"Fejl")) -> 3827.414946 | L94: 3572.25395 | M94: 3572.25395 | N94: 1 | O94: 1
A95: Pumpe inkl. stigrør og forerørsforsejlinger mv. 89 | B95: m³/h | C95: 15 | D95: 14 | E95: 14 | F95: 14 | G95: 0 | H95: 0 | J95: =IF(E95=0,"Variabel pris",IFERROR(((HLOOKUP(E95,'Variable priser'!$C$2:$H$4,2)+(E95-HLOOKUP(E95,'Variable priser'!$C$2:$H$4,1))*HLOOKUP(E95,'Variable priser'!$C$2:$H$4,3))/E95*(1+Genanskaffelsespriser!$D$203)),"Fejl")) -> 3827.414946 | K95: =IF(F95=0,"Variabel pris",IFERROR(((HLOOKUP(F95,'Variable priser'!$C$2:$H$4,2)+(F95-HLOOKUP(F95,'Variable priser'!$C$2:$H$4,1))*HLOOKUP(F95,'Variable priser'!$C$2:$H$4,3))/F95*(1+Genanskaffelsespriser!$D$203)),"Fejl")) -> 3827.414946 | L95: 3572.25395 | M95: 3572.25395 | N95: 1 | O95: 1
A96: Pumpe inkl. stigrør og forerørsforsejlinger mv. 90 | B96: m³/h | C96: 15 | D96: 14 | E96: 14 | F96: 14 | G96: 0 | H96: 0 | J96: =IF(E96=0,"Variabel pris",IFERROR(((HLOOKUP(E96,'Variable priser'!$C$2:$H$4,2)+(E96-HLOOKUP(E96,'Variable priser'!$C$2:$H$4,1))*HLOOKUP(E96,'Variable priser'!$C$2:$H$4,3))/E96*(1+Genanskaffelsespriser!$D$203)),"Fejl")) -> 3827.414946 | K96: =IF(F96=0,"Variabel pris",IFERROR(((HLOOKUP(F96,'Variable priser'!$C$2:$H$4,2)+(F96-HLOOKUP(F96,'Variable priser'!$C$2:$H$4,1))*HLOOKUP(F96,'Variable priser'!$C$2:$H$4,3))/F96*(1+Genanskaffelsespriser!$D$203)),"Fejl")) -> 3827.414946 | L96: 3572.25395 | M96: 3572.25395 | N96: 1 | O96: 1
A97: Pumpe inkl. stigrør og forerørsforsejlinger mv. 91 | B97: m³/h | C97: 15 | D97: 14 | E97: 14 | F97: 14 | G97: 0 | H97: 0 | J97: =IF(E97=0,"Variabel pris",IFERROR(((HLOOKUP(E97,'Variable priser'!$C$2:$H$4,2)+(E97-HLOOKUP(E97,'Variable priser'!$C$2:$H$4,1))*HLOOKUP(E97,'Variable priser'!$C$2:$H$4,3))/E97*(1+Genanskaffelsespriser!$D$203)),"Fejl")) -> 3827.414946 | K97: =IF(F97=0,"Variabel pris",IFERROR(((HLOOKUP(F97,'Variable priser'!$C$2:$H$4,2)+(F97-HLOOKUP(F97,'Variable priser'!$C$2:$H$4,1))*HLOOKUP(F97,'Variable priser'!$C$2:$H$4,3))/F97*(1+Genanskaffelsespriser!$D$203)),"Fejl")) -> 3827.414946 | L97: 3572.25395 | M97: 3572.25395 | N97: 1 | O97: 1
A98: Pumpe inkl. stigrør og forerørsforsejlinger mv. 92 | B98: m³/h | C98: 15 | D98: 14 | E98: 14 | F98: 14 | G98: 0 | H98: 0 | J98: =IF(E98=0,"Variabel pris",IFERROR(((HLOOKUP(E98,'Variable priser'!$C$2:$H$4,2)+(E98-HLOOKUP(E98,'Variable priser'!$C$2:$H$4,1))*HLOOKUP(E98,'Variable priser'!$C$2:$H$4,3))/E98*(1+Genanskaffelsespriser!$D$203)),"Fejl")) -> 3827.414946 | K98: =IF(F98=0,"Variabel pris",IFERROR(((HLOOKUP(F98,'Variable priser'!$C$2:$H$4,2)+(F98-HLOOKUP(F98,'Variable priser'!$C$2:$H$4,1))*HLOOKUP(F98,'Variable priser'!$C$2:$H$4,3))/F98*(1+Genanskaffelsespriser!$D$203)),"Fejl")) -> 3827.414946 | L98: 3572.25395 | M98: 3572.25395 | N98: 1 | O98: 1
A99: Pumpe inkl. stigrør og forerørsforsejlinger mv. 93 | B99: m³/h | C99: 15 | D99: 30 | E99: 30 | F99: 30 | G99: 0 | H99: 0 | J99: =IF(E99=0,"Variabel pris",IFERROR(((HLOOKUP(E99,'Variable priser'!$C$2:$H$4,2)+(E99-HLOOKUP(E99,'Variable priser'!$C$2:$H$4,1))*HLOOKUP(E99,'Variable priser'!$C$2:$H$4,3))/E99*(1+Genanskaffelsespriser!$D$203)),"Fejl")) -> 2666.751689 | K99: =IF(F99=0,"Variabel pris",IFERROR(((HLOOKUP(F99,'Variable priser'!$C$2:$H$4,2)+(F99-HLOOKUP(F99,'Variable priser'!$C$2:$H$4,1))*HLOOKUP(F99,'Variable priser'!$C$2:$H$4,3))/F99*(1+Genanskaffelsespriser!$D$203)),"Fejl")) -> 2666.751689 | L99: 5333.503378 | M99: 5333.503378 | N99: 1 | O99: 1
A100: Pumpe inkl. stigrør og forerørsforsejlinger mv. 94 | B100: m³/h | C100: 15 | D100: 30 | E100: 30 | F100: 30 | G100: 0 | H100: 0 | J100: =IF(E100=0,"Variabel pris",IFERROR(((HLOOKUP(E100,'Variable priser'!$C$2:$H$4,2)+(E100-HLOOKUP(E100,'Variable priser'!$C$2:$H$4,1))*HLOOKUP(E100,'Variable priser'!$C$2:$H$4,3))/E100*(1+Genanskaffelsespriser!$D$203)),"Fejl")) -> 2666.751689 | K100: =IF(F100=0,"Variabel pris",IFERROR(((HLOOKUP(F100,'Variable priser'!$C$2:$H$4,2)+(F100-HLOOKUP(F100,'Variable priser'!$C$2:$H$4,1))*HLOOKUP(F100,'Variable priser'!$C$2:$H$4,3))/F100*(1+Genanskaffelsespriser!$D$203)),"Fejl")) -> 2666.751689 | L100: 5333.503378 | M100: 5333.503378 | N100: 1 | O100: 1
A101: Pumpe inkl. stigrør og forerørsforsejlinger mv. 95 | B101: m³/h | C101: 15 | D101: 30 | E101: 30 | F101: 30 | G101: 0 | H101: 0 | J101: =IF(E101=0,"Variabel pris",IFERROR(((HLOOKUP(E101,'Variable priser'!$C$2:$H$4,2)+(E101-HLOOKUP(E101,'Variable priser'!$C$2:$H$4,1))*HLOOKUP(E101,'Variable priser'!$C$2:$H$4,3))/E101*(1+Genanskaffelsespriser!$D$203)),"Fejl")) -> 2666.751689 | K101: =IF(F101=0,"Variabel pris",IFERROR(((HLOOKUP(F101,'Variable priser'!$C$2:$H$4,2)+(F101-HLOOKUP(F101,'Variable priser'!$C$2:$H$4,1))*HLOOKUP(F101,'Variable priser'!$C$2:$H$4,3))/F101*(1+Genanskaffelsespriser!$D$203)),"Fejl")) -> 2666.751689 | L101: 5333.503378 | M101: 5333.503378 | N101: 1 | O101: 1
A102: Pumpe inkl. stigrør og forerørsforsejlinger mv. 96 | B102: m³/h | C102: 15 | D102: 160 | E102: 160 | F102: 160 | G102: 0 | H102: 0 | J102: =IF(E102=0,"Variabel pris",IFERROR(((HLOOKUP(E102,'Variable priser'!$C$2:$H$4,2)+(E102-HLOOKUP(E102,'Variable priser'!$C$2:$H$4,1))*HLOOKUP(E102,'Variable priser'!$C$2:$H$4,3))/E102*(1+Genanskaffelsespriser!$D$203)),"Fejl")) -> 1176.285021 | K102: =IF(F102=0,"Variabel pris",IFERROR(((HLOOKUP(F102,'Variable priser'!$C$2:$H$4,2)+(F102-HLOOKUP(F102,'Variable priser'!$C$2:$H$4,1))*HLOOKUP(F102,'Variable priser'!$C$2:$H$4,3))/F102*(1+Genanskaffelsespriser!$D$203)),"Fejl")) -> 1176.285021 | L102: 12547.04022 | M102: 12547.04022 | N102: 1 | O102: 1
A103: Pumpe inkl. stigrør og forerørsforsejlinger mv. 97 | B103: m³/h | C103: 15 | D103: 5 | E103: 5 | F103: 5 | G103: 0 | H103: 0 | J103: =IF(E103=0,"Variabel pris",IFERROR(((HLOOKUP(E103,'Variable priser'!$C$2:$H$4,2)+(E103-HLOOKUP(E103,'Variable priser'!$C$2:$H$4,1))*HLOOKUP(E103,'Variable priser'!$C$2:$H$4,3))/E103*(1+Genanskaffelsespriser!$D$203)),"Fejl")) -> 4578.075425 | K103: =IF(F103=0,"Variabel pris",IFERROR(((HLOOKUP(F103,'Variable priser'!$C$2:$H$4,2)+(F103-HLOOKUP(F103,'Variable priser'!$C$2:$H$4,1))*HLOOKUP(F103,'Variable priser'!$C$2:$H$4,3))/F103*(1+Genanskaffelsespriser!$D$203)),"Fejl")) -> 4578.075425 | L103: 1526.025142 | M103: 1526.025142 | N103: 1 | O103: 1
A104: Pumpe inkl. stigrør og forerørsforsejlinger mv. 98 | B104: m³/h | C104: 15 | D104: 17 | E104: 17 | F104: 17 | G104: 0 | H104: 0 | J104: =IF(E104=0,"Variabel pris",IFERROR(((HLOOKUP(E104,'Variable priser'!$C$2:$H$4,2)+(E104-HLOOKUP(E104,'Variable priser'!$C$2:$H$4,1))*HLOOKUP(E104,'Variable priser'!$C$2:$H$4,3))/E104*(1+Genanskaffelsespriser!$D$203)),"Fejl")) -> 3496.241206 | K104: =IF(F104=0,"Variabel pris",IFERROR(((HLOOKUP(F104,'Variable priser'!$C$2:$H$4,2)+(F104-HLOOKUP(F104,'Variable priser'!$C$2:$H$4,1))*HLOOKUP(F104,'Variable priser'!$C$2:$H$4,3))/F104*(1+Genanskaffelsespriser!$D$203)),"Fejl")) -> 3496.241206 | L104: 3962.4067 | M104: 3962.4067 | N104: 1 | O104: 1
A105: Pumpe inkl. stigrør og forerørsforsejlinger mv. 99 | B105: m³/h | C105: 15 | D105: 17 | E105: 17 | F105: 17 | G105: 0 | H105: 0 | J105: =IF(E105=0,"Variabel pris",IFERROR(((HLOOKUP(E105,'Variable priser'!$C$2:$H$4,2)+(E105-HLOOKUP(E105,'Variable priser'!$C$2:$H$4,1))*HLOOKUP(E105,'Variable priser'!$C$2:$H$4,3))/E105*(1+Genanskaffelsespriser!$D$203)),"Fejl")) -> 3496.241206 | K105: =IF(F105=0,"Variabel pris",IFERROR(((HLOOKUP(F105,'Variable priser'!$C$2:$H$4,2)+(F105-HLOOKUP(F105,'Variable priser'!$C$2:$H$4,1))*HLOOKUP(F105,'Variable priser'!$C$2:$H$4,3))/F105*(1+Genanskaffelsespriser!$D$203)),"Fejl")) -> 3496.241206 | L105: 3962.4067 | M105: 3962.4067 | N105: 1 | O105: 1
A106: Pumpe inkl. stigrør og forerørsforsejlinger mv. 100 | B106: m³/h | C106: 15 | D106: 17 | E106: 17 | F106: 17 | G106: 0 | H106: 0 | J106: =IF(E106=0,"Variabel pris",IFERROR(((HLOOKUP(E106,'Variable priser'!$C$2:$H$4,2)+(E106-HLOOKUP(E106,'Variable priser'!$C$2:$H$4,1))*HLOOKUP(E106,'Variable priser'!$C$2:$H$4,3))/E106*(1+Genanskaffelsespriser!$D$203)),"Fejl")) -> 3496.241206 | K106: =IF(F106=0,"Variabel pris",IFERROR(((HLOOKUP(F106,'Variable priser'!$C$2:$H$4,2)+(F106-HLOOKUP(F106,'Variable priser'!$C$2:$H$4,1))*HLOOKUP(F106,'Variable priser'!$C$2:$H$4,3))/F106*(1+Genanskaffelsespriser!$D$203)),"Fejl")) -> 3496.241206 | L106: 3962.4067 | M106: 3962.4067 | N106: 1 | O106: 1
A107: Pumpe inkl. stigrør og forerørsforsejlinger mv. 101 | B107: m³/h | C107: 15 | D107: 17 | E107: 17 | F107: 17 | G107: 0 | H107: 0 | J107: =IF(E107=0,"Variabel pris",IFERROR(((HLOOKUP(E107,'Variable priser'!$C$2:$H$4,2)+(E107-HLOOKUP(E107,'Variable priser'!$C$2:$H$4,1))*HLOOKUP(E107,'Variable priser'!$C$2:$H$4,3))/E107*(1+Genanskaffelsespriser!$D$203)),"Fejl")) -> 3496.241206 | K107: =IF(F107=0,"Variabel pris",IFERROR(((HLOOKUP(F107,'Variable priser'!$C$2:$H$4,2)+(F107-HLOOKUP(F107,'Variable priser'!$C$2:$H$4,1))*HLOOKUP(F107,'Variable priser'!$C$2:$H$4,3))/F107*(1+Genanskaffelsespriser!$D$203)),"Fejl")) -> 3496.241206 | L107: 3962.4067 | M107: 3962.4067 | N107: 1 | O107: 1
A108: Pumpe inkl. stigrør og forerørsforsejlinger mv. 102 | B108: m³/h | C108: 15 | D108: 17 | E108: 17 | F108: 17 | G108: 0 | H108: 0 | J108: =IF(E108=0,"Variabel pris",IFERROR(((HLOOKUP(E108,'Variable priser'!$C$2:$H$4,2)+(E108-HLOOKUP(E108,'Variable priser'!$C$2:$H$4,1))*HLOOKUP(E108,'Variable priser'!$C$2:$H$4,3))/E108*(1+Genanskaffelsespriser!$D$203)),"Fejl")) -> 3496.241206 | K108: =IF(F108=0,"Variabel pris",IFERROR(((HLOOKUP(F108,'Variable priser'!$C$2:$H$4,2)+(F108-HLOOKUP(F108,'Variable priser'!$C$2:$H$4,1))*HLOOKUP(F108,'Variable priser'!$C$2:$H$4,3))/F108*(1+Genanskaffelsespriser!$D$203)),"Fejl")) -> 3496.241206 | L108: 3962.4067 | M108: 3962.4067 | N108: 1 | O108: 1
A109: Pumpe inkl. stigrør og forerørsforsejlinger mv. 103 | B109: m³/h | C109: 15 | D109: 30 | E109: 30 | F109: 30 | G109: 0 | H109: 0 | J109: =IF(E109=0,"Variabel pris",IFERROR(((HLOOKUP(E109,'Variable priser'!$C$2:$H$4,2)+(E109-HLOOKUP(E109,'Variable priser'!$C$2:$H$4,1))*HLOOKUP(E109,'Variable priser'!$C$2:$H$4,3))/E109*(1+Genanskaffelsespriser!$D$203)),"Fejl")) -> 2666.751689 | K109: =IF(F109=0,"Variabel pris",IFERROR(((HLOOKUP(F109,'Variable priser'!$C$2:$H$4,2)+(F109-HLOOKUP(F109,'Variable priser'!$C$2:$H$4,1))*HLOOKUP(F109,'Variable priser'!$C$2:$H$4,3))/F109*(1+Genanskaffelsespriser!$D$203)),"Fejl")) -> 2666.751689 | L109: 5333.503378 | M109: 5333.503378 | N109: 1 | O109: 1
A110: Pumpe inkl. stigrør og forerørsforsejlinger mv. 104 | B110: m³/h | C110: 15 | D110: 27 | E110: 27 | F110: 27 | G110: 0 | H110: 0 | J110: =IF(E110=0,"Variabel pris",IFERROR(((HLOOKUP(E110,'Variable priser'!$C$2:$H$4,2)+(E110-HLOOKUP(E110,'Variable priser'!$C$2:$H$4,1))*HLOOKUP(E110,'Variable priser'!$C$2:$H$4,3))/E110*(1+Genanskaffelsespriser!$D$203)),"Fejl")) -> 2799.566777 | K110: =IF(F110=0,"Variabel pris",IFERROR(((HLOOKUP(F110,'Variable priser'!$C$2:$H$4,2)+(F110-HLOOKUP(F110,'Variable priser'!$C$2:$H$4,1))*HLOOKUP(F110,'Variable priser'!$C$2:$H$4,3))/F110*(1+Genanskaffelsespriser!$D$203)),"Fejl")) -> 2799.566777 | L110: 5039.220199 | M110: 5039.220199 | N110: 1 | O110: 1
A111: Pumpe inkl. stigrør og forerørsforsejlinger mv. 105 | B111: m³/h | C111: 15 | D111: 60 | E111: 60 | F111: 60 | G111: 0 | H111: 0 | J111: =IF(E111=0,"Variabel pris",IFERROR(((HLOOKUP(E111,'Variable priser'!$C$2:$H$4,2)+(E111-HLOOKUP(E111,'Variable priser'!$C$2:$H$4,1))*HLOOKUP(E111,'Variable priser'!$C$2:$H$4,3))/E111*(1+Genanskaffelsespriser!$D$203)),"Fejl")) -> 1765.580096 | K111: =IF(F111=0,"Variabel pris",IFERROR(((HLOOKUP(F111,'Variable priser'!$C$2:$H$4,2)+(F111-HLOOKUP(F111,'Variable priser'!$C$2:$H$4,1))*HLOOKUP(F111,'Variable priser'!$C$2:$H$4,3))/F111*(1+Genanskaffelsespriser!$D$203)),"Fejl")) -> 1765.580096 | L111: 7062.320384 | M111: 7062.320384 | N111: 1 | O111: 1
A112: Pumpe inkl. stigrør og forerørsforsejlinger mv. 106 | B112: m³/h | C112: 15 | D112: 46 | E112: 46 | F112: 46 | G112: 0 | H112: 0 | J112: =IF(E112=0,"Variabel pris",IFERROR(((HLOOKUP(E112,'Variable priser'!$C$2:$H$4,2)+(E112-HLOOKUP(E112,'Variable priser'!$C$2:$H$4,1))*HLOOKUP(E112,'Variable priser'!$C$2:$H$4,3))/E112*(1+Genanskaffelsespriser!$D$203)),"Fejl")) -> 2052.541176 | K112: =IF(F112=0,"Variabel pris",IFERROR(((HLOOKUP(F112,'Variable priser'!$C$2:$H$4,2)+(F112-HLOOKUP(F112,'Variable priser'!$C$2:$H$4,1))*HLOOKUP(F112,'Variable priser'!$C$2:$H$4,3))/F112*(1+Genanskaffelsespriser!$D$203)),"Fejl")) -> 2052.541176 | L112: 6294.459606 | M112: 6294.459606 | N112: 1 | O112: 1
A113: Pumpe inkl. stigrør og forerørsforsejlinger mv. 107 | B113: m³/h | C113: 15 | D113: 27 | E113: 27 | F113: 27 | G113: 0 | H113: 0 | J113: =IF(E113=0,"Variabel pris",IFERROR(((HLOOKUP(E113,'Variable priser'!$C$2:$H$4,2)+(E113-HLOOKUP(E113,'Variable priser'!$C$2:$H$4,1))*HLOOKUP(E113,'Variable priser'!$C$2:$H$4,3))/E113*(1+Genanskaffelsespriser!$D$203)),"Fejl")) -> 2799.566777 | K113: =IF(F113=0,"Variabel pris",IFERROR(((HLOOKUP(F113,'Variable priser'!$C$2:$H$4,2)+(F113-HLOOKUP(F113,'Variable priser'!$C$2:$H$4,1))*HLOOKUP(F113,'Variable priser'!$C$2:$H$4,3))/F113*(1+Genanskaffelsespriser!$D$203)),"Fejl")) -> 2799.566777 | L113: 5039.220199 | M113: 5039.220199 | N113: 1 | O113: 1
A114: Pumpe inkl. stigrør og forerørsforsejlinger mv. 108 | B114: m³/h | C114: 15 | D114: 46 | E114: 46 | F114: 46 | G114: 0 | H114: 0 | J114: =IF(E114=0,"Variabel pris",IFERROR(((HLOOKUP(E114,'Variable priser'!$C$2:$H$4,2)+(E114-HLOOKUP(E114,'Variable priser'!$C$2:$H$4,1))*HLOOKUP(E114,'Variable priser'!$C$2:$H$4,3))/E114*(1+Genanskaffelsespriser!$D$203)),"Fejl")) -> 2052.541176 | K114: =IF(F114=0,"Variabel pris",IFERROR(((HLOOKUP(F114,'Variable priser'!$C$2:$H$4,2)+(F114-HLOOKUP(F114,'Variable priser'!$C$2:$H$4,1))*HLOOKUP(F114,'Variable priser'!$C$2:$H$4,3))/F114*(1+Genanskaffelsespriser!$D$203)),"Fejl")) -> 2052.541176 | L114: 6294.459606 | M114: 6294.459606 | N114: 1 | O114: 1
A115: Pumpe inkl. stigrør og forerørsforsejlinger mv. 109 | B115: m³/h | C115: 15 | D115: 60 | E115: 60 | F115: 60 | G115: 0 | H115: 0 | J115: =IF(E115=0,"Variabel pris",IFERROR(((HLOOKUP(E115,'Variable priser'!$C$2:$H$4,2)+(E115-HLOOKUP(E115,'Variable priser'!$C$2:$H$4,1))*HLOOKUP(E115,'Variable priser'!$C$2:$H$4,3))/E115*(1+Genanskaffelsespriser!$D$203)),"Fejl")) -> 1765.580096 | K115: =IF(F115=0,"Variabel pris",IFERROR(((HLOOKUP(F115,'Variable priser'!$C$2:$H$4,2)+(F115-HLOOKUP(F115,'Variable priser'!$C$2:$H$4,1))*HLOOKUP(F115,'Variable priser'!$C$2:$H$4,3))/F115*(1+Genanskaffelsespriser!$D$203)),"Fejl")) -> 1765.580096 | L115: 7062.320384 | M115: 7062.320384 | N115: 1 | O115: 1
A116: Pumpe inkl. stigrør og forerørsforsejlinger mv. 110 | B116: m³/h | C116: 15 | D116: 46 | E116: 46 | F116: 46 | G116: 0 | H116: 0 | J116: =IF(E116=0,"Variabel pris",IFERROR(((HLOOKUP(E116,'Variable priser'!$C$2:$H$4,2)+(E116-HLOOKUP(E116,'Variable priser'!$C$2:$H$4,1))*HLOOKUP(E116,'Variable priser'!$C$2:$H$4,3))/E116*(1+Genanskaffelsespriser!$D$203)),"Fejl")) -> 2052.541176 | K116: =IF(F116=0,"Variabel pris",IFERROR(((HLOOKUP(F116,'Variable priser'!$C$2:$H$4,2)+(F116-HLOOKUP(F116,'Variable priser'!$C$2:$H$4,1))*HLOOKUP(F116,'Variable priser'!$C$2:$H$4,3))/F116*(1+Genanskaffelsespriser!$D$203)),"Fejl")) -> 2052.541176 | L116: 6294.459606 | M116: 6294.459606 | N116: 1 | O116: 1
A117: Pumpe inkl. stigrør og forerørsforsejlinger mv. 111 | B117: m³/h | C117: 15 | D117: 46 | E117: 46 | F117: 46 | G117: 0 | H117: 0 | J117: =IF(E117=0,"Variabel pris",IFERROR(((HLOOKUP(E117,'Variable priser'!$C$2:$H$4,2)+(E117-HLOOKUP(E117,'Variable priser'!$C$2:$H$4,1))*HLOOKUP(E117,'Variable priser'!$C$2:$H$4,3))/E117*(1+Genanskaffelsespriser!$D$203)),"Fejl")) -> 2052.541176 | K117: =IF(F117=0,"Variabel pris",IFERROR(((HLOOKUP(F117,'Variable priser'!$C$2:$H$4,2)+(F117-HLOOKUP(F117,'Variable priser'!$C$2:$H$4,1))*HLOOKUP(F117,'Variable priser'!$C$2:$H$4,3))/F117*(1+Genanskaffelsespriser!$D$203)),"Fejl")) -> 2052.541176 | L117: 6294.459606 | M117: 6294.459606 | N117: 1 | O117: 1
A118: Pumpe inkl. stigrør og forerørsforsejlinger mv. 112 | B118: m³/h | C118: 15 | D118: 17 | E118: 17 | F118: 17 | G118: 0 | H118: 0 | J118: =IF(E118=0,"Variabel pris",IFERROR(((HLOOKUP(E118,'Variable priser'!$C$2:$H$4,2)+(E118-HLOOKUP(E118,'Variable priser'!$C$2:$H$4,1))*HLOOKUP(E118,'Variable priser'!$C$2:$H$4,3))/E118*(1+Genanskaffelsespriser!$D$203)),"Fejl")) -> 3496.241206 | K118: =IF(F118=0,"Variabel pris",IFERROR(((HLOOKUP(F118,'Variable priser'!$C$2:$H$4,2)+(F118-HLOOKUP(F118,'Variable priser'!$C$2:$H$4,1))*HLOOKUP(F118,'Variable priser'!$C$2:$H$4,3))/F118*(1+Genanskaffelsespriser!$D$203)),"Fejl")) -> 3496.241206 | L118: 3962.4067 | M118: 3962.4067 | N118: 1 | O118: 1
A119: Pumpe inkl. stigrør og forerørsforsejlinger mv. 113 | B119: m³/h | C119: 15 | D119: 17 | E119: 17 | F119: 17 | G119: 0 | H119: 0 | J119: =IF(E119=0,"Variabel pris",IFERROR(((HLOOKUP(E119,'Variable priser'!$C$2:$H$4,2)+(E119-HLOOKUP(E119,'Variable priser'!$C$2:$H$4,1))*HLOOKUP(E119,'Variable priser'!$C$2:$H$4,3))/E119*(1+Genanskaffelsespriser!$D$203)),"Fejl")) -> 3496.241206 | K119: =IF(F119=0,"Variabel pris",IFERROR(((HLOOKUP(F119,'Variable priser'!$C$2:$H$4,2)+(F119-HLOOKUP(F119,'Variable priser'!$C$2:$H$4,1))*HLOOKUP(F119,'Variable priser'!$C$2:$H$4,3))/F119*(1+Genanskaffelsespriser!$D$203)),"Fejl")) -> 3496.241206 | L119: 3962.4067 | M119: 3962.4067 | N119: 1 | O119: 1
A120: Pumpe inkl. stigrør og forerørsforsejlinger mv. 114 | B120: m³/h | C120: 15 | D120: 17 | E120: 17 | F120: 17 | G120: 0 | H120: 0 | J120: =IF(E120=0,"Variabel pris",IFERROR(((HLOOKUP(E120,'Variable priser'!$C$2:$H$4,2)+(E120-HLOOKUP(E120,'Variable priser'!$C$2:$H$4,1))*HLOOKUP(E120,'Variable priser'!$C$2:$H$4,3))/E120*(1+Genanskaffelsespriser!$D$203)),"Fejl")) -> 3496.241206 | K120: =IF(F120=0,"Variabel pris",IFERROR(((HLOOKUP(F120,'Variable priser'!$C$2:$H$4,2)+(F120-HLOOKUP(F120,'Variable priser'!$C$2:$H$4,1))*HLOOKUP(F120,'Variable priser'!$C$2:$H$4,3))/F120*(1+Genanskaffelsespriser!$D$203)),"Fejl")) -> 3496.241206 | L120: 3962.4067 | M120: 3962.4067 | N120: 1 | O120: 1
A121: Pumpe inkl. stigrør og forerørsforsejlinger mv. 115 | B121: m³/h | C121: 15 | D121: 17 | E121: 17 | F121: 17 | G121: 0 | H121: 0 | J121: =IF(E121=0,"Variabel pris",IFERROR(((HLOOKUP(E121,'Variable priser'!$C$2:$H$4,2)+(E121-HLOOKUP(E121,'Variable priser'!$C$2:$H$4,1))*HLOOKUP(E121,'Variable priser'!$C$2:$H$4,3))/E121*(1+Genanskaffelsespriser!$D$203)),"Fejl")) -> 3496.241206 | K121: =IF(F121=0,"Variabel pris",IFERROR(((HLOOKUP(F121,'Variable priser'!$C$2:$H$4,2)+(F121-HLOOKUP(F121,'Variable priser'!$C$2:$H$4,1))*HLOOKUP(F121,'Variable priser'!$C$2:$H$4,3))/F121*(1+Genanskaffelsespriser!$D$203)),"Fejl")) -> 3496.241206 | L121: 3962.4067 | M121: 3962.4067 | N121: 1 | O121: 1
A122: Pumpe inkl. stigrør og forerørsforsejlinger mv. 116 | B122: m³/h | C122: 15 | D122: 17 | E122: 17 | F122: 17 | G122: 0 | H122: 0 | J122: =IF(E122=0,"Variabel pris",IFERROR(((HLOOKUP(E122,'Variable priser'!$C$2:$H$4,2)+(E122-HLOOKUP(E122,'Variable priser'!$C$2:$H$4,1))*HLOOKUP(E122,'Variable priser'!$C$2:$H$4,3))/E122*(1+Genanskaffelsespriser!$D$203)),"Fejl")) -> 3496.241206 | K122: =IF(F122=0,"Variabel pris",IFERROR(((HLOOKUP(F122,'Variable priser'!$C$2:$H$4,2)+(F122-HLOOKUP(F122,'Variable priser'!$C$2:$H$4,1))*HLOOKUP(F122,'Variable priser'!$C$2:$H$4,3))/F122*(1+Genanskaffelsespriser!$D$203)),"Fejl")) -> 3496.241206 | L122: 3962.4067 | M122: 3962.4067 | N122: 1 | O122: 1
A123: Pumpe inkl. stigrør og forerørsforsejlinger mv. 117 | B123: m³/h | C123: 15 | D123: 17 | E123: 17 | F123: 17 | G123: 0 | H123: 0 | J123: =IF(E123=0,"Variabel pris",IFERROR(((HLOOKUP(E123,'Variable priser'!$C$2:$H$4,2)+(E123-HLOOKUP(E123,'Variable priser'!$C$2:$H$4,1))*HLOOKUP(E123,'Variable priser'!$C$2:$H$4,3))/E123*(1+Genanskaffelsespriser!$D$203)),"Fejl")) -> 3496.241206 | K123: =IF(F123=0,"Variabel pris",IFERROR(((HLOOKUP(F123,'Variable priser'!$C$2:$H$4,2)+(F123-HLOOKUP(F123,'Variable priser'!$C$2:$H$4,1))*HLOOKUP(F123,'Variable priser'!$C$2:$H$4,3))/F123*(1+Genanskaffelsespriser!$D$203)),"Fejl")) -> 3496.241206 | L123: 3962.4067 | M123: 3962.4067 | N123: 1 | O123: 1
A124: Pumpe inkl. stigrør og forerørsforsejlinger mv. 118 | B124: m³/h | C124: 15 | D124: 17 | E124: 17 | F124: 17 | G124: 0 | H124: 0 | J124: =IF(E124=0,"Variabel pris",IFERROR(((HLOOKUP(E124,'Variable priser'!$C$2:$H$4,2)+(E124-HLOOKUP(E124,'Variable priser'!$C$2:$H$4,1))*HLOOKUP(E124,'Variable priser'!$C$2:$H$4,3))/E124*(1+Genanskaffelsespriser!$D$203)),"Fejl")) -> 3496.241206 | K124: =IF(F124=0,"Variabel pris",IFERROR(((HLOOKUP(F124,'Variable priser'!$C$2:$H$4,2)+(F124-HLOOKUP(F124,'Variable priser'!$C$2:$H$4,1))*HLOOKUP(F124,'Variable priser'!$C$2:$H$4,3))/F124*(1+Genanskaffelsespriser!$D$203)),"Fejl")) -> 3496.241206 | L124: 3962.4067 | M124: 3962.4067 | N124: 1 | O124: 1
A125: Pumpe inkl. stigrør og forerørsforsejlinger mv. 119 | B125: m³/h | C125: 15 | D125: 17 | E125: 17 | F125: 17 | G125: 0 | H125: 0 | J125: =IF(E125=0,"Variabel pris",IFERROR(((HLOOKUP(E125,'Variable priser'!$C$2:$H$4,2)+(E125-HLOOKUP(E125,'Variable priser'!$C$2:$H$4,1))*HLOOKUP(E125,'Variable priser'!$C$2:$H$4,3))/E125*(1+Genanskaffelsespriser!$D$203)),"Fejl")) -> 3496.241206 | K125: =IF(F125=0,"Variabel pris",IFERROR(((HLOOKUP(F125,'Variable priser'!$C$2:$H$4,2)+(F125-HLOOKUP(F125,'Variable priser'!$C$2:$H$4,1))*HLOOKUP(F125,'Variable priser'!$C$2:$H$4,3))/F125*(1+Genanskaffelsespriser!$D$203)),"Fejl")) -> 3496.241206 | L125: 3962.4067 | M125: 3962.4067 | N125: 1 | O125: 1
A126: Pumpe inkl. stigrør og forerørsforsejlinger mv. 120 | B126: m³/h | C126: 15 | D126: 17 | E126: 17 | F126: 17 | G126: 0 | H126: 0 | J126: =IF(E126=0,"Variabel pris",IFERROR(((HLOOKUP(E126,'Variable priser'!$C$2:$H$4,2)+(E126-HLOOKUP(E126,'Variable priser'!$C$2:$H$4,1))*HLOOKUP(E126,'Variable priser'!$C$2:$H$4,3))/E126*(1+Genanskaffelsespriser!$D$203)),"Fejl")) -> 3496.241206 | K126: =IF(F126=0,"Variabel pris",IFERROR(((HLOOKUP(F126,'Variable priser'!$C$2:$H$4,2)+(F126-HLOOKUP(F126,'Variable priser'!$C$2:$H$4,1))*HLOOKUP(F126,'Variable priser'!$C$2:$H$4,3))/F126*(1+Genanskaffelsespriser!$D$203)),"Fejl")) -> 3496.241206 | L126: 3962.4067 | M126: 3962.4067 | N126: 1 | O126: 1
A127: Pumpe inkl. stigrør og forerørsforsejlinger mv. 121 | B127: m³/h | C127: 15 | D127: 60 | E127: 60 | F127: 60 | G127: 0 | H127: 0 | J127: =IF(E127=0,"Variabel pris",IFERROR(((HLOOKUP(E127,'Variable priser'!$C$2:$H$4,2)+(E127-HLOOKUP(E127,'Variable priser'!$C$2:$H$4,1))*HLOOKUP(E127,'Variable priser'!$C$2:$H$4,3))/E127*(1+Genanskaffelsespriser!$D$203)),"Fejl")) -> 1765.580096 | K127: =IF(F127=0,"Variabel pris",IFERROR(((HLOOKUP(F127,'Variable priser'!$C$2:$H$4,2)+(F127-HLOOKUP(F127,'Variable priser'!$C$2:$H$4,1))*HLOOKUP(F127,'Variable priser'!$C$2:$H$4,3))/F127*(1+Genanskaffelsespriser!$D$203)),"Fejl")) -> 1765.580096 | L127: 7062.320384 | M127: 7062.320384 | N127: 1 | O127: 1
A128: Pumpe inkl. stigrør og forerørsforsejlinger mv. 122 | B128: m³/h | C128: 15 | D128: 30 | E128: 30 | F128: 30 | G128: 0 | H128: 0 | J128: =IF(E128=0,"Variabel pris",IFERROR(((HLOOKUP(E128,'Variable priser'!$C$2:$H$4,2)+(E128-HLOOKUP(E128,'Variable priser'!$C$2:$H$4,1))*HLOOKUP(E128,'Variable priser'!$C$2:$H$4,3))/E128*(1+Genanskaffelsespriser!$D$203)),"Fejl")) -> 2666.751689 | K128: =IF(F128=0,"Variabel pris",IFERROR(((HLOOKUP(F128,'Variable priser'!$C$2:$H$4,2)+(F128-HLOOKUP(F128,'Variable priser'!$C$2:$H$4,1))*HLOOKUP(F128,'Variable priser'!$C$2:$H$4,3))/F128*(1+Genanskaffelsespriser!$D$203)),"Fejl")) -> 2666.751689 | L128: 5333.503378 | M128: 5333.503378 | N128: 1 | O128: 1
A129: Pumpe inkl. stigrør og forerørsforsejlinger mv. 123 | B129: m³/h | C129: 15 | D129: 30 | E129: 30 | F129: 30 | G129: 0 | H129: 0 | J129: =IF(E129=0,"Variabel pris",IFERROR(((HLOOKUP(E129,'Variable priser'!$C$2:$H$4,2)+(E129-HLOOKUP(E129,'Variable priser'!$C$2:$H$4,1))*HLOOKUP(E129,'Variable priser'!$C$2:$H$4,3))/E129*(1+Genanskaffelsespriser!$D$203)),"Fejl")) -> 2666.751689 | K129: =IF(F129=0,"Variabel pris",IFERROR(((HLOOKUP(F129,'Variable priser'!$C$2:$H$4,2)+(F129-HLOOKUP(F129,'Variable priser'!$C$2:$H$4,1))*HLOOKUP(F129,'Variable priser'!$C$2:$H$4,3))/F129*(1+Genanskaffelsespriser!$D$203)),"Fejl")) -> 2666.751689 | L129: 5333.503378 | M129: 5333.503378 | N129: 1 | O129: 1
A130: Pumpe inkl. stigrør og forerørsforsejlinger mv. 124 | B130: m³/h | C130: 15 | D130: 30 | E130: 30 | F130: 30 | G130: 0 | H130: 0 | J130: =IF(E130=0,"Variabel pris",IFERROR(((HLOOKUP(E130,'Variable priser'!$C$2:$H$4,2)+(E130-HLOOKUP(E130,'Variable priser'!$C$2:$H$4,1))*HLOOKUP(E130,'Variable priser'!$C$2:$H$4,3))/E130*(1+Genanskaffelsespriser!$D$203)),"Fejl")) -> 2666.751689 | K130: =IF(F130=0,"Variabel pris",IFERROR(((HLOOKUP(F130,'Variable priser'!$C$2:$H$4,2)+(F130-HLOOKUP(F130,'Variable priser'!$C$2:$H$4,1))*HLOOKUP(F130,'Variable priser'!$C$2:$H$4,3))/F130*(1+Genanskaffelsespriser!$D$203)),"Fejl")) -> 2666.751689 | L130: 5333.503378 | M130: 5333.503378 | N130: 1 | O130: 1
A131: Pumpe inkl. stigrør og forerørsforsejlinger mv. 125 | B131: m³/h | C131: 15 | D131: 46 | E131: 46 | F131: 46 | G131: 0 | H131: 0 | J131: =IF(E131=0,"Variabel pris",IFERROR(((HLOOKUP(E131,'Variable priser'!$C$2:$H$4,2)+(E131-HLOOKUP(E131,'Variable priser'!$C$2:$H$4,1))*HLOOKUP(E131,'Variable priser'!$C$2:$H$4,3))/E131*(1+Genanskaffelsespriser!$D$203)),"Fejl")) -> 2052.541176 | K131: =IF(F131=0,"Variabel pris",IFERROR(((HLOOKUP(F131,'Variable priser'!$C$2:$H$4,2)+(F131-HLOOKUP(F131,'Variable priser'!$C$2:$H$4,1))*HLOOKUP(F131,'Variable priser'!$C$2:$H$4,3))/F131*(1+Genanskaffelsespriser!$D$203)),"Fejl")) -> 2052.541176 | L131: 6294.459606 | M131: 6294.459606 | N131: 1 | O131: 1
A132: Pumpe inkl. stigrør og forerørsforsejlinger mv. 126 | B132: m³/h | C132: 15 | D132: 46 | E132: 46 | F132: 46 | G132: 0 | H132: 0 | J132: =IF(E132=0,"Variabel pris",IFERROR(((HLOOKUP(E132,'Variable priser'!$C$2:$H$4,2)+(E132-HLOOKUP(E132,'Variable priser'!$C$2:$H$4,1))*HLOOKUP(E132,'Variable priser'!$C$2:$H$4,3))/E132*(1+Genanskaffelsespriser!$D$203)),"Fejl")) -> 2052.541176 | K132: =IF(F132=0,"Variabel pris",IFERROR(((HLOOKUP(F132,'Variable priser'!$C$2:$H$4,2)+(F132-HLOOKUP(F132,'Variable priser'!$C$2:$H$4,1))*HLOOKUP(F132,'Variable priser'!$C$2:$H$4,3))/F132*(1+Genanskaffelsespriser!$D$203)),"Fejl")) -> 2052.541176 | L132: 6294.459606 | M132: 6294.459606 | N132: 1 | O132: 1
A133: Pumpe inkl. stigrør og forerørsforsejlinger mv. 127 | B133: m³/h | C133: 15 | D133: 27 | E133: 27 | F133: 27 | G133: 0 | H133: 0 | J133: =IF(E133=0,"Variabel pris",IFERROR(((HLOOKUP(E133,'Variable priser'!$C$2:$H$4,2)+(E133-HLOOKUP(E133,'Variable priser'!$C$2:$H$4,1))*HLOOKUP(E133,'Variable priser'!$C$2:$H$4,3))/E133*(1+Genanskaffelsespriser!$D$203)),"Fejl")) -> 2799.566777 | K133: =IF(F133=0,"Variabel pris",IFERROR(((HLOOKUP(F133,'Variable priser'!$C$2:$H$4,2)+(F133-HLOOKUP(F133,'Variable priser'!$C$2:$H$4,1))*HLOOKUP(F133,'Variable priser'!$C$2:$H$4,3))/F133*(1+Genanskaffelsespriser!$D$203)),"Fejl")) -> 2799.566777 | L133: 5039.220199 | M133: 5039.220199 | N133: 1 | O133: 1
A134: Pumpe inkl. stigrør og forerørsforsejlinger mv. 128 | B134: m³/h | C134: 15 | D134: 46 | E134: 46 | F134: 46 | G134: 0 | H134: 0 | J134: =IF(E134=0,"Variabel pris",IFERROR(((HLOOKUP(E134,'Variable priser'!$C$2:$H$4,2)+(E134-HLOOKUP(E134,'Variable priser'!$C$2:$H$4,1))*HLOOKUP(E134,'Variable priser'!$C$2:$H$4,3))/E134*(1+Genanskaffelsespriser!$D$203)),"Fejl")) -> 2052.541176 | K134: =IF(F134=0,"Variabel pris",IFERROR(((HLOOKUP(F134,'Variable priser'!$C$2:$H$4,2)+(F134-HLOOKUP(F134,'Variable priser'!$C$2:$H$4,1))*HLOOKUP(F134,'Variable priser'!$C$2:$H$4,3))/F134*(1+Genanskaffelsespriser!$D$203)),"Fejl")) -> 2052.541176 | L134: 6294.459606 | M134: 6294.459606 | N134: 1 | O134: 1
A135: Pumpe inkl. stigrør og forerørsforsejlinger mv. 129 | B135: m³/h | C135: 15 | D135: 30 | E135: 30 | F135: 30 | G135: 0 | H135: 0 | J135: =IF(E135=0,"Variabel pris",IFERROR(((HLOOKUP(E135,'Variable priser'!$C$2:$H$4,2)+(E135-HLOOKUP(E135,'Variable priser'!$C$2:$H$4,1))*HLOOKUP(E135,'Variable priser'!$C$2:$H$4,3))/E135*(1+Genanskaffelsespriser!$D$203)),"Fejl")) -> 2666.751689 | K135: =IF(F135=0,"Variabel pris",IFERROR(((HLOOKUP(F135,'Variable priser'!$C$2:$H$4,2)+(F135-HLOOKUP(F135,'Variable priser'!$C$2:$H$4,1))*HLOOKUP(F135,'Variable priser'!$C$2:$H$4,3))/F135*(1+Genanskaffelsespriser!$D$203)),"Fejl")) -> 2666.751689 | L135: 5333.503378 | M135: 5333.503378 | N135: 1 | O135: 1
A136: Pumpe inkl. stigrør og forerørsforsejlinger mv. 130 | B136: m³/h | C136: 15 | D136: 30 | E136: 30 | F136: 30 | G136: 0 | H136: 0 | J136: =IF(E136=0,"Variabel pris",IFERROR(((HLOOKUP(E136,'Variable priser'!$C$2:$H$4,2)+(E136-HLOOKUP(E136,'Variable priser'!$C$2:$H$4,1))*HLOOKUP(E136,'Variable priser'!$C$2:$H$4,3))/E136*(1+Genanskaffelsespriser!$D$203)),"Fejl")) -> 2666.751689 | K136: =IF(F136=0,"Variabel pris",IFERROR(((HLOOKUP(F136,'Variable priser'!$C$2:$H$4,2)+(F136-HLOOKUP(F136,'Variable priser'!$C$2:$H$4,1))*HLOOKUP(F136,'Variable priser'!$C$2:$H$4,3))/F136*(1+Genanskaffelsespriser!$D$203)),"Fejl")) -> 2666.751689 | L136: 5333.503378 | M136: 5333.503378 | N136: 1 | O136: 1
A137: Pumpe inkl. stigrør og forerørsforsejlinger mv. 131 | B137: m³/h | C137: 15 | D137: 30 | E137: 30 | F137: 30 | G137: 0 | H137: 0 | J137: =IF(E137=0,"Variabel pris",IFERROR(((HLOOKUP(E137,'Variable priser'!$C$2:$H$4,2)+(E137-HLOOKUP(E137,'Variable priser'!$C$2:$H$4,1))*HLOOKUP(E137,'Variable priser'!$C$2:$H$4,3))/E137*(1+Genanskaffelsespriser!$D$203)),"Fejl")) -> 2666.751689 | K137: =IF(F137=0,"Variabel pris",IFERROR(((HLOOKUP(F137,'Variable priser'!$C$2:$H$4,2)+(F137-HLOOKUP(F137,'Variable priser'!$C$2:$H$4,1))*HLOOKUP(F137,'Variable priser'!$C$2:$H$4,3))/F137*(1+Genanskaffelsespriser!$D$203)),"Fejl")) -> 2666.751689 | L137: 5333.503378 | M137: 5333.503378 | N137: 1 | O137: 1
A138: Pumpe inkl. stigrør og forerørsforsejlinger mv. 132 | B138: m³/h | C138: 15 | D138: 46 | E138: 46 | F138: 46 | G138: 0 | H138: 0 | J138: =IF(E138=0,"Variabel pris",IFERROR(((HLOOKUP(E138,'Variable priser'!$C$2:$H$4,2)+(E138-HLOOKUP(E138,'Variable priser'!$C$2:$H$4,1))*HLOOKUP(E138,'Variable priser'!$C$2:$H$4,3))/E138*(1+Genanskaffelsespriser!$D$203)),"Fejl")) -> 2052.541176 | K138: =IF(F138=0,"Variabel pris",IFERROR(((HLOOKUP(F138,'Variable priser'!$C$2:$H$4,2)+(F138-HLOOKUP(F138,'Variable priser'!$C$2:$H$4,1))*HLOOKUP(F138,'Variable priser'!$C$2:$H$4,3))/F138*(1+Genanskaffelsespriser!$D$203)),"Fejl")) -> 2052.541176 | L138: 6294.459606 | M138: 6294.459606 | N138: 1 | O138: 1
A139: Pumpe inkl. stigrør og forerørsforsejlinger mv. 133 | B139: m³/h | C139: 15 | D139: 46 | E139: 46 | F139: 46 | G139: 0 | H139: 0 | J139: =IF(E139=0,"Variabel pris",IFERROR(((HLOOKUP(E139,'Variable priser'!$C$2:$H$4,2)+(E139-HLOOKUP(E139,'Variable priser'!$C$2:$H$4,1))*HLOOKUP(E139,'Variable priser'!$C$2:$H$4,3))/E139*(1+Genanskaffelsespriser!$D$203)),"Fejl")) -> 2052.541176 | K139: =IF(F139=0,"Variabel pris",IFERROR(((HLOOKUP(F139,'Variable priser'!$C$2:$H$4,2)+(F139-HLOOKUP(F139,'Variable priser'!$C$2:$H$4,1))*HLOOKUP(F139,'Variable priser'!$C$2:$H$4,3))/F139*(1+Genanskaffelsespriser!$D$203)),"Fejl")) -> 2052.541176 | L139: 6294.459606 | M139: 6294.459606 | N139: 1 | O139: 1
A140: Pumpe inkl. stigrør og forerørsforsejlinger mv. 134 | B140: m³/h | C140: 15 | D140: 17 | E140: 17 | F140: 17 | G140: 0 | H140: 0 | J140: =IF(E140=0,"Variabel pris",IFERROR(((HLOOKUP(E140,'Variable priser'!$C$2:$H$4,2)+(E140-HLOOKUP(E140,'Variable priser'!$C$2:$H$4,1))*HLOOKUP(E140,'Variable priser'!$C$2:$H$4,3))/E140*(1+Genanskaffelsespriser!$D$203)),"Fejl")) -> 3496.241206 | K140: =IF(F140=0,"Variabel pris",IFERROR(((HLOOKUP(F140,'Variable priser'!$C$2:$H$4,2)+(F140-HLOOKUP(F140,'Variable priser'!$C$2:$H$4,1))*HLOOKUP(F140,'Variable priser'!$C$2:$H$4,3))/F140*(1+Genanskaffelsespriser!$D$203)),"Fejl")) -> 3496.241206 | L140: 3962.4067 | M140: 3962.4067 | N140: 1 | O140: 1
A141: Pumpe inkl. stigrør og forerørsforsejlinger mv. 135 | B141: m³/h | C141: 15 | D141: 17 | E141: 17 | F141: 17 | G141: 0 | H141: 0 | J141: =IF(E141=0,"Variabel pris",IFERROR(((HLOOKUP(E141,'Variable priser'!$C$2:$H$4,2)+(E141-HLOOKUP(E141,'Variable priser'!$C$2:$H$4,1))*HLOOKUP(E141,'Variable priser'!$C$2:$H$4,3))/E141*(1+Genanskaffelsespriser!$D$203)),"Fejl")) -> 3496.241206 | K141: =IF(F141=0,"Variabel pris",IFERROR(((HLOOKUP(F141,'Variable priser'!$C$2:$H$4,2)+(F141-HLOOKUP(F141,'Variable priser'!$C$2:$H$4,1))*HLOOKUP(F141,'Variable priser'!$C$2:$H$4,3))/F141*(1+Genanskaffelsespriser!$D$203)),"Fejl")) -> 3496.241206 | L141: 3962.4067 | M141: 3962.4067 | N141: 1 | O141: 1
A142: Pumpe inkl. stigrør og forerørsforsejlinger mv. 136 | B142: m³/h | C142: 15 | D142: 30 | E142: 30 | F142: 30 | G142: 0 | H142: 0 | J142: =IF(E142=0,"Variabel pris",IFERROR(((HLOOKUP(E142,'Variable priser'!$C$2:$H$4,2)+(E142-HLOOKUP(E142,'Variable priser'!$C$2:$H$4,1))*HLOOKUP(E142,'Variable priser'!$C$2:$H$4,3))/E142*(1+Genanskaffelsespriser!$D$203)),"Fejl")) -> 2666.751689 | K142: =IF(F142=0,"Variabel pris",IFERROR(((HLOOKUP(F142,'Variable priser'!$C$2:$H$4,2)+(F142-HLOOKUP(F142,'Variable priser'!$C$2:$H$4,1))*HLOOKUP(F142,'Variable priser'!$C$2:$H$4,3))/F142*(1+Genanskaffelsespriser!$D$203)),"Fejl")) -> 2666.751689 | L142: 5333.503378 | M142: 5333.503378 | N142: 1 | O142: 1
A143: Pumpe inkl. stigrør og forerørsforsejlinger mv. 137 | B143: m³/h | C143: 15 | D143: 30 | E143: 30 | F143: 30 | G143: 0 | H143: 0 | J143: =IF(E143=0,"Variabel pris",IFERROR(((HLOOKUP(E143,'Variable priser'!$C$2:$H$4,2)+(E143-HLOOKUP(E143,'Variable priser'!$C$2:$H$4,1))*HLOOKUP(E143,'Variable priser'!$C$2:$H$4,3))/E143*(1+Genanskaffelsespriser!$D$203)),"Fejl")) -> 2666.751689 | K143: =IF(F143=0,"Variabel pris",IFERROR(((HLOOKUP(F143,'Variable priser'!$C$2:$H$4,2)+(F143-HLOOKUP(F143,'Variable priser'!$C$2:$H$4,1))*HLOOKUP(F143,'Variable priser'!$C$2:$H$4,3))/F143*(1+Genanskaffelsespriser!$D$203)),"Fejl")) -> 2666.751689 | L143: 5333.503378 | M143: 5333.503378 | N143: 1 | O143: 1
A144: Pumpe inkl. stigrør og forerørsforsejlinger mv. 138 | B144: m³/h | C144: 15 | D144: 30 | E144: 30 | F144: 30 | G144: 0 | H144: 0 | J144: =IF(E144=0,"Variabel pris",IFERROR(((HLOOKUP(E144,'Variable priser'!$C$2:$H$4,2)+(E144-HLOOKUP(E144,'Variable priser'!$C$2:$H$4,1))*HLOOKUP(E144,'Variable priser'!$C$2:$H$4,3))/E144*(1+Genanskaffelsespriser!$D$203)),"Fejl")) -> 2666.751689 | K144: =IF(F144=0,"Variabel pris",IFERROR(((HLOOKUP(F144,'Variable priser'!$C$2:$H$4,2)+(F144-HLOOKUP(F144,'Variable priser'!$C$2:$H$4,1))*HLOOKUP(F144,'Variable priser'!$C$2:$H$4,3))/F144*(1+Genanskaffelsespriser!$D$203)),"Fejl")) -> 2666.751689 | L144: 5333.503378 | M144: 5333.503378 | N144: 1 | O144: 1
A145: Pumpe inkl. stigrør og forerørsforsejlinger mv. 139 | B145: m³/h | C145: 15 | D145: 60 | E145: 60 | F145: 60 | G145: 0 | H145: 0 | J145: =IF(E145=0,"Variabel pris",IFERROR(((HLOOKUP(E145,'Variable priser'!$C$2:$H$4,2)+(E145-HLOOKUP(E145,'Variable priser'!$C$2:$H$4,1))*HLOOKUP(E145,'Variable priser'!$C$2:$H$4,3))/E145*(1+Genanskaffelsespriser!$D$203)),"Fejl")) -> 1765.580096 | K145: =IF(F145=0,"Variabel pris",IFERROR(((HLOOKUP(F145,'Variable priser'!$C$2:$H$4,2)+(F145-HLOOKUP(F145,'Variable priser'!$C$2:$H$4,1))*HLOOKUP(F145,'Variable priser'!$C$2:$H$4,3))/F145*(1+Genanskaffelsespriser!$D$203)),"Fejl")) -> 1765.580096 | L145: =IF(ISBLANK(E145),"",IF(E145=0,"",IF(ISNUMBER(E145),((J145*E145)/C145)*N145,""))) -> 7062.320384 | M145: =IF(ISBLANK(F145),"",IF(F145=0,"",IF(ISNUMBER(F145),((K145*F145)/C145)*N145,""))) -> 7062.320384 | N145: 1 | O145: 1
A146: Pumpe inkl. stigrør og forerørsforsejlinger mv. 140 | B146: m³/h | C146: 15 | D146: 60 | E146: 60 | F146: 60 | G146: 0 | H146: 0 | J146: =IF(E146=0,"Variabel pris",IFERROR(((HLOOKUP(E146,'Variable priser'!$C$2:$H$4,2)+(E146-HLOOKUP(E146,'Variable priser'!$C$2:$H$4,1))*HLOOKUP(E146,'Variable priser'!$C$2:$H$4,3))/E146*(1+Genanskaffelsespriser!$D$203)),"Fejl")) -> 1765.580096 | K146: =IF(F146=0,"Variabel pris",IFERROR(((HLOOKUP(F146,'Variable priser'!$C$2:$H$4,2)+(F146-HLOOKUP(F146,'Variable priser'!$C$2:$H$4,1))*HLOOKUP(F146,'Variable priser'!$C$2:$H$4,3))/F146*(1+Genanskaffelsespriser!$D$203)),"Fejl")) -> 1765.580096 | L146: 7062.320384 | M146: 7062.320384 | N146: 1 | O146: 1
A147: Pumpe inkl. stigrør og forerørsforsejlinger mv. 141 | B147: m³/h | C147: 15 | D147: 60 | E147: 60 | F147: 60 | G147: 0 | H147: 0 | J147: =IF(E147=0,"Variabel pris",IFERROR(((HLOOKUP(E147,'Variable priser'!$C$2:$H$4,2)+(E147-HLOOKUP(E147,'Variable priser'!$C$2:$H$4,1))*HLOOKUP(E147,'Variable priser'!$C$2:$H$4,3))/E147*(1+Genanskaffelsespriser!$D$203)),"Fejl")) -> 1765.580096 | K147: =IF(F147=0,"Variabel pris",IFERROR(((HLOOKUP(F147,'Variable priser'!$C$2:$H$4,2)+(F147-HLOOKUP(F147,'Variable priser'!$C$2:$H$4,1))*HLOOKUP(F147,'Variable priser'!$C$2:$H$4,3))/F147*(1+Genanskaffelsespriser!$D$203)),"Fejl")) -> 1765.580096 | L147: 7062.320384 | M147: 7062.320384 | N147: 1 | O147: 1
A148: Pumpe inkl. stigrør og forerørsforsejlinger mv. 142 | B148: m³/h | C148: 15 | D148: 95 | E148: 95 | F148: 95 | G148: 0 | H148: 0 | J148: =IF(E148=0,"Variabel pris",IFERROR(((HLOOKUP(E148,'Variable priser'!$C$2:$H$4,2)+(E148-HLOOKUP(E148,'Variable priser'!$C$2:$H$4,1))*HLOOKUP(E148,'Variable priser'!$C$2:$H$4,3))/E148*(1+Genanskaffelsespriser!$D$203)),"Fejl")) -> 1418.206157 | K148: =IF(F148=0,"Variabel pris",IFERROR(((HLOOKUP(F148,'Variable priser'!$C$2:$H$4,2)+(F148-HLOOKUP(F148,'Variable priser'!$C$2:$H$4,1))*HLOOKUP(F148,'Variable priser'!$C$2:$H$4,3))/F148*(1+Genanskaffelsespriser!$D$203)),"Fejl")) -> 1418.206157 | L148: 8981.972328 | M148: 8981.972328 | N148: 1 | O148: 1
A149: Pumpe inkl. stigrør og forerørsforsejlinger mv. 143 | B149: m³/h | C149: 15 | D149: 60 | E149: 60 | F149: 60 | G149: 0 | H149: 0 | J149: =IF(E149=0,"Variabel pris",IFERROR(((HLOOKUP(E149,'Variable priser'!$C$2:$H$4,2)+(E149-HLOOKUP(E149,'Variable priser'!$C$2:$H$4,1))*HLOOKUP(E149,'Variable priser'!$C$2:$H$4,3))/E149*(1+Genanskaffelsespriser!$D$203)),"Fejl")) -> 1765.580096 | K149: =IF(F149=0,"Variabel pris",IFERROR(((HLOOKUP(F149,'Variable priser'!$C$2:$H$4,2)+(F149-HLOOKUP(F149,'Variable priser'!$C$2:$H$4,1))*HLOOKUP(F149,'Variable priser'!$C$2:$H$4,3))/F149*(1+Genanskaffelsespriser!$D$203)),"Fejl")) -> 1765.580096 | L149: 7062.320384 | M149: 7062.320384 | N149: 1 | O149: 1
A150: Pumpe inkl. stigrør og forerørsforsejlinger mv. 144 | B150: m³/h | C150: 15 | D150: 75 | E150: 75 | F150: 75 | G150: 0 | H150: 0 | J150: =IF(E150=0,"Variabel pris",IFERROR(((HLOOKUP(E150,'Variable priser'!$C$2:$H$4,2)+(E150-HLOOKUP(E150,'Variable priser'!$C$2:$H$4,1))*HLOOKUP(E150,'Variable priser'!$C$2:$H$4,3))/E150*(1+Genanskaffelsespriser!$D$203)),"Fejl")) -> 1577.005672 | K150: =IF(F150=0,"Variabel pris",IFERROR(((HLOOKUP(F150,'Variable priser'!$C$2:$H$4,2)+(F150-HLOOKUP(F150,'Variable priser'!$C$2:$H$4,1))*HLOOKUP(F150,'Variable priser'!$C$2:$H$4,3))/F150*(1+Genanskaffelsespriser!$D$203)),"Fejl")) -> 1577.005672 | L150: 7885.02836 | M150: 7885.02836 | N150: 1 | O150: 1
A151: Pumpe inkl. stigrør og forerørsforsejlinger mv. 145 | B151: m³/h | C151: 15 | D151: 77 | E151: 77 | F151: 77 | G151: 0 | H151: 0 | J151: =IF(E151=0,"Variabel pris",IFERROR(((HLOOKUP(E151,'Variable priser'!$C$2:$H$4,2)+(E151-HLOOKUP(E151,'Variable priser'!$C$2:$H$4,1))*HLOOKUP(E151,'Variable priser'!$C$2:$H$4,3))/E151*(1+Genanskaffelsespriser!$D$203)),"Fejl")) -> 1557.413524 | K151: =IF(F151=0,"Variabel pris",IFERROR(((HLOOKUP(F151,'Variable priser'!$C$2:$H$4,2)+(F151-HLOOKUP(F151,'Variable priser'!$C$2:$H$4,1))*HLOOKUP(F151,'Variable priser'!$C$2:$H$4,3))/F151*(1+Genanskaffelsespriser!$D$203)),"Fejl")) -> 1557.413524 | L151: 7994.722757 | M151: 7994.722757 | N151: 1 | O151: 1
A152: Pumpe inkl. stigrør og forerørsforsejlinger mv. 146 | B152: m³/h | C152: 15 | D152: 30 | E152: 30 | F152: 30 | G152: 0 | H152: 0 | J152: =IF(E152=0,"Variabel pris",IFERROR(((HLOOKUP(E152,'Variable priser'!$C$2:$H$4,2)+(E152-HLOOKUP(E152,'Variable priser'!$C$2:$H$4,1))*HLOOKUP(E152,'Variable priser'!$C$2:$H$4,3))/E152*(1+Genanskaffelsespriser!$D$203)),"Fejl")) -> 2666.751689 | K152: =IF(F152=0,"Variabel pris",IFERROR(((HLOOKUP(F152,'Variable priser'!$C$2:$H$4,2)+(F152-HLOOKUP(F152,'Variable priser'!$C$2:$H$4,1))*HLOOKUP(F152,'Variable priser'!$C$2:$H$4,3))/F152*(1+Genanskaffelsespriser!$D$203)),"Fejl")) -> 2666.751689 | L152: 5333.503378 | M152: 5333.503378 | N152: 1 | O152: 1
A153: Pumpe inkl. stigrør og forerørsforsejlinger mv. 147 | B153: m³/h | C153: 15 | D153: 27 | E153: 27 | F153: 27 | G153: 0 | H153: 0 | J153: =IF(E153=0,"Variabel pris",IFERROR(((HLOOKUP(E153,'Variable priser'!$C$2:$H$4,2)+(E153-HLOOKUP(E153,'Variable priser'!$C$2:$H$4,1))*HLOOKUP(E153,'Variable priser'!$C$2:$H$4,3))/E153*(1+Genanskaffelsespriser!$D$203)),"Fejl")) -> 2799.566777 | K153: =IF(F153=0,"Variabel pris",IFERROR(((HLOOKUP(F153,'Variable priser'!$C$2:$H$4,2)+(F153-HLOOKUP(F153,'Variable priser'!$C$2:$H$4,1))*HLOOKUP(F153,'Variable priser'!$C$2:$H$4,3))/F153*(1+Genanskaffelsespriser!$D$203)),"Fejl")) -> 2799.566777 | L153: 5039.220199 | M153: 5039.220199 | N153: 1 | O153: 1
A154: Pumpe inkl. stigrør og forerørsforsejlinger mv. 148 | B154: m³/h | C154: 15 | D154: 32 | E154: 32 | F154: 32 | G154: 0 | H154: 0 | J154: =IF(E154=0,"Variabel pris",IFERROR(((HLOOKUP(E154,'Variable priser'!$C$2:$H$4,2)+(E154-HLOOKUP(E154,'Variable priser'!$C$2:$H$4,1))*HLOOKUP(E154,'Variable priser'!$C$2:$H$4,3))/E154*(1+Genanskaffelsespriser!$D$203)),"Fejl")) -> 2556.711523 | K154: =IF(F154=0,"Variabel pris",IFERROR(((HLOOKUP(F154,'Variable priser'!$C$2:$H$4,2)+(F154-HLOOKUP(F154,'Variable priser'!$C$2:$H$4,1))*HLOOKUP(F154,'Variable priser'!$C$2:$H$4,3))/F154*(1+Genanskaffelsespriser!$D$203)),"Fejl")) -> 2556.711523 | L154: 5454.317915 | M154: 5454.317915 | N154: 1 | O154: 1
A155: Pumpe inkl. stigrør og forerørsforsejlinger mv. 149 | B155: m³/h | C155: 15 | D155: 77 | E155: 77 | F155: 77 | G155: 0 | H155: 0 | J155: =IF(E155=0,"Variabel pris",IFERROR(((HLOOKUP(E155,'Variable priser'!$C$2:$H$4,2)+(E155-HLOOKUP(E155,'Variable priser'!$C$2:$H$4,1))*HLOOKUP(E155,'Variable priser'!$C$2:$H$4,3))/E155*(1+Genanskaffelsespriser!$D$203)),"Fejl")) -> 1557.413524 | K155: =IF(F155=0,"Variabel pris",IFERROR(((HLOOKUP(F155,'Variable priser'!$C$2:$H$4,2)+(F155-HLOOKUP(F155,'Variable priser'!$C$2:$H$4,1))*HLOOKUP(F155,'Variable priser'!$C$2:$H$4,3))/F155*(1+Genanskaffelsespriser!$D$203)),"Fejl")) -> 1557.413524 | L155: 7994.722757 | M155: 7994.722757 | N155: 1 | O155: 1
A156: Pumpe inkl. stigrør og forerørsforsejlinger mv. 150 | B156: m³/h | C156: 15 | D156: 77 | E156: 77 | F156: 77 | G156: 0 | H156: 0 | J156: =IF(E156=0,"Variabel pris",IFERROR(((HLOOKUP(E156,'Variable priser'!$C$2:$H$4,2)+(E156-HLOOKUP(E156,'Variable priser'!$C$2:$H$4,1))*HLOOKUP(E156,'Variable priser'!$C$2:$H$4,3))/E156*(1+Genanskaffelsespriser!$D$203)),"Fejl")) -> 1557.413524 | K156: =IF(F156=0,"Variabel pris",IFERROR(((HLOOKUP(F156,'Variable priser'!$C$2:$H$4,2)+(F156-HLOOKUP(F156,'Variable priser'!$C$2:$H$4,1))*HLOOKUP(F156,'Variable priser'!$C$2:$H$4,3))/F156*(1+Genanskaffelsespriser!$D$203)),"Fejl")) -> 1557.413524 | L156: 7994.722757 | M156: 7994.722757 | N156: 1 | O156: 1
A157: Pumpe inkl. stigrør og forerørsforsejlinger mv. 151 | B157: m³/h | C157: 15 | D157: 77 | E157: 77 | F157: 77 | G157: 0 | H157: 0 | J157: =IF(E157=0,"Variabel pris",IFERROR(((HLOOKUP(E157,'Variable priser'!$C$2:$H$4,2)+(E157-HLOOKUP(E157,'Variable priser'!$C$2:$H$4,1))*HLOOKUP(E157,'Variable priser'!$C$2:$H$4,3))/E157*(1+Genanskaffelsespriser!$D$203)),"Fejl")) -> 1557.413524 | K157: =IF(F157=0,"Variabel pris",IFERROR(((HLOOKUP(F157,'Variable priser'!$C$2:$H$4,2)+(F157-HLOOKUP(F157,'Variable priser'!$C$2:$H$4,1))*HLOOKUP(F157,'Variable priser'!$C$2:$H$4,3))/F157*(1+Genanskaffelsespriser!$D$203)),"Fejl")) -> 1557.413524 | L157: 7994.722757 | M157: 7994.722757 | N157: 1 | O157: 1
A158: Pumpe inkl. stigrør og forerørsforsejlinger mv. 152 | B158: m³/h | C158: 15 | D158: 46 | E158: 46 | F158: 46 | G158: 0 | H158: 0 | J158: =IF(E158=0,"Variabel pris",IFERROR(((HLOOKUP(E158,'Variable priser'!$C$2:$H$4,2)+(E158-HLOOKUP(E158,'Variable priser'!$C$2:$H$4,1))*HLOOKUP(E158,'Variable priser'!$C$2:$H$4,3))/E158*(1+Genanskaffelsespriser!$D$203)),"Fejl")) -> 2052.541176 | K158: =IF(F158=0,"Variabel pris",IFERROR(((HLOOKUP(F158,'Variable priser'!$C$2:$H$4,2)+(F158-HLOOKUP(F158,'Variable priser'!$C$2:$H$4,1))*HLOOKUP(F158,'Variable priser'!$C$2:$H$4,3))/F158*(1+Genanskaffelsespriser!$D$203)),"Fejl")) -> 2052.541176 | L158: 6294.459606 | M158: 6294.459606 | N158: 1 | O158: 1
A159: Pumpe inkl. stigrør og forerørsforsejlinger mv. 153 | B159: m³/h | C159: 15 | D159: 95 | E159: 95 | F159: 95 | G159: 0 | H159: 0 | J159: =IF(E159=0,"Variabel pris",IFERROR(((HLOOKUP(E159,'Variable priser'!$C$2:$H$4,2)+(E159-HLOOKUP(E159,'Variable priser'!$C$2:$H$4,1))*HLOOKUP(E159,'Variable priser'!$C$2:$H$4,3))/E159*(1+Genanskaffelsespriser!$D$203)),"Fejl")) -> 1418.206157 | K159: =IF(F159=0,"Variabel pris",IFERROR(((HLOOKUP(F159,'Variable priser'!$C$2:$H$4,2)+(F159-HLOOKUP(F159,'Variable priser'!$C$2:$H$4,1))*HLOOKUP(F159,'Variable priser'!$C$2:$H$4,3))/F159*(1+Genanskaffelsespriser!$D$203)),"Fejl")) -> 1418.206157 | L159: 8981.972328 | M159: 8981.972328 | N159: 1 | O159: 1
A160: Pumpe inkl. stigrør og forerørsforsejlinger mv. 154 | B160: m³/h | C160: 15 | D160: 46 | E160: 46 | F160: 46 | G160: 0 | H160: 0 | J160: =IF(E160=0,"Variabel pris",IFERROR(((HLOOKUP(E160,'Variable priser'!$C$2:$H$4,2)+(E160-HLOOKUP(E160,'Variable priser'!$C$2:$H$4,1))*HLOOKUP(E160,'Variable priser'!$C$2:$H$4,3))/E160*(1+Genanskaffelsespriser!$D$203)),"Fejl")) -> 2052.541176 | K160: =IF(F160=0,"Variabel pris",IFERROR(((HLOOKUP(F160,'Variable priser'!$C$2:$H$4,2)+(F160-HLOOKUP(F160,'Variable priser'!$C$2:$H$4,1))*HLOOKUP(F160,'Variable priser'!$C$2:$H$4,3))/F160*(1+Genanskaffelsespriser!$D$203)),"Fejl")) -> 2052.541176 | L160: 6294.459606 | M160: 6294.459606 | N160: 1 | O160: 1
A161: Pumpe inkl. stigrør og forerørsforsejlinger mv. 155 | B161: m³/h | C161: 15 | D161: 46 | E161: 46 | F161: 46 | G161: 0 | H161: 0 | J161: =IF(E161=0,"Variabel pris",IFERROR(((HLOOKUP(E161,'Variable priser'!$C$2:$H$4,2)+(E161-HLOOKUP(E161,'Variable priser'!$C$2:$H$4,1))*HLOOKUP(E161,'Variable priser'!$C$2:$H$4,3))/E161*(1+Genanskaffelsespriser!$D$203)),"Fejl")) -> 2052.541176 | K161: =IF(F161=0,"Variabel pris",IFERROR(((HLOOKUP(F161,'Variable priser'!$C$2:$H$4,2)+(F161-HLOOKUP(F161,'Variable priser'!$C$2:$H$4,1))*HLOOKUP(F161,'Variable priser'!$C$2:$H$4,3))/F161*(1+Genanskaffelsespriser!$D$203)),"Fejl")) -> 2052.541176 | L161: 6294.459606 | M161: 6294.459606 | N161: 1 | O161: 1
A162: Pumpe inkl. stigrør og forerørsforsejlinger mv. 156 | B162: m³/h | C162: 15 | D162: 46 | E162: 46 | F162: 46 | G162: 0 | H162: 0 | J162: =IF(E162=0,"Variabel pris",IFERROR(((HLOOKUP(E162,'Variable priser'!$C$2:$H$4,2)+(E162-HLOOKUP(E162,'Variable priser'!$C$2:$H$4,1))*HLOOKUP(E162,'Variable priser'!$C$2:$H$4,3))/E162*(1+Genanskaffelsespriser!$D$203)),"Fejl")) -> 2052.541176 | K162: =IF(F162=0,"Variabel pris",IFERROR(((HLOOKUP(F162,'Variable priser'!$C$2:$H$4,2)+(F162-HLOOKUP(F162,'Variable priser'!$C$2:$H$4,1))*HLOOKUP(F162,'Variable priser'!$C$2:$H$4,3))/F162*(1+Genanskaffelsespriser!$D$203)),"Fejl")) -> 2052.541176 | L162: 6294.459606 | M162: 6294.459606 | N162: 1 | O162: 1
A163: Pumpe inkl. stigrør og forerørsforsejlinger mv. 157 | B163: m³/h | C163: 15 | D163: 46 | E163: 46 | F163: 46 | G163: 0 | H163: 0 | J163: =IF(E163=0,"Variabel pris",IFERROR(((HLOOKUP(E163,'Variable priser'!$C$2:$H$4,2)+(E163-HLOOKUP(E163,'Variable priser'!$C$2:$H$4,1))*HLOOKUP(E163,'Variable priser'!$C$2:$H$4,3))/E163*(1+Genanskaffelsespriser!$D$203)),"Fejl")) -> 2052.541176 | K163: =IF(F163=0,"Variabel pris",IFERROR(((HLOOKUP(F163,'Variable priser'!$C$2:$H$4,2)+(F163-HLOOKUP(F163,'Variable priser'!$C$2:$H$4,1))*HLOOKUP(F163,'Variable priser'!$C$2:$H$4,3))/F163*(1+Genanskaffelsespriser!$D$203)),"Fejl")) -> 2052.541176 | L163: 6294.459606 | M163: 6294.459606 | N163: 1 | O163: 1
A164: Pumpe inkl. stigrør og forerørsforsejlinger mv. 158 | B164: m³/h | C164: 15 | D164: 46 | E164: 46 | F164: 46 | G164: 0 | H164: 0 | J164: =IF(E164=0,"Variabel pris",IFERROR(((HLOOKUP(E164,'Variable priser'!$C$2:$H$4,2)+(E164-HLOOKUP(E164,'Variable priser'!$C$2:$H$4,1))*HLOOKUP(E164,'Variable priser'!$C$2:$H$4,3))/E164*(1+Genanskaffelsespriser!$D$203)),"Fejl")) -> 2052.541176 | K164: =IF(F164=0,"Variabel pris",IFERROR(((HLOOKUP(F164,'Variable priser'!$C$2:$H$4,2)+(F164-HLOOKUP(F164,'Variable priser'!$C$2:$H$4,1))*HLOOKUP(F164,'Variable priser'!$C$2:$H$4,3))/F164*(1+Genanskaffelsespriser!$D$203)),"Fejl")) -> 2052.541176 | L164: 6294.459606 | M164: 6294.459606 | N164: 1 | O164: 1
A165: Pumpe inkl. stigrør og forerørsforsejlinger mv. 159 | B165: m³/h | C165: 15 | D165: 46 | E165: 46 | F165: 46 | G165: 0 | H165: 0 | J165: =IF(E165=0,"Variabel pris",IFERROR(((HLOOKUP(E165,'Variable priser'!$C$2:$H$4,2)+(E165-HLOOKUP(E165,'Variable priser'!$C$2:$H$4,1))*HLOOKUP(E165,'Variable priser'!$C$2:$H$4,3))/E165*(1+Genanskaffelsespriser!$D$203)),"Fejl")) -> 2052.541176 | K165: =IF(F165=0,"Variabel pris",IFERROR(((HLOOKUP(F165,'Variable priser'!$C$2:$H$4,2)+(F165-HLOOKUP(F165,'Variable priser'!$C$2:$H$4,1))*HLOOKUP(F165,'Variable priser'!$C$2:$H$4,3))/F165*(1+Genanskaffelsespriser!$D$203)),"Fejl")) -> 2052.541176 | L165: 6294.459606 | M165: 6294.459606 | N165: 1 | O165: 1
A166: Pumpe inkl. stigrør og forerørsforsejlinger mv. 160 | B166: m³/h | C166: 15 | D166: 46 | E166: 46 | F166: 46 | G166: 0 | H166: 0 | J166: =IF(E166=0,"Variabel pris",IFERROR(((HLOOKUP(E166,'Variable priser'!$C$2:$H$4,2)+(E166-HLOOKUP(E166,'Variable priser'!$C$2:$H$4,1))*HLOOKUP(E166,'Variable priser'!$C$2:$H$4,3))/E166*(1+Genanskaffelsespriser!$D$203)),"Fejl")) -> 2052.541176 | K166: =IF(F166=0,"Variabel pris",IFERROR(((HLOOKUP(F166,'Variable priser'!$C$2:$H$4,2)+(F166-HLOOKUP(F166,'Variable priser'!$C$2:$H$4,1))*HLOOKUP(F166,'Variable priser'!$C$2:$H$4,3))/F166*(1+Genanskaffelsespriser!$D$203)),"Fejl")) -> 2052.541176 | L166: 6294.459606 | M166: 6294.459606 | N166: 1 | O166: 1
A167: Pumpe inkl. stigrør og forerørsforsejlinger mv. 161 | B167: m³/h | C167: 15 | D167: 46 | E167: 46 | F167: 46 | G167: 0 | H167: 0 | J167: =IF(E167=0,"Variabel pris",IFERROR(((HLOOKUP(E167,'Variable priser'!$C$2:$H$4,2)+(E167-HLOOKUP(E167,'Variable priser'!$C$2:$H$4,1))*HLOOKUP(E167,'Variable priser'!$C$2:$H$4,3))/E167*(1+Genanskaffelsespriser!$D$203)),"Fejl")) -> 2052.541176 | K167: =IF(F167=0,"Variabel pris",IFERROR(((HLOOKUP(F167,'Variable priser'!$C$2:$H$4,2)+(F167-HLOOKUP(F167,'Variable priser'!$C$2:$H$4,1))*HLOOKUP(F167,'Variable priser'!$C$2:$H$4,3))/F167*(1+Genanskaffelsespriser!$D$203)),"Fejl")) -> 2052.541176 | L167: 6294.459606 | M167: 6294.459606 | N167: 1 | O167: 1
A168: Pumpe inkl. stigrør og forerørsforsejlinger mv. 162 | B168: m³/h | C168: 15 | D168: 30 | E168: 30 | F168: 30 | G168: 0 | H168: 0 | J168: =IF(E168=0,"Variabel pris",IFERROR(((HLOOKUP(E168,'Variable priser'!$C$2:$H$4,2)+(E168-HLOOKUP(E168,'Variable priser'!$C$2:$H$4,1))*HLOOKUP(E168,'Variable priser'!$C$2:$H$4,3))/E168*(1+Genanskaffelsespriser!$D$203)),"Fejl")) -> 2666.751689 | K168: =IF(F168=0,"Variabel pris",IFERROR(((HLOOKUP(F168,'Variable priser'!$C$2:$H$4,2)+(F168-HLOOKUP(F168,'Variable priser'!$C$2:$H$4,1))*HLOOKUP(F168,'Variable priser'!$C$2:$H$4,3))/F168*(1+Genanskaffelsespriser!$D$203)),"Fejl")) -> 2666.751689 | L168: 5333.503378 | M168: 5333.503378 | N168: 1 | O168: 1
A169: Pumpe inkl. stigrør og forerørsforsejlinger mv. 163 | B169: m³/h | C169: 15 | D169: 30 | E169: 30 | F169: 30 | G169: 0 | H169: 0 | J169: =IF(E169=0,"Variabel pris",IFERROR(((HLOOKUP(E169,'Variable priser'!$C$2:$H$4,2)+(E169-HLOOKUP(E169,'Variable priser'!$C$2:$H$4,1))*HLOOKUP(E169,'Variable priser'!$C$2:$H$4,3))/E169*(1+Genanskaffelsespriser!$D$203)),"Fejl")) -> 2666.751689 | K169: =IF(F169=0,"Variabel pris",IFERROR(((HLOOKUP(F169,'Variable priser'!$C$2:$H$4,2)+(F169-HLOOKUP(F169,'Variable priser'!$C$2:$H$4,1))*HLOOKUP(F169,'Variable priser'!$C$2:$H$4,3))/F169*(1+Genanskaffelsespriser!$D$203)),"Fejl")) -> 2666.751689 | L169: 5333.503378 | M169: 5333.503378 | N169: 1 | O169: 1
A170: Pumpe inkl. stigrør og forerørsforsejlinger mv. 164 | B170: m³/h | C170: 15 | D170: 30 | E170: 30 | F170: 30 | G170: 0 | H170: 0 | J170: =IF(E170=0,"Variabel pris",IFERROR(((HLOOKUP(E170,'Variable priser'!$C$2:$H$4,2)+(E170-HLOOKUP(E170,'Variable priser'!$C$2:$H$4,1))*HLOOKUP(E170,'Variable priser'!$C$2:$H$4,3))/E170*(1+Genanskaffelsespriser!$D$203)),"Fejl")) -> 2666.751689 | K170: =IF(F170=0,"Variabel pris",IFERROR(((HLOOKUP(F170,'Variable priser'!$C$2:$H$4,2)+(F170-HLOOKUP(F170,'Variable priser'!$C$2:$H$4,1))*HLOOKUP(F170,'Variable priser'!$C$2:$H$4,3))/F170*(1+Genanskaffelsespriser!$D$203)),"Fejl")) -> 2666.751689 | L170: 5333.503378 | M170: 5333.503378 | N170: 1 | O170: 1
A171: Pumpe inkl. stigrør og forerørsforsejlinger mv. 165 | B171: m³/h | C171: 15 | D171: 30 | E171: 30 | F171: 30 | G171: 0 | H171: 0 | J171: =IF(E171=0,"Variabel pris",IFERROR(((HLOOKUP(E171,'Variable priser'!$C$2:$H$4,2)+(E171-HLOOKUP(E171,'Variable priser'!$C$2:$H$4,1))*HLOOKUP(E171,'Variable priser'!$C$2:$H$4,3))/E171*(1+Genanskaffelsespriser!$D$203)),"Fejl")) -> 2666.751689 | K171: =IF(F171=0,"Variabel pris",IFERROR(((HLOOKUP(F171,'Variable priser'!$C$2:$H$4,2)+(F171-HLOOKUP(F171,'Variable priser'!$C$2:$H$4,1))*HLOOKUP(F171,'Variable priser'!$C$2:$H$4,3))/F171*(1+Genanskaffelsespriser!$D$203)),"Fejl")) -> 2666.751689 | L171: 5333.503378 | M171: 5333.503378 | N171: 1 | O171: 1
A172: Pumpe inkl. stigrør og forerørsforsejlinger mv. 166 | B172: m³/h | C172: 15 | D172: 8 | E172: 8 | F172: 8 | G172: 0 | H172: 0 | J172: =IF(E172=0,"Variabel pris",IFERROR(((HLOOKUP(E172,'Variable priser'!$C$2:$H$4,2)+(E172-HLOOKUP(E172,'Variable priser'!$C$2:$H$4,1))*HLOOKUP(E172,'Variable priser'!$C$2:$H$4,3))/E172*(1+Genanskaffelsespriser!$D$203)),"Fejl")) -> 4578.075425 | K172: =IF(F172=0,"Variabel pris",IFERROR(((HLOOKUP(F172,'Variable priser'!$C$2:$H$4,2)+(F172-HLOOKUP(F172,'Variable priser'!$C$2:$H$4,1))*HLOOKUP(F172,'Variable priser'!$C$2:$H$4,3))/F172*(1+Genanskaffelsespriser!$D$203)),"Fejl")) -> 4578.075425 | L172: 2441.640227 | M172: 2441.640227 | N172: 1 | O172: 1
A173: Pumpe inkl. stigrør og forerørsforsejlinger mv. 167 | B173: m³/h | C173: 15 | D173: 8 | E173: 8 | F173: 8 | G173: 0 | H173: 0 | J173: =IF(E173=0,"Variabel pris",IFERROR(((HLOOKUP(E173,'Variable priser'!$C$2:$H$4,2)+(E173-HLOOKUP(E173,'Variable priser'!$C$2:$H$4,1))*HLOOKUP(E173,'Variable priser'!$C$2:$H$4,3))/E173*(1+Genanskaffelsespriser!$D$203)),"Fejl")) -> 4578.075425 | K173: =IF(F173=0,"Variabel pris",IFERROR(((HLOOKUP(F173,'Variable priser'!$C$2:$H$4,2)+(F173-HLOOKUP(F173,'Variable priser'!$C$2:$H$4,1))*HLOOKUP(F173,'Variable priser'!$C$2:$H$4,3))/F173*(1+Genanskaffelsespriser!$D$203)),"Fejl")) -> 4578.075425 | L173: 2441.640227 | M173: 2441.640227 | N173: 1 | O173: 1
A174: Pumpe inkl. stigrør og forerørsforsejlinger mv. 168 | B174: m³/h | C174: 15 | D174: 8 | E174: 8 | F174: 8 | G174: 0 | H174: 0 | J174: =IF(E174=0,"Variabel pris",IFERROR(((HLOOKUP(E174,'Variable priser'!$C$2:$H$4,2)+(E174-HLOOKUP(E174,'Variable priser'!$C$2:$H$4,1))*HLOOKUP(E174,'Variable priser'!$C$2:$H$4,3))/E174*(1+Genanskaffelsespriser!$D$203)),"Fejl")) -> 4578.075425 | K174: =IF(F174=0,"Variabel pris",IFERROR(((HLOOKUP(F174,'Variable priser'!$C$2:$H$4,2)+(F174-HLOOKUP(F174,'Variable priser'!$C$2:$H$4,1))*HLOOKUP(F174,'Variable priser'!$C$2:$H$4,3))/F174*(1+Genanskaffelsespriser!$D$203)),"Fejl")) -> 4578.075425 | L174: 2441.640227 | M174: 2441.640227 | N174: 1 | O174: 1
A175: Pumpe inkl. stigrør og forerørsforsejlinger mv. 169 | B175: m³/h | C175: 15 | D175: 8 | E175: 8 | F175: 8 | G175: 0 | H175: 0 | J175: =IF(E175=0,"Variabel pris",IFERROR(((HLOOKUP(E175,'Variable priser'!$C$2:$H$4,2)+(E175-HLOOKUP(E175,'Variable priser'!$C$2:$H$4,1))*HLOOKUP(E175,'Variable priser'!$C$2:$H$4,3))/E175*(1+Genanskaffelsespriser!$D$203)),"Fejl")) -> 4578.075425 | K175: =IF(F175=0,"Variabel pris",IFERROR(((HLOOKUP(F175,'Variable priser'!$C$2:$H$4,2)+(F175-HLOOKUP(F175,'Variable priser'!$C$2:$H$4,1))*HLOOKUP(F175,'Variable priser'!$C$2:$H$4,3))/F175*(1+Genanskaffelsespriser!$D$203)),"Fejl")) -> 4578.075425 | L175: 2441.640227 | M175: 2441.640227 | N175: 1 | O175: 1
A176: Pumpe inkl. stigrør og forerørsforsejlinger mv. 170 | B176: m³/h | C176: 15 | D176: 17 | E176: 17 | F176: 17 | G176: 0 | H176: 0 | J176: =IF(E176=0,"Variabel pris",IFERROR(((HLOOKUP(E176,'Variable priser'!$C$2:$H$4,2)+(E176-HLOOKUP(E176,'Variable priser'!$C$2:$H$4,1))*HLOOKUP(E176,'Variable priser'!$C$2:$H$4,3))/E176*(1+Genanskaffelsespriser!$D$203)),"Fejl")) -> 3496.241206 | K176: =IF(F176=0,"Variabel pris",IFERROR(((HLOOKUP(F176,'Variable priser'!$C$2:$H$4,2)+(F176-HLOOKUP(F176,'Variable priser'!$C$2:$H$4,1))*HLOOKUP(F176,'Variable priser'!$C$2:$H$4,3))/F176*(1+Genanskaffelsespriser!$D$203)),"Fejl")) -> 3496.241206 | L176: 3962.4067 | M176: 3962.4067 | N176: 1 | O176: 1
A177: Pumpe inkl. stigrør og forerørsforsejlinger mv. 171 | B177: m³/h | C177: 15 | D177: 9 | E177: 9 | F177: 9 | G177: 0 | H177: 0 | J177: =IF(E177=0,"Variabel pris",IFERROR(((HLOOKUP(E177,'Variable priser'!$C$2:$H$4,2)+(E177-HLOOKUP(E177,'Variable priser'!$C$2:$H$4,1))*HLOOKUP(E177,'Variable priser'!$C$2:$H$4,3))/E177*(1+Genanskaffelsespriser!$D$203)),"Fejl")) -> 4578.075425 | K177: =IF(F177=0,"Variabel pris",IFERROR(((HLOOKUP(F177,'Variable priser'!$C$2:$H$4,2)+(F177-HLOOKUP(F177,'Variable priser'!$C$2:$H$4,1))*HLOOKUP(F177,'Variable priser'!$C$2:$H$4,3))/F177*(1+Genanskaffelsespriser!$D$203)),"Fejl")) -> 4578.075425 | L177: 2746.845255 | M177: 2746.845255 | N177: 1 | O177: 1
A178: Pumpe inkl. stigrør og forerørsforsejlinger mv. 172 | B178: m³/h | C178: 15 | D178: 9 | E178: 9 | F178: 9 | G178: 0 | H178: 0 | J178: =IF(E178=0,"Variabel pris",IFERROR(((HLOOKUP(E178,'Variable priser'!$C$2:$H$4,2)+(E178-HLOOKUP(E178,'Variable priser'!$C$2:$H$4,1))*HLOOKUP(E178,'Variable priser'!$C$2:$H$4,3))/E178*(1+Genanskaffelsespriser!$D$203)),"Fejl")) -> 4578.075425 | K178: =IF(F178=0,"Variabel pris",IFERROR(((HLOOKUP(F178,'Variable priser'!$C$2:$H$4,2)+(F178-HLOOKUP(F178,'Variable priser'!$C$2:$H$4,1))*HLOOKUP(F178,'Variable priser'!$C$2:$H$4,3))/F178*(1+Genanskaffelsespriser!$D$203)),"Fejl")) -> 4578.075425 | L178: 2746.845255 | M178: 2746.845255 | N178: 1 | O178: 1
A179: Pumpe inkl. stigrør og forerørsforsejlinger mv. 173 | B179: m³/h | C179: 15 | D179: 17 | E179: 17 | F179: 17 | G179: 0 | H179: 0 | J179: =IF(E179=0,"Variabel pris",IFERROR(((HLOOKUP(E179,'Variable priser'!$C$2:$H$4,2)+(E179-HLOOKUP(E179,'Variable priser'!$C$2:$H$4,1))*HLOOKUP(E179,'Variable priser'!$C$2:$H$4,3))/E179*(1+Genanskaffelsespriser!$D$203)),"Fejl")) -> 3496.241206 | K179: =IF(F179=0,"Variabel pris",IFERROR(((HLOOKUP(F179,'Variable priser'!$C$2:$H$4,2)+(F179-HLOOKUP(F179,'Variable priser'!$C$2:$H$4,1))*HLOOKUP(F179,'Variable priser'!$C$2:$H$4,3))/F179*(1+Genanskaffelsespriser!$D$203)),"Fejl")) -> 3496.241206 | L179: 3962.4067 | M179: 3962.4067 | N179: 1 | O179: 1
A180: Pumpe inkl. stigrør og forerørsforsejlinger mv. 174 | B180: m³/h | C180: 15 | D180: 125 | E180: 125 | F180: 125 | G180: 0 | H180: 0 | J180: =IF(E180=0,"Variabel pris",IFERROR(((HLOOKUP(E180,'Variable priser'!$C$2:$H$4,2)+(E180-HLOOKUP(E180,'Variable priser'!$C$2:$H$4,1))*HLOOKUP(E180,'Variable priser'!$C$2:$H$4,3))/E180*(1+Genanskaffelsespriser!$D$203)),"Fejl")) -> 1275.286594 | K180: =IF(F180=0,"Variabel pris",IFERROR(((HLOOKUP(F180,'Variable priser'!$C$2:$H$4,2)+(F180-HLOOKUP(F180,'Variable priser'!$C$2:$H$4,1))*HLOOKUP(F180,'Variable priser'!$C$2:$H$4,3))/F180*(1+Genanskaffelsespriser!$D$203)),"Fejl")) -> 1275.286594 | L180: 10627.38828 | M180: 10627.38828 | N180: 1 | O180: 1
A181: Pumpe inkl. stigrør og forerørsforsejlinger mv. 175 | B181: m³/h | C181: 15 | D181: 125 | E181: 125 | F181: 125 | G181: 0 | H181: 0 | J181: =IF(E181=0,"Variabel pris",IFERROR(((HLOOKUP(E181,'Variable priser'!$C$2:$H$4,2)+(E181-HLOOKUP(E181,'Variable priser'!$C$2:$H$4,1))*HLOOKUP(E181,'Variable priser'!$C$2:$H$4,3))/E181*(1+Genanskaffelsespriser!$D$203)),"Fejl")) -> 1275.286594 | K181: =IF(F181=0,"Variabel pris",IFERROR(((HLOOKUP(F181,'Variable priser'!$C$2:$H$4,2)+(F181-HLOOKUP(F181,'Variable priser'!$C$2:$H$4,1))*HLOOKUP(F181,'Variable priser'!$C$2:$H$4,3))/F181*(1+Genanskaffelsespriser!$D$203)),"Fejl")) -> 1275.286594 | L181: 10627.38828 | M181: 10627.38828 | N181: 1 | O181: 1
A182: Pumpe inkl. stigrør og forerørsforsejlinger mv. 176 | B182: m³/h | C182: 15 | D182: 70 | E182: 70 | F182: 70 | G182: 0 | H182: 0 | J182: =IF(E182=0,"Variabel pris",IFERROR(((HLOOKUP(E182,'Variable priser'!$C$2:$H$4,2)+(E182-HLOOKUP(E182,'Variable priser'!$C$2:$H$4,1))*HLOOKUP(E182,'Variable priser'!$C$2:$H$4,3))/E182*(1+Genanskaffelsespriser!$D$203)),"Fejl")) -> 1630.884079 | K182: =IF(F182=0,"Variabel pris",IFERROR(((HLOOKUP(F182,'Variable priser'!$C$2:$H$4,2)+(F182-HLOOKUP(F182,'Variable priser'!$C$2:$H$4,1))*HLOOKUP(F182,'Variable priser'!$C$2:$H$4,3))/F182*(1+Genanskaffelsespriser!$D$203)),"Fejl")) -> 1630.884079 | L182: 7610.792368 | M182: 7610.792368 | N182: 1 | O182: 1
A183: Pumpe inkl. stigrør og forerørsforsejlinger mv. 177 | B183: m³/h | C183: 15 | D183: 125 | E183: 125 | F183: 125 | G183: 0 | H183: 0 | J183: =IF(E183=0,"Variabel pris",IFERROR(((HLOOKUP(E183,'Variable priser'!$C$2:$H$4,2)+(E183-HLOOKUP(E183,'Variable priser'!$C$2:$H$4,1))*HLOOKUP(E183,'Variable priser'!$C$2:$H$4,3))/E183*(1+Genanskaffelsespriser!$D$203)),"Fejl")) -> 1275.286594 | K183: =IF(F183=0,"Variabel pris",IFERROR(((HLOOKUP(F183,'Variable priser'!$C$2:$H$4,2)+(F183-HLOOKUP(F183,'Variable priser'!$C$2:$H$4,1))*HLOOKUP(F183,'Variable priser'!$C$2:$H$4,3))/F183*(1+Genanskaffelsespriser!$D$203)),"Fejl")) -> 1275.286594 | L183: 10627.38828 | M183: 10627.38828 | N183: 1 | O183: 1
A184: Pumpe inkl. stigrør og forerørsforsejlinger mv. 178 | B184: m³/h | C184: 15 | D184: 125 | E184: 125 | F184: 125 | G184: 0 | H184: 0 | J184: =IF(E184=0,"Variabel pris",IFERROR(((HLOOKUP(E184,'Variable priser'!$C$2:$H$4,2)+(E184-HLOOKUP(E184,'Variable priser'!$C$2:$H$4,1))*HLOOKUP(E184,'Variable priser'!$C$2:$H$4,3))/E184*(1+Genanskaffelsespriser!$D$203)),"Fejl")) -> 1275.286594 | K184: =IF(F184=0,"Variabel pris",IFERROR(((HLOOKUP(F184,'Variable priser'!$C$2:$H$4,2)+(F184-HLOOKUP(F184,'Variable priser'!$C$2:$H$4,1))*HLOOKUP(F184,'Variable priser'!$C$2:$H$4,3))/F184*(1+Genanskaffelsespriser!$D$203)),"Fejl")) -> 1275.286594 | L184: 10627.38828 | M184: 10627.38828 | N184: 1 | O184: 1
A185: Pumpe inkl. stigrør og forerørsforsejlinger mv. 179 | B185: m³/h | C185: 15 | D185: 125 | E185: 125 | F185: 125 | G185: 0 | H185: 0 | J185: =IF(E185=0,"Variabel pris",IFERROR(((HLOOKUP(E185,'Variable priser'!$C$2:$H$4,2)+(E185-HLOOKUP(E185,'Variable priser'!$C$2:$H$4,1))*HLOOKUP(E185,'Variable priser'!$C$2:$H$4,3))/E185*(1+Genanskaffelsespriser!$D$203)),"Fejl")) -> 1275.286594 | K185: =IF(F185=0,"Variabel pris",IFERROR(((HLOOKUP(F185,'Variable priser'!$C$2:$H$4,2)+(F185-HLOOKUP(F185,'Variable priser'!$C$2:$H$4,1))*HLOOKUP(F185,'Variable priser'!$C$2:$H$4,3))/F185*(1+Genanskaffelsespriser!$D$203)),"Fejl")) -> 1275.286594 | L185: 10627.38828 | M185: 10627.38828 | N185: 1 | O185: 1
A186: Pumpe inkl. stigrør og forerørsforsejlinger mv. 180 | B186: m³/h | C186: 15 | D186: 125 | E186: 125 | F186: 125 | G186: 0 | H186: 0 | J186: =IF(E186=0,"Variabel pris",IFERROR(((HLOOKUP(E186,'Variable priser'!$C$2:$H$4,2)+(E186-HLOOKUP(E186,'Variable priser'!$C$2:$H$4,1))*HLOOKUP(E186,'Variable priser'!$C$2:$H$4,3))/E186*(1+Genanskaffelsespriser!$D$203)),"Fejl")) -> 1275.286594 | K186: =IF(F186=0,"Variabel pris",IFERROR(((HLOOKUP(F186,'Variable priser'!$C$2:$H$4,2)+(F186-HLOOKUP(F186,'Variable priser'!$C$2:$H$4,1))*HLOOKUP(F186,'Variable priser'!$C$2:$H$4,3))/F186*(1+Genanskaffelsespriser!$D$203)),"Fejl")) -> 1275.286594 | L186: 10627.38828 | M186: 10627.38828 | N186: 1 | O186: 1
A187: Pumpe inkl. stigrør og forerørsforsejlinger mv. 181 | B187: m³/h | C187: 15 | D187: 125 | E187: 125 | F187: 125 | G187: 0 | H187: 0 | J187: =IF(E187=0,"Variabel pris",IFERROR(((HLOOKUP(E187,'Variable priser'!$C$2:$H$4,2)+(E187-HLOOKUP(E187,'Variable priser'!$C$2:$H$4,1))*HLOOKUP(E187,'Variable priser'!$C$2:$H$4,3))/E187*(1+Genanskaffelsespriser!$D$203)),"Fejl")) -> 1275.286594 | K187: =IF(F187=0,"Variabel pris",IFERROR(((HLOOKUP(F187,'Variable priser'!$C$2:$H$4,2)+(F187-HLOOKUP(F187,'Variable priser'!$C$2:$H$4,1))*HLOOKUP(F187,'Variable priser'!$C$2:$H$4,3))/F187*(1+Genanskaffelsespriser!$D$203)),"Fejl")) -> 1275.286594 | L187: 10627.38828 | M187: 10627.38828 | N187: 1 | O187: 1
A188: Pumpe inkl. stigrør og forerørsforsejlinger mv. 182 | B188: m³/h | C188: 15 | D188: 30 | E188: 30 | F188: 30 | G188: 0 | H188: 0 | J188: =IF(E188=0,"Variabel pris",IFERROR(((HLOOKUP(E188,'Variable priser'!$C$2:$H$4,2)+(E188-HLOOKUP(E188,'Variable priser'!$C$2:$H$4,1))*HLOOKUP(E188,'Variable priser'!$C$2:$H$4,3))/E188*(1+Genanskaffelsespriser!$D$203)),"Fejl")) -> 2666.751689 | K188: =IF(F188=0,"Variabel pris",IFERROR(((HLOOKUP(F188,'Variable priser'!$C$2:$H$4,2)+(F188-HLOOKUP(F188,'Variable priser'!$C$2:$H$4,1))*HLOOKUP(F188,'Variable priser'!$C$2:$H$4,3))/F188*(1+Genanskaffelsespriser!$D$203)),"Fejl")) -> 2666.751689 | L188: 5333.503378 | M188: 5333.503378 | N188: 1 | O188: 1
A189: Pumpe inkl. stigrør og forerørsforsejlinger mv. 183 | B189: m³/h | C189: 15 | D189: 30 | E189: 30 | F189: 30 | G189: 0 | H189: 0 | J189: =IF(E189=0,"Variabel pris",IFERROR(((HLOOKUP(E189,'Variable priser'!$C$2:$H$4,2)+(E189-HLOOKUP(E189,'Variable priser'!$C$2:$H$4,1))*HLOOKUP(E189,'Variable priser'!$C$2:$H$4,3))/E189*(1+Genanskaffelsespriser!$D$203)),"Fejl")) -> 2666.751689 | K189: =IF(F189=0,"Variabel pris",IFERROR(((HLOOKUP(F189,'Variable priser'!$C$2:$H$4,2)+(F189-HLOOKUP(F189,'Variable priser'!$C$2:$H$4,1))*HLOOKUP(F189,'Variable priser'!$C$2:$H$4,3))/F189*(1+Genanskaffelsespriser!$D$203)),"Fejl")) -> 2666.751689 | L189: 5333.503378 | M189: 5333.503378 | N189: 1 | O189: 1
A190: Pumpe inkl. stigrør og forerørsforsejlinger mv. 184 | B190: m³/h | C190: 15 | D190: 30 | E190: 30 | F190: 30 | G190: 0 | H190: 0 | J190: =IF(E190=0,"Variabel pris",IFERROR(((HLOOKUP(E190,'Variable priser'!$C$2:$H$4,2)+(E190-HLOOKUP(E190,'Variable priser'!$C$2:$H$4,1))*HLOOKUP(E190,'Variable priser'!$C$2:$H$4,3))/E190*(1+Genanskaffelsespriser!$D$203)),"Fejl")) -> 2666.751689 | K190: =IF(F190=0,"Variabel pris",IFERROR(((HLOOKUP(F190,'Variable priser'!$C$2:$H$4,2)+(F190-HLOOKUP(F190,'Variable priser'!$C$2:$H$4,1))*HLOOKUP(F190,'Variable priser'!$C$2:$H$4,3))/F190*(1+Genanskaffelsespriser!$D$203)),"Fejl")) -> 2666.751689 | L190: 5333.503378 | M190: 5333.503378 | N190: 1 | O190: 1
A191: Pumpe inkl. stigrør og forerørsforsejlinger mv. 185 | B191: m³/h | C191: 15 | D191: 30 | E191: 30 | F191: 30 | G191: 0 | H191: 0 | J191: =IF(E191=0,"Variabel pris",IFERROR(((HLOOKUP(E191,'Variable priser'!$C$2:$H$4,2)+(E191-HLOOKUP(E191,'Variable priser'!$C$2:$H$4,1))*HLOOKUP(E191,'Variable priser'!$C$2:$H$4,3))/E191*(1+Genanskaffelsespriser!$D$203)),"Fejl")) -> 2666.751689 | K191: =IF(F191=0,"Variabel pris",IFERROR(((HLOOKUP(F191,'Variable priser'!$C$2:$H$4,2)+(F191-HLOOKUP(F191,'Variable priser'!$C$2:$H$4,1))*HLOOKUP(F191,'Variable priser'!$C$2:$H$4,3))/F191*(1+Genanskaffelsespriser!$D$203)),"Fejl")) -> 2666.751689 | L191: 5333.503378 | M191: 5333.503378 | N191: 1 | O191: 1
A192: Pumpe inkl. stigrør og forerørsforsejlinger mv. 186 | B192: m³/h | C192: 15 | D192: 30 | E192: 30 | F192: 30 | G192: 0 | H192: 0 | J192: =IF(E192=0,"Variabel pris",IFERROR(((HLOOKUP(E192,'Variable priser'!$C$2:$H$4,2)+(E192-HLOOKUP(E192,'Variable priser'!$C$2:$H$4,1))*HLOOKUP(E192,'Variable priser'!$C$2:$H$4,3))/E192*(1+Genanskaffelsespriser!$D$203)),"Fejl")) -> 2666.751689 | K192: =IF(F192=0,"Variabel pris",IFERROR(((HLOOKUP(F192,'Variable priser'!$C$2:$H$4,2)+(F192-HLOOKUP(F192,'Variable priser'!$C$2:$H$4,1))*HLOOKUP(F192,'Variable priser'!$C$2:$H$4,3))/F192*(1+Genanskaffelsespriser!$D$203)),"Fejl")) -> 2666.751689 | L192: 5333.503378 | M192: 5333.503378 | N192: 1 | O192: 1
A193: Pumpe inkl. stigrør og forerørsforsejlinger mv. 187 | B193: m³/h | C193: 15 | D193: 30 | E193: 30 | F193: 30 | G193: 0 | H193: 0 | J193: =IF(E193=0,"Variabel pris",IFERROR(((HLOOKUP(E193,'Variable priser'!$C$2:$H$4,2)+(E193-HLOOKUP(E193,'Variable priser'!$C$2:$H$4,1))*HLOOKUP(E193,'Variable priser'!$C$2:$H$4,3))/E193*(1+Genanskaffelsespriser!$D$203)),"Fejl")) -> 2666.751689 | K193: =IF(F193=0,"Variabel pris",IFERROR(((HLOOKUP(F193,'Variable priser'!$C$2:$H$4,2)+(F193-HLOOKUP(F193,'Variable priser'!$C$2:$H$4,1))*HLOOKUP(F193,'Variable priser'!$C$2:$H$4,3))/F193*(1+Genanskaffelsespriser!$D$203)),"Fejl")) -> 2666.751689 | L193: 5333.503378 | M193: 5333.503378 | N193: 1 | O193: 1
A194: Pumpe inkl. stigrør og forerørsforsejlinger mv. 188 | B194: m³/h | C194: 15 | D194: 30 | E194: 30 | F194: 30 | G194: 0 | H194: 0 | J194: =IF(E194=0,"Variabel pris",IFERROR(((HLOOKUP(E194,'Variable priser'!$C$2:$H$4,2)+(E194-HLOOKUP(E194,'Variable priser'!$C$2:$H$4,1))*HLOOKUP(E194,'Variable priser'!$C$2:$H$4,3))/E194*(1+Genanskaffelsespriser!$D$203)),"Fejl")) -> 2666.751689 | K194: =IF(F194=0,"Variabel pris",IFERROR(((HLOOKUP(F194,'Variable priser'!$C$2:$H$4,2)+(F194-HLOOKUP(F194,'Variable priser'!$C$2:$H$4,1))*HLOOKUP(F194,'Variable priser'!$C$2:$H$4,3))/F194*(1+Genanskaffelsespriser!$D$203)),"Fejl")) -> 2666.751689 | L194: 5333.503378 | M194: 5333.503378 | N194: 1 | O194: 1
A195: Pumpe inkl. stigrør og forerørsforsejlinger mv. 189 | B195: m³/h | C195: 15 | J195: =IF(E195=0,"Variabel pris",IFERROR(((HLOOKUP(E195,'Variable priser'!$C$2:$H$4,2)+(E195-HLOOKUP(E195,'Variable priser'!$C$2:$H$4,1))*HLOOKUP(E195,'Variable priser'!$C$2:$H$4,3))/E195*(1+Genanskaffelsespriser!$D$203)),"Fejl")) -> Variabel pris | K195: =IF(F195=0,"Variabel pris",IFERROR(((HLOOKUP(F195,'Variable priser'!$C$2:$H$4,2)+(F195-HLOOKUP(F195,'Variable priser'!$C$2:$H$4,1))*HLOOKUP(F195,'Variable priser'!$C$2:$H$4,3))/F195*(1+Genanskaffelsespriser!$D$203)),"Fejl")) -> Variabel pris | N195: 1 | O195: 1
A196: Pumpe inkl. stigrør og forerørsforsejlinger mv. 190 | B196: m³/h | C196: 15 | J196: =IF(E196=0,"Variabel pris",IFERROR(((HLOOKUP(E196,'Variable priser'!$C$2:$H$4,2)+(E196-HLOOKUP(E196,'Variable priser'!$C$2:$H$4,1))*HLOOKUP(E196,'Variable priser'!$C$2:$H$4,3))/E196*(1+Genanskaffelsespriser!$D$203)),"Fejl")) -> Variabel pris | K196: =IF(F196=0,"Variabel pris",IFERROR(((HLOOKUP(F196,'Variable priser'!$C$2:$H$4,2)+(F196-HLOOKUP(F196,'Variable priser'!$C$2:$H$4,1))*HLOOKUP(F196,'Variable priser'!$C$2:$H$4,3))/F196*(1+Genanskaffelsespriser!$D$203)),"Fejl")) -> Variabel pris | N196: 1 | O196: 1
A197: Pumpe inkl. stigrør og forerørsforsejlinger mv. 191 | B197: m³/h | C197: 15 | J197: =IF(E197=0,"Variabel pris",IFERROR(((HLOOKUP(E197,'Variable priser'!$C$2:$H$4,2)+(E197-HLOOKUP(E197,'Variable priser'!$C$2:$H$4,1))*HLOOKUP(E197,'Variable priser'!$C$2:$H$4,3))/E197*(1+Genanskaffelsespriser!$D$203)),"Fejl")) -> Variabel pris | K197: =IF(F197=0,"Variabel pris",IFERROR(((HLOOKUP(F197,'Variable priser'!$C$2:$H$4,2)+(F197-HLOOKUP(F197,'Variable priser'!$C$2:$H$4,1))*HLOOKUP(F197,'Variable priser'!$C$2:$H$4,3))/F197*(1+Genanskaffelsespriser!$D$203)),"Fejl")) -> Variabel pris | N197: 1 | O197: 1
A198: Pumpe inkl. stigrør og forerørsforsejlinger mv. 192 | B198: m³/h | C198: 15 | J198: =IF(E198=0,"Variabel pris",IFERROR(((HLOOKUP(E198,'Variable priser'!$C$2:$H$4,2)+(E198-HLOOKUP(E198,'Variable priser'!$C$2:$H$4,1))*HLOOKUP(E198,'Variable priser'!$C$2:$H$4,3))/E198*(1+Genanskaffelsespriser!$D$203)),"Fejl")) -> Variabel pris | K198: =IF(F198=0,"Variabel pris",IFERROR(((HLOOKUP(F198,'Variable priser'!$C$2:$H$4,2)+(F198-HLOOKUP(F198,'Variable priser'!$C$2:$H$4,1))*HLOOKUP(F198,'Variable priser'!$C$2:$H$4,3))/F198*(1+Genanskaffelsespriser!$D$203)),"Fejl")) -> Variabel pris | N198: 1 | O198: 1
A199: Pumpe inkl. stigrør og forerørsforsejlinger mv. 193 | B199: m³/h | C199: 15 | J199: =IF(E199=0,"Variabel pris",IFERROR(((HLOOKUP(E199,'Variable priser'!$C$2:$H$4,2)+(E199-HLOOKUP(E199,'Variable priser'!$C$2:$H$4,1))*HLOOKUP(E199,'Variable priser'!$C$2:$H$4,3))/E199*(1+Genanskaffelsespriser!$D$203)),"Fejl")) -> Variabel pris | K199: =IF(F199=0,"Variabel pris",IFERROR(((HLOOKUP(F199,'Variable priser'!$C$2:$H$4,2)+(F199-HLOOKUP(F199,'Variable priser'!$C$2:$H$4,1))*HLOOKUP(F199,'Variable priser'!$C$2:$H$4,3))/F199*(1+Genanskaffelsespriser!$D$203)),"Fejl")) -> Variabel pris | N199: 1 | O199: 1
A200: Pumpe inkl. stigrør og forerørsforsejlinger mv. 194 | B200: m³/h | C200: 15 | J200: =IF(E200=0,"Variabel pris",IFERROR(((HLOOKUP(E200,'Variable priser'!$C$2:$H$4,2)+(E200-HLOOKUP(E200,'Variable priser'!$C$2:$H$4,1))*HLOOKUP(E200,'Variable priser'!$C$2:$H$4,3))/E200*(1+Genanskaffelsespriser!$D$203)),"Fejl")) -> Variabel pris | K200: =IF(F200=0,"Variabel pris",IFERROR(((HLOOKUP(F200,'Variable priser'!$C$2:$H$4,2)+(F200-HLOOKUP(F200,'Variable priser'!$C$2:$H$4,1))*HLOOKUP(F200,'Variable priser'!$C$2:$H$4,3))/F200*(1+Genanskaffelsespriser!$D$203)),"Fejl")) -> Variabel pris | N200: 1 | O200: 1
... 397 more rows

Sheet Distributionsanlæg
A1: Distributionsanlæg | B1: Enhed | C1: Standard-levetid | D1: Samlet mængde per 31/12-2023 | E1: Samlet mængde per 31/12-2024 | F1: Samlet mængde per 31/12-2025 | G1: Afvigelse 2023-2024 | H1: Afvigelse 2024-2025 | I1: Bemærkninger | J1: Enhedspris 2024 | K1: Enhedspris 2025 | L1: Netvolumenbidrag 2024 | M1: Netvolumenbidrag 2025 | N1: Ejerandel 2024 (%) | O1: Ejerandel 2025 (%)
A2: Ledningsnet - Land | N2: 1
A3: Ledningsnet ≤ Ø50 mm | B3: meter | C3: =Genanskaffelsespriser!E81 -> 75 | D3: 255.8415102 | E3: 161.4658358 | F3: 161.4658358 | G3: =IF($D3="",IF($E3>0,"Ny data",IF($E3="","",0)),IF($D3=0,IF($E3=0,0,"Ny data"),($E3-$D3)/$D3)) -> -0.3688833541 | H3: =IF($E3="",IF($F3>0,"Ny data",IF($F3="","",0)),IF($E3=0,IF($F3=0,0,"Ny data"),($F3-$E3)/$E3)) -> 0 | I3: GIS opdatering | J3: =Genanskaffelsespriser!$D81 -> 548.573 | K3: =J3 -> 548.573 | L3: =IF(ISNUMBER(E3),((J3*E3)/C3)*N3,"") -> 1181.010639 | M3: =IF(ISNUMBER(F3),((K3*F3)/C3)*O3,"") -> 1181.010639 | N3: 1 | O3: 1
A4: Ø 50mm < Ledningsnet ≤ Ø110 mm | B4: meter | C4: =Genanskaffelsespriser!E82 -> 75 | D4: 1448.063078 | E4: 1194.249749 | F4: 1194.249749 | G4: =IF($D4="",IF($E4>0,"Ny data",IF($E4="","",0)),IF($D4=0,IF($E4=0,0,"Ny data"),($E4-$D4)/$D4)) -> -0.1752778128 | H4: =IF($E4="",IF($F4>0,"Ny data",IF($F4="","",0)),IF($E4=0,IF($F4=0,0,"Ny data"),($F4-$E4)/$E4)) -> 0 | I4: GIS opdatering | J4: =Genanskaffelsespriser!$D82 -> 837.896 | K4: =J4 -> 837.896 | L4: =IF(ISNUMBER(E4),((J4*E4)/C4)*N4,"") -> 13342.09451 | M4: =IF(ISNUMBER(F4),((K4*F4)/C4)*O4,"") -> 13342.09451 | N4: 1 | O4: 1
A5: Ø110 mm < Ledningsnet ≤ Ø 250 mm | B5: meter | C5: =Genanskaffelsespriser!E83 -> 75 | D5: 713.156899 | E5: 767.0053801 | F5: 772.9502866 | G5: 0.07550720077 | H5: 0.007750801557 | I5: GIS opdatering | J5: =Genanskaffelsespriser!$D83 -> 1568.981 | K5: 1568.981 | L5: 16045.55824 | M5: 16169.92418 | N5: 1 | O5: 1
A6: Ø 250 mm < Ledningsnet ≤ Ø 500mm | B6: meter | C6: =Genanskaffelsespriser!E84 -> 75 | D6: 3494.724114 | E6: 613.8725897 | F6: 615.18019 | G6: -0.8243430469 | H6: 0.002130084238 | I6: GIS opdatering | J6: =Genanskaffelsespriser!$D84 -> 3052.928 | K6: 3052.928 | L6: 24988.11757 | M6: 25041.34436 | N6: 1 | O6: 1
A7: Ledningsnet > Ø 500 mm | B7: meter | C7: =Genanskaffelsespriser!E85 -> 75 | E7: 86274.95771 | F7: 86301.12746 | G7: Ny data | H7: 0.0003033296189 | I7: ændret gruppering ift sidste indberetning | J7: =Genanskaffelsespriser!$D85 -> 5963.787 | K7: 5963.787 | L7: 6860339.616 | M7: 6862420.56 | N7: 1 | O7: 1
A8: Støbejernsledninger ≤ Ø50 mm | B8: meter | C8: =Genanskaffelsespriser!E86 -> 100 | D8: 130.8800743 | E8: 130.8800743 | F8: 130.8800743 | G8: 1.877595084e-11 | H8: 0 | J8: =Genanskaffelsespriser!$D86 -> 932.263 | K8: 932.263 | L8: 1220.146507 | M8: 1220.146507 | N8: 1 | O8: 1
A9: Støbejernsledninger Ø 50mm < Ledningsnet ≤ Ø110 mm | B9: meter | C9: =Genanskaffelsespriser!E87 -> 100 | D9: 222.8809321 | E9: 36.63838614 | F9: 36.63838614 | G9: -0.8356145328 | H9: 0 | I9: GIS opdatering | J9: =Genanskaffelsespriser!$D87 -> 1091.961 | K9: 1091.961 | L9: 400.0768877 | M9: 400.0768877 | N9: 1 | O9: 1
A10: Støbejernsledninger Ø110 mm < Ledningsnet ≤ Ø 250 mm | B10: meter | C10: =Genanskaffelsespriser!E88 -> 100 | D10: 558.0778697 | E10: 317.7227515 | F10: 317.7227515 | G10: -0.4306838368 | H10: 0 | I10: GIS opdatering | J10: =Genanskaffelsespriser!$D88 -> 1545.13 | K10: 1545.13 | L10: 4909.229551 | M10: 4909.229551 | N10: 1 | O10: 1
A11: Støbejernsledninger Ø 250 mm < Ledningsnet ≤ Ø 500mm | B11: meter | C11: =Genanskaffelsespriser!E89 -> 100 | D11: 129.0054596 | E11: 29.82492876 | F11: 29.82492876 | G11: -0.7688087865 | H11: 0 | I11: GIS opdatering | J11: =Genanskaffelsespriser!$D89 -> 2864.194 | K11: 2864.194 | L11: 854.2438199 | M11: 854.2438199 | N11: 1 | O11: 1
A12: Støbejernsledninger Ledningsnet > Ø 500 mm | B12: meter | C12: =Genanskaffelsespriser!E90 -> 100 | D12: 1286 | E12: 890.8688435 | F12: 890.8688435 | G12: -0.3072559537 | H12: 0 | I12: GIS opdatering | J12: =Genanskaffelsespriser!$D90 -> 5686.908 | K12: 5686.908 | L12: 50662.89153 | M12: 50662.89153 | N12: 1 | O12: 1
A13: Eternitledninger ≤ Ø50 mm | B13: meter | C13: =Genanskaffelsespriser!E91 -> 75 | J13: =Genanskaffelsespriser!$D91 -> 679.235 | K13: 679.235 | N13: 1 | O13: 1
A14: Eternitledninger Ø 50mm < Ledningsnet ≤ Ø110 mm | B14: meter | C14: =Genanskaffelsespriser!E92 -> 75 | J14: =Genanskaffelsespriser!$D92 -> 917.745 | K14: 917.745 | N14: 1 | O14: 1
A15: Eternitledninger Ø110 mm < Ledningsnet ≤ Ø 250 mm | B15: meter | C15: =Genanskaffelsespriser!E93 -> 75 | J15: =Genanskaffelsespriser!$D93 -> 1334.619 | K15: 1334.619 | N15: 1 | O15: 1
A16: Eternitledninger Ø 250 mm < Ledningsnet ≤ Ø 500mm | B16: meter | C16: =Genanskaffelsespriser!E94 -> 75 | E16: 321.4171381 | F16: 321.4171381 | G16: Ny data | H16: 0 | I16: GIS opdatering | J16: =Genanskaffelsespriser!$D94 -> 3169.072 | K16: 3169.072 | L16: 13581.25404 | M16: 13581.25404 | N16: 1 | O16: 1
A17: Eternitledninger Ledningsnet > Ø 500 mm | B17: meter | C17: =Genanskaffelsespriser!E95 -> 75 | J17: =Genanskaffelsespriser!$D95 -> 8790.649 | K17: 8790.649 | N17: 1 | O17: 1
A18: Skelbrønd, Konstruktioner | B18: stk. | C18: =Genanskaffelsespriser!E96 -> 50 | J18: =Genanskaffelsespriser!$D96 -> 10800.355 | K18: 10800.355 | N18: 1 | O18: 1
A19: Skelbrønd, Mek./EL | B19: stk. | C19: =Genanskaffelsespriser!E97 -> 15 | J19: =Genanskaffelsespriser!$D97 -> 16201.051 | K19: 16201.051 | N19: 1 | O19: 1
A20: Inspektionsbrønd, Konstruktioner | B20: stk. | C20: =Genanskaffelsespriser!E98 -> 50 | D20: 1591 | E20: 1616 | F20: 1617 | G20: 0.01571338781 | H20: 0.0006188118812 | I20: nye brønde | J20: =Genanskaffelsespriser!$D98 -> 10800.355 | K20: 10800.355 | L20: 349067.4736 | M20: 349283.4807 | N20: 1 | O20: 1
A21: Inspektionsbrønd, Mek./EL | B21: stk. | C21: =Genanskaffelsespriser!E99 -> 15 | D21: 1591 | E21: 1616 | F21: 1617 | G21: 0.01571338781 | H21: 0.0006188118812 | I21: nye brønde | J21: =Genanskaffelsespriser!$D99 -> 13500.703 | K21: 13500.703 | L21: 1454475.737 | M21: 1455375.783 | N21: 1 | O21: 1
A22: Stik på ledningsnet, Konstruktioner | B22: stk. | C22: =Genanskaffelsespriser!E100 -> 75 | D22: 1838 | E22: 1853 | F22: 2043 | G22: 0.008161044614 | H22: 0.1025364274 | I22: nye stik | J22: =Genanskaffelsespriser!$D100 -> 4896.714 | K22: 4896.714 | L22: 120981.4806 | M22: 133386.4894 | N22: 1 | O22: 1
A23: Stik på ledningsnet, Mek./EL | B23: stk. | C23: =Genanskaffelsespriser!E101 -> 75 | D23: 1838 | E23: 1853 | F23: 2043 | G23: 0.008161044614 | H23: 0.1025364274 | I23: nye stik | J23: =Genanskaffelsespriser!$D101 -> 4896.714 | K23: 4896.714 | L23: 120981.4806 | M23: 133386.4894 | N23: 1 | O23: 1
A24: Ledningsnet - By
A25: Ledningsnet ≤ Ø50 mm | B25: meter | C25: =Genanskaffelsespriser!E103 -> 75 | D25: 1612.398672 | E25: 1564.084655 | F25: 1567.183031 | G25: -0.02996406411 | H25: 0.001980951461 | I25: GIS opdatering | J25: =Genanskaffelsespriser!$D103 -> 674.05 | K25: =J25 -> 674.05 | L25: 14056.95016 | M25: 14084.79629 | N25: 1 | O25: 1
A26: Ø 50mm < Ledningsnet ≤ Ø110 mm | B26: meter | C26: =Genanskaffelsespriser!E104 -> 75 | D26: 38495.45114 | E26: 40264.27755 | F26: 40793.0338 | G26: 0.04594897222 | H26: 0.01313214291 | I26: GIS opdatering | J26: =Genanskaffelsespriser!$D104 -> 993.446 | K26: =J26 -> 993.446 | L26: 533338.4731 | M26: 540342.3501 | N26: 1 | O26: 1
A27: Ø110 mm < Ledningsnet ≤ Ø 250 mm | B27: meter | C27: =Genanskaffelsespriser!E105 -> 75 | D27: 52371.07411 | E27: 53313.09654 | F27: 53708.642 | G27: 0.01798745667 | H27: 0.007419292621 | I27: GIS opdatering | J27: =Genanskaffelsespriser!$D105 -> 1746.308 | K27: 1746.308 | L27: 1241347.827 | M27: 1250557.749 | N27: 1 | O27: 1
A28: Ø 250 mm < Ledningsnet ≤ Ø 500mm | B28: meter | C28: =Genanskaffelsespriser!E106 -> 75 | D28: 13484.42747 | E28: 13474.31294 | F28: 13476.54198 | G28: -0.0007500892467 | H28: 0.0001654283861 | I28: GIS opdatering | J28: =Genanskaffelsespriser!$D106 -> 3269.661 | K28: 3269.661 | L28: 587419.1404 | M28: 587516.3162 | N28: 1 | O28: 1
A29: Ledningsnet > Ø 500 mm | B29: meter | C29: =Genanskaffelsespriser!E107 -> 75 | E29: 81426.49184 | F29: 81650.0752 | G29: Ny data | H29: 0.002745830741 | I29: ændret gruppering ift sidste indberetning | J29: =Genanskaffelsespriser!$D107 -> 6219.926 | K29: 6219.926 | L29: 6752890.049 | M29: 6771432.342 | N29: 1 | O29: 1
A30: Støbejernsledninger ≤ Ø50 mm | B30: meter | C30: =Genanskaffelsespriser!E108 -> 100 | D30: 2830.957081 | E30: 2613.257877 | F30: 2613.257877 | G30: -0.07689950713 | H30: 0 | I30: GIS opdatering | J30: =Genanskaffelsespriser!$D108 -> 1057.74 | K30: 1057.74 | L30: 27641.47387 | M30: 27641.47387 | N30: 1 | O30: 1
A31: Støbejernsledninger Ø 50mm < Ledningsnet ≤ Ø110 mm | B31: meter | C31: =Genanskaffelsespriser!E109 -> 100 | D31: 121434.1897 | E31: 119118.8981 | F31: 119118.8981 | G31: -0.01906622464 | H31: 0 | I31: GIS opdatering | J31: =Genanskaffelsespriser!$D109 -> 1247.511 | K31: 1247.511 | L31: 1486021.357 | M31: 1486021.357 | N31: 1 | O31: 1
A32: Støbejernsledninger Ø110 mm < Ledningsnet ≤ Ø 250 mm | B32: meter | C32: =Genanskaffelsespriser!E110 -> 100 | D32: 59314.67761 | E32: 58309.91946 | F32: 58309.91946 | G32: -0.01693945229 | H32: 0 | I32: GIS opdatering | J32: =Genanskaffelsespriser!$D110 -> 1722.457 | K32: 1722.457 | L32: 1004363.289 | M32: 1004363.289 | N32: 1 | O32: 1
A33: Støbejernsledninger Ø 250 mm < Ledningsnet ≤ Ø 500mm | B33: meter | C33: =Genanskaffelsespriser!E111 -> 100 | D33: 10983.40587 | E33: 10983.40587 | F33: 10983.40587 | G33: 4.968375268e-16 | H33: 0 | J33: =Genanskaffelsespriser!$D111 -> 3080.927 | K33: 3080.927 | L33: 338390.7171 | M33: 338390.7171 | N33: 1 | O33: 1
A34: Støbejernsledninger Ledningsnet > Ø 500 mm | B34: meter | C34: =Genanskaffelsespriser!E112 -> 100 | D34: 17182 | E34: 17157.4134 | F34: 17172.8796 | G34: -0.001430950905 | H34: 0.0009014294197 | I34: GIS opdatering | J34: =Genanskaffelsespriser!$D112 -> 5943.047 | K34: 5943.047 | L34: 1019673.142 | M34: 1020592.306 | N34: 1 | O34: 1
A35: Eternitledninger ≤ Ø50 mm | B35: meter | C35: =Genanskaffelsespriser!E113 -> 75 | J35: =Genanskaffelsespriser!$D113 -> 804.712 | K35: 804.712 | N35: 1 | O35: 1
A36: Eternitledninger Ø 50mm < Ledningsnet ≤ Ø110 mm | B36: meter | C36: =Genanskaffelsespriser!E114 -> 75 | D36: 3019.351851 | E36: 3019.351851 | F36: 3019.351851 | G36: 0 | H36: 0 | J36: =Genanskaffelsespriser!$D114 -> 1073.295 | K36: 1073.295 | L36: 43208.7366 | M36: 43208.7366 | N36: 1 | O36: 1
A37: Eternitledninger Ø110 mm < Ledningsnet ≤ Ø 250 mm | B37: meter | C37: =Genanskaffelsespriser!E115 -> 75 | D37: 461.1674185 | E37: 461.1674185 | F37: 461.1674185 | G37: 2.465196655e-16 | H37: 0 | J37: =Genanskaffelsespriser!$D115 -> 1509.872 | K37: 1509.872 | L37: 9284.050299 | M37: 9284.050299 | N37: 1 | O37: 1
A38: Eternitledninger Ø 250 mm < Ledningsnet ≤ Ø 500mm | B38: meter | C38: =Genanskaffelsespriser!E116 -> 75 | J38: =Genanskaffelsespriser!$D116 -> 3385.805 | K38: 3385.805 | N38: 1 | O38: 1
A39: Eternitledninger Ledningsnet > Ø 500 mm | B39: meter | C39: =Genanskaffelsespriser!E117 -> 75 | J39: =Genanskaffelsespriser!$D117 -> 9046.788 | K39: 9046.788 | N39: 1 | O39: 1
A40: Skelbrønd, Konstruktioner | B40: stk. | C40: =Genanskaffelsespriser!E118 -> 50 | J40: =Genanskaffelsespriser!$D118 -> 11880.909 | K40: 11880.909 | N40: 1 | O40: 1
A41: Skelbrønd, Mek./EL | B41: stk. | C41: =Genanskaffelsespriser!E119 -> 15 | J41: =Genanskaffelsespriser!$D119 -> 17820.845 | K41: 17820.845 | N41: 1 | O41: 1
A42: Inspektionsbrønd, Konstruktioner | B42: stk. | C42: =Genanskaffelsespriser!E120 -> 50 | D42: 591 | E42: 590 | F42: 590 | G42: -0.001692047377 | H42: 0 | I42: GIS opdatering | J42: =Genanskaffelsespriser!$D120 -> 11880.909 | K42: 11880.909 | L42: 140194.7262 | M42: 140194.7262 | N42: 1 | O42: 1
A43: Inspektionsbrønd, Mek./EL | B43: stk. | C43: =Genanskaffelsespriser!E121 -> 15 | D43: 591 | E43: 590 | F43: 590 | G43: -0.001692047377 | H43: 0 | I43: GIS opdatering | J43: =Genanskaffelsespriser!$D121 -> 14850.877 | K43: 14850.877 | L43: 584134.4953 | M43: 584134.4953 | N43: 1 | O43: 1
A44: Stik på ledningsnet, Konstruktioner | B44: stk. | C44: =Genanskaffelsespriser!E122 -> 75 | D44: 17523 | E44: 17811 | F44: 18036 | G44: 0.01643554186 | H44: 0.01263264275 | I44: nye stik | J44: =Genanskaffelsespriser!$D122 -> 5875.642 | K44: 5875.642 | L44: 1395347.462 | M44: 1412974.388 | N44: 1 | O44: 1
A45: Stik på ledningsnet, Mek./EL | B45: stk. | C45: =Genanskaffelsespriser!E123 -> 75 | D45: 17523 | E45: 17811 | F45: 18036 | G45: 0.01643554186 | H45: 0.01263264275 | I45: nye stik | J45: =Genanskaffelsespriser!$D123 -> 5875.642 | K45: 5875.642 | L45: 1395347.462 | M45: 1412974.388 | N45: 1 | O45: 1
A46: Ledningsnet - City
A47: Ledningsnet ≤ Ø50 mm | B47: meter | C47: =Genanskaffelsespriser!E125 -> 75 | D47: 764.5842271 | E47: 771.248831 | F47: 771.248831 | G47: 0.008716637969 | H47: 1.474061718e-16 | I47: GIS opdatering | J47: =Genanskaffelsespriser!$D125 -> 1117.886 | K47: =J47 -> 1117.886 | L47: 11495.57694 | M47: 11495.57694 | N47: 1 | O47: 1
A48: Ø 50mm < Ledningsnet ≤ Ø110 mm | B48: meter | C48: =Genanskaffelsespriser!E126 -> 75 | D48: 27237.03966 | E48: 28336.24779 | F48: 29541.74747 | G48: 0.04035710712 | H48: 0.04254267157 | I48: GIS opdatering | J48: =Genanskaffelsespriser!$D126 -> 1550.315 | K48: =J48 -> 1550.315 | L48: 585734.7999 | M48: 610653.5231 | N48: 1 | O48: 1
A49: Ø110 mm < Ledningsnet ≤ Ø 250 mm | B49: meter | C49: =Genanskaffelsespriser!E127 -> 75 | D49: 47022.34468 | E49: 47812.13487 | F49: 48843.3992 | G49: 0.01679606132 | H49: 0.02156909186 | I49: GIS opdatering | J49: =Genanskaffelsespriser!$D127 -> 2273.104 | K49: 2273.104 | L49: 1449092.734 | M49: 1480348.348 | N49: 1 | O49: 1
A50: Ø 250 mm < Ledningsnet ≤ Ø 500mm | B50: meter | C50: =Genanskaffelsespriser!E128 -> 75 | D50: 5351.597089 | E50: 5389.026412 | F50: 5390.982991 | G50: 0.00699404724 | H50: 0.0003630672269 | I50: GIS opdatering | J50: =Genanskaffelsespriser!$D128 -> 3912.601 | K50: 3912.601 | L50: 281134.8017 | M50: 281236.8725 | N50: 1 | O50: 1
A51: Ledningsnet > Ø 500 mm | B51: meter | C51: =Genanskaffelsespriser!E129 -> 75 | E51: 10856.91297 | F51: 10917.4081 | G51: Ny data | H51: 0.005572037714 | I51: ændret gruppering ift sidste indberetning | J51: =Genanskaffelsespriser!$D129 -> 6981.084 | K51: 6981.084 | L51: 1010573.619 | M51: 1016204.574 | N51: 1 | O51: 1
A52: Støbejernsledninger ≤ Ø50 mm | B52: meter | C52: =Genanskaffelsespriser!E130 -> 100 | D52: 1263.097001 | E52: 1205.348853 | F52: 1205.348853 | G52: -0.04571948757 | H52: 0 | I52: GIS opdatering | J52: =Genanskaffelsespriser!$D130 -> 1501.576 | K52: 1501.576 | L52: 18099.22909 | M52: 18099.22909 | N52: 1 | O52: 1
A53: Støbejernsledninger Ø 50mm < Ledningsnet ≤ Ø110 mm | B53: meter | C53: =Genanskaffelsespriser!E131 -> 100 | D53: 83336.69698 | E53: 80631.25338 | F53: 80631.25338 | G53: -0.03246401281 | H53: 5.414246195e-16 | I53: GIS opdatering | J53: =Genanskaffelsespriser!$D131 -> 1804.38 | K53: 1804.38 | L53: 1454894.21 | M53: 1454894.21 | N53: 1 | O53: 1
A54: Støbejernsledninger Ø110 mm < Ledningsnet ≤ Ø 250 mm | B54: meter | C54: =Genanskaffelsespriser!E132 -> 100 | D54: 41223.9211 | E54: 40159.18371 | F54: 40159.18371 | G54: -0.0258281445 | H54: -5.435337779e-16 | I54: GIS opdatering | J54: =Genanskaffelsespriser!$D132 -> 2249.253 | K54: 2249.253 | L54: 903281.6444 | M54: 903281.6444 | N54: 1 | O54: 1
A55: Støbejernsledninger Ø 250 mm < Ledningsnet ≤ Ø 500mm | B55: meter | C55: =Genanskaffelsespriser!E133 -> 100 | D55: 8435.941309 | E55: 8423.790243 | F55: 8423.790243 | G55: -0.001440392363 | H55: 0 | I55: GIS opdatering | J55: =Genanskaffelsespriser!$D133 -> 3723.867 | K55: 3723.867 | L55: 313690.745 | M55: 313690.745 | N55: 1 | O55: 1
A56: Støbejernsledninger Ledningsnet > Ø 500 mm | B56: meter | C56: =Genanskaffelsespriser!E134 -> 100 | D56: 7797.532065 | E56: 7771.27131 | F56: 7796.333054 | G56: -0.003367829104 | H56: 0.003224922013 | I56: GIS opdatering | J56: =Genanskaffelsespriser!$D134 -> 6704.205 | K56: 6704.205 | L56: 521001.9597 | M56: 522682.1504 | N56: 1 | O56: 1
A57: Eternitledninger ≤ Ø50 mm | B57: meter | C57: =Genanskaffelsespriser!E135 -> 75 | J57: =Genanskaffelsespriser!$D135 -> 1248.548 | K57: 1248.548 | N57: 1 | O57: 1
A58: Eternitledninger Ø 50mm < Ledningsnet ≤ Ø110 mm | B58: meter | C58: =Genanskaffelsespriser!E136 -> 75 | D58: 440.1569975 | E58: 440.1569975 | F58: 440.1569975 | G58: 0 | H58: 0 | J58: =Genanskaffelsespriser!$D136 -> 1630.164 | K58: 1630.164 | L58: 9567.041222 | M58: 9567.041222 | N58: 1 | O58: 1
A59: Eternitledninger Ø110 mm < Ledningsnet ≤ Ø 250 mm | B59: meter | C59: =Genanskaffelsespriser!E137 -> 75 | D59: 735.0262491 | E59: 735.0262491 | F59: 735.0262491 | G59: 1.546704459e-16 | H59: 0 | J59: =Genanskaffelsespriser!$D137 -> 2038.742 | K59: 2038.742 | L59: 19980.38513 | M59: 19980.38513 | N59: 1 | O59: 1
A60: Eternitledninger Ø 250 mm < Ledningsnet ≤ Ø 500mm | B60: meter | C60: =Genanskaffelsespriser!E138 -> 75 | J60: =Genanskaffelsespriser!$D138 -> 4028.745 | K60: 4028.745 | N60: 1 | O60: 1
A61: Eternitledninger Ledningsnet > Ø 500 mm | B61: meter | C61: =Genanskaffelsespriser!E139 -> 75 | J61: =Genanskaffelsespriser!$D139 -> 9807.946 | K61: 9807.946 | N61: 1 | O61: 1
A62: Skelbrønd, Konstruktioner | B62: stk. | C62: =Genanskaffelsespriser!E140 -> 50 | J62: =Genanskaffelsespriser!$D140 -> 12960.426 | K62: 12960.426 | N62: 1 | O62: 1
A63: Skelbrønd, Mek./EL | B63: stk. | C63: =Genanskaffelsespriser!E141 -> 15 | J63: =Genanskaffelsespriser!$D141 -> 19440.639 | K63: 19440.639 | N63: 1 | O63: 1
A64: Inspektionsbrønd, Konstruktioner | B64: stk. | C64: =Genanskaffelsespriser!E142 -> 50 | D64: 72 | E64: 72 | F64: 72 | G64: 0 | H64: 0 | J64: =Genanskaffelsespriser!$D142 -> 12960.426 | K64: 12960.426 | L64: 18663.01344 | M64: 18663.01344 | N64: 1 | O64: 1
A65: Inspektionsbrønd, Mek./EL | B65: stk. | C65: =Genanskaffelsespriser!E143 -> 15 | D65: 72 | E65: 72 | F65: 72 | G65: 0 | H65: 0 | J65: =Genanskaffelsespriser!$D143 -> 16201.051 | K65: 16201.051 | L65: 77765.0448 | M65: 77765.0448 | N65: 1 | O65: 1
A66: Stik på ledningsnet, Konstruktioner | B66: stk. | C66: =Genanskaffelsespriser!E144 -> 75 | D66: 12757 | E66: 13013 | F66: 13448 | G66: 0.02006741397 | H66: 0.03342811035 | I66: nye stik | J66: =Genanskaffelsespriser!$D144 -> 6366.143 | K66: 6366.143 | L66: 1104568.251 | M66: 1141491.881 | N66: 1 | O66: 1
A67: Stik på ledningsnet, Mek./EL | B67: stk. | C67: =Genanskaffelsespriser!E145 -> 75 | D67: 12757 | E67: 13013 | F67: 13448 | G67: 0.02006741397 | H67: 0.03342811035 | I67: nye stik | J67: =Genanskaffelsespriser!$D145 -> 6366.143 | K67: 6366.143 | L67: 1104568.251 | M67: 1141491.881 | N67: 1 | O67: 1
A68: Ledningsnet - Indre city
A69: Ledningsnet ≤ Ø50 mm | B69: meter | C69: =Genanskaffelsespriser!E147 -> 75 | D69: 1284.553589 | E69: 1283.934093 | F69: 1283.934093 | G69: =IF($D69="",IF($E69>0,"Ny data",IF($E69="","",0)),IF($D69=0,IF($E69=0,0,"Ny data"),($E69-$D69)/$D69)) -> -0.0004822654927 | H69: =IF($E69="",IF($F69>0,"Ny data",IF($F69="","",0)),IF($E69=0,IF($F69=0,0,"Ny data"),($F69-$E69)/$E69)) -> -1.770913917e-16 | I69: GIS opdatering | J69: =Genanskaffelsespriser!$D147 -> 1759.789 | K69: =J69 -> 1759.789 | L69: =IF(ISNUMBER(E69),((J69*E69)/C69)*N69,"") -> 30126.04125 | M69: =IF(ISNUMBER(F69),((K69*F69)/C69)*O69,"") -> 30126.04125 | N69: 1 | O69: 1
A70: Ø 50mm < Ledningsnet ≤ Ø110 mm | B70: meter | C70: =Genanskaffelsespriser!E148 -> 75 | D70: 62833.49109 | E70: 64679.61545 | F70: 67675.66508 | G70: 0.0293812157 | H70: 0.04632138914 | I70: GIS opdatering | J70: =Genanskaffelsespriser!$D148 -> 2351.916 | K70: =J70 -> 2351.916 | L70: 2028280.299 | M70: 2122233.06 | N70: 1 | O70: 1
A71: Ø110 mm < Ledningsnet ≤ Ø 250 mm | B71: meter | C71: =Genanskaffelsespriser!E149 -> 75 | D71: 50560.04988 | E71: 51056.71864 | F71: 53060.72581 | G71: 0.009823343992 | H71: 0.03925060643 | I71: GIS opdatering | J71: =Genanskaffelsespriser!$D149 -> 3120.333 | K71: 3120.333 | L71: 2124186.187 | M71: 2207561.783 | N71: 1 | O71: 1
A72: Ø 250 mm < Ledningsnet ≤ Ø 500mm | B72: meter | C72: =Genanskaffelsespriser!E150 -> 75 | D72: 6487.220027 | E72: 6487.155948 | F72: 6491.318954 | G72: -9.877747404e-06 | H72: 0.0006417305374 | I72: GIS opdatering | J72: =Genanskaffelsespriser!$D150 -> 4949.601 | K72: 4949.601 | L72: 428117.7809 | M72: 428392.5171 | N72: 1 | O72: 1
A73: Ledningsnet > Ø 500 mm | B73: meter | C73: =Genanskaffelsespriser!E151 -> 75 | E73: 18110.22344 | F73: 18125.01301 | G73: Ny data | H73: 0.0008166418522 | I73: ændret gruppering ift sidste indberetning | J73: =Genanskaffelsespriser!$D151 -> 8207.855 | K73: 8207.855 | L73: 1981947.84 | M73: 1983566.382 | N73: 1 | O73: 1
A74: Støbejernsledninger ≤ Ø50 mm | B74: meter | C74: =Genanskaffelsespriser!E152 -> 100 | D74: 1317.056463 | E74: 1312.141794 | F74: 1312.141794 | G74: -0.00373155535 | H74: 0 | I74: GIS opdatering | J74: =Genanskaffelsespriser!$D152 -> 2143.479 | K74: 2143.479 | L74: 28125.4838 | M74: 28125.4838 | N74: 1 | O74: 1
A75: Støbejernsledninger Ø 50mm < Ledningsnet ≤ Ø110 mm | B75: meter | C75: =Genanskaffelsespriser!E153 -> 100 | D75: 117882.5266 | E75: 113394.1545 | F75: 113395.3991 | G75: -0.03807495687 | H75: 1.09754146e-05 | I75: GIS opdatering | J75: =Genanskaffelsespriser!$D153 -> 2605.981 | K75: 2605.981 | L75: 2955030.122 | M75: 2955062.554 | N75: 1 | O75: 1
A76: Støbejernsledninger Ø110 mm < Ledningsnet ≤ Ø 250 mm | B76: meter | C76: =Genanskaffelsespriser!E154 -> 100 | D76: 70859.4369 | E76: 69099.45769 | F76: 69099.45769 | G76: -0.02483761222 | H76: -2.10593769e-16 | I76: GIS opdatering | J76: =Genanskaffelsespriser!$D154 -> 3096.482 | K76: 3096.482 | L76: 2139652.269 | M76: 2139652.269 | N76: 1 | O76: 1
A77: Støbejernsledninger Ø 250 mm < Ledningsnet ≤ Ø 500mm | B77: meter | C77: =Genanskaffelsespriser!E155 -> 100 | D77: 17638.60839 | E77: 17631.02506 | F77: 17632.97883 | G77: -0.0004299281299 | H77: 0.00011081429 | I77: GIS opdatering | J77: =Genanskaffelsespriser!$D155 -> 4760.867 | K77: 4760.867 | L77: 839389.6536 | M77: 839482.67 | N77: 1 | O77: 1
A78: Støbejernsledninger Ledningsnet > Ø 500 mm | B78: meter | C78: =Genanskaffelsespriser!E156 -> 100 | D78: 11058.96792 | E78: 11036.26793 | F78: 11036.26793 | G78: -0.002052631741 | H78: 1.6481925e-16 | I78: GIS opdatering | J78: =Genanskaffelsespriser!$D156 -> 7930.976 | K78: 7930.976 | L78: 875283.761 | M78: 875283.761 | N78: 1 | O78: 1
A79: Eternitledninger ≤ Ø50 mm | B79: meter | C79: =Genanskaffelsespriser!E157 -> 75 | J79: =Genanskaffelsespriser!$D157 -> 1890.451 | K79: 1890.451 | N79: 1 | O79: 1
A80: Eternitledninger Ø 50mm < Ledningsnet ≤ Ø110 mm | B80: meter | C80: =Genanskaffelsespriser!E158 -> 75 | J80: =Genanskaffelsespriser!$D158 -> 2431.765 | K80: 2431.765 | N80: 1 | O80: 1
A81: Eternitledninger Ø110 mm < Ledningsnet ≤ Ø 250 mm | B81: meter | C81: =Genanskaffelsespriser!E159 -> 75 | J81: =Genanskaffelsespriser!$D159 -> 2885.971 | K81: 2885.971 | N81: 1 | O81: 1
A82: Eternitledninger Ø 250 mm < Ledningsnet ≤ Ø 500mm | B82: meter | C82: =Genanskaffelsespriser!E160 -> 75 | J82: =Genanskaffelsespriser!$D160 -> 5065.745 | K82: 5065.745 | N82: 1 | O82: 1
A83: Eternitledninger Ledningsnet > Ø 500 mm | B83: meter | C83: =Genanskaffelsespriser!E161 -> 75 | J83: =Genanskaffelsespriser!$D161 -> 11034.717 | K83: 11034.717 | N83: 1 | O83: 1
A84: Skelbrønd, Konstruktioner | B84: stk. | C84: =Genanskaffelsespriser!E162 -> 50 | J84: =Genanskaffelsespriser!$D162 -> 14040.98 | K84: 14040.98 | N84: 1 | O84: 1
A85: Skelbrønd, Mek./EL | B85: stk. | C85: =Genanskaffelsespriser!E163 -> 15 | J85: =Genanskaffelsespriser!$D163 -> 21061.47 | K85: 21061.47 | N85: 1 | O85: 1
A86: Inspektionsbrønd, Konstruktioner | B86: stk. | C86: =Genanskaffelsespriser!E164 -> 50 | D86: 95 | E86: 95 | F86: 95 | G86: 0 | H86: 0 | J86: =Genanskaffelsespriser!$D164 -> 14040.98 | K86: 14040.98 | L86: 26677.862 | M86: 26677.862 | N86: 1 | O86: 1
A87: Inspektionsbrønd, Mek./EL | B87: stk. | C87: =Genanskaffelsespriser!E165 -> 15 | D87: 95 | E87: 95 | F87: 95 | G87: 0 | H87: 0 | J87: =Genanskaffelsespriser!$D165 -> 17551.225 | K87: 17551.225 | L87: 111157.7583 | M87: 111157.7583 | N87: 1 | O87: 1
A88: Stik på ledningsnet, Konstruktioner | B88: stk. | C88: =Genanskaffelsespriser!E166 -> 75 | D88: 18726 | E88: 18937 | F88: 19760 | G88: 0.01126775606 | H88: 0.04345989333 | J88: =Genanskaffelsespriser!$D166 -> 7834.535 | K88: 7834.535 | L88: 1978167.857 | M88: 2064138.821 | N88: 1 | O88: 1
A89: Stik på ledningsnet, Mek./EL | B89: stk. | C89: =Genanskaffelsespriser!E167 -> 75 | D89: 18726 | E89: 18937 | F89: 19760 | G89: 0.01126775606 | H89: 0.04345989333 | J89: =Genanskaffelsespriser!$D167 -> 7834.535 | K89: 7834.535 | L89: 1978167.857 | M89: 2064138.821 | N89: 1 | O89: 1
A90: Ventiler
A91: Ventiler på ledningsnet ≤ Ø50 mm | B91: stk. | C91: =Genanskaffelsespriser!E169 -> 75 | D91: 471 | E91: 465 | F91: 469 | G91: -0.0127388535 | H91: 0.008602150538 | I91: GIS opdatering | J91: =Genanskaffelsespriser!$D169 -> 8018.084 | K91: =J91 -> 8018.084 | L91: 49712.1208 | M91: 50139.75195 | N91: 1 | O91: 1
A92: Ventiler på Ø 50mm < Ledningsnet ≤ Ø110 mm | B92: stk. | C92: =Genanskaffelsespriser!E170 -> 75 | D92: 3252 | E92: 3192 | F92: 3297 | G92: -0.0184501845 | H92: 0.03289473684 | I92: GIS opdatering | J92: =Genanskaffelsespriser!$D170 -> 9312.26 | K92: =J92 -> 9312.26 | L92: 396329.7856 | M92: 409366.9496 | N92: 1 | O92: 1
A93: Ventiler på Ø110 mm < Ledningsnet ≤ Ø 250 mm | B93: stk. | C93: =Genanskaffelsespriser!E171 -> 75 | D93: 4881 | E93: 4801 | F93: 4869 | G93: -0.016390084 | H93: 0.01416371589 | I93: GIS opdatering | J93: =Genanskaffelsespriser!$D171 -> 22540.232 | K93: 22540.232 | L93: 1442875.384 | M93: 1463311.861 | N93: 1 | O93: 1
A94: Ventiler på Ø 250 mm < Ledningsnet ≤ Ø 500mm | B94: stk. | C94: =Genanskaffelsespriser!E172 -> 75 | D94: 440 | E94: 432 | F94: 435 | G94: =IF($D94="",IF($E94>0,"Ny data",IF($E94="","",0)),IF($D94=0,IF($E94=0,0,"Ny data"),($E94-$D94)/$D94)) -> -0.01818181818 | H94: =IF($E94="",IF($F94>0,"Ny data",IF($F94="","",0)),IF($E94=0,IF($F94=0,0,"Ny data"),($F94-$E94)/$E94)) -> 0.006944444444 | I94: GIS opdatering | J94: =Genanskaffelsespriser!$D172 -> 81196.063 | K94: 81196.063 | L94: 467689.3229 | M94: 470937.1654 | N94: 1 | O94: 1
A95: Ventiler på ledningsnet > Ø 500 mm | B95: stk. | C95: =Genanskaffelsespriser!E173 -> 75 | D95: 339 | E95: 319 | F95: 326 | G95: -0.05899705015 | H95: 0.02194357367 | I95: GIS opdatering | J95: =Genanskaffelsespriser!$D173 -> 232011.121 | K95: 232011.121 | L95: 986820.6347 | M95: 1008475.006 | N95: 1 | O95: 1
A96: Pumpestationer, bygværker og bassiner 1
A97: Pumpestation (inkl. evt. hydrofor)/trykforøger, Konstruktioner | B97: m³/h | C97: =+Genanskaffelsespriser!$E$175 -> 50 | E97: 75 | F97: 75 | G97: Ny data | H97: 0 | I97: fejl ikke med tidligere | J97: =IF(E97=0,"Variabel pris",IFERROR((HLOOKUP(E97,'Variable priser'!$C$103:$F$105,2)+(E97-HLOOKUP(E97,'Variable priser'!$C$103:$F$105,1))*HLOOKUP(E97,'Variable priser'!$C$103:$F$105,3))*'Variable priser'!$I$102/E97*(1+Genanskaffelsespriser!$D$203),"Fejl")) -> 1275.163901 | K97: =IF(F97=0,"Variabel pris",IFERROR((HLOOKUP(F97,'Variable priser'!$C$103:$F$105,2)+(F97-HLOOKUP(F97,'Variable priser'!$C$103:$F$105,1))*HLOOKUP(F97,'Variable priser'!$C$103:$F$105,3))*'Variable priser'!$I$102/F97*(1+Genanskaffelsespriser!$D$203),"Fejl")) -> 1275.163901 | L97: =IF(ISBLANK(E97),"",IF(E97=0,"",IF(ISNUMBER(E97),((J97*E97)/$C97)*N97,""))) -> 1912.745852 | M97: =IF(ISBLANK(F97),"",IF(F97=0,"",IF(ISNUMBER(F97),((K97*F97)/$C97)*O97,""))) -> 1912.745852 | N97: 1 | O97: 1
A98: Pumpestation (inkl. evt. hydrofor)/trykforøger, Mek./EL | B98: m³/h | C98: =+Genanskaffelsespriser!$E$176 -> 25 | D98: 0 | E98: 75 | F98: 75 | G98: Ny data | H98: 0 | I98: Islevbro - Kildeplads VI | J98: =IF(E98=0,"Variabel pris",IFERROR((HLOOKUP(E98,'Variable priser'!$C$103:$F$105,2)+(E98-HLOOKUP(E98,'Variable priser'!$C$103:$F$105,1))*HLOOKUP(E98,'Variable priser'!$C$103:$F$105,3))*'Variable priser'!$J$102/E98*(1+Genanskaffelsespriser!$D$203),"Fejl")) -> 3315.426143 | K98: =IF(F98=0,"Variabel pris",IFERROR((HLOOKUP(F98,'Variable priser'!$C$103:$F$105,2)+(F98-HLOOKUP(F98,'Variable priser'!$C$103:$F$105,1))*HLOOKUP(F98,'Variable priser'!$C$103:$F$105,3))*'Variable priser'!$J$102/F98*(1+Genanskaffelsespriser!$D$203),"Fejl")) -> 3315.426143 | L98: =IF(ISBLANK(E98),"",IF(E98=0,"",IF(ISNUMBER(E98),((J98*E98)/$C98)*N97,""))) -> 9946.27843 | M98: =IF(ISBLANK(F98),"",IF(F98=0,"",IF(ISNUMBER(F98),((K98*F98)/$C98)*O97,""))) -> 9946.27843 | N98: 1 | O98: 1
A99: Pumpestation (inkl. evt. hydrofor)/trykforøger, SRO | B99: m³/h | C99: =+Genanskaffelsespriser!$E$177 -> 10 | D99: 0 | E99: 75 | F99: 75 | G99: Ny data | H99: 0 | I99: fejl ikke med tidligere | J99: =IF(E99=0,"Variabel pris",IFERROR((HLOOKUP(E99,'Variable priser'!$C$103:$F$105,2)+(E99-HLOOKUP(E99,'Variable priser'!$C$103:$F$105,1))*HLOOKUP(E99,'Variable priser'!$C$103:$F$105,3))*'Variable priser'!$L$102/E99*(1+Genanskaffelsespriser!$D$203),"Fejl")) -> 510.0655605 | K99: =IF(F99=0,"Variabel pris",IFERROR((HLOOKUP(F99,'Variable priser'!$C$103:$F$105,2)+(F99-HLOOKUP(F99,'Variable priser'!$C$103:$F$105,1))*HLOOKUP(F99,'Variable priser'!$C$103:$F$105,3))*'Variable priser'!$L$102/F99*(1+Genanskaffelsespriser!$D$203),"Fejl")) -> 510.0655605 | L99: =IF(ISBLANK(E99),"",IF(E99=0,"",IF(ISNUMBER(E99),((J99*E99)/$C99)*N97,""))) -> 3825.491704 | M99: =IF(ISBLANK(F99),"",IF(F99=0,"Samlet mængde kan ikke være nul i 2025",IF(ISNUMBER(F99),((K99*F99)/$C99)*O97,""))) -> 3825.491704 | N99: 1 | O99: 1
A100: Beholderanlæg - højdebeholder | B100: m³ | C100: =+Genanskaffelsespriser!$E$178 -> 50 | J100: =IF(E100=0,"Variabel pris",IFERROR((HLOOKUP(E100,'Variable priser'!$C$48:$H$50,2)+(E100-HLOOKUP(E100,'Variable priser'!$C$48:$H$50,1))*HLOOKUP(E100,'Variable priser'!$C$48:$H$50,3))/E100*(1+Genanskaffelsespriser!$D$203),"Fejl")) -> Variabel pris | K100: =IF(F100=0,"Variabel pris",IFERROR((HLOOKUP(F100,'Variable priser'!$C$48:$H$50,2)+(F100-HLOOKUP(F100,'Variable priser'!$C$48:$H$50,1))*HLOOKUP(F100,'Variable priser'!$C$48:$H$50,3))/F100*(1+Genanskaffelsespriser!$D$203),"Fejl")) -> Variabel pris | L100: =IF(ISBLANK(E100),"",IF(E100=0,"",IF(ISNUMBER(E100),((J100*E100)/$C100)*N97,""))) ->  | M100: =IF(ISBLANK(F100),"",IF(F100=0,"",IF(ISNUMBER(F100),((K100*F100)/$C100)*O97,""))) ->  | N100: 1 | O100: 1
A101: Beholderanlæg - vandtårn | B101: m³ | C101: =+Genanskaffelsespriser!$E$179 -> 50 | J101: =IF(E101=0,"Variabel pris",IFERROR((HLOOKUP(E101,'Variable priser'!$C$55:$H$57,2)+(E101-HLOOKUP(E101,'Variable priser'!$C$55:$H$57,1))*HLOOKUP(E101,'Variable priser'!$C$55:$H$57,3))/E101*(1+Genanskaffelsespriser!$D$203),"Fejl")) -> Variabel pris | K101: =IF(F101=0,"Variabel pris",IFERROR((HLOOKUP(F101,'Variable priser'!$C$55:$H$57,2)+(F101-HLOOKUP(F101,'Variable priser'!$C$55:$H$57,1))*HLOOKUP(F101,'Variable priser'!$C$55:$H$57,3))/F101*(1+Genanskaffelsespriser!$D$203),"Fejl")) -> Variabel pris | L101: =IF(ISBLANK(E101),"",IF(E101=0,"",IF(ISNUMBER(E101),((J101*E101)/$C101)*N97,""))) ->  | M101: =IF(ISBLANK(F101),"",IF(F101=0,"",IF(ISNUMBER(F101),((K101*F101)/$C101)*O97,""))) ->  | N101: 1 | O101: 1
A102: Pumpestationer, bygværker og bassiner 2
A103: Pumpestation (inkl. evt. hydrofor)/trykforøger, Konstruktioner | B103: m³/h | C103: =+Genanskaffelsespriser!$E$175 -> 50 | E103: 1400 | F103: 1400 | G103: Ny data | H103: 0 | I103: Lejre - Hulemølle boosterstation | J103: =IF(E103=0,"Variabel pris",IFERROR((HLOOKUP(E103,'Variable priser'!$C$103:$F$105,2)+(E103-HLOOKUP(E103,'Variable priser'!$C$103:$F$105,1))*HLOOKUP(E103,'Variable priser'!$C$103:$F$105,3))*'Variable priser'!$I$102/E103*(1+Genanskaffelsespriser!$D$203),"Fejl")) -> 781.6558327 | K103: =IF(F103=0,"Variabel pris",IFERROR((HLOOKUP(F103,'Variable priser'!$C$103:$F$105,2)+(F103-HLOOKUP(F103,'Variable priser'!$C$103:$F$105,1))*HLOOKUP(F103,'Variable priser'!$C$103:$F$105,3))*'Variable priser'!$I$102/F103*(1+Genanskaffelsespriser!$D$203),"Fejl")) -> 781.6558327 | L103: =IF(ISBLANK(E103),"",IF(E103=0,"",IF(ISNUMBER(E103),((J103*E103)/$C103)*N103,""))) -> 21886.36332 | M103: =IF(ISBLANK(F103),"",IF(F103=0,"",IF(ISNUMBER(F103),((K103*F103)/$C103)*O103,""))) -> 21886.36332 | N103: 1 | O103: 1
A104: Pumpestation (inkl. evt. hydrofor)/trykforøger, Mek./EL | B104: m³/h | C104: =+Genanskaffelsespriser!$E$176 -> 25 | D104: 0 | E104: 1400 | F104: 1400 | G104: Ny data | H104: 0 | I104: Lejre - Hulemølle boosterstation | J104: =IF(E104=0,"Variabel pris",IFERROR((HLOOKUP(E104,'Variable priser'!$C$103:$F$105,2)+(E104-HLOOKUP(E104,'Variable priser'!$C$103:$F$105,1))*HLOOKUP(E104,'Variable priser'!$C$103:$F$105,3))*'Variable priser'!$J$102/E104*(1+Genanskaffelsespriser!$D$203),"Fejl")) -> 2032.305165 | K104: =IF(F104=0,"Variabel pris",IFERROR((HLOOKUP(F104,'Variable priser'!$C$103:$F$105,2)+(F104-HLOOKUP(F104,'Variable priser'!$C$103:$F$105,1))*HLOOKUP(F104,'Variable priser'!$C$103:$F$105,3))*'Variable priser'!$J$102/F104*(1+Genanskaffelsespriser!$D$203),"Fejl")) -> 2032.305165 | L104: =IF(ISBLANK(E104),"",IF(E104=0,"",IF(ISNUMBER(E104),((J104*E104)/$C104)*N103,""))) -> 113809.0892 | M104: =IF(ISBLANK(F104),"",IF(F104=0,"",IF(ISNUMBER(F104),((K104*F104)/$C104)*O103,""))) -> 113809.0892 | N104: 1 | O104: 1
A105: Pumpestation (inkl. evt. hydrofor)/trykforøger, SRO | B105: m³/h | C105: =+Genanskaffelsespriser!$E$177 -> 10 | D105: 0 | E105: 1400 | F105: 1400 | G105: Ny data | H105: 0 | I105: Lejre - Hulemølle boosterstation | J105: =IF(E105=0,"Variabel pris",IFERROR((HLOOKUP(E105,'Variable priser'!$C$103:$F$105,2)+(E105-HLOOKUP(E105,'Variable priser'!$C$103:$F$105,1))*HLOOKUP(E105,'Variable priser'!$C$103:$F$105,3))*'Variable priser'!$L$102/E105*(1+Genanskaffelsespriser!$D$203),"Fejl")) -> 312.6623331 | K105: =IF(F105=0,"Variabel pris",IFERROR((HLOOKUP(F105,'Variable priser'!$C$103:$F$105,2)+(F105-HLOOKUP(F105,'Variable priser'!$C$103:$F$105,1))*HLOOKUP(F105,'Variable priser'!$C$103:$F$105,3))*'Variable priser'!$L$102/F105*(1+Genanskaffelsespriser!$D$203),"Fejl")) -> 312.6623331 | L105: =IF(ISBLANK(E105),"",IF(E105=0,"",IF(ISNUMBER(E105),((J105*E105)/$C105)*N103,""))) -> 43772.72663 | M105: =IF(ISBLANK(F105),"",IF(F105=0,"Samlet mængde kan ikke være nul i 2025",IF(ISNUMBER(F105),((K105*F105)/$C105)*O103,""))) -> 43772.72663 | N105: 1 | O105: 1
A106: Beholderanlæg - højdebeholder | B106: m³ | C106: =+Genanskaffelsespriser!$E$178 -> 50 | J106: =IF(E106=0,"Variabel pris",IFERROR((HLOOKUP(E106,'Variable priser'!$C$48:$H$50,2)+(E106-HLOOKUP(E106,'Variable priser'!$C$48:$H$50,1))*HLOOKUP(E106,'Variable priser'!$C$48:$H$50,3))/E106*(1+Genanskaffelsespriser!$D$203),"Fejl")) -> Variabel pris | K106: =IF(F106=0,"Variabel pris",IFERROR((HLOOKUP(F106,'Variable priser'!$C$48:$H$50,2)+(F106-HLOOKUP(F106,'Variable priser'!$C$48:$H$50,1))*HLOOKUP(F106,'Variable priser'!$C$48:$H$50,3))/F106*(1+Genanskaffelsespriser!$D$203),"Fejl")) -> Variabel pris | L106: =IF(ISBLANK(E106),"",IF(E106=0,"",IF(ISNUMBER(E106),((J106*E106)/$C106)*N103,""))) ->  | M106: =IF(ISBLANK(F106),"",IF(F106=0,"",IF(ISNUMBER(F106),((K106*F106)/$C106)*O103,""))) ->  | N106: 1 | O106: 1
A107: Beholderanlæg - vandtårn | B107: m³ | C107: =+Genanskaffelsespriser!$E$179 -> 50 | J107: =IF(E107=0,"Variabel pris",IFERROR((HLOOKUP(E107,'Variable priser'!$C$55:$H$57,2)+(E107-HLOOKUP(E107,'Variable priser'!$C$55:$H$57,1))*HLOOKUP(E107,'Variable priser'!$C$55:$H$57,3))/E107*(1+Genanskaffelsespriser!$D$203),"Fejl")) -> Variabel pris | K107: =IF(F107=0,"Variabel pris",IFERROR((HLOOKUP(F107,'Variable priser'!$C$55:$H$57,2)+(F107-HLOOKUP(F107,'Variable priser'!$C$55:$H$57,1))*HLOOKUP(F107,'Variable priser'!$C$55:$H$57,3))/F107*(1+Genanskaffelsespriser!$D$203),"Fejl")) -> Variabel pris | L107: =IF(ISBLANK(E107),"",IF(E107=0,"",IF(ISNUMBER(E107),((J107*E107)/$C107)*N103,""))) ->  | M107: =IF(ISBLANK(F107),"",IF(F107=0,"",IF(ISNUMBER(F107),((K107*F107)/$C107)*O103,""))) ->  | N107: 1 | O107: 1
A108: Pumpestationer, bygværker og bassiner 3
A109: Pumpestation (inkl. evt. hydrofor)/trykforøger, Konstruktioner | B109: m³/h | C109: =+Genanskaffelsespriser!$E$175 -> 50 | J109: =IF(E109=0,"Variabel pris",IFERROR((HLOOKUP(E109,'Variable priser'!$C$103:$F$105,2)+(E109-HLOOKUP(E109,'Variable priser'!$C$103:$F$105,1))*HLOOKUP(E109,'Variable priser'!$C$103:$F$105,3))*'Variable priser'!$I$102/E109*(1+Genanskaffelsespriser!$D$203),"Fejl")) -> Variabel pris | K109: =IF(F109=0,"Variabel pris",IFERROR((HLOOKUP(F109,'Variable priser'!$C$103:$F$105,2)+(F109-HLOOKUP(F109,'Variable priser'!$C$103:$F$105,1))*HLOOKUP(F109,'Variable priser'!$C$103:$F$105,3))*'Variable priser'!$I$102/F109*(1+Genanskaffelsespriser!$D$203),"Fejl")) -> Variabel pris | L109: =IF(ISBLANK(E109),"",IF(E109=0,"",IF(ISNUMBER(E109),((J109*E109)/$C109)*N109,""))) ->  | M109: =IF(ISBLANK(F109),"",IF(F109=0,"",IF(ISNUMBER(F109),((K109*F109)/$C109)*O109,""))) ->  | N109: 1 | O109: 1
A110: Pumpestation (inkl. evt. hydrofor)/trykforøger, Mek./EL | B110: m³/h | C110: =+Genanskaffelsespriser!$E$176 -> 25 | D110: 0 | E110: 0 | F110: 0 | G110: 0 | H110: 0 | I110: revet ned | J110: =IF(E110=0,"Variabel pris",IFERROR((HLOOKUP(E110,'Variable priser'!$C$103:$F$105,2)+(E110-HLOOKUP(E110,'Variable priser'!$C$103:$F$105,1))*HLOOKUP(E110,'Variable priser'!$C$103:$F$105,3))*'Variable priser'!$J$102/E110*(1+Genanskaffelsespriser!$D$203),"Fejl")) -> Variabel pris | K110: =IF(F110=0,"Variabel pris",IFERROR((HLOOKUP(F110,'Variable priser'!$C$103:$F$105,2)+(F110-HLOOKUP(F110,'Variable priser'!$C$103:$F$105,1))*HLOOKUP(F110,'Variable priser'!$C$103:$F$105,3))*'Variable priser'!$J$102/F110*(1+Genanskaffelsespriser!$D$203),"Fejl")) -> Variabel pris | L110: =IF(ISBLANK(E110),"",IF(E110=0,"",IF(ISNUMBER(E110),((J110*E110)/$C110)*N109,""))) ->  | M110: =IF(ISBLANK(F110),"",IF(F110=0,"",IF(ISNUMBER(F110),((K110*F110)/$C110)*O109,""))) ->  | N110: 1 | O110: 1
A111: Pumpestation (inkl. evt. hydrofor)/trykforøger, SRO | B111: m³/h | C111: =+Genanskaffelsespriser!$E$177 -> 10 | D111: 0 | E111: 0 | F111: 0 | G111: 0 | H111: 0 | I111: revet ned | J111: =IF(E111=0,"Variabel pris",IFERROR((HLOOKUP(E111,'Variable priser'!$C$103:$F$105,2)+(E111-HLOOKUP(E111,'Variable priser'!$C$103:$F$105,1))*HLOOKUP(E111,'Variable priser'!$C$103:$F$105,3))*'Variable priser'!$L$102/E111*(1+Genanskaffelsespriser!$D$203),"Fejl")) -> Variabel pris | K111: =IF(F111=0,"Variabel pris",IFERROR((HLOOKUP(F111,'Variable priser'!$C$103:$F$105,2)+(F111-HLOOKUP(F111,'Variable priser'!$C$103:$F$105,1))*HLOOKUP(F111,'Variable priser'!$C$103:$F$105,3))*'Variable priser'!$L$102/F111*(1+Genanskaffelsespriser!$D$203),"Fejl")) -> Variabel pris | L111: =IF(ISBLANK(E111),"",IF(E111=0,"",IF(ISNUMBER(E111),((J111*E111)/$C111)*N109,""))) ->  | M111: =IF(ISBLANK(F111),"",IF(F111=0,"Samlet mængde kan ikke være nul i 2025",IF(ISNUMBER(F111),((K111*F111)/$C111)*O109,""))) -> Samlet mængde kan ikke være nul i 2025 | N111: 1 | O111: 1
A112: Beholderanlæg - højdebeholder | B112: m³ | C112: =+Genanskaffelsespriser!$E$178 -> 50 | J112: =IF(E112=0,"Variabel pris",IFERROR((HLOOKUP(E112,'Variable priser'!$C$48:$H$50,2)+(E112-HLOOKUP(E112,'Variable priser'!$C$48:$H$50,1))*HLOOKUP(E112,'Variable priser'!$C$48:$H$50,3))/E112*(1+Genanskaffelsespriser!$D$203),"Fejl")) -> Variabel pris | K112: =IF(F112=0,"Variabel pris",IFERROR((HLOOKUP(F112,'Variable priser'!$C$48:$H$50,2)+(F112-HLOOKUP(F112,'Variable priser'!$C$48:$H$50,1))*HLOOKUP(F112,'Variable priser'!$C$48:$H$50,3))/F112*(1+Genanskaffelsespriser!$D$203),"Fejl")) -> Variabel pris | L112: =IF(ISBLANK(E112),"",IF(E112=0,"",IF(ISNUMBER(E112),((J112*E112)/$C112)*N109,""))) ->  | M112: =IF(ISBLANK(F112),"",IF(F112=0,"",IF(ISNUMBER(F112),((K112*F112)/$C112)*O109,""))) ->  | N112: 1 | O112: 1
A113: Beholderanlæg - vandtårn | B113: m³ | C113: =+Genanskaffelsespriser!$E$179 -> 50 | J113: =IF(E113=0,"Variabel pris",IFERROR((HLOOKUP(E113,'Variable priser'!$C$55:$H$57,2)+(E113-HLOOKUP(E113,'Variable priser'!$C$55:$H$57,1))*HLOOKUP(E113,'Variable priser'!$C$55:$H$57,3))/E113*(1+Genanskaffelsespriser!$D$203),"Fejl")) -> Variabel pris | K113: =IF(F113=0,"Variabel pris",IFERROR((HLOOKUP(F113,'Variable priser'!$C$55:$H$57,2)+(F113-HLOOKUP(F113,'Variable priser'!$C$55:$H$57,1))*HLOOKUP(F113,'Variable priser'!$C$55:$H$57,3))/F113*(1+Genanskaffelsespriser!$D$203),"Fejl")) -> Variabel pris | L113: =IF(ISBLANK(E113),"",IF(E113=0,"",IF(ISNUMBER(E113),((J113*E113)/$C113)*N109,""))) ->  | M113: =IF(ISBLANK(F113),"",IF(F113=0,"",IF(ISNUMBER(F113),((K113*F113)/$C113)*O109,""))) ->  | N113: 1 | O113: 1
A114: Pumpestationer, bygværker og bassiner 4
A115: Pumpestation (inkl. evt. hydrofor)/trykforøger, Konstruktioner | B115: m³/h | C115: =+Genanskaffelsespriser!$E$175 -> 50 | J115: =IF(E115=0,"Variabel pris",IFERROR((HLOOKUP(E115,'Variable priser'!$C$103:$F$105,2)+(E115-HLOOKUP(E115,'Variable priser'!$C$103:$F$105,1))*HLOOKUP(E115,'Variable priser'!$C$103:$F$105,3))*'Variable priser'!$I$102/E115*(1+Genanskaffelsespriser!$D$203),"Fejl")) -> Variabel pris | K115: =IF(F115=0,"Variabel pris",IFERROR((HLOOKUP(F115,'Variable priser'!$C$103:$F$105,2)+(F115-HLOOKUP(F115,'Variable priser'!$C$103:$F$105,1))*HLOOKUP(F115,'Variable priser'!$C$103:$F$105,3))*'Variable priser'!$I$102/F115*(1+Genanskaffelsespriser!$D$203),"Fejl")) -> Variabel pris | L115: =IF(ISBLANK(E115),"",IF(E115=0,"",IF(ISNUMBER(E115),((J115*E115)/$C115)*N115,""))) ->  | M115: =IF(ISBLANK(F115),"",IF(F115=0,"",IF(ISNUMBER(F115),((K115*F115)/$C115)*O115,""))) ->  | N115: 1 | O115: 1
A116: Pumpestation (inkl. evt. hydrofor)/trykforøger, Mek./EL | B116: m³/h | C116: =+Genanskaffelsespriser!$E$176 -> 25 | D116: 0 | E116: 0 | F116: 0 | G116: 0 | H116: 0 | I116: revet ned | J116: =IF(E116=0,"Variabel pris",IFERROR((HLOOKUP(E116,'Variable priser'!$C$103:$F$105,2)+(E116-HLOOKUP(E116,'Variable priser'!$C$103:$F$105,1))*HLOOKUP(E116,'Variable priser'!$C$103:$F$105,3))*'Variable priser'!$J$102/E116*(1+Genanskaffelsespriser!$D$203),"Fejl")) -> Variabel pris | K116: =IF(F116=0,"Variabel pris",IFERROR((HLOOKUP(F116,'Variable priser'!$C$103:$F$105,2)+(F116-HLOOKUP(F116,'Variable priser'!$C$103:$F$105,1))*HLOOKUP(F116,'Variable priser'!$C$103:$F$105,3))*'Variable priser'!$J$102/F116*(1+Genanskaffelsespriser!$D$203),"Fejl")) -> Variabel pris | L116: =IF(ISBLANK(E116),"",IF(E116=0,"",IF(ISNUMBER(E116),((J116*E116)/$C116)*N115,""))) ->  | M116: =IF(ISBLANK(F116),"",IF(F116=0,"",IF(ISNUMBER(F116),((K116*F116)/$C116)*O115,""))) ->  | N116: 1 | O116: 1
A117: Pumpestation (inkl. evt. hydrofor)/trykforøger, SRO | B117: m³/h | C117: =+Genanskaffelsespriser!$E$177 -> 10 | D117: 0 | E117: 0 | F117: 0 | G117: 0 | H117: 0 | I117: revet ned | J117: =IF(E117=0,"Variabel pris",IFERROR((HLOOKUP(E117,'Variable priser'!$C$103:$F$105,2)+(E117-HLOOKUP(E117,'Variable priser'!$C$103:$F$105,1))*HLOOKUP(E117,'Variable priser'!$C$103:$F$105,3))*'Variable priser'!$L$102/E117*(1+Genanskaffelsespriser!$D$203),"Fejl")) -> Variabel pris | K117: =IF(F117=0,"Variabel pris",IFERROR((HLOOKUP(F117,'Variable priser'!$C$103:$F$105,2)+(F117-HLOOKUP(F117,'Variable priser'!$C$103:$F$105,1))*HLOOKUP(F117,'Variable priser'!$C$103:$F$105,3))*'Variable priser'!$L$102/F117*(1+Genanskaffelsespriser!$D$203),"Fejl")) -> Variabel pris | L117: =IF(ISBLANK(E117),"",IF(E117=0,"",IF(ISNUMBER(E117),((J117*E117)/$C117)*N115,""))) ->  | M117: =IF(ISBLANK(F117),"",IF(F117=0,"Samlet mængde kan ikke være nul i 2025",IF(ISNUMBER(F117),((K117*F117)/$C117)*O115,""))) -> Samlet mængde kan ikke være nul i 2025 | N117: 1 | O117: 1
A118: Beholderanlæg - højdebeholder | B118: m³ | C118: =+Genanskaffelsespriser!$E$178 -> 50 | J118: =IF(E118=0,"Variabel pris",IFERROR((HLOOKUP(E118,'Variable priser'!$C$48:$H$50,2)+(E118-HLOOKUP(E118,'Variable priser'!$C$48:$H$50,1))*HLOOKUP(E118,'Variable priser'!$C$48:$H$50,3))/E118*(1+Genanskaffelsespriser!$D$203),"Fejl")) -> Variabel pris | K118: =IF(F118=0,"Variabel pris",IFERROR((HLOOKUP(F118,'Variable priser'!$C$48:$H$50,2)+(F118-HLOOKUP(F118,'Variable priser'!$C$48:$H$50,1))*HLOOKUP(F118,'Variable priser'!$C$48:$H$50,3))/F118*(1+Genanskaffelsespriser!$D$203),"Fejl")) -> Variabel pris | L118: =IF(ISBLANK(E118),"",IF(E118=0,"",IF(ISNUMBER(E118),((J118*E118)/$C118)*N115,""))) ->  | M118: =IF(ISBLANK(F118),"",IF(F118=0,"",IF(ISNUMBER(F118),((K118*F118)/$C118)*O115,""))) ->  | N118: 1 | O118: 1
A119: Beholderanlæg - vandtårn | B119: m³ | C119: =+Genanskaffelsespriser!$E$179 -> 50 | J119: =IF(E119=0,"Variabel pris",IFERROR((HLOOKUP(E119,'Variable priser'!$C$55:$H$57,2)+(E119-HLOOKUP(E119,'Variable priser'!$C$55:$H$57,1))*HLOOKUP(E119,'Variable priser'!$C$55:$H$57,3))/E119*(1+Genanskaffelsespriser!$D$203),"Fejl")) -> Variabel pris | K119: =IF(F119=0,"Variabel pris",IFERROR((HLOOKUP(F119,'Variable priser'!$C$55:$H$57,2)+(F119-HLOOKUP(F119,'Variable priser'!$C$55:$H$57,1))*HLOOKUP(F119,'Variable priser'!$C$55:$H$57,3))/F119*(1+Genanskaffelsespriser!$D$203),"Fejl")) -> Variabel pris | L119: =IF(ISBLANK(E119),"",IF(E119=0,"",IF(ISNUMBER(E119),((J119*E119)/$C119)*N115,""))) ->  | M119: =IF(ISBLANK(F119),"",IF(F119=0,"",IF(ISNUMBER(F119),((K119*F119)/$C119)*O115,""))) ->  | N119: 1 | O119: 1
A120: Pumpestationer, bygværker og bassiner 5
A121: Pumpestation (inkl. evt. hydrofor)/trykforøger, Konstruktioner | B121: m³/h | C121: =+Genanskaffelsespriser!$E$175 -> 50 | J121: =IF(E121=0,"Variabel pris",IFERROR((HLOOKUP(E121,'Variable priser'!$C$103:$F$105,2)+(E121-HLOOKUP(E121,'Variable priser'!$C$103:$F$105,1))*HLOOKUP(E121,'Variable priser'!$C$103:$F$105,3))*'Variable priser'!$I$102/E121*(1+Genanskaffelsespriser!$D$203),"Fejl")) -> Variabel pris | K121: =IF(F121=0,"Variabel pris",IFERROR((HLOOKUP(F121,'Variable priser'!$C$103:$F$105,2)+(F121-HLOOKUP(F121,'Variable priser'!$C$103:$F$105,1))*HLOOKUP(F121,'Variable priser'!$C$103:$F$105,3))*'Variable priser'!$I$102/F121*(1+Genanskaffelsespriser!$D$203),"Fejl")) -> Variabel pris | L121: =IF(ISBLANK(E121),"",IF(E121=0,"",IF(ISNUMBER(E121),((J121*E121)/$C121)*N121,""))) ->  | M121: =IF(ISBLANK(F121),"",IF(F121=0,"",IF(ISNUMBER(F121),((K121*F121)/$C121)*O121,""))) ->  | N121: 1 | O121: 1
A122: Pumpestation (inkl. evt. hydrofor)/trykforøger, Mek./EL | B122: m³/h | C122: =+Genanskaffelsespriser!$E$176 -> 25 | D122: 160 | E122: 0 | F122: 0 | G122: -1 | H122: 0 | I122: fejl i tidligere indberetning | J122: =IF(E122=0,"Variabel pris",IFERROR((HLOOKUP(E122,'Variable priser'!$C$103:$F$105,2)+(E122-HLOOKUP(E122,'Variable priser'!$C$103:$F$105,1))*HLOOKUP(E122,'Variable priser'!$C$103:$F$105,3))*'Variable priser'!$J$102/E122*(1+Genanskaffelsespriser!$D$203),"Fejl")) -> Variabel pris | K122: =IF(F122=0,"Variabel pris",IFERROR((HLOOKUP(F122,'Variable priser'!$C$103:$F$105,2)+(F122-HLOOKUP(F122,'Variable priser'!$C$103:$F$105,1))*HLOOKUP(F122,'Variable priser'!$C$103:$F$105,3))*'Variable priser'!$J$102/F122*(1+Genanskaffelsespriser!$D$203),"Fejl")) -> Variabel pris | L122: =IF(ISBLANK(E122),"",IF(E122=0,"",IF(ISNUMBER(E122),((J122*E122)/$C122)*N121,""))) ->  | M122: =IF(ISBLANK(F122),"",IF(F122=0,"",IF(ISNUMBER(F122),((K122*F122)/$C122)*O121,""))) ->  | N122: 1 | O122: 1
A123: Pumpestation (inkl. evt. hydrofor)/trykforøger, SRO | B123: m³/h | C123: =+Genanskaffelsespriser!$E$177 -> 10 | D123: 160 | E123: 0 | F123: 0 | G123: -1 | H123: 0 | I123: fejl i tidligere indberetning | J123: =IF(E123=0,"Variabel pris",IFERROR((HLOOKUP(E123,'Variable priser'!$C$103:$F$105,2)+(E123-HLOOKUP(E123,'Variable priser'!$C$103:$F$105,1))*HLOOKUP(E123,'Variable priser'!$C$103:$F$105,3))*'Variable priser'!$L$102/E123*(1+Genanskaffelsespriser!$D$203),"Fejl")) -> Variabel pris | K123: =IF(F123=0,"Variabel pris",IFERROR((HLOOKUP(F123,'Variable priser'!$C$103:$F$105,2)+(F123-HLOOKUP(F123,'Variable priser'!$C$103:$F$105,1))*HLOOKUP(F123,'Variable priser'!$C$103:$F$105,3))*'Variable priser'!$L$102/F123*(1+Genanskaffelsespriser!$D$203),"Fejl")) -> Variabel pris | L123: =IF(ISBLANK(E123),"",IF(E123=0,"",IF(ISNUMBER(E123),((J123*E123)/$C123)*N121,""))) ->  | M123: =IF(ISBLANK(F123),"",IF(F123=0,"Samlet mængde kan ikke være nul i 2025",IF(ISNUMBER(F123),((K123*F123)/$C123)*O121,""))) -> Samlet mængde kan ikke være nul i 2025 | N123: 1 | O123: 1
A124: Beholderanlæg - højdebeholder | B124: m³ | C124: =+Genanskaffelsespriser!$E$178 -> 50 | J124: =IF(E124=0,"Variabel pris",IFERROR((HLOOKUP(E124,'Variable priser'!$C$48:$H$50,2)+(E124-HLOOKUP(E124,'Variable priser'!$C$48:$H$50,1))*HLOOKUP(E124,'Variable priser'!$C$48:$H$50,3))/E124*(1+Genanskaffelsespriser!$D$203),"Fejl")) -> Variabel pris | K124: =IF(F124=0,"Variabel pris",IFERROR((HLOOKUP(F124,'Variable priser'!$C$48:$H$50,2)+(F124-HLOOKUP(F124,'Variable priser'!$C$48:$H$50,1))*HLOOKUP(F124,'Variable priser'!$C$48:$H$50,3))/F124*(1+Genanskaffelsespriser!$D$203),"Fejl")) -> Variabel pris | L124: =IF(ISBLANK(E124),"",IF(E124=0,"",IF(ISNUMBER(E124),((J124*E124)/$C124)*N121,""))) ->  | M124: =IF(ISBLANK(F124),"",IF(F124=0,"",IF(ISNUMBER(F124),((K124*F124)/$C124)*O121,""))) ->  | N124: 1 | O124: 1
A125: Beholderanlæg - vandtårn | B125: m³ | C125: =+Genanskaffelsespriser!$E$179 -> 50 | J125: =IF(E125=0,"Variabel pris",IFERROR((HLOOKUP(E125,'Variable priser'!$C$55:$H$57,2)+(E125-HLOOKUP(E125,'Variable priser'!$C$55:$H$57,1))*HLOOKUP(E125,'Variable priser'!$C$55:$H$57,3))/E125*(1+Genanskaffelsespriser!$D$203),"Fejl")) -> Variabel pris | K125: =IF(F125=0,"Variabel pris",IFERROR((HLOOKUP(F125,'Variable priser'!$C$55:$H$57,2)+(F125-HLOOKUP(F125,'Variable priser'!$C$55:$H$57,1))*HLOOKUP(F125,'Variable priser'!$C$55:$H$57,3))/F125*(1+Genanskaffelsespriser!$D$203),"Fejl")) -> Variabel pris | L125: =IF(ISBLANK(E125),"",IF(E125=0,"",IF(ISNUMBER(E125),((J125*E125)/$C125)*N121,""))) ->  | M125: =IF(ISBLANK(F125),"",IF(F125=0,"",IF(ISNUMBER(F125),((K125*F125)/$C125)*O121,""))) ->  | N125: 1 | O125: 1
A126: Pumpestationer, bygværker og bassiner 6
A127: Pumpestation (inkl. evt. hydrofor)/trykforøger, Konstruktioner | B127: m³/h | C127: =+Genanskaffelsespriser!$E$175 -> 50 | J127: =IF(E127=0,"Variabel pris",IFERROR((HLOOKUP(E127,'Variable priser'!$C$103:$F$105,2)+(E127-HLOOKUP(E127,'Variable priser'!$C$103:$F$105,1))*HLOOKUP(E127,'Variable priser'!$C$103:$F$105,3))*'Variable priser'!$I$102/E127*(1+Genanskaffelsespriser!$D$203),"Fejl")) -> Variabel pris | K127: =IF(F127=0,"Variabel pris",IFERROR((HLOOKUP(F127,'Variable priser'!$C$103:$F$105,2)+(F127-HLOOKUP(F127,'Variable priser'!$C$103:$F$105,1))*HLOOKUP(F127,'Variable priser'!$C$103:$F$105,3))*'Variable priser'!$I$102/F127*(1+Genanskaffelsespriser!$D$203),"Fejl")) -> Variabel pris | L127: =IF(ISBLANK(E127),"",IF(E127=0,"",IF(ISNUMBER(E127),((J127*E127)/$C127)*N127,""))) ->  | M127: =IF(ISBLANK(F127),"",IF(F127=0,"",IF(ISNUMBER(F127),((K127*F127)/$C127)*O127,""))) ->  | N127: 1 | O127: 1
A128: Pumpestation (inkl. evt. hydrofor)/trykforøger, Mek./EL | B128: m³/h | C128: =+Genanskaffelsespriser!$E$176 -> 25 | D128: 0 | E128: 0 | F128: 0 | G128: 0 | H128: 0 | I128: revet ned | J128: =IF(E128=0,"Variabel pris",IFERROR((HLOOKUP(E128,'Variable priser'!$C$103:$F$105,2)+(E128-HLOOKUP(E128,'Variable priser'!$C$103:$F$105,1))*HLOOKUP(E128,'Variable priser'!$C$103:$F$105,3))*'Variable priser'!$J$102/E128*(1+Genanskaffelsespriser!$D$203),"Fejl")) -> Variabel pris | K128: =IF(F128=0,"Variabel pris",IFERROR((HLOOKUP(F128,'Variable priser'!$C$103:$F$105,2)+(F128-HLOOKUP(F128,'Variable priser'!$C$103:$F$105,1))*HLOOKUP(F128,'Variable priser'!$C$103:$F$105,3))*'Variable priser'!$J$102/F128*(1+Genanskaffelsespriser!$D$203),"Fejl")) -> Variabel pris | L128: =IF(ISBLANK(E128),"",IF(E128=0,"",IF(ISNUMBER(E128),((J128*E128)/$C128)*N127,""))) ->  | M128: =IF(ISBLANK(F128),"",IF(F128=0,"",IF(ISNUMBER(F128),((K128*F128)/$C128)*O127,""))) ->  | N128: 1 | O128: 1
A129: Pumpestation (inkl. evt. hydrofor)/trykforøger, SRO | B129: m³/h | C129: =+Genanskaffelsespriser!$E$177 -> 10 | D129: 0 | E129: 0 | F129: 0 | G129: 0 | H129: 0 | I129: revet ned | J129: =IF(E129=0,"Variabel pris",IFERROR((HLOOKUP(E129,'Variable priser'!$C$103:$F$105,2)+(E129-HLOOKUP(E129,'Variable priser'!$C$103:$F$105,1))*HLOOKUP(E129,'Variable priser'!$C$103:$F$105,3))*'Variable priser'!$L$102/E129*(1+Genanskaffelsespriser!$D$203),"Fejl")) -> Variabel pris | K129: =IF(F129=0,"Variabel pris",IFERROR((HLOOKUP(F129,'Variable priser'!$C$103:$F$105,2)+(F129-HLOOKUP(F129,'Variable priser'!$C$103:$F$105,1))*HLOOKUP(F129,'Variable priser'!$C$103:$F$105,3))*'Variable priser'!$L$102/F129*(1+Genanskaffelsespriser!$D$203),"Fejl")) -> Variabel pris | L129: =IF(ISBLANK(E129),"",IF(E129=0,"",IF(ISNUMBER(E129),((J129*E129)/$C129)*N127,""))) ->  | M129: =IF(ISBLANK(F129),"",IF(F129=0,"Samlet mængde kan ikke være nul i 2025",IF(ISNUMBER(F129),((K129*F129)/$C129)*O127,""))) -> Samlet mængde kan ikke være nul i 2025 | N129: 1 | O129: 1
A130: Beholderanlæg - højdebeholder | B130: m³ | C130: =+Genanskaffelsespriser!$E$178 -> 50 | J130: =IF(E130=0,"Variabel pris",IFERROR((HLOOKUP(E130,'Variable priser'!$C$48:$H$50,2)+(E130-HLOOKUP(E130,'Variable priser'!$C$48:$H$50,1))*HLOOKUP(E130,'Variable priser'!$C$48:$H$50,3))/E130*(1+Genanskaffelsespriser!$D$203),"Fejl")) -> Variabel pris | K130: =IF(F130=0,"Variabel pris",IFERROR((HLOOKUP(F130,'Variable priser'!$C$48:$H$50,2)+(F130-HLOOKUP(F130,'Variable priser'!$C$48:$H$50,1))*HLOOKUP(F130,'Variable priser'!$C$48:$H$50,3))/F130*(1+Genanskaffelsespriser!$D$203),"Fejl")) -> Variabel pris | L130: =IF(ISBLANK(E130),"",IF(E130=0,"",IF(ISNUMBER(E130),((J130*E130)/$C130)*N127,""))) ->  | M130: =IF(ISBLANK(F130),"",IF(F130=0,"",IF(ISNUMBER(F130),((K130*F130)/$C130)*O127,""))) ->  | N130: 1 | O130: 1
A131: Beholderanlæg - vandtårn | B131: m³ | C131: =+Genanskaffelsespriser!$E$179 -> 50 | J131: =IF(E131=0,"Variabel pris",IFERROR((HLOOKUP(E131,'Variable priser'!$C$55:$H$57,2)+(E131-HLOOKUP(E131,'Variable priser'!$C$55:$H$57,1))*HLOOKUP(E131,'Variable priser'!$C$55:$H$57,3))/E131*(1+Genanskaffelsespriser!$D$203),"Fejl")) -> Variabel pris | K131: =IF(F131=0,"Variabel pris",IFERROR((HLOOKUP(F131,'Variable priser'!$C$55:$H$57,2)+(F131-HLOOKUP(F131,'Variable priser'!$C$55:$H$57,1))*HLOOKUP(F131,'Variable priser'!$C$55:$H$57,3))/F131*(1+Genanskaffelsespriser!$D$203),"Fejl")) -> Variabel pris | L131: =IF(ISBLANK(E131),"",IF(E131=0,"",IF(ISNUMBER(E131),((J131*E131)/$C131)*N127,""))) ->  | M131: =IF(ISBLANK(F131),"",IF(F131=0,"",IF(ISNUMBER(F131),((K131*F131)/$C131)*O127,""))) ->  | N131: 1 | O131: 1
A132: Pumpestationer, bygværker og bassiner 7
A133: Pumpestation (inkl. evt. hydrofor)/trykforøger, Konstruktioner | B133: m³/h | C133: =+Genanskaffelsespriser!$E$175 -> 50 | E133: 114 | F133: 114 | G133: Ny data | H133: 0 | I133: fejl ikke med tidligere | J133: =IF(E133=0,"Variabel pris",IFERROR((HLOOKUP(E133,'Variable priser'!$C$103:$F$105,2)+(E133-HLOOKUP(E133,'Variable priser'!$C$103:$F$105,1))*HLOOKUP(E133,'Variable priser'!$C$103:$F$105,3))*'Variable priser'!$I$102/E133*(1+Genanskaffelsespriser!$D$203),"Fejl")) -> 1096.775682 | K133: =IF(F133=0,"Variabel pris",IFERROR((HLOOKUP(F133,'Variable priser'!$C$103:$F$105,2)+(F133-HLOOKUP(F133,'Variable priser'!$C$103:$F$105,1))*HLOOKUP(F133,'Variable priser'!$C$103:$F$105,3))*'Variable priser'!$I$102/F133*(1+Genanskaffelsespriser!$D$203),"Fejl")) -> 1096.775682 | L133: =IF(ISBLANK(E133),"",IF(E133=0,"",IF(ISNUMBER(E133),((J133*E133)/$C133)*N133,""))) -> 2500.648555 | M133: =IF(ISBLANK(F133),"",IF(F133=0,"",IF(ISNUMBER(F133),((K133*F133)/$C133)*O133,""))) -> 2500.648555 | N133: 1 | O133: 1
A134: Pumpestation (inkl. evt. hydrofor)/trykforøger, Mek./EL | B134: m³/h | C134: =+Genanskaffelsespriser!$E$176 -> 25 | D134: 1000 | E134: 114 | F134: 114 | G134: -0.886 | H134: 0 | I134: Gevninge booster er slået sammen med Kornerup | J134: =IF(E134=0,"Variabel pris",IFERROR((HLOOKUP(E134,'Variable priser'!$C$103:$F$105,2)+(E134-HLOOKUP(E134,'Variable priser'!$C$103:$F$105,1))*HLOOKUP(E134,'Variable priser'!$C$103:$F$105,3))*'Variable priser'!$J$102/E134*(1+Genanskaffelsespriser!$D$203),"Fejl")) -> 2851.616773 | K134: =IF(F134=0,"Variabel pris",IFERROR((HLOOKUP(F134,'Variable priser'!$C$103:$F$105,2)+(F134-HLOOKUP(F134,'Variable priser'!$C$103:$F$105,1))*HLOOKUP(F134,'Variable priser'!$C$103:$F$105,3))*'Variable priser'!$J$102/F134*(1+Genanskaffelsespriser!$D$203),"Fejl")) -> 2851.616773 | L134: =IF(ISBLANK(E134),"",IF(E134=0,"",IF(ISNUMBER(E134),((J134*E134)/$C134)*N133,""))) -> 13003.37248 | M134: =IF(ISBLANK(F134),"",IF(F134=0,"",IF(ISNUMBER(F134),((K134*F134)/$C134)*O133,""))) -> 13003.37248 | N134: 1 | O134: 1
A135: Pumpestation (inkl. evt. hydrofor)/trykforøger, SRO | B135: m³/h | C135: =+Genanskaffelsespriser!$E$177 -> 10 | D135: 1000 | E135: 114 | F135: 114 | G135: -0.886 | H135: 0 | I135: Gevninge booster er slået sammen med Kornerup | J135: =IF(E135=0,"Variabel pris",IFERROR((HLOOKUP(E135,'Variable priser'!$C$103:$F$105,2)+(E135-HLOOKUP(E135,'Variable priser'!$C$103:$F$105,1))*HLOOKUP(E135,'Variable priser'!$C$103:$F$105,3))*'Variable priser'!$L$102/E135*(1+Genanskaffelsespriser!$D$203),"Fejl")) -> 438.7102727 | K135: =IF(F135=0,"Variabel pris",IFERROR((HLOOKUP(F135,'Variable priser'!$C$103:$F$105,2)+(F135-HLOOKUP(F135,'Variable priser'!$C$103:$F$105,1))*HLOOKUP(F135,'Variable priser'!$C$103:$F$105,3))*'Variable priser'!$L$102/F135*(1+Genanskaffelsespriser!$D$203),"Fejl")) -> 438.7102727 | L135: =IF(ISBLANK(E135),"",IF(E135=0,"",IF(ISNUMBER(E135),((J135*E135)/$C135)*N133,""))) -> 5001.297109 | M135: =IF(ISBLANK(F135),"",IF(F135=0,"Samlet mængde kan ikke være nul i 2025",IF(ISNUMBER(F135),((K135*F135)/$C135)*O133,""))) -> 5001.297109 | N135: 1 | O135: 1
A136: Beholderanlæg - højdebeholder | B136: m³ | C136: =+Genanskaffelsespriser!$E$178 -> 50 | J136: =IF(E136=0,"Variabel pris",IFERROR((HLOOKUP(E136,'Variable priser'!$C$48:$H$50,2)+(E136-HLOOKUP(E136,'Variable priser'!$C$48:$H$50,1))*HLOOKUP(E136,'Variable priser'!$C$48:$H$50,3))/E136*(1+Genanskaffelsespriser!$D$203),"Fejl")) -> Variabel pris | K136: =IF(F136=0,"Variabel pris",IFERROR((HLOOKUP(F136,'Variable priser'!$C$48:$H$50,2)+(F136-HLOOKUP(F136,'Variable priser'!$C$48:$H$50,1))*HLOOKUP(F136,'Variable priser'!$C$48:$H$50,3))/F136*(1+Genanskaffelsespriser!$D$203),"Fejl")) -> Variabel pris | L136: =IF(ISBLANK(E136),"",IF(E136=0,"",IF(ISNUMBER(E136),((J136*E136)/$C136)*N133,""))) ->  | M136: =IF(ISBLANK(F136),"",IF(F136=0,"",IF(ISNUMBER(F136),((K136*F136)/$C136)*O133,""))) ->  | N136: 1 | O136: 1
A137: Beholderanlæg - vandtårn | B137: m³ | C137: =+Genanskaffelsespriser!$E$179 -> 50 | J137: =IF(E137=0,"Variabel pris",IFERROR((HLOOKUP(E137,'Variable priser'!$C$55:$H$57,2)+(E137-HLOOKUP(E137,'Variable priser'!$C$55:$H$57,1))*HLOOKUP(E137,'Variable priser'!$C$55:$H$57,3))/E137*(1+Genanskaffelsespriser!$D$203),"Fejl")) -> Variabel pris | K137: =IF(F137=0,"Variabel pris",IFERROR((HLOOKUP(F137,'Variable priser'!$C$55:$H$57,2)+(F137-HLOOKUP(F137,'Variable priser'!$C$55:$H$57,1))*HLOOKUP(F137,'Variable priser'!$C$55:$H$57,3))/F137*(1+Genanskaffelsespriser!$D$203),"Fejl")) -> Variabel pris | L137: =IF(ISBLANK(E137),"",IF(E137=0,"",IF(ISNUMBER(E137),((J137*E137)/$C137)*N133,""))) ->  | M137: =IF(ISBLANK(F137),"",IF(F137=0,"",IF(ISNUMBER(F137),((K137*F137)/$C137)*O133,""))) ->  | N137: 1 | O137: 1
A138: Pumpestationer, bygværker og bassiner 8
A139: Pumpestation (inkl. evt. hydrofor)/trykforøger, Konstruktioner | B139: m³/h | C139: =+Genanskaffelsespriser!$E$175 -> 50 | J139: =IF(E139=0,"Variabel pris",IFERROR((HLOOKUP(E139,'Variable priser'!$C$103:$F$105,2)+(E139-HLOOKUP(E139,'Variable priser'!$C$103:$F$105,1))*HLOOKUP(E139,'Variable priser'!$C$103:$F$105,3))*'Variable priser'!$I$102/E139*(1+Genanskaffelsespriser!$D$203),"Fejl")) -> Variabel pris | K139: =IF(F139=0,"Variabel pris",IFERROR((HLOOKUP(F139,'Variable priser'!$C$103:$F$105,2)+(F139-HLOOKUP(F139,'Variable priser'!$C$103:$F$105,1))*HLOOKUP(F139,'Variable priser'!$C$103:$F$105,3))*'Variable priser'!$I$102/F139*(1+Genanskaffelsespriser!$D$203),"Fejl")) -> Variabel pris | L139: =IF(ISBLANK(E139),"",IF(E139=0,"",IF(ISNUMBER(E139),((J139*E139)/$C139)*N139,""))) ->  | M139: =IF(ISBLANK(F139),"",IF(F139=0,"",IF(ISNUMBER(F139),((K139*F139)/$C139)*O139,""))) ->  | N139: 1 | O139: 1
A140: Pumpestation (inkl. evt. hydrofor)/trykforøger, Mek./EL | B140: m³/h | C140: =+Genanskaffelsespriser!$E$176 -> 25 | D140: 740 | E140: 0 | F140: 0 | G140: -1 | H140: 0 | I140: konverteret til dykpumpeanlæg | J140: =IF(E140=0,"Variabel pris",IFERROR((HLOOKUP(E140,'Variable priser'!$C$103:$F$105,2)+(E140-HLOOKUP(E140,'Variable priser'!$C$103:$F$105,1))*HLOOKUP(E140,'Variable priser'!$C$103:$F$105,3))*'Variable priser'!$J$102/E140*(1+Genanskaffelsespriser!$D$203),"Fejl")) -> Variabel pris | K140: =IF(F140=0,"Variabel pris",IFERROR((HLOOKUP(F140,'Variable priser'!$C$103:$F$105,2)+(F140-HLOOKUP(F140,'Variable priser'!$C$103:$F$105,1))*HLOOKUP(F140,'Variable priser'!$C$103:$F$105,3))*'Variable priser'!$J$102/F140*(1+Genanskaffelsespriser!$D$203),"Fejl")) -> Variabel pris | L140: =IF(ISBLANK(E140),"",IF(E140=0,"",IF(ISNUMBER(E140),((J140*E140)/$C140)*N139,""))) ->  | M140: =IF(ISBLANK(F140),"",IF(F140=0,"",IF(ISNUMBER(F140),((K140*F140)/$C140)*O139,""))) ->  | N140: 1 | O140: 1
A141: Pumpestation (inkl. evt. hydrofor)/trykforøger, SRO | B141: m³/h | C141: =+Genanskaffelsespriser!$E$177 -> 10 | D141: 740 | E141: 0 | F141: 0 | G141: -1 | H141: 0 | I141: konverteret til dykpumpeanlæg | J141: =IF(E141=0,"Variabel pris",IFERROR((HLOOKUP(E141,'Variable priser'!$C$103:$F$105,2)+(E141-HLOOKUP(E141,'Variable priser'!$C$103:$F$105,1))*HLOOKUP(E141,'Variable priser'!$C$103:$F$105,3))*'Variable priser'!$L$102/E141*(1+Genanskaffelsespriser!$D$203),"Fejl")) -> Variabel pris | K141: =IF(F141=0,"Variabel pris",IFERROR((HLOOKUP(F141,'Variable priser'!$C$103:$F$105,2)+(F141-HLOOKUP(F141,'Variable priser'!$C$103:$F$105,1))*HLOOKUP(F141,'Variable priser'!$C$103:$F$105,3))*'Variable priser'!$L$102/F141*(1+Genanskaffelsespriser!$D$203),"Fejl")) -> Variabel pris | L141: =IF(ISBLANK(E141),"",IF(E141=0,"",IF(ISNUMBER(E141),((J141*E141)/$C141)*N139,""))) ->  | M141: =IF(ISBLANK(F141),"",IF(F141=0,"Samlet mængde kan ikke være nul i 2025",IF(ISNUMBER(F141),((K141*F141)/$C141)*O139,""))) -> Samlet mængde kan ikke være nul i 2025 | N141: 1 | O141: 1
A142: Beholderanlæg - højdebeholder | B142: m³ | C142: =+Genanskaffelsespriser!$E$178 -> 50 | J142: =IF(E142=0,"Variabel pris",IFERROR((HLOOKUP(E142,'Variable priser'!$C$48:$H$50,2)+(E142-HLOOKUP(E142,'Variable priser'!$C$48:$H$50,1))*HLOOKUP(E142,'Variable priser'!$C$48:$H$50,3))/E142*(1+Genanskaffelsespriser!$D$203),"Fejl")) -> Variabel pris | K142: =IF(F142=0,"Variabel pris",IFERROR((HLOOKUP(F142,'Variable priser'!$C$48:$H$50,2)+(F142-HLOOKUP(F142,'Variable priser'!$C$48:$H$50,1))*HLOOKUP(F142,'Variable priser'!$C$48:$H$50,3))/F142*(1+Genanskaffelsespriser!$D$203),"Fejl")) -> Variabel pris | L142: =IF(ISBLANK(E142),"",IF(E142=0,"",IF(ISNUMBER(E142),((J142*E142)/$C142)*N139,""))) ->  | M142: =IF(ISBLANK(F142),"",IF(F142=0,"",IF(ISNUMBER(F142),((K142*F142)/$C142)*O139,""))) ->  | N142: 1 | O142: 1
A143: Beholderanlæg - vandtårn | B143: m³ | C143: =+Genanskaffelsespriser!$E$179 -> 50 | J143: =IF(E143=0,"Variabel pris",IFERROR((HLOOKUP(E143,'Variable priser'!$C$55:$H$57,2)+(E143-HLOOKUP(E143,'Variable priser'!$C$55:$H$57,1))*HLOOKUP(E143,'Variable priser'!$C$55:$H$57,3))/E143*(1+Genanskaffelsespriser!$D$203),"Fejl")) -> Variabel pris | K143: =IF(F143=0,"Variabel pris",IFERROR((HLOOKUP(F143,'Variable priser'!$C$55:$H$57,2)+(F143-HLOOKUP(F143,'Variable priser'!$C$55:$H$57,1))*HLOOKUP(F143,'Variable priser'!$C$55:$H$57,3))/F143*(1+Genanskaffelsespriser!$D$203),"Fejl")) -> Variabel pris | L143: =IF(ISBLANK(E143),"",IF(E143=0,"",IF(ISNUMBER(E143),((J143*E143)/$C143)*N139,""))) ->  | M143: =IF(ISBLANK(F143),"",IF(F143=0,"",IF(ISNUMBER(F143),((K143*F143)/$C143)*O139,""))) ->  | N143: 1 | O143: 1
A144: Pumpestationer, bygværker og bassiner 9
A145: Pumpestation (inkl. evt. hydrofor)/trykforøger, Konstruktioner | B145: m³/h | C145: =+Genanskaffelsespriser!$E$175 -> 50 | E145: 205 | F145: 205 | G145: Ny data | H145: 0 | I145: fejl ikke med tidligere | J145: =IF(E145=0,"Variabel pris",IFERROR((HLOOKUP(E145,'Variable priser'!$C$103:$F$105,2)+(E145-HLOOKUP(E145,'Variable priser'!$C$103:$F$105,1))*HLOOKUP(E145,'Variable priser'!$C$103:$F$105,3))*'Variable priser'!$I$102/E145*(1+Genanskaffelsespriser!$D$203),"Fejl")) -> 944.4930555 | K145: =IF(F145=0,"Variabel pris",IFERROR((HLOOKUP(F145,'Variable priser'!$C$103:$F$105,2)+(F145-HLOOKUP(F145,'Variable priser'!$C$103:$F$105,1))*HLOOKUP(F145,'Variable priser'!$C$103:$F$105,3))*'Variable priser'!$I$102/F145*(1+Genanskaffelsespriser!$D$203),"Fejl")) -> 944.4930555 | L145: =IF(ISBLANK(E145),"",IF(E145=0,"",IF(ISNUMBER(E145),((J145*E145)/$C145)*N145,""))) -> 3872.421528 | M145: =IF(ISBLANK(F145),"",IF(F145=0,"",IF(ISNUMBER(F145),((K145*F145)/$C145)*O145,""))) -> 3872.421528 | N145: 1 | O145: 1
A146: Pumpestation (inkl. evt. hydrofor)/trykforøger, Mek./EL | B146: m³/h | C146: =+Genanskaffelsespriser!$E$176 -> 25 | D146: 850 | E146: 205 | F146: 205 | G146: -0.7588235294 | H146: 0 | I146: Gevninge booster er slået sammen med Kornerup | J146: =IF(E146=0,"Variabel pris",IFERROR((HLOOKUP(E146,'Variable priser'!$C$103:$F$105,2)+(E146-HLOOKUP(E146,'Variable priser'!$C$103:$F$105,1))*HLOOKUP(E146,'Variable priser'!$C$103:$F$105,3))*'Variable priser'!$J$102/E146*(1+Genanskaffelsespriser!$D$203),"Fejl")) -> 2455.681944 | K146: =IF(F146=0,"Variabel pris",IFERROR((HLOOKUP(F146,'Variable priser'!$C$103:$F$105,2)+(F146-HLOOKUP(F146,'Variable priser'!$C$103:$F$105,1))*HLOOKUP(F146,'Variable priser'!$C$103:$F$105,3))*'Variable priser'!$J$102/F146*(1+Genanskaffelsespriser!$D$203),"Fejl")) -> 2455.681944 | L146: =IF(ISBLANK(E146),"",IF(E146=0,"",IF(ISNUMBER(E146),((J146*E146)/$C146)*N145,""))) -> 20136.59194 | M146: =IF(ISBLANK(F146),"",IF(F146=0,"",IF(ISNUMBER(F146),((K146*F146)/$C146)*O145,""))) -> 20136.59194 | N146: 1 | O146: 1
A147: Pumpestation (inkl. evt. hydrofor)/trykforøger, SRO | B147: m³/h | C147: =+Genanskaffelsespriser!$E$177 -> 10 | D147: 850 | E147: 205 | F147: 205 | G147: -0.7588235294 | H147: 0 | I147: Gevninge booster er slået sammen med Kornerup | J147: =IF(E147=0,"Variabel pris",IFERROR((HLOOKUP(E147,'Variable priser'!$C$103:$F$105,2)+(E147-HLOOKUP(E147,'Variable priser'!$C$103:$F$105,1))*HLOOKUP(E147,'Variable priser'!$C$103:$F$105,3))*'Variable priser'!$L$102/E147*(1+Genanskaffelsespriser!$D$203),"Fejl")) -> 377.7972222 | K147: =IF(F147=0,"Variabel pris",IFERROR((HLOOKUP(F147,'Variable priser'!$C$103:$F$105,2)+(F147-HLOOKUP(F147,'Variable priser'!$C$103:$F$105,1))*HLOOKUP(F147,'Variable priser'!$C$103:$F$105,3))*'Variable priser'!$L$102/F147*(1+Genanskaffelsespriser!$D$203),"Fejl")) -> 377.7972222 | L147: =IF(ISBLANK(E147),"",IF(E147=0,"",IF(ISNUMBER(E147),((J147*E147)/$C147)*N145,""))) -> 7744.843055 | M147: =IF(ISBLANK(F147),"",IF(F147=0,"Samlet mængde kan ikke være nul i 2025",IF(ISNUMBER(F147),((K147*F147)/$C147)*O145,""))) -> 7744.843055 | N147: 1 | O147: 1
A148: Beholderanlæg - højdebeholder | B148: m³ | C148: =+Genanskaffelsespriser!$E$178 -> 50 | J148: =IF(E148=0,"Variabel pris",IFERROR((HLOOKUP(E148,'Variable priser'!$C$48:$H$50,2)+(E148-HLOOKUP(E148,'Variable priser'!$C$48:$H$50,1))*HLOOKUP(E148,'Variable priser'!$C$48:$H$50,3))/E148*(1+Genanskaffelsespriser!$D$203),"Fejl")) -> Variabel pris | K148: =IF(F148=0,"Variabel pris",IFERROR((HLOOKUP(F148,'Variable priser'!$C$48:$H$50,2)+(F148-HLOOKUP(F148,'Variable priser'!$C$48:$H$50,1))*HLOOKUP(F148,'Variable priser'!$C$48:$H$50,3))/F148*(1+Genanskaffelsespriser!$D$203),"Fejl")) -> Variabel pris | L148: =IF(ISBLANK(E148),"",IF(E148=0,"",IF(ISNUMBER(E148),((J148*E148)/$C148)*N145,""))) ->  | M148: =IF(ISBLANK(F148),"",IF(F148=0,"",IF(ISNUMBER(F148),((K148*F148)/$C148)*O145,""))) ->  | N148: 1 | O148: 1
A149: Beholderanlæg - vandtårn | B149: m³ | C149: =+Genanskaffelsespriser!$E$179 -> 50 | J149: =IF(E149=0,"Variabel pris",IFERROR((HLOOKUP(E149,'Variable priser'!$C$55:$H$57,2)+(E149-HLOOKUP(E149,'Variable priser'!$C$55:$H$57,1))*HLOOKUP(E149,'Variable priser'!$C$55:$H$57,3))/E149*(1+Genanskaffelsespriser!$D$203),"Fejl")) -> Variabel pris | K149: =IF(F149=0,"Variabel pris",IFERROR((HLOOKUP(F149,'Variable priser'!$C$55:$H$57,2)+(F149-HLOOKUP(F149,'Variable priser'!$C$55:$H$57,1))*HLOOKUP(F149,'Variable priser'!$C$55:$H$57,3))/F149*(1+Genanskaffelsespriser!$D$203),"Fejl")) -> Variabel pris | L149: =IF(ISBLANK(E149),"",IF(E149=0,"",IF(ISNUMBER(E149),((J149*E149)/$C149)*N145,""))) ->  | M149: =IF(ISBLANK(F149),"",IF(F149=0,"",IF(ISNUMBER(F149),((K149*F149)/$C149)*O145,""))) ->  | N149: 1 | O149: 1
A150: Pumpestationer, bygværker og bassiner 10
A151: Pumpestation (inkl. evt. hydrofor)/trykforøger, Konstruktioner | B151: m³/h | C151: =+Genanskaffelsespriser!$E$175 -> 50 | E151: 220 | F151: 220 | G151: Ny data | H151: 0 | I151: fejl ikke med tidligere | J151: =IF(E151=0,"Variabel pris",IFERROR((HLOOKUP(E151,'Variable priser'!$C$103:$F$105,2)+(E151-HLOOKUP(E151,'Variable priser'!$C$103:$F$105,1))*HLOOKUP(E151,'Variable priser'!$C$103:$F$105,3))*'Variable priser'!$I$102/E151*(1+Genanskaffelsespriser!$D$203),"Fejl")) -> 931.4858981 | K151: =IF(F151=0,"Variabel pris",IFERROR((HLOOKUP(F151,'Variable priser'!$C$103:$F$105,2)+(F151-HLOOKUP(F151,'Variable priser'!$C$103:$F$105,1))*HLOOKUP(F151,'Variable priser'!$C$103:$F$105,3))*'Variable priser'!$I$102/F151*(1+Genanskaffelsespriser!$D$203),"Fejl")) -> 931.4858981 | L151: =IF(ISBLANK(E151),"",IF(E151=0,"",IF(ISNUMBER(E151),((J151*E151)/$C151)*N151,""))) -> 4098.537952 | M151: =IF(ISBLANK(F151),"",IF(F151=0,"",IF(ISNUMBER(F151),((K151*F151)/$C151)*O151,""))) -> 4098.537952 | N151: 1 | O151: 1
A152: Pumpestation (inkl. evt. hydrofor)/trykforøger, Mek./EL | B152: m³/h | C152: =+Genanskaffelsespriser!$E$176 -> 25 | D152: 220 | E152: 220 | F152: 220 | G152: 0 | H152: 0 | J152: =IF(E152=0,"Variabel pris",IFERROR((HLOOKUP(E152,'Variable priser'!$C$103:$F$105,2)+(E152-HLOOKUP(E152,'Variable priser'!$C$103:$F$105,1))*HLOOKUP(E152,'Variable priser'!$C$103:$F$105,3))*'Variable priser'!$J$102/E152*(1+Genanskaffelsespriser!$D$203),"Fejl")) -> 2421.863335 | K152: =IF(F152=0,"Variabel pris",IFERROR((HLOOKUP(F152,'Variable priser'!$C$103:$F$105,2)+(F152-HLOOKUP(F152,'Variable priser'!$C$103:$F$105,1))*HLOOKUP(F152,'Variable priser'!$C$103:$F$105,3))*'Variable priser'!$J$102/F152*(1+Genanskaffelsespriser!$D$203),"Fejl")) -> 2421.863335 | L152: =IF(ISBLANK(E152),"",IF(E152=0,"",IF(ISNUMBER(E152),((J152*E152)/$C152)*N151,""))) -> 21312.39735 | M152: =IF(ISBLANK(F152),"",IF(F152=0,"",IF(ISNUMBER(F152),((K152*F152)/$C152)*O151,""))) -> 21312.39735 | N152: 1 | O152: 1
A153: Pumpestation (inkl. evt. hydrofor)/trykforøger, SRO | B153: m³/h | C153: =+Genanskaffelsespriser!$E$177 -> 10 | D153: 220 | E153: 220 | F153: 220 | G153: 0 | H153: 0 | J153: =IF(E153=0,"Variabel pris",IFERROR((HLOOKUP(E153,'Variable priser'!$C$103:$F$105,2)+(E153-HLOOKUP(E153,'Variable priser'!$C$103:$F$105,1))*HLOOKUP(E153,'Variable priser'!$C$103:$F$105,3))*'Variable priser'!$L$102/E153*(1+Genanskaffelsespriser!$D$203),"Fejl")) -> 372.5943592 | K153: =IF(F153=0,"Variabel pris",IFERROR((HLOOKUP(F153,'Variable priser'!$C$103:$F$105,2)+(F153-HLOOKUP(F153,'Variable priser'!$C$103:$F$105,1))*HLOOKUP(F153,'Variable priser'!$C$103:$F$105,3))*'Variable priser'!$L$102/F153*(1+Genanskaffelsespriser!$D$203),"Fejl")) -> 372.5943592 | L153: =IF(ISBLANK(E153),"",IF(E153=0,"",IF(ISNUMBER(E153),((J153*E153)/$C153)*N151,""))) -> 8197.075903 | M153: =IF(ISBLANK(F153),"",IF(F153=0,"Samlet mængde kan ikke være nul i 2025",IF(ISNUMBER(F153),((K153*F153)/$C153)*O151,""))) -> 8197.075903 | N153: 1 | O153: 1
A154: Beholderanlæg - højdebeholder | B154: m³ | C154: =+Genanskaffelsespriser!$E$178 -> 50 | J154: =IF(E154=0,"Variabel pris",IFERROR((HLOOKUP(E154,'Variable priser'!$C$48:$H$50,2)+(E154-HLOOKUP(E154,'Variable priser'!$C$48:$H$50,1))*HLOOKUP(E154,'Variable priser'!$C$48:$H$50,3))/E154*(1+Genanskaffelsespriser!$D$203),"Fejl")) -> Variabel pris | K154: =IF(F154=0,"Variabel pris",IFERROR((HLOOKUP(F154,'Variable priser'!$C$48:$H$50,2)+(F154-HLOOKUP(F154,'Variable priser'!$C$48:$H$50,1))*HLOOKUP(F154,'Variable priser'!$C$48:$H$50,3))/F154*(1+Genanskaffelsespriser!$D$203),"Fejl")) -> Variabel pris | L154: =IF(ISBLANK(E154),"",IF(E154=0,"",IF(ISNUMBER(E154),((J154*E154)/$C154)*N151,""))) ->  | M154: =IF(ISBLANK(F154),"",IF(F154=0,"",IF(ISNUMBER(F154),((K154*F154)/$C154)*O151,""))) ->  | N154: 1 | O154: 1
A155: Beholderanlæg - vandtårn | B155: m³ | C155: =+Genanskaffelsespriser!$E$179 -> 50 | J155: =IF(E155=0,"Variabel pris",IFERROR((HLOOKUP(E155,'Variable priser'!$C$55:$H$57,2)+(E155-HLOOKUP(E155,'Variable priser'!$C$55:$H$57,1))*HLOOKUP(E155,'Variable priser'!$C$55:$H$57,3))/E155*(1+Genanskaffelsespriser!$D$203),"Fejl")) -> Variabel pris | K155: =IF(F155=0,"Variabel pris",IFERROR((HLOOKUP(F155,'Variable priser'!$C$55:$H$57,2)+(F155-HLOOKUP(F155,'Variable priser'!$C$55:$H$57,1))*HLOOKUP(F155,'Variable priser'!$C$55:$H$57,3))/F155*(1+Genanskaffelsespriser!$D$203),"Fejl")) -> Variabel pris | L155: =IF(ISBLANK(E155),"",IF(E155=0,"",IF(ISNUMBER(E155),((J155*E155)/$C155)*N151,""))) ->  | M155: =IF(ISBLANK(F155),"",IF(F155=0,"",IF(ISNUMBER(F155),((K155*F155)/$C155)*O151,""))) ->  | N155: 1 | O155: 1
A156: Pumpestationer, bygværker og bassiner 11
A157: Pumpestation (inkl. evt. hydrofor)/trykforøger, Konstruktioner | B157: m³/h | C157: =+Genanskaffelsespriser!$E$175 -> 50 | E157: 850 | F157: 850 | G157: Ny data | H157: 0 | I157: fejl ikke med tidligere | J157: =IF(E157=0,"Variabel pris",IFERROR((HLOOKUP(E157,'Variable priser'!$C$103:$F$105,2)+(E157-HLOOKUP(E157,'Variable priser'!$C$103:$F$105,1))*HLOOKUP(E157,'Variable priser'!$C$103:$F$105,3))*'Variable priser'!$I$102/E157*(1+Genanskaffelsespriser!$D$203),"Fejl")) -> 799.731045 | K157: =IF(F157=0,"Variabel pris",IFERROR((HLOOKUP(F157,'Variable priser'!$C$103:$F$105,2)+(F157-HLOOKUP(F157,'Variable priser'!$C$103:$F$105,1))*HLOOKUP(F157,'Variable priser'!$C$103:$F$105,3))*'Variable priser'!$I$102/F157*(1+Genanskaffelsespriser!$D$203),"Fejl")) -> 799.731045 | L157: =IF(ISBLANK(E157),"",IF(E157=0,"",IF(ISNUMBER(E157),((J157*E157)/$C157)*N157,""))) -> 13595.42776 | M157: =IF(ISBLANK(F157),"",IF(F157=0,"",IF(ISNUMBER(F157),((K157*F157)/$C157)*O157,""))) -> 13595.42776 | N157: 1 | O157: 1
A158: Pumpestation (inkl. evt. hydrofor)/trykforøger, Mek./EL | B158: m³/h | C158: =+Genanskaffelsespriser!$E$176 -> 25 | D158: 850 | E158: 850 | F158: 850 | G158: 0 | H158: 0 | J158: =IF(E158=0,"Variabel pris",IFERROR((HLOOKUP(E158,'Variable priser'!$C$103:$F$105,2)+(E158-HLOOKUP(E158,'Variable priser'!$C$103:$F$105,1))*HLOOKUP(E158,'Variable priser'!$C$103:$F$105,3))*'Variable priser'!$J$102/E158*(1+Genanskaffelsespriser!$D$203),"Fejl")) -> 2079.300717 | K158: =IF(F158=0,"Variabel pris",IFERROR((HLOOKUP(F158,'Variable priser'!$C$103:$F$105,2)+(F158-HLOOKUP(F158,'Variable priser'!$C$103:$F$105,1))*HLOOKUP(F158,'Variable priser'!$C$103:$F$105,3))*'Variable priser'!$J$102/F158*(1+Genanskaffelsespriser!$D$203),"Fejl")) -> 2079.300717 | L158: =IF(ISBLANK(E158),"",IF(E158=0,"",IF(ISNUMBER(E158),((J158*E158)/$C158)*N157,""))) -> 70696.22438 | M158: =IF(ISBLANK(F158),"",IF(F158=0,"",IF(ISNUMBER(F158),((K158*F158)/$C158)*O157,""))) -> 70696.22438 | N158: 1 | O158: 1
A159: Pumpestation (inkl. evt. hydrofor)/trykforøger, SRO | B159: m³/h | C159: =+Genanskaffelsespriser!$E$177 -> 10 | D159: 850 | E159: 850 | F159: 850 | G159: 0 | H159: 0 | J159: =IF(E159=0,"Variabel pris",IFERROR((HLOOKUP(E159,'Variable priser'!$C$103:$F$105,2)+(E159-HLOOKUP(E159,'Variable priser'!$C$103:$F$105,1))*HLOOKUP(E159,'Variable priser'!$C$103:$F$105,3))*'Variable priser'!$L$102/E159*(1+Genanskaffelsespriser!$D$203),"Fejl")) -> 319.892418 | K159: =IF(F159=0,"Variabel pris",IFERROR((HLOOKUP(F159,'Variable priser'!$C$103:$F$105,2)+(F159-HLOOKUP(F159,'Variable priser'!$C$103:$F$105,1))*HLOOKUP(F159,'Variable priser'!$C$103:$F$105,3))*'Variable priser'!$L$102/F159*(1+Genanskaffelsespriser!$D$203),"Fejl")) -> 319.892418 | L159: =IF(ISBLANK(E159),"",IF(E159=0,"",IF(ISNUMBER(E159),((J159*E159)/$C159)*N157,""))) -> 27190.85553 | M159: =IF(ISBLANK(F159),"",IF(F159=0,"Samlet mængde kan ikke være nul i 2025",IF(ISNUMBER(F159),((K159*F159)/$C159)*O157,""))) -> 27190.85553 | N159: 1 | O159: 1
A160: Beholderanlæg - højdebeholder | B160: m³ | C160: =+Genanskaffelsespriser!$E$178 -> 50 | J160: =IF(E160=0,"Variabel pris",IFERROR((HLOOKUP(E160,'Variable priser'!$C$48:$H$50,2)+(E160-HLOOKUP(E160,'Variable priser'!$C$48:$H$50,1))*HLOOKUP(E160,'Variable priser'!$C$48:$H$50,3))/E160*(1+Genanskaffelsespriser!$D$203),"Fejl")) -> Variabel pris | K160: =IF(F160=0,"Variabel pris",IFERROR((HLOOKUP(F160,'Variable priser'!$C$48:$H$50,2)+(F160-HLOOKUP(F160,'Variable priser'!$C$48:$H$50,1))*HLOOKUP(F160,'Variable priser'!$C$48:$H$50,3))/F160*(1+Genanskaffelsespriser!$D$203),"Fejl")) -> Variabel pris | L160: =IF(ISBLANK(E160),"",IF(E160=0,"",IF(ISNUMBER(E160),((J160*E160)/$C160)*N157,""))) ->  | M160: =IF(ISBLANK(F160),"",IF(F160=0,"",IF(ISNUMBER(F160),((K160*F160)/$C160)*O157,""))) ->  | N160: 1 | O160: 1
A161: Beholderanlæg - vandtårn | B161: m³ | C161: =+Genanskaffelsespriser!$E$179 -> 50 | J161: =IF(E161=0,"Variabel pris",IFERROR((HLOOKUP(E161,'Variable priser'!$C$55:$H$57,2)+(E161-HLOOKUP(E161,'Variable priser'!$C$55:$H$57,1))*HLOOKUP(E161,'Variable priser'!$C$55:$H$57,3))/E161*(1+Genanskaffelsespriser!$D$203),"Fejl")) -> Variabel pris | K161: =IF(F161=0,"Variabel pris",IFERROR((HLOOKUP(F161,'Variable priser'!$C$55:$H$57,2)+(F161-HLOOKUP(F161,'Variable priser'!$C$55:$H$57,1))*HLOOKUP(F161,'Variable priser'!$C$55:$H$57,3))/F161*(1+Genanskaffelsespriser!$D$203),"Fejl")) -> Variabel pris | L161: =IF(ISBLANK(E161),"",IF(E161=0,"",IF(ISNUMBER(E161),((J161*E161)/$C161)*N157,""))) ->  | M161: =IF(ISBLANK(F161),"",IF(F161=0,"",IF(ISNUMBER(F161),((K161*F161)/$C161)*O157,""))) ->  | N161: 1 | O161: 1
A162: Pumpestationer, bygværker og bassiner 12
A163: Pumpestation (inkl. evt. hydrofor)/trykforøger, Konstruktioner | B163: m³/h | C163: =+Genanskaffelsespriser!$E$175 -> 50 | E163: 220 | F163: 220 | G163: Ny data | H163: 0 | I163: fejl ikke med tidligere | J163: =IF(E163=0,"Variabel pris",IFERROR((HLOOKUP(E163,'Variable priser'!$C$103:$F$105,2)+(E163-HLOOKUP(E163,'Variable priser'!$C$103:$F$105,1))*HLOOKUP(E163,'Variable priser'!$C$103:$F$105,3))*'Variable priser'!$I$102/E163*(1+Genanskaffelsespriser!$D$203),"Fejl")) -> 931.4858981 | K163: =IF(F163=0,"Variabel pris",IFERROR((HLOOKUP(F163,'Variable priser'!$C$103:$F$105,2)+(F163-HLOOKUP(F163,'Variable priser'!$C$103:$F$105,1))*HLOOKUP(F163,'Variable priser'!$C$103:$F$105,3))*'Variable priser'!$I$102/F163*(1+Genanskaffelsespriser!$D$203),"Fejl")) -> 931.4858981 | L163: =IF(ISBLANK(E163),"",IF(E163=0,"",IF(ISNUMBER(E163),((J163*E163)/$C163)*N163,""))) -> 4098.537952 | M163: =IF(ISBLANK(F163),"",IF(F163=0,"",IF(ISNUMBER(F163),((K163*F163)/$C163)*O163,""))) -> 4098.537952 | N163: 1 | O163: 1
A164: Pumpestation (inkl. evt. hydrofor)/trykforøger, Mek./EL | B164: m³/h | C164: =+Genanskaffelsespriser!$E$176 -> 25 | D164: 220 | E164: 220 | F164: 220 | G164: 0 | H164: 0 | J164: =IF(E164=0,"Variabel pris",IFERROR((HLOOKUP(E164,'Variable priser'!$C$103:$F$105,2)+(E164-HLOOKUP(E164,'Variable priser'!$C$103:$F$105,1))*HLOOKUP(E164,'Variable priser'!$C$103:$F$105,3))*'Variable priser'!$J$102/E164*(1+Genanskaffelsespriser!$D$203),"Fejl")) -> 2421.863335 | K164: =IF(F164=0,"Variabel pris",IFERROR((HLOOKUP(F164,'Variable priser'!$C$103:$F$105,2)+(F164-HLOOKUP(F164,'Variable priser'!$C$103:$F$105,1))*HLOOKUP(F164,'Variable priser'!$C$103:$F$105,3))*'Variable priser'!$J$102/F164*(1+Genanskaffelsespriser!$D$203),"Fejl")) -> 2421.863335 | L164: =IF(ISBLANK(E164),"",IF(E164=0,"",IF(ISNUMBER(E164),((J164*E164)/$C164)*N163,""))) -> 21312.39735 | M164: =IF(ISBLANK(F164),"",IF(F164=0,"",IF(ISNUMBER(F164),((K164*F164)/$C164)*O163,""))) -> 21312.39735 | N164: 1 | O164: 1
A165: Pumpestation (inkl. evt. hydrofor)/trykforøger, SRO | B165: m³/h | C165: =+Genanskaffelsespriser!$E$177 -> 10 | D165: 220 | E165: 220 | F165: 220 | G165: 0 | H165: 0 | J165: =IF(E165=0,"Variabel pris",IFERROR((HLOOKUP(E165,'Variable priser'!$C$103:$F$105,2)+(E165-HLOOKUP(E165,'Variable priser'!$C$103:$F$105,1))*HLOOKUP(E165,'Variable priser'!$C$103:$F$105,3))*'Variable priser'!$L$102/E165*(1+Genanskaffelsespriser!$D$203),"Fejl")) -> 372.5943592 | K165: =IF(F165=0,"Variabel pris",IFERROR((HLOOKUP(F165,'Variable priser'!$C$103:$F$105,2)+(F165-HLOOKUP(F165,'Variable priser'!$C$103:$F$105,1))*HLOOKUP(F165,'Variable priser'!$C$103:$F$105,3))*'Variable priser'!$L$102/F165*(1+Genanskaffelsespriser!$D$203),"Fejl")) -> 372.5943592 | L165: =IF(ISBLANK(E165),"",IF(E165=0,"",IF(ISNUMBER(E165),((J165*E165)/$C165)*N163,""))) -> 8197.075903 | M165: =IF(ISBLANK(F165),"",IF(F165=0,"Samlet mængde kan ikke være nul i 2025",IF(ISNUMBER(F165),((K165*F165)/$C165)*O163,""))) -> 8197.075903 | N165: 1 | O165: 1
A166: Beholderanlæg - højdebeholder | B166: m³ | C166: =+Genanskaffelsespriser!$E$178 -> 50 | J166: =IF(E166=0,"Variabel pris",IFERROR((HLOOKUP(E166,'Variable priser'!$C$48:$H$50,2)+(E166-HLOOKUP(E166,'Variable priser'!$C$48:$H$50,1))*HLOOKUP(E166,'Variable priser'!$C$48:$H$50,3))/E166*(1+Genanskaffelsespriser!$D$203),"Fejl")) -> Variabel pris | K166: =IF(F166=0,"Variabel pris",IFERROR((HLOOKUP(F166,'Variable priser'!$C$48:$H$50,2)+(F166-HLOOKUP(F166,'Variable priser'!$C$48:$H$50,1))*HLOOKUP(F166,'Variable priser'!$C$48:$H$50,3))/F166*(1+Genanskaffelsespriser!$D$203),"Fejl")) -> Variabel pris | L166: =IF(ISBLANK(E166),"",IF(E166=0,"",IF(ISNUMBER(E166),((J166*E166)/$C166)*N163,""))) ->  | M166: =IF(ISBLANK(F166),"",IF(F166=0,"",IF(ISNUMBER(F166),((K166*F166)/$C166)*O163,""))) ->  | N166: 1 | O166: 1
A167: Beholderanlæg - vandtårn | B167: m³ | C167: =+Genanskaffelsespriser!$E$179 -> 50 | J167: =IF(E167=0,"Variabel pris",IFERROR((HLOOKUP(E167,'Variable priser'!$C$55:$H$57,2)+(E167-HLOOKUP(E167,'Variable priser'!$C$55:$H$57,1))*HLOOKUP(E167,'Variable priser'!$C$55:$H$57,3))/E167*(1+Genanskaffelsespriser!$D$203),"Fejl")) -> Variabel pris | K167: =IF(F167=0,"Variabel pris",IFERROR((HLOOKUP(F167,'Variable priser'!$C$55:$H$57,2)+(F167-HLOOKUP(F167,'Variable priser'!$C$55:$H$57,1))*HLOOKUP(F167,'Variable priser'!$C$55:$H$57,3))/F167*(1+Genanskaffelsespriser!$D$203),"Fejl")) -> Variabel pris | L167: =IF(ISBLANK(E167),"",IF(E167=0,"",IF(ISNUMBER(E167),((J167*E167)/$C167)*N163,""))) ->  | M167: =IF(ISBLANK(F167),"",IF(F167=0,"",IF(ISNUMBER(F167),((K167*F167)/$C167)*O163,""))) ->  | N167: 1 | O167: 1
A168: Pumpestationer, bygværker og bassiner 13
A169: Pumpestation (inkl. evt. hydrofor)/trykforøger, Konstruktioner | B169: m³/h | C169: =+Genanskaffelsespriser!$E$175 -> 50 | J169: =IF(E169=0,"Variabel pris",IFERROR((HLOOKUP(E169,'Variable priser'!$C$103:$F$105,2)+(E169-HLOOKUP(E169,'Variable priser'!$C$103:$F$105,1))*HLOOKUP(E169,'Variable priser'!$C$103:$F$105,3))*'Variable priser'!$I$102/E169*(1+Genanskaffelsespriser!$D$203),"Fejl")) -> Variabel pris | K169: =IF(F169=0,"Variabel pris",IFERROR((HLOOKUP(F169,'Variable priser'!$C$103:$F$105,2)+(F169-HLOOKUP(F169,'Variable priser'!$C$103:$F$105,1))*HLOOKUP(F169,'Variable priser'!$C$103:$F$105,3))*'Variable priser'!$I$102/F169*(1+Genanskaffelsespriser!$D$203),"Fejl")) -> Variabel pris | L169: =IF(ISBLANK(E169),"",IF(E169=0,"",IF(ISNUMBER(E169),((J169*E169)/$C169)*N169,""))) ->  | M169: =IF(ISBLANK(F169),"",IF(F169=0,"",IF(ISNUMBER(F169),((K169*F169)/$C169)*O169,""))) ->  | N169: 1 | O169: 1
A170: Pumpestation (inkl. evt. hydrofor)/trykforøger, Mek./EL | B170: m³/h | C170: =+Genanskaffelsespriser!$E$176 -> 25 | D170: 550 | E170: 550 | F170: 0 | G170: 0 | H170: -1 | I170: konverteret til dykpumpekildeplads | J170: =IF(E170=0,"Variabel pris",IFERROR((HLOOKUP(E170,'Variable priser'!$C$103:$F$105,2)+(E170-HLOOKUP(E170,'Variable priser'!$C$103:$F$105,1))*HLOOKUP(E170,'Variable priser'!$C$103:$F$105,3))*'Variable priser'!$J$102/E170*(1+Genanskaffelsespriser!$D$203),"Fejl")) -> 2144.550739 | K170: =IF(F170=0,"Variabel pris",IFERROR((HLOOKUP(F170,'Variable priser'!$C$103:$F$105,2)+(F170-HLOOKUP(F170,'Variable priser'!$C$103:$F$105,1))*HLOOKUP(F170,'Variable priser'!$C$103:$F$105,3))*'Variable priser'!$J$102/F170*(1+Genanskaffelsespriser!$D$203),"Fejl")) -> Variabel pris | L170: =IF(ISBLANK(E170),"",IF(E170=0,"",IF(ISNUMBER(E170),((J170*E170)/$C170)*N169,""))) -> 47180.11627 | M170: =IF(ISBLANK(F170),"",IF(F170=0,"",IF(ISNUMBER(F170),((K170*F170)/$C170)*O169,""))) ->  | N170: 1 | O170: 1
A171: Pumpestation (inkl. evt. hydrofor)/trykforøger, SRO | B171: m³/h | C171: =+Genanskaffelsespriser!$E$177 -> 10 | D171: 550 | E171: 550 | F171: 0 | G171: 0 | H171: -1 | I171: konverteret til dykpumpekildeplads | J171: =IF(E171=0,"Variabel pris",IFERROR((HLOOKUP(E171,'Variable priser'!$C$103:$F$105,2)+(E171-HLOOKUP(E171,'Variable priser'!$C$103:$F$105,1))*HLOOKUP(E171,'Variable priser'!$C$103:$F$105,3))*'Variable priser'!$L$102/E171*(1+Genanskaffelsespriser!$D$203),"Fejl")) -> 329.930883 | K171: =IF(F171=0,"Variabel pris",IFERROR((HLOOKUP(F171,'Variable priser'!$C$103:$F$105,2)+(F171-HLOOKUP(F171,'Variable priser'!$C$103:$F$105,1))*HLOOKUP(F171,'Variable priser'!$C$103:$F$105,3))*'Variable priser'!$L$102/F171*(1+Genanskaffelsespriser!$D$203),"Fejl")) -> Variabel pris | L171: =IF(ISBLANK(E171),"",IF(E171=0,"",IF(ISNUMBER(E171),((J171*E171)/$C171)*N169,""))) -> 18146.19857 | M171: =IF(ISBLANK(F171),"",IF(F171=0,"Samlet mængde kan ikke være nul i 2025",IF(ISNUMBER(F171),((K171*F171)/$C171)*O169,""))) -> Samlet mængde kan ikke være nul i 2025 | N171: 1 | O171: 1
A172: Beholderanlæg - højdebeholder | B172: m³ | C172: =+Genanskaffelsespriser!$E$178 -> 50 | J172: =IF(E172=0,"Variabel pris",IFERROR((HLOOKUP(E172,'Variable priser'!$C$48:$H$50,2)+(E172-HLOOKUP(E172,'Variable priser'!$C$48:$H$50,1))*HLOOKUP(E172,'Variable priser'!$C$48:$H$50,3))/E172*(1+Genanskaffelsespriser!$D$203),"Fejl")) -> Variabel pris | K172: =IF(F172=0,"Variabel pris",IFERROR((HLOOKUP(F172,'Variable priser'!$C$48:$H$50,2)+(F172-HLOOKUP(F172,'Variable priser'!$C$48:$H$50,1))*HLOOKUP(F172,'Variable priser'!$C$48:$H$50,3))/F172*(1+Genanskaffelsespriser!$D$203),"Fejl")) -> Variabel pris | L172: =IF(ISBLANK(E172),"",IF(E172=0,"",IF(ISNUMBER(E172),((J172*E172)/$C172)*N169,""))) ->  | M172: =IF(ISBLANK(F172),"",IF(F172=0,"",IF(ISNUMBER(F172),((K172*F172)/$C172)*O169,""))) ->  | N172: 1 | O172: 1
A173: Beholderanlæg - vandtårn | B173: m³ | C173: =+Genanskaffelsespriser!$E$179 -> 50 | J173: =IF(E173=0,"Variabel pris",IFERROR((HLOOKUP(E173,'Variable priser'!$C$55:$H$57,2)+(E173-HLOOKUP(E173,'Variable priser'!$C$55:$H$57,1))*HLOOKUP(E173,'Variable priser'!$C$55:$H$57,3))/E173*(1+Genanskaffelsespriser!$D$203),"Fejl")) -> Variabel pris | K173: =IF(F173=0,"Variabel pris",IFERROR((HLOOKUP(F173,'Variable priser'!$C$55:$H$57,2)+(F173-HLOOKUP(F173,'Variable priser'!$C$55:$H$57,1))*HLOOKUP(F173,'Variable priser'!$C$55:$H$57,3))/F173*(1+Genanskaffelsespriser!$D$203),"Fejl")) -> Variabel pris | L173: =IF(ISBLANK(E173),"",IF(E173=0,"",IF(ISNUMBER(E173),((J173*E173)/$C173)*N169,""))) ->  | M173: =IF(ISBLANK(F173),"",IF(F173=0,"",IF(ISNUMBER(F173),((K173*F173)/$C173)*O169,""))) ->  | N173: 1 | O173: 1
A174: Pumpestationer, bygværker og bassiner 14
A175: Pumpestation (inkl. evt. hydrofor)/trykforøger, Konstruktioner | B175: m³/h | C175: =+Genanskaffelsespriser!$E$175 -> 50 | J175: =IF(E175=0,"Variabel pris",IFERROR((HLOOKUP(E175,'Variable priser'!$C$103:$F$105,2)+(E175-HLOOKUP(E175,'Variable priser'!$C$103:$F$105,1))*HLOOKUP(E175,'Variable priser'!$C$103:$F$105,3))*'Variable priser'!$I$102/E175*(1+Genanskaffelsespriser!$D$203),"Fejl")) -> Variabel pris | K175: =IF(F175=0,"Variabel pris",IFERROR((HLOOKUP(F175,'Variable priser'!$C$103:$F$105,2)+(F175-HLOOKUP(F175,'Variable priser'!$C$103:$F$105,1))*HLOOKUP(F175,'Variable priser'!$C$103:$F$105,3))*'Variable priser'!$I$102/F175*(1+Genanskaffelsespriser!$D$203),"Fejl")) -> Variabel pris | L175: =IF(ISBLANK(E175),"",IF(E175=0,"",IF(ISNUMBER(E175),((J175*E175)/$C175)*N175,""))) ->  | M175: =IF(ISBLANK(F175),"",IF(F175=0,"",IF(ISNUMBER(F175),((K175*F175)/$C175)*O175,""))) ->  | N175: 1 | O175: 1
A176: Pumpestation (inkl. evt. hydrofor)/trykforøger, Mek./EL | B176: m³/h | C176: =+Genanskaffelsespriser!$E$176 -> 25 | D176: 285 | E176: 0 | F176: 0 | G176: -1 | H176: 0 | I176: konverteret til dykpumpekildeplads | J176: =IF(E176=0,"Variabel pris",IFERROR((HLOOKUP(E176,'Variable priser'!$C$103:$F$105,2)+(E176-HLOOKUP(E176,'Variable priser'!$C$103:$F$105,1))*HLOOKUP(E176,'Variable priser'!$C$103:$F$105,3))*'Variable priser'!$J$102/E176*(1+Genanskaffelsespriser!$D$203),"Fejl")) -> Variabel pris | K176: =IF(F176=0,"Variabel pris",IFERROR((HLOOKUP(F176,'Variable priser'!$C$103:$F$105,2)+(F176-HLOOKUP(F176,'Variable priser'!$C$103:$F$105,1))*HLOOKUP(F176,'Variable priser'!$C$103:$F$105,3))*'Variable priser'!$J$102/F176*(1+Genanskaffelsespriser!$D$203),"Fejl")) -> Variabel pris | L176: =IF(ISBLANK(E176),"",IF(E176=0,"",IF(ISNUMBER(E176),((J176*E176)/$C176)*N175,""))) ->  | M176: =IF(ISBLANK(F176),"",IF(F176=0,"",IF(ISNUMBER(F176),((K176*F176)/$C176)*O175,""))) ->  | N176: 1 | O176: 1
A177: Pumpestation (inkl. evt. hydrofor)/trykforøger, SRO | B177: m³/h | C177: =+Genanskaffelsespriser!$E$177 -> 10 | D177: 285 | E177: 0 | F177: 0 | G177: -1 | H177: 0 | I177: konverteret til dykpumpekildeplads | J177: =IF(E177=0,"Variabel pris",IFERROR((HLOOKUP(E177,'Variable priser'!$C$103:$F$105,2)+(E177-HLOOKUP(E177,'Variable priser'!$C$103:$F$105,1))*HLOOKUP(E177,'Variable priser'!$C$103:$F$105,3))*'Variable priser'!$L$102/E177*(1+Genanskaffelsespriser!$D$203),"Fejl")) -> Variabel pris | K177: =IF(F177=0,"Variabel pris",IFERROR((HLOOKUP(F177,'Variable priser'!$C$103:$F$105,2)+(F177-HLOOKUP(F177,'Variable priser'!$C$103:$F$105,1))*HLOOKUP(F177,'Variable priser'!$C$103:$F$105,3))*'Variable priser'!$L$102/F177*(1+Genanskaffelsespriser!$D$203),"Fejl")) -> Variabel pris | L177: =IF(ISBLANK(E177),"",IF(E177=0,"",IF(ISNUMBER(E177),((J177*E177)/$C177)*N175,""))) ->  | M177: =IF(ISBLANK(F177),"",IF(F177=0,"Samlet mængde kan ikke være nul i 2025",IF(ISNUMBER(F177),((K177*F177)/$C177)*O175,""))) -> Samlet mængde kan ikke være nul i 2025 | N177: 1 | O177: 1
A178: Beholderanlæg - højdebeholder | B178: m³ | C178: =+Genanskaffelsespriser!$E$178 -> 50 | J178: =IF(E178=0,"Variabel pris",IFERROR((HLOOKUP(E178,'Variable priser'!$C$48:$H$50,2)+(E178-HLOOKUP(E178,'Variable priser'!$C$48:$H$50,1))*HLOOKUP(E178,'Variable priser'!$C$48:$H$50,3))/E178*(1+Genanskaffelsespriser!$D$203),"Fejl")) -> Variabel pris | K178: =IF(F178=0,"Variabel pris",IFERROR((HLOOKUP(F178,'Variable priser'!$C$48:$H$50,2)+(F178-HLOOKUP(F178,'Variable priser'!$C$48:$H$50,1))*HLOOKUP(F178,'Variable priser'!$C$48:$H$50,3))/F178*(1+Genanskaffelsespriser!$D$203),"Fejl")) -> Variabel pris | L178: =IF(ISBLANK(E178),"",IF(E178=0,"",IF(ISNUMBER(E178),((J178*E178)/$C178)*N175,""))) ->  | M178: =IF(ISBLANK(F178),"",IF(F178=0,"",IF(ISNUMBER(F178),((K178*F178)/$C178)*O175,""))) ->  | N178: 1 | O178: 1
A179: Beholderanlæg - vandtårn | B179: m³ | C179: =+Genanskaffelsespriser!$E$179 -> 50 | J179: =IF(E179=0,"Variabel pris",IFERROR((HLOOKUP(E179,'Variable priser'!$C$55:$H$57,2)+(E179-HLOOKUP(E179,'Variable priser'!$C$55:$H$57,1))*HLOOKUP(E179,'Variable priser'!$C$55:$H$57,3))/E179*(1+Genanskaffelsespriser!$D$203),"Fejl")) -> Variabel pris | K179: =IF(F179=0,"Variabel pris",IFERROR((HLOOKUP(F179,'Variable priser'!$C$55:$H$57,2)+(F179-HLOOKUP(F179,'Variable priser'!$C$55:$H$57,1))*HLOOKUP(F179,'Variable priser'!$C$55:$H$57,3))/F179*(1+Genanskaffelsespriser!$D$203),"Fejl")) -> Variabel pris | L179: =IF(ISBLANK(E179),"",IF(E179=0,"",IF(ISNUMBER(E179),((J179*E179)/$C179)*N175,""))) ->  | M179: =IF(ISBLANK(F179),"",IF(F179=0,"",IF(ISNUMBER(F179),((K179*F179)/$C179)*O175,""))) ->  | N179: 1 | O179: 1
A180: Pumpestationer, bygværker og bassiner 15
A181: Pumpestation (inkl. evt. hydrofor)/trykforøger, Konstruktioner | B181: m³/h | C181: =+Genanskaffelsespriser!$E$175 -> 50 | E181: 420 | F181: 420 | G181: Ny data | H181: 0 | I181: fejl ikke med tidligere | J181: =IF(E181=0,"Variabel pris",IFERROR((HLOOKUP(E181,'Variable priser'!$C$103:$F$105,2)+(E181-HLOOKUP(E181,'Variable priser'!$C$103:$F$105,1))*HLOOKUP(E181,'Variable priser'!$C$103:$F$105,3))*'Variable priser'!$I$102/E181*(1+Genanskaffelsespriser!$D$203),"Fejl")) -> 846.8361437 | K181: =IF(F181=0,"Variabel pris",IFERROR((HLOOKUP(F181,'Variable priser'!$C$103:$F$105,2)+(F181-HLOOKUP(F181,'Variable priser'!$C$103:$F$105,1))*HLOOKUP(F181,'Variable priser'!$C$103:$F$105,3))*'Variable priser'!$I$102/F181*(1+Genanskaffelsespriser!$D$203),"Fejl")) -> 846.8361437 | L181: =IF(ISBLANK(E181),"",IF(E181=0,"",IF(ISNUMBER(E181),((J181*E181)/$C181)*N181,""))) -> 7113.423607 | M181: =IF(ISBLANK(F181),"",IF(F181=0,"",IF(ISNUMBER(F181),((K181*F181)/$C181)*O181,""))) -> 7113.423607 | N181: 1 | O181: 1
A182: Pumpestation (inkl. evt. hydrofor)/trykforøger, Mek./EL | B182: m³/h | C182: =+Genanskaffelsespriser!$E$176 -> 25 | D182: 420 | E182: 420 | F182: 420 | G182: 0 | H182: 0 | J182: =IF(E182=0,"Variabel pris",IFERROR((HLOOKUP(E182,'Variable priser'!$C$103:$F$105,2)+(E182-HLOOKUP(E182,'Variable priser'!$C$103:$F$105,1))*HLOOKUP(E182,'Variable priser'!$C$103:$F$105,3))*'Variable priser'!$J$102/E182*(1+Genanskaffelsespriser!$D$203),"Fejl")) -> 2201.773974 | K182: =IF(F182=0,"Variabel pris",IFERROR((HLOOKUP(F182,'Variable priser'!$C$103:$F$105,2)+(F182-HLOOKUP(F182,'Variable priser'!$C$103:$F$105,1))*HLOOKUP(F182,'Variable priser'!$C$103:$F$105,3))*'Variable priser'!$J$102/F182*(1+Genanskaffelsespriser!$D$203),"Fejl")) -> 2201.773974 | L182: =IF(ISBLANK(E182),"",IF(E182=0,"",IF(ISNUMBER(E182),((J182*E182)/$C182)*N181,""))) -> 36989.80276 | M182: =IF(ISBLANK(F182),"",IF(F182=0,"",IF(ISNUMBER(F182),((K182*F182)/$C182)*O181,""))) -> 36989.80276 | N182: 1 | O182: 1
A183: Pumpestation (inkl. evt. hydrofor)/trykforøger, SRO | B183: m³/h | C183: =+Genanskaffelsespriser!$E$177 -> 10 | D183: 420 | E183: 420 | F183: 420 | G183: 0 | H183: 0 | J183: =IF(E183=0,"Variabel pris",IFERROR((HLOOKUP(E183,'Variable priser'!$C$103:$F$105,2)+(E183-HLOOKUP(E183,'Variable priser'!$C$103:$F$105,1))*HLOOKUP(E183,'Variable priser'!$C$103:$F$105,3))*'Variable priser'!$L$102/E183*(1+Genanskaffelsespriser!$D$203),"Fejl")) -> 338.7344575 | K183: =IF(F183=0,"Variabel pris",IFERROR((HLOOKUP(F183,'Variable priser'!$C$103:$F$105,2)+(F183-HLOOKUP(F183,'Variable priser'!$C$103:$F$105,1))*HLOOKUP(F183,'Variable priser'!$C$103:$F$105,3))*'Variable priser'!$L$102/F183*(1+Genanskaffelsespriser!$D$203),"Fejl")) -> 338.7344575 | L183: =IF(ISBLANK(E183),"",IF(E183=0,"",IF(ISNUMBER(E183),((J183*E183)/$C183)*N181,""))) -> 14226.84721 | M183: =IF(ISBLANK(F183),"",IF(F183=0,"Samlet mængde kan ikke være nul i 2025",IF(ISNUMBER(F183),((K183*F183)/$C183)*O181,""))) -> 14226.84721 | N183: 1 | O183: 1
A184: Beholderanlæg - højdebeholder | B184: m³ | C184: =+Genanskaffelsespriser!$E$178 -> 50 | J184: =IF(E184=0,"Variabel pris",IFERROR((HLOOKUP(E184,'Variable priser'!$C$48:$H$50,2)+(E184-HLOOKUP(E184,'Variable priser'!$C$48:$H$50,1))*HLOOKUP(E184,'Variable priser'!$C$48:$H$50,3))/E184*(1+Genanskaffelsespriser!$D$203),"Fejl")) -> Variabel pris | K184: =IF(F184=0,"Variabel pris",IFERROR((HLOOKUP(F184,'Variable priser'!$C$48:$H$50,2)+(F184-HLOOKUP(F184,'Variable priser'!$C$48:$H$50,1))*HLOOKUP(F184,'Variable priser'!$C$48:$H$50,3))/F184*(1+Genanskaffelsespriser!$D$203),"Fejl")) -> Variabel pris | L184: =IF(ISBLANK(E184),"",IF(E184=0,"",IF(ISNUMBER(E184),((J184*E184)/$C184)*N181,""))) ->  | M184: =IF(ISBLANK(F184),"",IF(F184=0,"",IF(ISNUMBER(F184),((K184*F184)/$C184)*O181,""))) ->  | N184: 1 | O184: 1
A185: Beholderanlæg - vandtårn | B185: m³ | C185: =+Genanskaffelsespriser!$E$179 -> 50 | J185: =IF(E185=0,"Variabel pris",IFERROR((HLOOKUP(E185,'Variable priser'!$C$55:$H$57,2)+(E185-HLOOKUP(E185,'Variable priser'!$C$55:$H$57,1))*HLOOKUP(E185,'Variable priser'!$C$55:$H$57,3))/E185*(1+Genanskaffelsespriser!$D$203),"Fejl")) -> Variabel pris | K185: =IF(F185=0,"Variabel pris",IFERROR((HLOOKUP(F185,'Variable priser'!$C$55:$H$57,2)+(F185-HLOOKUP(F185,'Variable priser'!$C$55:$H$57,1))*HLOOKUP(F185,'Variable priser'!$C$55:$H$57,3))/F185*(1+Genanskaffelsespriser!$D$203),"Fejl")) -> Variabel pris | L185: =IF(ISBLANK(E185),"",IF(E185=0,"",IF(ISNUMBER(E185),((J185*E185)/$C185)*N181,""))) ->  | M185: =IF(ISBLANK(F185),"",IF(F185=0,"",IF(ISNUMBER(F185),((K185*F185)/$C185)*O181,""))) ->  | N185: 1 | O185: 1
A186: Pumpestationer, bygværker og bassiner 16
A187: Pumpestation (inkl. evt. hydrofor)/trykforøger, Konstruktioner | B187: m³/h | C187: =+Genanskaffelsespriser!$E$175 -> 50 | E187: 350 | F187: 350 | G187: Ny data | H187: 0 | I187: fejl ikke med tidligere | J187: =IF(E187=0,"Variabel pris",IFERROR((HLOOKUP(E187,'Variable priser'!$C$103:$F$105,2)+(E187-HLOOKUP(E187,'Variable priser'!$C$103:$F$105,1))*HLOOKUP(E187,'Variable priser'!$C$103:$F$105,3))*'Variable priser'!$I$102/E187*(1+Genanskaffelsespriser!$D$203),"Fejl")) -> 865.4590896 | K187: =IF(F187=0,"Variabel pris",IFERROR((HLOOKUP(F187,'Variable priser'!$C$103:$F$105,2)+(F187-HLOOKUP(F187,'Variable priser'!$C$103:$F$105,1))*HLOOKUP(F187,'Variable priser'!$C$103:$F$105,3))*'Variable priser'!$I$102/F187*(1+Genanskaffelsespriser!$D$203),"Fejl")) -> 865.4590896 | L187: =IF(ISBLANK(E187),"",IF(E187=0,"",IF(ISNUMBER(E187),((J187*E187)/$C187)*N187,""))) -> 6058.213627 | M187: =IF(ISBLANK(F187),"",IF(F187=0,"",IF(ISNUMBER(F187),((K187*F187)/$C187)*O187,""))) -> 6058.213627 | N187: 1 | O187: 1
A188: Pumpestation (inkl. evt. hydrofor)/trykforøger, Mek./EL | B188: m³/h | C188: =+Genanskaffelsespriser!$E$176 -> 25 | D188: 350 | E188: 350 | F188: 350 | G188: 0 | H188: 0 | J188: =IF(E188=0,"Variabel pris",IFERROR((HLOOKUP(E188,'Variable priser'!$C$103:$F$105,2)+(E188-HLOOKUP(E188,'Variable priser'!$C$103:$F$105,1))*HLOOKUP(E188,'Variable priser'!$C$103:$F$105,3))*'Variable priser'!$J$102/E188*(1+Genanskaffelsespriser!$D$203),"Fejl")) -> 2250.193633 | K188: =IF(F188=0,"Variabel pris",IFERROR((HLOOKUP(F188,'Variable priser'!$C$103:$F$105,2)+(F188-HLOOKUP(F188,'Variable priser'!$C$103:$F$105,1))*HLOOKUP(F188,'Variable priser'!$C$103:$F$105,3))*'Variable priser'!$J$102/F188*(1+Genanskaffelsespriser!$D$203),"Fejl")) -> 2250.193633 | L188: =IF(ISBLANK(E188),"",IF(E188=0,"",IF(ISNUMBER(E188),((J188*E188)/$C188)*N187,""))) -> 31502.71086 | M188: =IF(ISBLANK(F188),"",IF(F188=0,"",IF(ISNUMBER(F188),((K188*F188)/$C188)*O187,""))) -> 31502.71086 | N188: 1 | O188: 1
A189: Pumpestation (inkl. evt. hydrofor)/trykforøger, SRO | B189: m³/h | C189: =+Genanskaffelsespriser!$E$177 -> 10 | D189: 350 | E189: 350 | F189: 350 | G189: 0 | H189: 0 | J189: =IF(E189=0,"Variabel pris",IFERROR((HLOOKUP(E189,'Variable priser'!$C$103:$F$105,2)+(E189-HLOOKUP(E189,'Variable priser'!$C$103:$F$105,1))*HLOOKUP(E189,'Variable priser'!$C$103:$F$105,3))*'Variable priser'!$L$102/E189*(1+Genanskaffelsespriser!$D$203),"Fejl")) -> 346.1836359 | K189: =IF(F189=0,"Variabel pris",IFERROR((HLOOKUP(F189,'Variable priser'!$C$103:$F$105,2)+(F189-HLOOKUP(F189,'Variable priser'!$C$103:$F$105,1))*HLOOKUP(F189,'Variable priser'!$C$103:$F$105,3))*'Variable priser'!$L$102/F189*(1+Genanskaffelsespriser!$D$203),"Fejl")) -> 346.1836359 | L189: =IF(ISBLANK(E189),"",IF(E189=0,"",IF(ISNUMBER(E189),((J189*E189)/$C189)*N187,""))) -> 12116.42725 | M189: =IF(ISBLANK(F189),"",IF(F189=0,"Samlet mængde kan ikke være nul i 2025",IF(ISNUMBER(F189),((K189*F189)/$C189)*O187,""))) -> 12116.42725 | N189: 1 | O189: 1
A190: Beholderanlæg - højdebeholder | B190: m³ | C190: =+Genanskaffelsespriser!$E$178 -> 50 | J190: =IF(E190=0,"Variabel pris",IFERROR((HLOOKUP(E190,'Variable priser'!$C$48:$H$50,2)+(E190-HLOOKUP(E190,'Variable priser'!$C$48:$H$50,1))*HLOOKUP(E190,'Variable priser'!$C$48:$H$50,3))/E190*(1+Genanskaffelsespriser!$D$203),"Fejl")) -> Variabel pris | K190: =IF(F190=0,"Variabel pris",IFERROR((HLOOKUP(F190,'Variable priser'!$C$48:$H$50,2)+(F190-HLOOKUP(F190,'Variable priser'!$C$48:$H$50,1))*HLOOKUP(F190,'Variable priser'!$C$48:$H$50,3))/F190*(1+Genanskaffelsespriser!$D$203),"Fejl")) -> Variabel pris | L190: =IF(ISBLANK(E190),"",IF(E190=0,"",IF(ISNUMBER(E190),((J190*E190)/$C190)*N187,""))) ->  | M190: =IF(ISBLANK(F190),"",IF(F190=0,"",IF(ISNUMBER(F190),((K190*F190)/$C190)*O187,""))) ->  | N190: 1 | O190: 1
A191: Beholderanlæg - vandtårn | B191: m³ | C191: =+Genanskaffelsespriser!$E$179 -> 50 | J191: =IF(E191=0,"Variabel pris",IFERROR((HLOOKUP(E191,'Variable priser'!$C$55:$H$57,2)+(E191-HLOOKUP(E191,'Variable priser'!$C$55:$H$57,1))*HLOOKUP(E191,'Variable priser'!$C$55:$H$57,3))/E191*(1+Genanskaffelsespriser!$D$203),"Fejl")) -> Variabel pris | K191: =IF(F191=0,"Variabel pris",IFERROR((HLOOKUP(F191,'Variable priser'!$C$55:$H$57,2)+(F191-HLOOKUP(F191,'Variable priser'!$C$55:$H$57,1))*HLOOKUP(F191,'Variable priser'!$C$55:$H$57,3))/F191*(1+Genanskaffelsespriser!$D$203),"Fejl")) -> Variabel pris | L191: =IF(ISBLANK(E191),"",IF(E191=0,"",IF(ISNUMBER(E191),((J191*E191)/$C191)*N187,""))) ->  | M191: =IF(ISBLANK(F191),"",IF(F191=0,"",IF(ISNUMBER(F191),((K191*F191)/$C191)*O187,""))) ->  | N191: 1 | O191: 1
A192: Pumpestationer, bygværker og bassiner 17
A193: Pumpestation (inkl. evt. hydrofor)/trykforøger, Konstruktioner | B193: m³/h | C193: =+Genanskaffelsespriser!$E$175 -> 50 | E193: 270 | F193: 270 | G193: Ny data | H193: 0 | I193: fejl ikke med tidligere | J193: =IF(E193=0,"Variabel pris",IFERROR((HLOOKUP(E193,'Variable priser'!$C$103:$F$105,2)+(E193-HLOOKUP(E193,'Variable priser'!$C$103:$F$105,1))*HLOOKUP(E193,'Variable priser'!$C$103:$F$105,3))*'Variable priser'!$I$102/E193*(1+Genanskaffelsespriser!$D$203),"Fejl")) -> 898.5665492 | K193: =IF(F193=0,"Variabel pris",IFERROR((HLOOKUP(F193,'Variable priser'!$C$103:$F$105,2)+(F193-HLOOKUP(F193,'Variable priser'!$C$103:$F$105,1))*HLOOKUP(F193,'Variable priser'!$C$103:$F$105,3))*'Variable priser'!$I$102/F193*(1+Genanskaffelsespriser!$D$203),"Fejl")) -> 898.5665492 | L193: =IF(ISBLANK(E193),"",IF(E193=0,"",IF(ISNUMBER(E193),((J193*E193)/$C193)*N193,""))) -> 4852.259366 | M193: =IF(ISBLANK(F193),"",IF(F193=0,"",IF(ISNUMBER(F193),((K193*F193)/$C193)*O193,""))) -> 4852.259366 | N193: 1 | O193: 1
A194: Pumpestation (inkl. evt. hydrofor)/trykforøger, Mek./EL | B194: m³/h | C194: =+Genanskaffelsespriser!$E$176 -> 25 | D194: 0 | E194: 270 | F194: 270 | G194: Ny data | H194: 0 | I194: fejlindtastet sidste gang | J194: =IF(E194=0,"Variabel pris",IFERROR((HLOOKUP(E194,'Variable priser'!$C$103:$F$105,2)+(E194-HLOOKUP(E194,'Variable priser'!$C$103:$F$105,1))*HLOOKUP(E194,'Variable priser'!$C$103:$F$105,3))*'Variable priser'!$J$102/E194*(1+Genanskaffelsespriser!$D$203),"Fejl")) -> 2336.273028 | K194: =IF(F194=0,"Variabel pris",IFERROR((HLOOKUP(F194,'Variable priser'!$C$103:$F$105,2)+(F194-HLOOKUP(F194,'Variable priser'!$C$103:$F$105,1))*HLOOKUP(F194,'Variable priser'!$C$103:$F$105,3))*'Variable priser'!$J$102/F194*(1+Genanskaffelsespriser!$D$203),"Fejl")) -> 2336.273028 | L194: =IF(ISBLANK(E194),"",IF(E194=0,"",IF(ISNUMBER(E194),((J194*E194)/$C194)*N193,""))) -> 25231.7487 | M194: =IF(ISBLANK(F194),"",IF(F194=0,"",IF(ISNUMBER(F194),((K194*F194)/$C194)*O193,""))) -> 25231.7487 | N194: 1 | O194: 1
A195: Pumpestation (inkl. evt. hydrofor)/trykforøger, SRO | B195: m³/h | C195: =+Genanskaffelsespriser!$E$177 -> 10 | D195: 0 | E195: 270 | F195: 270 | G195: Ny data | H195: 0 | I195: fejlindtastet sidste gang | J195: =IF(E195=0,"Variabel pris",IFERROR((HLOOKUP(E195,'Variable priser'!$C$103:$F$105,2)+(E195-HLOOKUP(E195,'Variable priser'!$C$103:$F$105,1))*HLOOKUP(E195,'Variable priser'!$C$103:$F$105,3))*'Variable priser'!$L$102/E195*(1+Genanskaffelsespriser!$D$203),"Fejl")) -> 359.4266197 | K195: =IF(F195=0,"Variabel pris",IFERROR((HLOOKUP(F195,'Variable priser'!$C$103:$F$105,2)+(F195-HLOOKUP(F195,'Variable priser'!$C$103:$F$105,1))*HLOOKUP(F195,'Variable priser'!$C$103:$F$105,3))*'Variable priser'!$L$102/F195*(1+Genanskaffelsespriser!$D$203),"Fejl")) -> 359.4266197 | L195: =IF(ISBLANK(E195),"",IF(E195=0,"",IF(ISNUMBER(E195),((J195*E195)/$C195)*N193,""))) -> 9704.518731 | M195: =IF(ISBLANK(F195),"",IF(F195=0,"Samlet mængde kan ikke være nul i 2025",IF(ISNUMBER(F195),((K195*F195)/$C195)*O193,""))) -> 9704.518731 | N195: 1 | O195: 1
A196: Beholderanlæg - højdebeholder | B196: m³ | C196: =+Genanskaffelsespriser!$E$178 -> 50 | J196: =IF(E196=0,"Variabel pris",IFERROR((HLOOKUP(E196,'Variable priser'!$C$48:$H$50,2)+(E196-HLOOKUP(E196,'Variable priser'!$C$48:$H$50,1))*HLOOKUP(E196,'Variable priser'!$C$48:$H$50,3))/E196*(1+Genanskaffelsespriser!$D$203),"Fejl")) -> Variabel pris | K196: =IF(F196=0,"Variabel pris",IFERROR((HLOOKUP(F196,'Variable priser'!$C$48:$H$50,2)+(F196-HLOOKUP(F196,'Variable priser'!$C$48:$H$50,1))*HLOOKUP(F196,'Variable priser'!$C$48:$H$50,3))/F196*(1+Genanskaffelsespriser!$D$203),"Fejl")) -> Variabel pris | L196: =IF(ISBLANK(E196),"",IF(E196=0,"",IF(ISNUMBER(E196),((J196*E196)/$C196)*N193,""))) ->  | M196: =IF(ISBLANK(F196),"",IF(F196=0,"",IF(ISNUMBER(F196),((K196*F196)/$C196)*O193,""))) ->  | N196: 1 | O196: 1
A197: Beholderanlæg - vandtårn | B197: m³ | C197: =+Genanskaffelsespriser!$E$179 -> 50 | J197: =IF(E197=0,"Variabel pris",IFERROR((HLOOKUP(E197,'Variable priser'!$C$55:$H$57,2)+(E197-HLOOKUP(E197,'Variable priser'!$C$55:$H$57,1))*HLOOKUP(E197,'Variable priser'!$C$55:$H$57,3))/E197*(1+Genanskaffelsespriser!$D$203),"Fejl")) -> Variabel pris | K197: =IF(F197=0,"Variabel pris",IFERROR((HLOOKUP(F197,'Variable priser'!$C$55:$H$57,2)+(F197-HLOOKUP(F197,'Variable priser'!$C$55:$H$57,1))*HLOOKUP(F197,'Variable priser'!$C$55:$H$57,3))/F197*(1+Genanskaffelsespriser!$D$203),"Fejl")) -> Variabel pris | L197: =IF(ISBLANK(E197),"",IF(E197=0,"",IF(ISNUMBER(E197),((J197*E197)/$C197)*N193,""))) ->  | M197: =IF(ISBLANK(F197),"",IF(F197=0,"",IF(ISNUMBER(F197),((K197*F197)/$C197)*O193,""))) ->  | N197: 1 | O197: 1
A198: Pumpestationer, bygværker og bassiner 18
A199: Pumpestation (inkl. evt. hydrofor)/trykforøger, Konstruktioner | B199: m³/h | C199: =+Genanskaffelsespriser!$E$175 -> 50 | E199: 300 | F199: 300 | G199: Ny data | H199: 0 | I199: fejl ikke med tidligere | J199: =IF(E199=0,"Variabel pris",IFERROR((HLOOKUP(E199,'Variable priser'!$C$103:$F$105,2)+(E199-HLOOKUP(E199,'Variable priser'!$C$103:$F$105,1))*HLOOKUP(E199,'Variable priser'!$C$103:$F$105,3))*'Variable priser'!$I$102/E199*(1+Genanskaffelsespriser!$D$203),"Fejl")) -> 884.0820356 | K199: =IF(F199=0,"Variabel pris",IFERROR((HLOOKUP(F199,'Variable priser'!$C$103:$F$105,2)+(F199-HLOOKUP(F199,'Variable priser'!$C$103:$F$105,1))*HLOOKUP(F199,'Variable priser'!$C$103:$F$105,3))*'Variable priser'!$I$102/F199*(1+Genanskaffelsespriser!$D$203),"Fejl")) -> 884.0820356 | L199: =IF(ISBLANK(E199),"",IF(E199=0,"",IF(ISNUMBER(E199),((J199*E199)/$C199)*N199,""))) -> 5304.492214 | M199: =IF(ISBLANK(F199),"",IF(F199=0,"",IF(ISNUMBER(F199),((K199*F199)/$C199)*O199,""))) -> 5304.492214 | N199: 1 | O199: 1
A200: Pumpestation (inkl. evt. hydrofor)/trykforøger, Mek./EL | B200: m³/h | C200: =+Genanskaffelsespriser!$E$176 -> 25 | D200: 300 | E200: 300 | F200: 300 | G200: 0 | H200: 0 | J200: =IF(E200=0,"Variabel pris",IFERROR((HLOOKUP(E200,'Variable priser'!$C$103:$F$105,2)+(E200-HLOOKUP(E200,'Variable priser'!$C$103:$F$105,1))*HLOOKUP(E200,'Variable priser'!$C$103:$F$105,3))*'Variable priser'!$J$102/E200*(1+Genanskaffelsespriser!$D$203),"Fejl")) -> 2298.613293 | K200: =IF(F200=0,"Variabel pris",IFERROR((HLOOKUP(F200,'Variable priser'!$C$103:$F$105,2)+(F200-HLOOKUP(F200,'Variable priser'!$C$103:$F$105,1))*HLOOKUP(F200,'Variable priser'!$C$103:$F$105,3))*'Variable priser'!$J$102/F200*(1+Genanskaffelsespriser!$D$203),"Fejl")) -> 2298.613293 | L200: =IF(ISBLANK(E200),"",IF(E200=0,"",IF(ISNUMBER(E200),((J200*E200)/$C200)*N199,""))) -> 27583.35951 | M200: =IF(ISBLANK(F200),"",IF(F200=0,"",IF(ISNUMBER(F200),((K200*F200)/$C200)*O199,""))) -> 27583.35951 | N200: 1 | O200: 1
... 204 more rows

Sheet Fællesfunktionsanlæg
A1: Fællesfunktionsanlæg | B1: Enhed | C1: Standard-levetid | D1: Samlet mængde per 31/12-2023 | E1: Samlet mængde per 31/12-2024 | F1: Samlet mængde per 31/12-2025 | G1: Afvigelse 2023-2024 | H1: Afvigelse 2024-2025 | I1: Bemærkninger | J1: Enhedspris 2024 | K1: Enhedspris 2025 | L1: Netvolumenbidrag 2024 | M1: Netvolumenbidrag 2025 | N1: Ejerandel 2024 (%) | O1: Ejerandel 2025 (%)
A2: Andre | G2: =IF($D$2="",IF($E$2>0,"Ny data",IF($E$2="","",0)),IF($D$2=0,IF($E$2=0,0,"Ny data"),($E$2-$D$2)/$D$2)) ->  | H2: =IF($E$2="",IF($F$2>0,"Ny data",IF($F$2="","",0)),IF($E$2=0,IF($F$2=0,0,"Ny data"),($F$2-$E$2)/$E$2)) ->  | N2: 1
A3: Arbejdsplads og kontor | B3: stk. | C3: 5 | D3: 150 | E3: 150 | F3: 150 | G3: =IF($D$3="",IF($E$3>0,"Ny data",IF($E$3="","",0)),IF($D$3=0,IF($E$3=0,0,"Ny data"),($E$3-$D$3)/$D$3)) -> 0 | H3: =IF($E$3="",IF($F$3>0,"Ny data",IF($F$3="","",0)),IF($E$3=0,IF($F$3=0,0,"Ny data"),($F$3-$E$3)/$E$3)) -> 0 | J3: =Genanskaffelsespriser!D193 -> 36295 | K3: =J3 -> 36295 | L3: =IF(ISNUMBER(E3),((J3*E3)/C3)*N3,"") -> 1088850 | M3: =IF(ISNUMBER(F3),((K3*F3)/C3)*O3,"") -> 1088850 | N3: 1 | O3: 1
A4: Køretøjer, personbil | B4: stk. | C4: 5 | G4: =IF($D$4="",IF($E$4>0,"Ny data",IF($E$4="","",0)),IF($D$4=0,IF($E$4=0,0,"Ny data"),($E$4-$D$4)/$D$4)) ->  | H4: =IF($E$4="",IF($F$4>0,"Ny data",IF($F$4="","",0)),IF($E$4=0,IF($F$4=0,0,"Ny data"),($F$4-$E$4)/$E$4)) ->  | J4: =Genanskaffelsespriser!D194 -> 225000 | K4: =J4 -> 225000 | L4: =IF(ISNUMBER(E4),((J4*E4)/C4)*N4,"") ->  | M4: =IF(ISNUMBER(F4),((K4*F4)/C4)*O4,"") ->  | N4: 1 | O4: 1
A5: Køretøjer, små lastvogne (< 3.500 kg.) | B5: stk. | C5: 5 | G5: =IF($D$5="",IF($E$5>0,"Ny data",IF($E$5="","",0)),IF($D$5=0,IF($E$5=0,0,"Ny data"),($E$5-$D$5)/$D$5)) ->  | H5: =IF($E$5="",IF($F$5>0,"Ny data",IF($F$5="","",0)),IF($E$5=0,IF($F$5=0,0,"Ny data"),($F$5-$E$5)/$E$5)) ->  | J5: =Genanskaffelsespriser!D195 -> 250000 | K5: 250000 | N5: 1 | O5: 1
A6: Køretøjer, store lastvogne (> 3.500 kg.) | B6: stk. | C6: 5 | G6: =IF($D$6="",IF($E$6>0,"Ny data",IF($E$6="","",0)),IF($D$6=0,IF($E$6=0,0,"Ny data"),($E$6-$D$6)/$D$6)) ->  | H6: =IF($E$6="",IF($F$6>0,"Ny data",IF($F$6="","",0)),IF($E$6=0,IF($F$6=0,0,"Ny data"),($F$6-$E$6)/$E$6)) ->  | J6: =Genanskaffelsespriser!$D196 -> 1300000 | K6: 1300000 | N6: 1 | O6: 1
A7: Køretøjer, entreprenørmaskiner | B7: stk. | C7: 5 | D7: 2 | E7: 2 | F7: 2 | G7: =IF($D$7="",IF($E$7>0,"Ny data",IF($E$7="","",0)),IF($D$7=0,IF($E$7=0,0,"Ny data"),($E$7-$D$7)/$D$7)) -> 0 | H7: =IF($E$7="",IF($F$7>0,"Ny data",IF($F$7="","",0)),IF($E$7=0,IF($F$7=0,0,"Ny data"),($F$7-$E$7)/$E$7)) -> 0 | J7: =Genanskaffelsespriser!D197 -> 400000 | K7: 400000 | L7: 160000 | M7: 160000 | N7: 1 | O7: 1
A8: Solcelleanlæg ekskl. Inverter | B8: kWp | C8: 25 | D8: 0 | G8: =IF($D$8="",IF($E$8>0,"Ny data",IF($E$8="","",0)),IF($D$8=0,IF($E$8=0,0,"Ny data"),($E$8-$D$8)/$D$8)) -> 0 | H8: =IF($E$8="",IF($F$8>0,"Ny data",IF($F$8="","",0)),IF($E$8=0,IF($F$8=0,0,"Ny data"),($F$8-$E$8)/$E$8)) ->  | J8: =Genanskaffelsespriser!D199 -> 5400 | K8: 5400 | L8: =IF(OR(ISBLANK(E8),ISBLANK(N8)),"",(((E8*J8)/C8)*N8)*(IF(SUM(E10:E11)<>0,E11/SUM(E10:E11),1))) ->  | M8: =IF(OR(ISBLANK(F8),ISBLANK(O8)),"",(((F8*K8)/C8)*O8)*(IF(SUM(F10:F11)<>0,F11/SUM(F10:F11),1))) ->  | N8: 1 | O8: 1
A9: Inverter til solcelleanlæg | B9: kWp | C9: 10 | D9: 0 | G9: =IF($D$9="",IF($E$9>0,"Ny data",IF($E$9="","",0)),IF($D$9=0,IF($E$9=0,0,"Ny data"),($E$9-$D$9)/$D$9)) -> 0 | H9: =IF($E$9="",IF($F$9>0,"Ny data",IF($F$9="","",0)),IF($E$9=0,IF($F$9=0,0,"Ny data"),($F$9-$E$9)/$E$9)) ->  | J9: =Genanskaffelsespriser!D200 -> 600 | K9: 600 | L9: =IF(OR(ISBLANK(E9),ISBLANK(N9)),"",(((E9*J9)/C9)*N9)*(IF(SUM(E10:E11)<>0,E11/SUM(E10:E11),1))) ->  | M9: =IF(OR(ISBLANK(F9),ISBLANK(O9)),"",(((F9*K9)/C9)*O9)*(IF(SUM(F10:F11)<>0,F11/SUM(F10:F11),1))) ->  | N9: 1 | O9: 1
A10: Internt brug af produceret solcellestrøm 2024 | B10: MWh | D10: 0 | G10: =IF($D10="",IF($E10>0,"Ny data",IF($E10="","",0)),IF($D10=0,IF($E10=0,0,"Ny data"),($E10-$D10)/$D10)) -> 0 | H10: =IF($E$10="",IF($F$10>0,"Ny data",IF($F$10="","",0)),IF($E$10=0,IF($F$10=0,0,"Ny data"),($F$10-$E$10)/$E$10)) ->  | N10: 1 | O10: 1
A11: Eksternt afsat produceret solcellestrøm 2024 | B11: MWh | D11: 0 | G11: =IF($D11="",IF($E11>0,"Ny data",IF($E11="","",0)),IF($D11=0,IF($E11=0,0,"Ny data"),($E11-$D11)/$D11)) -> 0 | H11: =IF($E$11="",IF($F$11>0,"Ny data",IF($F$11="","",0)),IF($E$11=0,IF($F$11=0,0,"Ny data"),($F$11-$E$11)/$E$11)) ->  | N11: 1 | O11: 1

Sheet Genanskaffelsespriser
B1: Genanskaffelsespriser | C1: Måleenhed | D1: Vægtet enhedspris | E1: Teknisk levetid
B3: Produktionsanlæg:
B4: Boringer
B5: Boring (inkl. etablering, forerør, filter og prøvepumpning) | C5: kr./m. | D5: 2538 | E5: 30
B6: Råvandsstationer
B7: Råvandsstation komplet montering og boringshus/tørbrønd | C7: kr./stk. | D7: =57810*(1+D203) -> 59948.97 | E7: 30
B8: Instrumenter (flowmåler+tryk transducer+alarmer) | C8: kr./stk. | D8: =65241*(1+D203) -> 67654.917 | E8: 10
B9: Pumpe inkl. stigrør og forerørsforsejlinger mv. | C9: kr/m³/h | D9: Variabel | E9: 15
B10: Erstatninger (OBS ingen øst-tillæg eller øvrige tillæg) | C10: kr/stk | D10: 44911 | E10: 30
B11: Hegn | C11: kr./stk. | D11: =85428*(1+D203) -> 88588.836 | E11: 15
B12: Elanlæg | C12: kr./boring | D12: =108657*(1+D203) -> 112677.309 | E12: 20
B13: SRO anlæg | C13: kr./boring | D13: =29256*(1+D203) -> 30338.472 | E13: 10
B14: Råvandsledninger - Land
B15: Ø 50mm < Ledningsnet ≤ Ø110 mm | C15: kr./m. | D15: =354*(1+D203) -> 367.098 | E15: 75
B16: Ø110 mm < Ledningsnet ≤ Ø 250 mm | C16: kr./m. | D16: =1018*(1+D203) -> 1055.666 | E16: 75
B17: Ø 250 mm < Ledningsnet ≤ Ø 500mm | C17: kr./m. | D17: =2335*(1+D203) -> 2421.395 | E17: 75
B18: Ledningsnet > Ø 500 mm | C18: kr./m. | D18: =5029*(1+D203) -> 5215.073 | E18: 75
B19: Råvandsledninger - By
B20: Ø 50mm < Ledningsnet ≤ Ø110 mm | C20: kr./m. | D20: =958*(1+D203) -> 993.446 | E20: 75
B21: Ø110 mm < Ledningsnet ≤ Ø 250 mm | C21: kr./m. | D21: =1684*(1+D203) -> 1746.308 | E21: 75
B22: Ø 250 mm < Ledningsnet ≤ Ø 500mm | C22: kr./m. | D22: =3153*(1+D203) -> 3269.661 | E22: 75
B23: Ledningsnet > Ø 500 mm | C23: kr./m. | D23: =5998*(1+D203) -> 6219.926 | E23: 75
B24: Råvandsledninger - City
B25: Ø 50mm < Ledningsnet ≤ Ø110 mm | C25: kr./m. | D25: =1495*(1+D203) -> 1550.315 | E25: 75
B26: Ø110 mm < Ledningsnet ≤ Ø 250 mm | C26: kr./m. | D26: =2192*(1+D203) -> 2273.104 | E26: 75
B27: Ø 250 mm < Ledningsnet ≤ Ø 500mm | C27: kr./m. | D27: =3773*(1+D203) -> 3912.601 | E27: 75
B28: Ledningsnet > Ø 500 mm | C28: kr./m. | D28: =6732*(1+D203) -> 6981.084 | E28: 75
B29: Vandværker: Behandling og Udpumpning
B30: Beluftningsanlæg, iltningstrappe, Konstruktioner | C30: kr/m³/h | D30: Variabel | E30: 50
B31: Beluftningsanlæg, iltningstrappe, Mek./EL | C31: kr/m³/h | D31: Variabel | E31: 25
B32: Beluftningsanlæg, ika-beluftning, Konstruktioner | C32: kr/m³/h | D32: Variabel | E32: 50
B33: Beluftningsanlæg, ika-beluftning, Mek./EL | C33: kr/m³/h | D33: Variabel | E33: 25
B34: Beluftningsanlæg, bundbeluftbning, Konstruktioner | C34: kr/m³/h | D34: Variabel | E34: 50
B35: Beluftningsanlæg, bundbeluftbning, Mek./EL | C35: kr/m³/h | D35: Variabel | E35: 25
B36: Beluftningsanlæg, rislebakke, Konstruktioner | C36: kr/m³/h | D36: Variabel | E36: 50
B37: Beluftningsanlæg, rislebakke, Mek./EL | C37: kr/m³/h | D37: Variabel | E37: 25
B38: Beluftningsanlæg, kompressorbeluftning | C38: kr/m³/h | D38: Variabel | E38: 25
B39: Beluftningsanlæg, ren ilt | C39: kr/m³/h | D39: Variabel | E39: 25
B40: Behandlingsanlæg, kalk anlæg | C40: kr/m³/h | D40: Variabel | E40: 25
B41: Behandlingsanlæg, luddosering | C41: kr/m³/h | D41: Variabel | E41: 25
B42: Filteranlæg, åbne filtre, enkelt filtrering, Konstruktioner | C42: kr/m³/h | D42: Variabel | E42: 50
B43: Filteranlæg, åbne filtre, enkelt filtrering, Mek./EL | C43: kr/m³/h | D43: Variabel | E43: 25
B44: Filteranlæg, åbne filtre, dobbelt filtrering, Konstruktioner | C44: kr/m³/h | D44: Variabel | E44: 50
B45: Filteranlæg, åbne filtre, dobbelt filtrering, Mek./EL | C45: kr/m³/h | D45: Variabel | E45: 25
B46: Filteranlæg, trykfiltre, enkelt filtrering | C46: kr/m³/h | D46: Variabel | E46: 25
B47: Filteranlæg, trykfiltre, dobbelt filtrering | C47: kr/m³/h | D47: Variabel | E47: 25
B48: Rentvandsbeholder insitu støbt | C48: kr/m³ | D48: Variabel | E48: 50
B49: Rentvandsbeholder element | C49: kr/m³ | D49: Variabel | E49: 50
B50: Udpumpningsanlæg, rentvandspumper på vandværk | C50: kr/m³/h | D50: Variabel | E50: 25
B51: Udpumpningsanlæg, Frekvensomformer | C51: kr/kW | D51: Variabel | E51: 25
B52: Udpumpningsanlæg, Hydrofor | C52: kr/lilter | D52: Variabel | E52: 25
B53: Skyllevand-/slamhåndteringsanlæg - lukkede betonbeholdere | C53: kr/m³ | D53: Variabel | E53: 50
B54: Skyllevand-/slamhåndteringsanl. - åbne med faste sider/bund | C54: kr/m³ | D54: Variabel | E54: 50
B55: Skyllevand-/slamhåndteringsanlæg - jordbassiner | C55: kr/m³ | D55: Variabel | E55: 50
B56: Skyllevandsbehandling, inkl. UV-filter mv., Mek./EL | C56: kr/m³/h | D56: Variabel | E56: 25
B57: Skyllevandsbehandling, inkl. UV-filter mv., SRO | C57: kr/m³/h | D57: Variabel | E57: 10
B58: Nødstrømsanlæg på vandværk | C58: kr/kW | D58: Variabel | E58: 25
B59: Elanlæg og SRO-anlæg - vandværk, Elanlæg | C59: kr./m³/h | D59: Variabel | E59: 25
B60: Elanlæg og SRO-anlæg - vandværk, SRO | C60: kr./m³/h | D60: Variabel | E60: 10
B61: Bygninger
B62: Etageareal vandbehandlingsbygning | C62: kr/m² | D62: =18108*(1+D203) -> 18777.996 | E62: 75
B63: Etageareal kontor og mandskabsfaciliteter | C63: kr/m² | D63: =19309*(1+D203) -> 20023.433 | E63: 75
B64: Værksted | C64: kr/m² | D64: =14921*(1+D203) -> 15473.077 | E64: 75
B65: Lager | C65: kr/m² | D65: =14921*(1+D203) -> 15473.077 | E65: 75
B66: Garage og rørlager | C66: kr/m² | D66: =10444*(1+D203) -> 10830.428 | E66: 75
B67: Bygning for trykforøgere | C67: kr/m² | D67: =20318*(1+D203) -> 21069.766 | E67: 75
B68: Laboratorium (bygning, inkl. inventar+udstyr), Konstruktioner | C68: kr/m² | D68: =20362*(1+D203) -> 21115.394 | E68: 75
B69: Laboratorium (bygning, inkl. inventar+udstyr), Mek./EL | C69: kr/m² | D69: =13575*(1+D203) -> 14077.275 | E69: 10
B70: Andre
B71: Sikring (terror, hærværk), Mek./EL | C71: kr./stk. | D71: =6372*(1+D203) -> 6607.764 | E71: 25
B72: Sikring (terror, hærværk), SRO | C72: kr./stk. | D72: =14868*(1+D203) -> 15418.116 | E72: 10
B73: Sikring, mindre avanceret (hegn, porte), Mek./EL | C73: kr./stk. | D73: =26067*(1+D203) -> 27031.479 | E73: 25
B74: Sikring, mindre avanceret (hegn, porte), SRO | C74: kr./stk. | D74: =60823*(1+D203) -> 63073.451 | E74: 10
B75: Sikring, avanceret (hegn, porte og overvågningssystemer), Mek./EL | C75: kr./stk. | D75: =56318*(1+D203) -> 58401.766 | E75: 25
B76: Sikring, avanceret (hegn, porte og overvågningssystemer), SRO | C76: kr./stk. | D76: =225271*(1+D203) -> 233606.027 | E76: 10
B79: Distributionsanlæg:
B80: Ledningsnet - Land
B81: Ledningsnet ≤ Ø50 mm | C81: kr./m. | D81: =529*(1+D203) -> 548.573 | E81: 75
B82: Ø 50mm < Ledningsnet ≤ Ø110 mm | C82: kr./m. | D82: =808*(1+D203) -> 837.896 | E82: 75
B83: Ø110 mm < Ledningsnet ≤ Ø 250 mm | C83: kr./m. | D83: =1513*(1+D203) -> 1568.981 | E83: 75
B84: Ø 250 mm < Ledningsnet ≤ Ø 500mm | C84: kr./m. | D84: =2944*(1+D203) -> 3052.928 | E84: 75
B85: Ledningsnet > Ø 500 mm | C85: kr./m. | D85: =5751*(1+D203) -> 5963.787 | E85: 75
B86: Støbejernsledninger ≤ Ø50 mm | C86: kr./m. | D86: =899*(1+D203) -> 932.263 | E86: 100
B87: Støbejernsledninger Ø 50mm < Ledningsnet ≤ Ø110 mm | C87: kr./m. | D87: =1053*(1+D203) -> 1091.961 | E87: 100
B88: Støbejernsledninger Ø110 mm < Ledningsnet ≤ Ø 250 mm | C88: kr./m. | D88: =1490*(1+D203) -> 1545.13 | E88: 100
B89: Støbejernsledninger Ø 250 mm < Ledningsnet ≤ Ø 500mm | C89: kr./m. | D89: =2762*(1+D203) -> 2864.194 | E89: 100
B90: Støbejernsledninger Ledningsnet > Ø 500 mm | C90: kr./m. | D90: =5484*(1+D203) -> 5686.908 | E90: 100
B91: Eternitledninger ≤ Ø50 mm | C91: kr./m. | D91: =655*(1+D203) -> 679.235 | E91: 75
B92: Eternitledninger Ø 50mm < Ledningsnet ≤ Ø110 mm | C92: kr./m. | D92: =885*(1+D203) -> 917.745 | E92: 75
B93: Eternitledninger Ø110 mm < Ledningsnet ≤ Ø 250 mm | C93: kr./m. | D93: =1287*(1+D203) -> 1334.619 | E93: 75
B94: Eternitledninger Ø 250 mm < Ledningsnet ≤ Ø 500mm | C94: kr./m. | D94: =3056*(1+D203) -> 3169.072 | E94: 75
B95: Eternitledninger Ledningsnet > Ø 500 mm | C95: kr./m. | D95: =8477*(1+D203) -> 8790.649 | E95: 75
B96: Skelbrønd, Konstruktioner | C96: kr./stk. | D96: =10415*(1+D203) -> 10800.355 | E96: 50
B97: Skelbrønd, Mek./EL | C97: kr./stk. | D97: =15623*(1+D203) -> 16201.051 | E97: 15
B98: Inspektionsbrønd, Konstruktioner | C98: kr./stk. | D98: =10415*(1+D203) -> 10800.355 | E98: 50
B99: Inspektionsbrønd, Mek./EL | C99: kr./stk. | D99: =13019*(1+D203) -> 13500.703 | E99: 15
B100: Stik på ledningsnet, Konstruktioner | C100: kr./stk. | D100: =4722*(1+D203) -> 4896.714 | E100: 75
B101: Stik på ledningsnet, Mek./EL | C101: kr./stk. | D101: =4722*(1+D203) -> 4896.714 | E101: 75
B102: Ledningsnet - By
B103: Ledningsnet ≤ Ø50 mm | C103: kr./m. | D103: =650*(1+D203) -> 674.05 | E103: 75
B104: Ø 50mm < Ledningsnet ≤ Ø110 mm | C104: kr./m. | D104: =958*(1+D203) -> 993.446 | E104: 75
B105: Ø110 mm < Ledningsnet ≤ Ø 250 mm | C105: kr./m. | D105: =1684*(1+D203) -> 1746.308 | E105: 75
B106: Ø 250 mm < Ledningsnet ≤ Ø 500mm | C106: kr./m. | D106: =3153*(1+D203) -> 3269.661 | E106: 75
B107: Ledningsnet > Ø 500 mm | C107: kr./m. | D107: =5998*(1+D203) -> 6219.926 | E107: 75
B108: Støbejernsledninger ≤ Ø50 mm | C108: kr./m. | D108: =1020*(1+D203) -> 1057.74 | E108: 100
B109: Støbejernsledninger Ø 50mm < Ledningsnet ≤ Ø110 mm | C109: kr./m. | D109: =1203*(1+D203) -> 1247.511 | E109: 100
B110: Støbejernsledninger Ø110 mm < Ledningsnet ≤ Ø 250 mm | C110: kr./m. | D110: =1661*(1+D203) -> 1722.457 | E110: 100
B111: Støbejernsledninger Ø 250 mm < Ledningsnet ≤ Ø 500mm | C111: kr./m. | D111: =2971*(1+D203) -> 3080.927 | E111: 100
B112: Støbejernsledninger Ledningsnet > Ø 500 mm | C112: kr./m. | D112: =5731*(1+D203) -> 5943.047 | E112: 100
B113: Eternitledninger ≤ Ø50 mm | C113: kr./m. | D113: =776*(1+D203) -> 804.712 | E113: 75
B114: Eternitledninger Ø 50mm < Ledningsnet ≤ Ø110 mm | C114: kr./m. | D114: =1035*(1+D203) -> 1073.295 | E114: 75
B115: Eternitledninger Ø110 mm < Ledningsnet ≤ Ø 250 mm | C115: kr./m. | D115: =1456*(1+D203) -> 1509.872 | E115: 75
B116: Eternitledninger Ø 250 mm < Ledningsnet ≤ Ø 500mm | C116: kr./m. | D116: =3265*(1+D203) -> 3385.805 | E116: 75
B117: Eternitledninger Ledningsnet > Ø 500 mm | C117: kr./m. | D117: =8724*(1+D203) -> 9046.788 | E117: 75
B118: Skelbrønd, Konstruktioner | C118: kr./stk. | D118: =11457*(1+D203) -> 11880.909 | E118: 50
B119: Skelbrønd, Mek./EL | C119: kr./stk. | D119: =17185*(1+D203) -> 17820.845 | E119: 15
B120: Inspektionsbrønd, Konstruktioner | C120: kr./stk. | D120: =11457*(1+D203) -> 11880.909 | E120: 50
B121: Inspektionsbrønd, Mek./EL | C121: kr./stk. | D121: =14321*(1+D203) -> 14850.877 | E121: 15
B122: Stik på ledningsnet, Konstruktioner | C122: kr./stk. | D122: =5666*(1+D203) -> 5875.642 | E122: 75
B123: Stik på ledningsnet, Mek./EL | C123: kr./stk. | D123: =5666*(1+D203) -> 5875.642 | E123: 75
B124: Ledningsnet - City
B125: Ledningsnet ≤ Ø50 mm | C125: kr./m. | D125: =1078*(1+D203) -> 1117.886 | E125: 75
B126: Ø 50mm < Ledningsnet ≤ Ø110 mm | C126: kr./m. | D126: =1495*(1+D203) -> 1550.315 | E126: 75
B127: Ø110 mm < Ledningsnet ≤ Ø 250 mm | C127: kr./m. | D127: =2192*(1+D203) -> 2273.104 | E127: 75
B128: Ø 250 mm < Ledningsnet ≤ Ø 500mm | C128: kr./m. | D128: =3773*(1+D203) -> 3912.601 | E128: 75
B129: Ledningsnet > Ø 500 mm | C129: kr./m. | D129: =6732*(1+D203) -> 6981.084 | E129: 75
B130: Støbejernsledninger ≤ Ø50 mm | C130: kr./m. | D130: =1448*(1+D203) -> 1501.576 | E130: 100
B131: Støbejernsledninger Ø 50mm < Ledningsnet ≤ Ø110 mm | C131: kr./m. | D131: =1740*(1+D203) -> 1804.38 | E131: 100
B132: Støbejernsledninger Ø110 mm < Ledningsnet ≤ Ø 250 mm | C132: kr./m. | D132: =2169*(1+D203) -> 2249.253 | E132: 100
B133: Støbejernsledninger Ø 250 mm < Ledningsnet ≤ Ø 500mm | C133: kr./m. | D133: =3591*(1+D203) -> 3723.867 | E133: 100
B134: Støbejernsledninger Ledningsnet > Ø 500 mm | C134: kr./m. | D134: =6465*(1+D203) -> 6704.205 | E134: 100
B135: Eternitledninger ≤ Ø50 mm | C135: kr./m. | D135: =1204*(1+D203) -> 1248.548 | E135: 75
B136: Eternitledninger Ø 50mm < Ledningsnet ≤ Ø110 mm | C136: kr./m. | D136: =1572*(1+D203) -> 1630.164 | E136: 75
B137: Eternitledninger Ø110 mm < Ledningsnet ≤ Ø 250 mm | C137: kr./m. | D137: =1966*(1+D203) -> 2038.742 | E137: 75
B138: Eternitledninger Ø 250 mm < Ledningsnet ≤ Ø 500mm | C138: kr./m. | D138: =3885*(1+D203) -> 4028.745 | E138: 75
B139: Eternitledninger Ledningsnet > Ø 500 mm | C139: kr./m. | D139: =9458*(1+D203) -> 9807.946 | E139: 75
B140: Skelbrønd, Konstruktioner | C140: kr./stk. | D140: =12498*(1+D203) -> 12960.426 | E140: 50
B141: Skelbrønd, Mek./EL | C141: kr./stk. | D141: =18747*(1+D203) -> 19440.639 | E141: 15
B142: Inspektionsbrønd, Konstruktioner | C142: kr./stk. | D142: =12498*(1+D203) -> 12960.426 | E142: 50
B143: Inspektionsbrønd, Mek./EL | C143: kr./stk. | D143: =15623*(1+D203) -> 16201.051 | E143: 15
B144: Stik på ledningsnet, Konstruktioner | C144: kr./stk. | D144: =6139*(1+D203) -> 6366.143 | E144: 75
B145: Stik på ledningsnet, Mek./EL | C145: kr./stk. | D145: =6139*(1+D203) -> 6366.143 | E145: 75
B146: Ledningsnet - Indre city
B147: Ledningsnet ≤ Ø50 mm | C147: kr./m. | D147: =1697*(1+D203) -> 1759.789 | E147: 75
B148: Ø 50mm < Ledningsnet ≤ Ø110 mm | C148: kr./m. | D148: =2268*(1+D203) -> 2351.916 | E148: 75
B149: Ø110 mm < Ledningsnet ≤ Ø 250 mm | C149: kr./m. | D149: =3009*(1+D203) -> 3120.333 | E149: 75
B150: Ø 250 mm < Ledningsnet ≤ Ø 500mm | C150: kr./m. | D150: =4773*(1+D203) -> 4949.601 | E150: 75
B151: Ledningsnet > Ø 500 mm | C151: kr./m. | D151: =7915*(1+D203) -> 8207.855 | E151: 75
B152: Støbejernsledninger ≤ Ø50 mm | C152: kr./m. | D152: =2067*(1+D203) -> 2143.479 | E152: 100
B153: Støbejernsledninger Ø 50mm < Ledningsnet ≤ Ø110 mm | C153: kr./m. | D153: =2513*(1+D203) -> 2605.981 | E153: 100
B154: Støbejernsledninger Ø110 mm < Ledningsnet ≤ Ø 250 mm | C154: kr./m. | D154: =2986*(1+D203) -> 3096.482 | E154: 100
B155: Støbejernsledninger Ø 250 mm < Ledningsnet ≤ Ø 500mm | C155: kr./m. | D155: =4591*(1+D203) -> 4760.867 | E155: 100
B156: Støbejernsledninger Ledningsnet > Ø 500 mm | C156: kr./m. | D156: =7648*(1+D203) -> 7930.976 | E156: 100
B157: Eternitledninger ≤ Ø50 mm | C157: kr./m. | D157: =1823*(1+D203) -> 1890.451 | E157: 75
B158: Eternitledninger Ø 50mm < Ledningsnet ≤ Ø110 mm | C158: kr./m. | D158: =2345*(1+D203) -> 2431.765 | E158: 75
B159: Eternitledninger Ø110 mm < Ledningsnet ≤ Ø 250 mm | C159: kr./m. | D159: =2783*(1+D203) -> 2885.971 | E159: 75
B160: Eternitledninger Ø 250 mm < Ledningsnet ≤ Ø 500mm | C160: kr./m. | D160: =4885*(1+D203) -> 5065.745 | E160: 75
B161: Eternitledninger Ledningsnet > Ø 500 mm | C161: kr./m. | D161: =10641*(1+D203) -> 11034.717 | E161: 75
B162: Skelbrønd, Konstruktioner | C162: kr./stk. | D162: =13540*(1+D203) -> 14040.98 | E162: 50
B163: Skelbrønd, Mek./EL | C163: kr./stk. | D163: =20310*(1+D203) -> 21061.47 | E163: 15
B164: Inspektionsbrønd, Konstruktioner | C164: kr./stk. | D164: =13540*(1+D203) -> 14040.98 | E164: 50
B165: Inspektionsbrønd, Mek./EL | C165: kr./stk. | D165: =16925*(1+D203) -> 17551.225 | E165: 15
B166: Stik på ledningsnet, Konstruktioner | C166: kr./stk. | D166: =7555*(1+D203) -> 7834.535 | E166: 75
B167: Stik på ledningsnet, Mek./EL | C167: kr./stk. | D167: =7555*(1+D203) -> 7834.535 | E167: 75
B168: Ventiler
B169: Ventiler på ledningsnet ≤ Ø50 mm | C169: kr./stk. | D169: =7732*(1+D203) -> 8018.084 | E169: 75
B170: Ventiler på Ø 50mm < Ledningsnet ≤ Ø110 mm | C170: kr./stk. | D170: =8980*(1+D203) -> 9312.26 | E170: 75
B171: Ventiler på Ø110 mm < Ledningsnet ≤ Ø 250 mm | C171: kr./stk. | D171: =21736*(1+D203) -> 22540.232 | E171: 75
B172: Ventiler på Ø 250 mm < Ledningsnet ≤ Ø 500mm | C172: kr./stk. | D172: =78299*(1+D203) -> 81196.063 | E172: 75
B173: Ventiler på ledningsnet > Ø 500 mm | C173: kr./stk. | D173: =223733*(1+D203) -> 232011.121 | E173: 75
B174: Pumpestationer, bygværker og bassiner
B175: Pumpestation (inkl. evt. hydrofor)/trykforøger, Konstruktioner | C175: kr/m³/h | D175: Variabel | E175: 50
B176: Pumpestation (inkl. evt. hydrofor)/trykforøger, Mek./EL | C176: kr/m³/h | D176: Variabel | E176: 25
B177: Pumpestation (inkl. evt. hydrofor)/trykforøger, SRO | C177: kr/m³/h | D177: Variabel | E177: 10
B178: Beholderanlæg - højdebeholder | C178: kr/m³/h | D178: Variabel | E178: 50
B179: Beholderanlæg - vandtårn | C179: kr/m³/h | D179: Variabel | E179: 50
B180: Andre:
B181: Afregningsmålere, mekaniske, | C181: kr./stk. | D181: =1300*(1+D203) -> 1348.1 | E181: 8
B182: Afregningsmålere, elektroniske med maksimal gennemstrømning ≤ 4 m3/t | C182: kr./stk. | D182: =1450*(1+D203) -> 1503.65 | E182: 10
B183: Afregningsmålere, elektroniske med maksimal gennemstrømning > 4 m3/t ≤ 15 m3/t | C183: kr./stk. | D183: =2076*(1+D203) -> 2152.812 | E183: 10
B184: Afregningsmålere, elektroniske med maksimal gennemstrømning > 15 m3/t ≤ 300 m3/t | C184: kr./stk. | D184: =20000*(1+D203) -> 20740 | E184: 10
B185: Afregningsmålere, elektroniske med maksimal gennemstrømning > 300 m3/t | C185: kr./stk. | D185: =26000*(1+D203) -> 26962 | E185: 10
B186: SRO-brønd/kvarterbrønd/sektionsbrønd, Konstruktioner | C186: kr./stk. | D186: =78845*(1+D203) -> 81762.265 | E186: 50
B187: SRO-brønd/kvarterbrønd/sektionsbrønd, Mek./EL | C187: kr./stk. | D187: =90108*(1+D203) -> 93441.996 | E187: 15
B188: SRO-brønd/kvarterbrønd/sektionsbrønd, SRO | C188: kr./stk. | D188: =56318*(1+D203) -> 58401.766 | E188: 10
B191: Fællesfunktionsanlæg:
B192: Andre
B193: Arbejdsplads og kontor | C193: kr./stk. | D193: =35000*(1+D203) -> 36295 | E193: 5
B194: Køretøjer, personbil | C194: kr./stk. | D194: 225000 | E194: 5
B195: Køretøjer, små lastvogne (< 3.500 kg.) | C195: kr./stk. | D195: 250000 | E195: 5
B196: Køretøjer, store lastvogne (> 3.500 kg.) | C196: kr./stk. | D196: 1300000 | E196: 5
B197: Køretøjer, entreprenørmaskiner | C197: kr./stk. | D197: 400000 | E197: 5
B198: Øvrige
B199: Solcelleanlæg ekskl. Inverter | C199: kWp | D199: 5400 | E199: 25
B200: Inverter til solcelleanlæg | C200: kWp | D200: 600 | E200: 10
B203: Regionstillæg | D203: 0.037

Sheet Variable priser
A1: Til bestemmelse af diverse variable priser
A2: Udpumpningsanlæg | C2: 0 | D2: 10 | E2: 20 | F2: 30 | G2: 45 | H2: 300 | I2: m³/time
C3: 0 | D3: 44147.304 | E3: 62958.912 | F3: 77148.072 | G3: 90254.76 | H3: 292560 | I3: kr
C4: 4414.7304 | D4: 1881.1608 | E4: 1418.916 | F4: 873.7792 | G4: 793.3538824 | H4: 793.3538824 | I4: kr/m³
A6: Beluftningsanlæg | C6: 0 | D6: 10 | E6: 50 | F6: 100 | G6: 200 | H6: 500 | K6: Anlæg | L6: Mekn/El
A7: Iltningstrappe | C7: 0 | D7: 58570.512 | E7: 266229.6 | F7: 439278.84 | G7: 718819.92 | H7: 1331148 | I7: kr | K7: 0.8 | L7: 0.2
C8: 5857.0512 | D8: 5191.4772 | E8: 3460.9848 | F8: 2795.4108 | G8: 2041.0936 | H8: 2041.0936 | I8: kr/m³/t
A9: Ikabelufter | C9: 0 | D9: 87855.768 | E9: 399344.4 | F9: 658918.26 | G9: 1078229.88 | H9: 1996722 | I9: kr | K9: 0.5 | L9: 0.5
C10: 8785.5768 | D10: 7787.2158 | E10: 5191.4772 | F10: 4193.1162 | G10: 3061.6404 | H10: 3061.6404 | I10: kr/m³/t
A11: Bundbeluftning | C11: 0 | D11: 52713.4608 | E11: 239606.64 | F11: 395350.956 | G11: 646937.928 | H11: 1198033.2 | I11: kr
C12: 5271.34608 | D12: 4672.32948 | E12: 3114.88632 | F12: 2515.86972 | G12: 1836.98424 | H12: 1836.98424 | I12: kr/m³/t
A13: Kompressorbeluftning | C13: 0 | D13: 11714.1024 | E13: 53245.92 | F13: 87855.768 | G13: 143763.984 | H13: 266229.6 | I13: kr
C14: 1171.41024 | D14: 1038.29544 | E14: 692.19696 | F14: 559.08216 | G14: 408.21872 | H14: 408.21872 | I14: kr/m³/t
A15: Rent ilt | C15: 0 | D15: 11714.1024 | E15: 53245.92 | F15: 87855.768 | G15: 143763.984 | H15: 266229.6 | I15: kr
C16: 1171.41024 | D16: 1038.29544 | E16: 692.19696 | F16: 559.08216 | G16: 408.21872 | H16: 408.21872 | I16: kr/m³/t
A17: Rislebakke | C17: 0 | D17: 35142.3072 | E17: 159737.76 | F17: 263567.304 | G17: 431291.952 | H17: 798688.8 | I17: kr | K17: 0.7 | L17: 0.3
C18: 3514.23072 | D18: 3114.88632 | E18: 2076.59088 | F18: 1677.24648 | G18: 1224.65616 | H18: 1224.65616 | I18: kr/m³/t
A20: pH Justering | C20: 0 | D20: 50 | E20: 100 | F20: 200 | G20: 500 | H20: m³/time
A21: Kalkdoseringsanlæg | C21: 0 | D21: 78552.36 | E21: 133539.012 | F21: 213662.4192 | G21: 427324.8384 | H21: kr
C22: 0 | D22: 235657.08 | E22: 400617.036 | F22: 640987.2576 | G22: 1281974.515 | H22: kr
A23: Luddoseringsanlæg | C23: 4713.1416 | D23: 3299.19912 | E23: 2403.702216 | F23: 2136.624192 | G23: 2136.624192 | H23: kr/m³/time
C24: 0 | D24: 39276.18 | E24: 66769.506 | F24: 106831.2096 | G24: 213662.4192 | H24: kr
C25: 785.5236 | D25: 549.86652 | E25: 400.617036 | F25: 356.104032 | G25: 356.104032 | H25: kr/m³/time
A27: Behandlingsanlæg
A28: Åbne filtre | C28: 0 | D28: 50 | E28: 100 | F28: 200 | G28: 500 | H28: m³/time
A29: 07-41,01 inkl. tillæg | D29: 544161.6
A30: Skønnet inkl. tillæg | D30: 292560 | H30: kr/m³/t | K30: Anlæg | L30: Mekn/El
A31: Returskylning inkl. tillæg | K31: 0.4 | L31: 0.6
A32: 07-61.01 | D32: 714577.8
C33: 0 | D33: 1551299.4 | E33: 2637208.98 | F33: 4219534.368 | G33: 8439068.736 | H33: kr
A34: Dobbelt filtrering | C34: 31025.988 | D34: 21718.1916 | E34: 15823.25388 | F34: 14065.11456 | G34: 14065.11456 | H34: kr/m³/time
C36: 0 | D36: 1085909.58 | E36: 1846046.286 | F36: 2953674.058 | G36: 5907348.115 | H36: kr
A37: Enkelt filtrering | C37: 21718.1916 | D37: 15202.73412 | E37: 11076.27772 | F37: 9845.580192 | G37: 9845.580192 | H37: kr/m³/time
A39: Behandlingsanlæg
A40: Lukkede filtre | C40: 0 | D40: 30 | E40: 100 | F40: 200 | G40: 500 | H40: m³/t
A41: Enkelt filtrering inkl..rør mv. | C41: 0 | D41: 516368.4 | E41: 1290921 | F41: 2323657.8 | G41: 4647315.6 | H41: kr
C42: 17212.28 | D42: 11065.03714 | E42: 10327.368 | F42: 7745.526 | G42: 7745.526 | H42: kr/m³/time
C44: 0 | D44: 30 | E44: 100 | F44: 200 | G44: 500 | H44: m³/t
A45: Dobbeltfiltrering ekskl. rør | C45: 0 | D45: 722915.76 | E45: 1807289.4 | F45: 3253120.92 | G45: 6506241.84 | H45: kr
C46: 24097.192 | D46: 15491.052 | E46: 14458.3152 | F46: 10843.7364 | G46: 10843.7364 | H46: kr/m³/time
A48: Rentvandsbeholdere | C48: 0 | D48: 100 | E48: 500 | F48: 1000 | G48: 3000 | H48: m³
A49: In-situ støbt rentvandsbeholder | C49: 0 | D49: 520756.8 | E49: 2343405.6 | F49: 4218130.08 | G49: 7500000 | H49: kr
C50: 5207.568 | D50: 4556.622 | E50: 3749.44896 | F50: 1640.93496 | G50: 1640.93496 | H50: kr/m³
C52: 0 | D52: 120 | E52: 500 | F52: 1000 | G52: 3000 | H52: m³
A53: Element beholder | C53: 0 | D53: 509054.4 | E53: 1883501.28 | F53: 3390302.304 | G53: 6600000 | H53: kr
C54: 4242.12 | D54: 3616.965474 | E54: 3013.602048 | F54: 1604.848848 | G54: 1604.848848 | H54: kr/m³
A55: Vandtårne | C55: 0 | D55: 100 | E55: 500 | F55: 1000 | G55: 3000 | H55: m³/time
A56: Skønnet inkl. tillæg | C56: 0 | D56: 781135.2 | E56: 3515108.4 | F56: 6327195.12 | G56: 11250000 | H56: kr
C57: 7811.352 | D57: 6834.933 | E57: 5624.17344 | F57: 2461.40244 | G57: 2461.40244 | H57: kr/m³
A59: Skyllevandsbeholdere | C59: 0 | D59: 100 | E59: 200 | F59: 500 | G59: 1000 | H59: m³
A60: Lukket skyllevandsbeholder 30 - 80 m³ | C60: 0 | D60: 520756.8 | E60: 833210.88 | F60: 1833063.936 | G60: 3299515.085 | H60: kr
C61: 5207.568 | D61: 3124.5408 | E61: 3332.84352 | F61: 2932.902298 | G61: 2932.902298 | H61: kr/m³
A63: Åbne beholder med faste side / bund | C63: 0 | D63: 251601.6 | E63: 402562.56 | F63: 885637.632 | G63: 1594147.738 | H63: kr
C64: 2516.016 | D64: 1509.6096 | E64: 1610.25024 | F64: 1417.020211 | G64: 1417.020211 | H64: kr/m³
A66: Jordbassin | C66: 0 | D66: 37740.24 | E66: 60384.384 | F66: 132845.6448 | G66: 239122.1606 | H66: kr
C67: 377.4024 | D67: 226.44144 | E67: 241.537536 | F67: 212.5530317 | G67: 212.5530317 | H67: kr/m³
A69: Udpumpningsanlæg
A71: Udpumpningsanlæg | C71: 0 | D71: 10 | E71: 20 | F71: 30 | G71: 100 | H71: 1000 | I71: m³/time
C72: 0 | D72: 39349.32 | E72: 51051.72 | F72: 59974.8 | G72: 149937 | H72: 899622 | I72: kr
C73: 3934.932 | D73: 1170.24 | E73: 892.308 | F73: 1285.174286 | G73: 832.9833333 | H73: 832.9833333 | I73: kr/m³
A75: Frekvensomformere inkl. elinstallationer
C76: 0 | D76: 2.2 | E76: 4 | F76: 5.5 | G76: m³/time
C77: 0 | D77: 68605.32 | E77: 74456.52 | F77: 77089.56 | G77: kr
C78: 31184.23636 | D78: 3250.666667 | E78: 1755.36 | F78: 1755.36 | G78: kr/m³
A80: Hydrofor
C81: 0 | D81: 2500 | E81: 5000 | F81: m³/time
A82: Hydrofor inkl. styring | C82: 0 | D82: 200842.44 | E82: 270032.88 | F82: kr
C83: 80.336976 | D83: 27.676176 | E83: 27.676176 | F83: kr/m³
A85: Nødstrømsaggregat
C86: 0 | D86: 11.5 | E86: 16 | F86: 22 | G86: 50 | H86: kW
C87: 0 | D87: 134577.6 | E87: 155495.64 | F87: 174073.2 | G87: 295924.44 | H87: kr
C88: 11702.4 | D88: 4648.453333 | E88: 3096.26 | F88: 4351.83 | G88: 4351.83 | H88: kr/m³
A90: El + SRO Vandværk
C91: 0 | D91: 50 | E91: 200 | F91: 1000 | G91: m³/time
A92: Eltavle + install inkl. tillæg | C92: 0 | D92: 380328 | E92: 665574 | F92: 1663935 | G92: Kr
A94: Sum | D94: 380328 | E94: 665574 | F94: 1663935 | G94: Kr
C95: 7606.56 | D95: 1901.64 | E95: 1247.95125 | F95: 1247.95125 | G95: kr/m³
A97: SRO inkl. tillæg | C97: 0 | D97: 292560 | E97: 351072 | F97: 596822.4 | G97: Kr
C98: 5851.2 | D98: 390.08 | E98: 307.188 | F98: 307.188 | G98: kr/m³
A100: Pumpestation / Trykforøgerstation
I101: Anlæg | J101: Mekn/El | L101: SRO
A102: Maskinanlæg pumpestation / trykforøger | I102: 0.25 | J102: 0.65 | L102: 0.1
C103: 0 | D103: 30 | E103: 50 | F103: 250 | G103: m³/time
C104: 0 | D104: 230391 | E104: 296217 | F104: 877680 | G104: Kr | H104: Inkl. El og styring
C105: 7679.7 | D105: 3291.3 | E105: 2907.315 | F105: 2907.315 | G105: Kr/m³/time
A107: Skyllevandsbehandling
C108: 0 | D108: 20 | E108: 40 | F108: m³/t | H108: Mekn/El | I108: SRO
C109: 0 | D109: 515637 | E109: 773455.5 | F109: kr | H109: 0.85 | I109: 0.15
C110: 25781.85 | D110: 12890.925 | E110: 12890.925 | F110: kr/m³/time
